Workbook

Sheet Info
A1: Arizona Diamondbacks | B1: ARI | D1: This spread should also allow you to always have the same team in your spread as we have onsite.
A2: Atlanta Braves | B2: ATL | D2: Team name is automatically converted to the same 3 letter code we use onsite
A3: Baltimore Orioles | B3: BAL
A4: Boston Red Sox | B4: BOS | D4: Make sure you're logged into Jockstocks in Internet Explorer (Excel expects IE even if that's not your usual browser)
A5: Chicago Cubs | B5: CHC | D5: before attempting to update projections here.
A6: Chicago White Sox | B6: CHW | D6: If you happen to hit Update/Sort and you're not logged in, you'll get error messages all over…don't sweat it, simply close/reopen the file
A7: Cincinnati Reds | B7: CIN
A8: Cleveland Indians | B8: CLE | D8: To log in, go to cell AO1 of any position sheet, right click, and choose Edit Query; this will open another small window
A9: Colorado Rockies | B9: COL | D9: If you see the JS login page, type in your login information then hit cancel and come back here to hit the update button.
A10: Detroit Tigers | B10: DET | D10: If you see projections, you're already logged in and you can also hit cancel and come back here.
A11: Miami Marlins | B11: MIA
A12: Houston Astros | B12: HOU | D12: Once logged in, hit the Update/Sort All button to update projections for all sports
A13: Kansas City Royals | B13: KAN | D13: If you've added daily stats and want them cleared, hit the Clear all daily stats button
A14: Kansas City Monarchs | B14: KCM
A15: Los Angeles Angels | B15: LAA | D15: There are buttons on each tab to update and clear just one position if you so choose.
A16: Los Angeles Dodgers | B16: LAD
A17: Milwaukee Brewers | B17: MIL
A18: Minnesota Twins | B18: MIN
A19: New York Mets | B19: NYM
A20: New York Yankees | B20: NYY
A21: Oakland Athletics | B21: OAK
A22: Philadelphia Phillies | B22: PHI
A23: Pittsburgh Pirates | B23: PIT
A24: San Diego Padres | B24: SDP
A25: Seattle Mariners | B25: SEA
A26: San Francisco Giants | B26: SFG
A27: St. Louis Cardinals | B27: STL
A28: Tampa Bay Rays | B28: TAM
A29: Texas Rangers | B29: TEX
A30: Toronto Blue Jays | B30: TOR
A31: Washington Nationals | B31: WAS
A32: Atlanta Hawks | B32: ATL
A33: Boston Celtics | B33: BOS
A34: Charlotte Hornets | B34: CHA
A35: Chicago Bulls | B35: CHI
A36: Cleveland Cavaliers | B36: CLE
A37: Dallas Mavericks | B37: DAL
A38: Denver Nuggets | B38: DEN
A39: Detroit Pistons | B39: DET
A40: Golden State Warriors | B40: GOL
A41: Houston Rockets | B41: HOU
A42: Indiana Pacers | B42: IND
A43: Los Angeles Clippers | B43: LAC
A44: Los Angeles Lakers | B44: LAL
A45: Memphis Grizzlies | B45: MEM
A46: Miami Heat | B46: MIA
A47: Milwaukee Bucks | B47: MIL
A48: Minnesota Timberwolves | B48: MIN
A49: Brooklyn Nets | B49: BRO
A50: New Orleans Pelicans | B50: NOP
A51: New York Knicks | B51: NYK
A52: Oklahoma City Thunder | B52: OKC
A53: Orlando Magic | B53: ORL
A54: Philadelphia 76ers | B54: PHI
A55: Phoenix Suns | B55: PHO
A56: Portland Trail Blazers | B56: POR
A57: Sacramento Kings | B57: SAC
A58: San Antonio Spurs | B58: SAN
A59: Toronto Raptors | B59: TOR
A60: Utah Jazz | B60: UTA
A61: Washington Wizards | B61: WAS
A62: Anaheim Ducks | B62: ANA
A63: Winnipeg Jets | B63: WIN
A64: Boston Bruins | B64: BOS
A65: Buffalo Sabres | B65: BUF
A66: Calgary Flames | B66: CAL
A67: Carolina Hurricanes | B67: CAR
A68: Columbus Blue Jackets | B68: CBJ
A69: Chicago Blackhawks | B69: CHI
A70: Colorado Avalanche | B70: COL
A71: Dallas Stars | B71: DAL
A72: Detroit Red Wings | B72: DET
A73: Edmonton Oilers | B73: EDM
A74: Florida Panthers | B74: FLA
A75: Los Angeles Kings | B75: LAK
A76: Minnesota Wild | B76: MIN
A77: Montreal Canadiens | B77: MON
A78: Nashville Predators | B78: NAS
A79: New Jersey Devils | B79: NJD
A80: New York Islanders | B80: NYI
A81: New York Rangers | B81: NYR
A82: Ottawa Senators | B82: OTT
A83: Philadelphia Flyers | B83: PHI
A84: Arizona Coyotes | B84: ARI
A85: Pittsburgh Penguins | B85: PIT
A86: San Jose Sharks | B86: SJS
A87: St. Louis Blues | B87: STL
A88: Tampa Bay Lightning | B88: TAM
A89: Toronto Maple Leafs | B89: TOR
A90: Vancouver Canucks | B90: VAN
A91: Washington Capitals | B91: WAS
A92: Arizona Cardinals | B92: ARI
A93: Atlanta Falcons | B93: ATL
A94: Baltimore Ravens | B94: BAL
A95: Buffalo Bills | B95: BUF
A96: Carolina Panthers | B96: CAR
A97: Chicago Bears | B97: CHI
A98: Cincinnati Bengals | B98: CIN
A99: Cleveland Browns | B99: CLE
A100: Dallas Cowboys | B100: DAL
A101: Denver Broncos | B101: DEN
A102: Detroit Lions | B102: DET
A103: Green Bay Packers | B103: GRB
A104: Houston Texans | B104: HOU
A105: Indianapolis Colts | B105: IND
A106: Jacksonville Jaguars | B106: JAC
A107: Kansas City Chiefs | B107: KAN
A108: Miami Dolphins | B108: MIA
A109: Minnesota Vikings | B109: MIN
A110: New England Patriots | B110: NEW
A111: New Orleans Saints | B111: NOS
A112: New York Giants | B112: NYG
A113: New York Jets | B113: NYJ
A114: Oakland Raiders | B114: OAK
A115: Philadelphia Eagles | B115: PHI
A116: Pittsburgh Steelers | B116: PIT
A117: Los Angeles Chargers | B117: LAC
A118: Seattle Seahawks | B118: SEA
A119: San Francisco 49ers | B119: SFO
A120: Los Angeles Rams | B120: LAR
A121: Tampa Bay Buccaneers | B121: TAM
A122: Tennessee Titans | B122: TEN
A123: Washington Redskins | B123: WAS
A124: FA/RET/DEC/HON | B124: XXX
A125: Hall of Fame | B125: XXX
A126: Playing Overseas | B126: XXX
A127: Vegas Golden Knights | B127: VGK

Sheet MLBH
A1: plid | B1: Name | C1: Team | E1: HR | F1: RBIs | G1: Runs | H1: SBs | I1: 2B | J1: 3B | K1: Hits | L1: CS | M1: E | N1: Ks | O1: HR | P1: RBIs | Q1: Runs | R1: SBs | S1: 2B | T1: 3B | U1: Hits | V1: CS | W1: E | X1: Ks | Z1: =IF(AO1<>0,AO1,"") -> ID | AA1: =IF(AP1<>0,AP1,"") -> Name | AB1: =IF(AQ1<>0,AQ1,"") -> Team | AC1: =IF(AR1<>0,AR1,"") -> Symbol | AD1: =IF(AT1<>0,AT1,"") -> HRs | AE1: =IF(AU1<>0,AU1,"") -> RBIs | AF1: Runs Scored | AG1: Stolen Bases | AH1: Doubles | AI1: Triples | AJ1: Hits | AK1: Caught Stealing | AL1: Errors | AM1: Ks | AO1: ID | AP1: Name | AQ1: Team | AR1: Symbol | AS1: Games | AT1: HRs | AU1: RBIs | AV1: Runs Scored | AW1: Stolen Bases | AX1: Doubles | AY1: Triples | AZ1: Hits | BA1: Caught Stealing | BB1: Errors | BC1: Ks
A2: =IF(Z2<>0,Z2,"") -> 3792 | B2: =IF(A2<>0,VLOOKUP(A2,Z:AA,2,FALSE),"") -> AJ Pollock | C2: =IF(A2<>0,VLOOKUP(A2,Z:AB,3,FALSE)) -> ARI | D2: =HYPERLINK("http://www.jockstocks.com/buysell.php?action=buymax&plid="&A2,"Buy") -> Buy | O2: =VLOOKUP($A2,$A:$N,5,FALSE)/VLOOKUP($A2,$Z:$AM,5,FALSE) -> 0 | P2: =VLOOKUP($A2,$A:$N,6,FALSE)/VLOOKUP($A2,$Z:$AM,6,FALSE) -> 0 | Q2: =VLOOKUP($A2,$A:$N,7,FALSE)/VLOOKUP($A2,$Z:$AM,7,FALSE) -> 0 | R2: =VLOOKUP($A2,$A:$N,8,FALSE)/VLOOKUP($A2,$Z:$AM,8,FALSE) -> 0 | S2: =VLOOKUP($A2,$A:$N,9,FALSE)/VLOOKUP($A2,$Z:$AM,9,FALSE) -> 0 | T2: =VLOOKUP($A2,$A:$N,10,FALSE)/VLOOKUP($A2,$Z:$AM,10,FALSE) -> 0 | U2: =VLOOKUP($A2,$A:$N,11,FALSE)/VLOOKUP($A2,$Z:$AM,11,FALSE) -> 0 | V2: =VLOOKUP($A2,$A:$N,12,FALSE)/VLOOKUP($A2,$Z:$AM,12,FALSE) -> 0 | W2: =VLOOKUP($A2,$A:$N,13,FALSE)/VLOOKUP($A2,$Z:$AM,13,FALSE) -> 0 | X2: =VLOOKUP($A2,$A:$N,14,FALSE)/VLOOKUP($A2,$Z:$AM,14,FALSE) -> 0 | Z2: =IF(AO2<>0,AO2,"") -> 3792 | AA2: =IF(AP2<>0,VLOOKUP(Z2,AO:AP,2,FALSE),"") -> AJ Pollock | AB2: =IF(AQ2<>0,VLOOKUP(AQ2,Info!A:B,2,FALSE),"") -> ARI | AC2: =IF(AO2<>0,VLOOKUP(Z2,AO:AR,4,FALSE),"") -> polaj | AD2: =IF($AO2<>0,AT2/$AS2,"") -> 0.1296296296 | AE2: 0.450617284 | AF2: 0.6604938272 | AG2: 0.1728395062 | AH2: 0.2962962963 | AI2: 0.05555555556 | AJ2: 1 | AK2: 0.05555555556 | AL2: 0.03086419753 | AM2: 0.6481481481 | AO2: 3792 | AP2: AJ Pollock | AQ2: Arizona Diamondbacks | AR2: polaj | AS2: 162 | AT2: 21 | AU2: 73 | AV2: 107 | AW2: 28 | AX2: 48 | AY2: 9 | AZ2: 162 | BA2: 9 | BB2: 5 | BC2: 105
A3: =IF(Z3<>0,Z3,"") -> 2453 | B3: =IF(A3<>0,VLOOKUP(A3,Z:AA,2,FALSE),"") -> Chris Iannetta | C3: =IF(A3<>0,VLOOKUP(A3,Z:AB,3,FALSE)) -> ARI | D3: =HYPERLINK("http://www.jockstocks.com/buysell.php?action=buymax&plid="&A3,"Buy") -> Buy | O3: =VLOOKUP($A3,$A:$N,5,FALSE)/VLOOKUP($A3,$Z:$AM,5,FALSE) -> 0 | P3: =VLOOKUP($A3,$A:$N,6,FALSE)/VLOOKUP($A3,$Z:$AM,6,FALSE) -> 0 | Q3: =VLOOKUP($A3,$A:$N,7,FALSE)/VLOOKUP($A3,$Z:$AM,7,FALSE) -> 0 | R3: =VLOOKUP($A3,$A:$N,8,FALSE)/VLOOKUP($A3,$Z:$AM,8,FALSE) -> 0 | S3: =VLOOKUP($A3,$A:$N,9,FALSE)/VLOOKUP($A3,$Z:$AM,9,FALSE) -> 0 | T3: =VLOOKUP($A3,$A:$N,10,FALSE)/VLOOKUP($A3,$Z:$AM,10,FALSE) -> 0 | U3: =VLOOKUP($A3,$A:$N,11,FALSE)/VLOOKUP($A3,$Z:$AM,11,FALSE) -> 0 | V3: =VLOOKUP($A3,$A:$N,12,FALSE)/VLOOKUP($A3,$Z:$AM,12,FALSE) -> 0 | W3: =VLOOKUP($A3,$A:$N,13,FALSE)/VLOOKUP($A3,$Z:$AM,13,FALSE) -> 0 | X3: =VLOOKUP($A3,$A:$N,14,FALSE)/VLOOKUP($A3,$Z:$AM,14,FALSE) -> 0 | Z3: =IF(AO3<>0,AO3,"") -> 2453 | AA3: =IF(AP3<>0,VLOOKUP(Z3,AO:AP,2,FALSE),"") -> Chris Iannetta | AB3: =IF(AQ3<>0,VLOOKUP(AQ3,Info!A:B,2,FALSE),"") -> ARI | AC3: =IF(AO3<>0,VLOOKUP(Z3,AO:AR,4,FALSE),"") -> ianch | AD3: =IF($AO3<>0,AT3/$AS3,"") -> 0.1851851852 | AE3: =IF($AO3<>0,AU3/$AS3,"") -> 0.4691358025 | AF3: =IF($AO3<>0,AV3/$AS3,"") -> 0.4135802469 | AG3: =IF($AO3<>0,AW3/$AS3,"") -> 0.006172839506 | AH3: =IF($AO3<>0,AX3/$AS3,"") -> 0.2098765432 | AI3: =IF($AO3<>0,AY3/$AS3,"") -> 0.006172839506 | AJ3: =IF($AO3<>0,AZ3/$AS3,"") -> 0.7654320988 | AK3: =IF($AO3<>0,BA3/$AS3,"") -> 0.01234567901 | AL3: =IF($AO3<>0,BB3/$AS3,"") -> 0.06790123457 | AM3: =IF($AO3<>0,BC3/$AS3,"") -> 1 | AO3: 2453 | AP3: Chris Iannetta | AQ3: Arizona Diamondbacks | AR3: ianch | AS3: 162 | AT3: 30 | AU3: 76 | AV3: 67 | AW3: 1 | AX3: 34 | AY3: 1 | AZ3: 124 | BA3: 2 | BB3: 11 | BC3: 162
A4: 3537 | B4: Chris Owings | C4: ARI | D4: Buy | O4: 0 | P4: 0 | Q4: 0 | R4: 0 | S4: 0 | T4: 0 | U4: 0 | V4: 0 | W4: 0 | X4: 0 | Z4: 3537 | AA4: Chris Owings | AB4: =IF(AQ4<>0,VLOOKUP(AQ4,Info!A:B,2,FALSE),"") -> ARI | AC4: owich | AD4: 0.1234567901 | AE4: 0.524691358 | AF4: 0.4320987654 | AG4: 0.1234567901 | AH4: 0.2654320988 | AI4: 0.01234567901 | AJ4: 1.012345679 | AK4: 0.02469135802 | AL4: 0.1358024691 | AM4: 0.9012345679 | AO4: 3537 | AP4: Chris Owings | AQ4: Arizona Diamondbacks | AR4: owich | AS4: 162 | AT4: 20 | AU4: 85 | AV4: 70 | AW4: 20 | AX4: 43 | AY4: 2 | AZ4: 164 | BA4: 4 | BB4: 22 | BC4: 146
A5: 3855 | B5: David Peralta | C5: ARI | D5: Buy | O5: 0 | P5: 0 | Q5: 0 | R5: 0 | S5: 0 | T5: 0 | U5: 0 | V5: 0 | W5: 0 | X5: 0 | Z5: 3855 | AA5: David Peralta | AB5: =IF(AQ5<>0,VLOOKUP(AQ5,Info!A:B,2,FALSE),"") -> ARI | AC5: perad | AD5: 0.0987654321 | AE5: 0.3950617284 | AF5: 0.5802469136 | AG5: 0.05555555556 | AH5: 0.2160493827 | AI5: 0.02469135802 | AJ5: 1.092592593 | AK5: 0.03086419753 | AL5: 0.03086419753 | AM5: 0.6666666667 | AO5: 3855 | AP5: David Peralta | AQ5: Arizona Diamondbacks | AR5: perad | AS5: 162 | AT5: 16 | AU5: 64 | AV5: 94 | AW5: 9 | AX5: 35 | AY5: 4 | AZ5: 177 | BA5: 5 | BB5: 5 | BC5: 108
A6: 3863 | B6: Gregor Blanco | C6: ARI | D6: Buy | O6: 0 | P6: 0 | Q6: 0 | R6: 0 | S6: 0 | T6: 0 | U6: 0 | V6: 0 | W6: 0 | X6: 0 | Z6: 3863 | AA6: Gregor Blanco | AB6: =IF(AQ6<>0,VLOOKUP(AQ6,Info!A:B,2,FALSE),"") -> ARI | AC6: blagr | AD6: 0.06172839506 | AE6: 0.3086419753 | AF6: 0.462962963 | AG6: 0.1666666667 | AH6: 0.1234567901 | AI6: 0.03703703704 | AJ6: 0.6172839506 | AK6: 0.01234567901 | AL6: 0.03703703704 | AM6: 0.6604938272 | AO6: 3863 | AP6: Gregor Blanco | AQ6: Arizona Diamondbacks | AR6: blagr | AS6: 162 | AT6: 10 | AU6: 50 | AV6: 75 | AW6: 27 | AX6: 20 | AY6: 6 | AZ6: 100 | BA6: 2 | BB6: 6 | BC6: 107
A7: 4008 | B7: Jake Lamb | C7: ARI | D7: Buy | O7: 0 | P7: 0 | Q7: 0 | R7: 0 | S7: 0 | T7: 0 | U7: 0 | V7: 0 | W7: 0 | X7: 0 | Z7: 4008 | AA7: Jake Lamb | AB7: =IF(AQ7<>0,VLOOKUP(AQ7,Info!A:B,2,FALSE),"") -> ARI | AC7: lamja | AD7: 0.1975308642 | AE7: 0.6851851852 | AF7: 0.6111111111 | AG7: 0.04320987654 | AH7: 0.1975308642 | AI7: 0.03086419753 | AJ7: 0.9135802469 | AK7: 0.03086419753 | AL7: 0.08024691358 | AM7: 1.012345679 | AO7: 4008 | AP7: Jake Lamb | AQ7: Arizona Diamondbacks | AR7: lamja | AS7: 162 | AT7: 32 | AU7: 111 | AV7: 99 | AW7: 7 | AX7: 32 | AY7: 5 | AZ7: 148 | BA7: 5 | BB7: 13 | BC7: 164
A8: 3582 | B8: JD Martinez | C8: ARI | D8: Buy | O8: 0 | P8: 0 | Q8: 0 | R8: 0 | S8: 0 | T8: 0 | U8: 0 | V8: 0 | W8: 0 | X8: 0 | Z8: 3582 | AA8: JD Martinez | AB8: =IF(AQ8<>0,VLOOKUP(AQ8,Info!A:B,2,FALSE),"") -> ARI | AC8: marjd | AD8: 0.3086419753 | AE8: 0.7407407407 | AF8: 0.7222222222 | AG8: 0.03703703704 | AH8: 0.2098765432 | AI8: 0.02469135802 | AJ8: 1.092592593 | AK8: 0.01234567901 | AL8: 0.03086419753 | AM8: 1.098765432 | AO8: 3582 | AP8: JD Martinez | AQ8: Arizona Diamondbacks | AR8: marjd | AS8: 162 | AT8: 50 | AU8: 120 | AV8: 117 | AW8: 6 | AX8: 34 | AY8: 4 | AZ8: 177 | BA8: 2 | BB8: 5 | BC8: 178
A9: 3276 | B9: Oswaldo Arcia | C9: ARI | D9: Buy | O9: 0 | P9: 0 | Q9: 0 | R9: 0 | S9: 0 | T9: 0 | U9: 0 | V9: 0 | W9: 0 | X9: 0 | Z9: 3276 | AA9: Oswaldo Arcia | AB9: =IF(AQ9<>0,VLOOKUP(AQ9,Info!A:B,2,FALSE),"") -> ARI | AC9: arcos | AD9: 0.1172839506 | AE9: 0.3333333333 | AF9: 0.3086419753 | AG9: 0.01851851852 | AH9: 0.1234567901 | AI9: 0.01851851852 | AJ9: 0.6172839506 | AK9: 0.01851851852 | AL9: 0.03086419753 | AM9: 1.160493827 | AO9: 3276 | AP9: Oswaldo Arcia | AQ9: Arizona Diamondbacks | AR9: arcos | AS9: 162 | AT9: 19 | AU9: 54 | AV9: 50 | AW9: 3 | AX9: 20 | AY9: 3 | AZ9: 100 | BA9: 3 | BB9: 5 | BC9: 188
A10: 2953 | B10: Paul Goldschmidt | C10: ARI | D10: Buy | O10: 0 | P10: 0 | Q10: 0 | R10: 0 | S10: 0 | T10: 0 | U10: 0 | V10: 0 | W10: 0 | X10: 0 | Z10: 2953 | AA10: Paul Goldschmidt | AB10: =IF(AQ10<>0,VLOOKUP(AQ10,Info!A:B,2,FALSE),"") -> ARI | AC10: golpa | AD10: 0.2407407407 | AE10: 0.7407407407 | AF10: 0.7407407407 | AG10: 0.1172839506 | AH10: 0.2160493827 | AI10: 0.02469135802 | AJ10: 1.061728395 | AK10: 0.03703703704 | AL10: 0.03086419753 | AM10: 0.9444444444 | AO10: 2953 | AP10: Paul Goldschmidt | AQ10: Arizona Diamondbacks | AR10: golpa | AS10: 162 | AT10: 39 | AU10: 120 | AV10: 120 | AW10: 19 | AX10: 35 | AY10: 4 | AZ10: 172 | BA10: 6 | BB10: 5 | BC10: 153
A11: 3536 | B11: Danny Santana | C11: ATL | D11: Buy | O11: 0 | P11: 0 | Q11: 0 | R11: 0 | S11: 0 | T11: 0 | U11: 0 | V11: 0 | W11: 0 | X11: 0 | Z11: 3536 | AA11: Danny Santana | AB11: =IF(AQ11<>0,VLOOKUP(AQ11,Info!A:B,2,FALSE),"") -> ATL | AC11: sanda | AD11: 0.06172839506 | AE11: 0.3086419753 | AF11: 0.3086419753 | AG11: 0.08641975309 | AH11: 0.1234567901 | AI11: 0.02469135802 | AJ11: 0.6172839506 | AK11: 0.01234567901 | AL11: 0.03086419753 | AM11: 0.5 | AO11: 3536 | AP11: Danny Santana | AQ11: Atlanta Braves | AR11: sanda | AS11: 162 | AT11: 10 | AU11: 50 | AV11: 50 | AW11: 14 | AX11: 20 | AY11: 4 | AZ11: 100 | BA11: 2 | BB11: 5 | BC11: 81
A12: 2397 | B12: Emilio Bonifacio | C12: ATL | D12: Buy | O12: 0 | P12: 0 | Q12: 0 | R12: 0 | S12: 0 | T12: 0 | U12: 0 | V12: 0 | W12: 0 | X12: 0 | Z12: 2397 | AA12: Emilio Bonifacio | AB12: =IF(AQ12<>0,VLOOKUP(AQ12,Info!A:B,2,FALSE),"") -> ATL | AC12: bonem | AD12: 0.06172839506 | AE12: 0.3086419753 | AF12: 0.3086419753 | AG12: 0.006172839506 | AH12: 0.1234567901 | AI12: 0.03086419753 | AJ12: 0.6172839506 | AK12: 0.01234567901 | AL12: 0.03086419753 | AM12: 0.462962963 | AO12: 2397 | AP12: Emilio Bonifacio | AQ12: Atlanta Braves | AR12: bonem | AS12: 162 | AT12: 10 | AU12: 50 | AV12: 50 | AW12: 1 | AX12: 20 | AY12: 5 | AZ12: 100 | BA12: 2 | BB12: 5 | BC12: 75
A13: 3827 | B13: Ender Inciarte | C13: ATL | D13: Buy | O13: 0 | P13: 0 | Q13: 0 | R13: 0 | S13: 0 | T13: 0 | U13: 0 | V13: 0 | W13: 0 | X13: 0 | Z13: 3827 | AA13: Ender Inciarte | AB13: =IF(AQ13<>0,VLOOKUP(AQ13,Info!A:B,2,FALSE),"") -> ATL | AC13: incen | AD13: 0.07407407407 | AE13: 0.3580246914 | AF13: 0.5864197531 | AG13: 0.1419753086 | AH13: 0.1728395062 | AI13: 0.03703703704 | AJ13: 1.265432099 | AK13: 0.06172839506 | AL13: 0.03086419753 | AM13: 0.6049382716 | AO13: 3827 | AP13: Ender Inciarte | AQ13: Atlanta Braves | AR13: incen | AS13: 162 | AT13: 12 | AU13: 58 | AV13: 95 | AW13: 23 | AX13: 28 | AY13: 6 | AZ13: 205 | BA13: 10 | BB13: 5 | BC13: 98
A14: 2862 | B14: Freddie Freeman | C14: ATL | D14: Buy | O14: 0 | P14: 0 | Q14: 0 | R14: 0 | S14: 0 | T14: 0 | U14: 0 | V14: 0 | W14: 0 | X14: 0 | Z14: 2862 | AA14: Freddie Freeman | AB14: =IF(AQ14<>0,VLOOKUP(AQ14,Info!A:B,2,FALSE),"") -> ATL | AC14: frefr | AD14: 0.2407407407 | AE14: 0.6111111111 | AF14: 0.7222222222 | AG14: 0.07407407407 | AH14: 0.3024691358 | AI14: 0.01851851852 | AJ14: 1.154320988 | AK14: 0.04320987654 | AL14: 0.03086419753 | AM14: 0.8148148148 | AO14: 2862 | AP14: Freddie Freeman | AQ14: Atlanta Braves | AR14: frefr | AS14: 162 | AT14: 39 | AU14: 99 | AV14: 117 | AW14: 12 | AX14: 49 | AY14: 3 | AZ14: 187 | BA14: 7 | BB14: 5 | BC14: 132
A15: 3862 | B15: Jace Peterson | C15: ATL | D15: Buy | O15: 0 | P15: 0 | Q15: 0 | R15: 0 | S15: 0 | T15: 0 | U15: 0 | V15: 0 | W15: 0 | X15: 0 | Z15: 3862 | AA15: Jace Peterson | AB15: =IF(AQ15<>0,VLOOKUP(AQ15,Info!A:B,2,FALSE),"") -> ATL | AC15: petja | AD15: 0.06172839506 | AE15: 0.3086419753 | AF15: 0.3086419753 | AG15: 0.03703703704 | AH15: 0.1234567901 | AI15: 0.02469135802 | AJ15: 0.6172839506 | AK15: 0.01234567901 | AL15: 0.06790123457 | AM15: 0.5432098765 | AO15: 3862 | AP15: Jace Peterson | AQ15: Atlanta Braves | AR15: petja | AS15: 162 | AT15: 10 | AU15: 50 | AV15: 50 | AW15: 6 | AX15: 20 | AY15: 4 | AZ15: 100 | BA15: 2 | BB15: 11 | BC15: 88
A16: 2173 | B16: Kurt Suzuki | C16: ATL | D16: Buy | O16: 0 | P16: 0 | Q16: 0 | R16: 0 | S16: 0 | T16: 0 | U16: 0 | V16: 0 | W16: 0 | X16: 0 | Z16: 2173 | AA16: Kurt Suzuki | AB16: =IF(AQ16<>0,VLOOKUP(AQ16,Info!A:B,2,FALSE),"") -> ATL | AC16: suzku | AD16: 0.2345679012 | AE16: 0.6111111111 | AF16: 0.4691358025 | AG16: 0.006172839506 | AH16: 0.1604938272 | AI16: 0.006172839506 | AJ16: 0.9567901235 | AK16: 0.01234567901 | AL16: 0.03703703704 | AM16: 0.4814814815 | AO16: 2173 | AP16: Kurt Suzuki | AQ16: Atlanta Braves | AR16: suzku | AS16: 162 | AT16: 38 | AU16: 99 | AV16: 76 | AW16: 1 | AX16: 26 | AY16: 1 | AZ16: 155 | BA16: 2 | BB16: 6 | BC16: 78
A17: 3374 | B17: Matt Adams | C17: ATL | D17: Buy | O17: 0 | P17: 0 | Q17: 0 | R17: 0 | S17: 0 | T17: 0 | U17: 0 | V17: 0 | W17: 0 | X17: 0 | Z17: 3374 | AA17: Matt Adams | AB17: =IF(AQ17<>0,VLOOKUP(AQ17,Info!A:B,2,FALSE),"") -> ATL | AC17: adama | AD17: 0.1543209877 | AE17: 0.4938271605 | AF17: 0.3580246914 | AG17: 0.006172839506 | AH17: 0.1666666667 | AI17: 0.01234567901 | AJ17: 0.7098765432 | AK17: 0.01234567901 | AL17: 0.03086419753 | AM17: 0.6666666667 | AO17: 3374 | AP17: Matt Adams | AQ17: Atlanta Braves | AR17: adama | AS17: 162 | AT17: 25 | AU17: 80 | AV17: 58 | AW17: 1 | AX17: 27 | AY17: 2 | AZ17: 115 | BA17: 2 | BB17: 5 | BC17: 108
A18: 2168 | B18: Matt Kemp | C18: ATL | D18: Buy | O18: 0 | P18: 0 | Q18: 0 | R18: 0 | S18: 0 | T18: 0 | U18: 0 | V18: 0 | W18: 0 | X18: 0 | Z18: 2168 | AA18: Matt Kemp | AB18: =IF(AQ18<>0,VLOOKUP(AQ18,Info!A:B,2,FALSE),"") -> ATL | AC18: kemma | AD18: 0.1666666667 | AE18: 0.549382716 | AF18: 0.4135802469 | AG18: 0.006172839506 | AH18: 0.1975308642 | AI18: 0.01234567901 | AJ18: 1.037037037 | AK18: 0.01851851852 | AL18: 0.03086419753 | AM18: 0.8580246914 | AO18: 2168 | AP18: Matt Kemp | AQ18: Atlanta Braves | AR18: kemma | AS18: 162 | AT18: 27 | AU18: 89 | AV18: 67 | AW18: 1 | AX18: 32 | AY18: 2 | AZ18: 168 | BA18: 3 | BB18: 5 | BC18: 139
A19: 1815 | B19: Nick Markakis | C19: ATL | D19: Buy | O19: 0 | P19: 0 | Q19: 0 | R19: 0 | S19: 0 | T19: 0 | U19: 0 | V19: 0 | W19: 0 | X19: 0 | Z19: 1815 | AA19: Nick Markakis | AB19: =IF(AQ19<>0,VLOOKUP(AQ19,Info!A:B,2,FALSE),"") -> ATL | AC19: marni | AD19: 0.06172839506 | AE19: 0.4691358025 | AF19: 0.4814814815 | AG19: 0.006172839506 | AH19: 0.2407407407 | AI19: 0.006172839506 | AJ19: 1.00617284 | AK19: 0.01234567901 | AL19: 0.03086419753 | AM19: 0.6913580247 | AO19: 1815 | AP19: Nick Markakis | AQ19: Atlanta Braves | AR19: marni | AS19: 162 | AT19: 10 | AU19: 76 | AV19: 78 | AW19: 1 | AX19: 39 | AY19: 1 | AZ19: 163 | BA19: 2 | BB19: 5 | BC19: 112
A20: 1588 | B20: Ryan Howard | C20: ATL | D20: Buy | O20: 0 | P20: 0 | Q20: 0 | R20: 0 | S20: 0 | T20: 0 | U20: 0 | V20: 0 | W20: 0 | X20: 0 | Z20: 1588 | AA20: Ryan Howard | AB20: =IF(AQ20<>0,VLOOKUP(AQ20,Info!A:B,2,FALSE),"") -> ATL | AC20: howry | AD20: 0.2222222222 | AE20: 0.524691358 | AF20: 0.3148148148 | AG20: 0.006172839506 | AH20: 0.1234567901 | AI20: 0.006172839506 | AJ20: 0.6172839506 | AK20: 0.01234567901 | AL20: 0.03703703704 | AM20: 1.030864198 | AO20: 1588 | AP20: Ryan Howard | AQ20: Atlanta Braves | AR20: howry | AS20: 162 | AT20: 36 | AU20: 85 | AV20: 51 | AW20: 1 | AX20: 20 | AY20: 1 | AZ20: 100 | BA20: 2 | BB20: 6 | BC20: 167
A21: 3545 | B21: Tyler Flowers | C21: ATL | D21: Buy | O21: 0 | P21: 0 | Q21: 0 | R21: 0 | S21: 0 | T21: 0 | U21: 0 | V21: 0 | W21: 0 | X21: 0 | Z21: 3545 | AA21: Tyler Flowers | AB21: =IF(AQ21<>0,VLOOKUP(AQ21,Info!A:B,2,FALSE),"") -> ATL | AC21: floty | AD21: 0.1234567901 | AE21: 0.4814814815 | AF21: 0.4135802469 | AG21: 0.006172839506 | AH21: 0.1604938272 | AI21: 0.006172839506 | AJ21: 0.8827160494 | AK21: 0.01234567901 | AL21: 0.04320987654 | AM21: 0.8209876543 | AO21: 3545 | AP21: Tyler Flowers | AQ21: Atlanta Braves | AR21: floty | AS21: 162 | AT21: 20 | AU21: 78 | AV21: 67 | AW21: 1 | AX21: 26 | AY21: 1 | AZ21: 143 | BA21: 2 | BB21: 7 | BC21: 133
A22: 2170 | B22: Adam Jones | C22: BAL | D22: Buy | O22: 0 | P22: 0 | Q22: 0 | R22: 0 | S22: 0 | T22: 0 | U22: 0 | V22: 0 | W22: 0 | X22: 0 | Z22: 2170 | AA22: Adam Jones | AB22: =IF(AQ22<>0,VLOOKUP(AQ22,Info!A:B,2,FALSE),"") -> BAL | AC22: jonad | AD22: 0.1790123457 | AE22: 0.4938271605 | AF22: 0.5555555556 | AG22: 0.01851851852 | AH22: 0.1913580247 | AI22: 0.01234567901 | AJ22: 1.154320988 | AK22: 0.01234567901 | AL22: 0.04320987654 | AM22: 0.7654320988 | AO22: 2170 | AP22: Adam Jones | AQ22: Baltimore Orioles | AR22: jonad | AS22: 162 | AT22: 29 | AU22: 80 | AV22: 90 | AW22: 3 | AX22: 31 | AY22: 2 | AZ22: 187 | BA22: 2 | BB22: 7 | BC22: 124
A23: 2455 | B23: Chris Davis | C23: BAL | D23: Buy | O23: 0 | P23: 0 | Q23: 0 | R23: 0 | S23: 0 | T23: 0 | U23: 0 | V23: 0 | W23: 0 | X23: 0 | Z23: 2455 | AA23: Chris Davis | AB23: =IF(AQ23<>0,VLOOKUP(AQ23,Info!A:B,2,FALSE),"") -> BAL | AC23: davch | AD23: 0.2098765432 | AE23: 0.4814814815 | AF23: 0.512345679 | AG23: 0.01234567901 | AH23: 0.1234567901 | AI23: 0.01234567901 | AJ23: 0.7716049383 | AK23: 0.01234567901 | AL23: 0.03086419753 | AM23: 1.524691358 | AO23: 2455 | AP23: Chris Davis | AQ23: Baltimore Orioles | AR23: davch | AS23: 162 | AT23: 34 | AU23: 78 | AV23: 83 | AW23: 2 | AX23: 20 | AY23: 2 | AZ23: 125 | BA23: 2 | BB23: 5 | BC23: 247
A24: 2708 | B24: Chris Johnson | C24: BAL | D24: Buy | O24: 0 | P24: 0 | Q24: 0 | R24: 0 | S24: 0 | T24: 0 | U24: 0 | V24: 0 | W24: 0 | X24: 0 | Z24: 2708 | AA24: Chris Johnson | AB24: =IF(AQ24<>0,VLOOKUP(AQ24,Info!A:B,2,FALSE),"") -> BAL | AC24: jochr | AD24: 0.06172839506 | AE24: 0.3086419753 | AF24: 0.3086419753 | AG24: 0.006172839506 | AH24: 0.1234567901 | AI24: 0.006172839506 | AJ24: 0.6172839506 | AK24: 0.01234567901 | AL24: 0.03086419753 | AM24: 0.6913580247 | AO24: 2708 | AP24: Chris Johnson | AQ24: Baltimore Orioles | AR24: jochr | AS24: 162 | AT24: 10 | AU24: 50 | AV24: 50 | AW24: 1 | AX24: 20 | AY24: 1 | AZ24: 100 | BA24: 2 | BB24: 5 | BC24: 112
A25: 1972 | B25: J.J. Hardy | C25: BAL | D25: Buy | O25: 0 | P25: 0 | Q25: 0 | R25: 0 | S25: 0 | T25: 0 | U25: 0 | V25: 0 | W25: 0 | X25: 0 | Z25: 1972 | AA25: J.J. Hardy | AB25: =IF(AQ25<>0,VLOOKUP(AQ25,Info!A:B,2,FALSE),"") -> BAL | AC25: harjj | AD25: 0.06172839506 | AE25: 0.3271604938 | AF25: 0.3271604938 | AG25: 0.006172839506 | AH25: 0.1790123457 | AI25: 0.01851851852 | AJ25: 0.7469135802 | AK25: 0.01851851852 | AL25: 0.06790123457 | AM25: 0.6666666667 | AO25: 1972 | AP25: J.J. Hardy | AQ25: Baltimore Orioles | AR25: harjj | AS25: 162 | AT25: 10 | AU25: 53 | AV25: 53 | AW25: 1 | AX25: 29 | AY25: 3 | AZ25: 121 | BA25: 3 | BB25: 11 | BC25: 108
A26: 3041 | B26: Jesus Montero | C26: BAL | D26: Buy | O26: 0 | P26: 0 | Q26: 0 | R26: 0 | S26: 0 | T26: 0 | U26: 0 | V26: 0 | W26: 0 | X26: 0 | Z26: 3041 | AA26: Jesus Montero | AB26: =IF(AQ26<>0,VLOOKUP(AQ26,Info!A:B,2,FALSE),"") -> BAL | AC26: monje | AD26: 0.1358024691 | AE26: 0.5 | AF26: 0.3086419753 | AG26: 0.006172839506 | AH26: 0.1604938272 | AI26: 0.006172839506 | AJ26: 0.6604938272 | AK26: 0.01234567901 | AL26: 0.03086419753 | AM26: 0.8456790123 | AO26: 3041 | AP26: Jesus Montero | AQ26: Baltimore Orioles | AR26: monje | AS26: 162 | AT26: 22 | AU26: 81 | AV26: 50 | AW26: 1 | AX26: 26 | AY26: 1 | AZ26: 107 | BA26: 2 | BB26: 5 | BC26: 137
A27: 3860 | B27: Jonathan Schoop | C27: BAL | D27: Buy | O27: 0 | P27: 0 | Q27: 0 | R27: 0 | S27: 0 | T27: 0 | U27: 0 | V27: 0 | W27: 0 | X27: 0 | Z27: 3860 | AA27: Jonathan Schoop | AB27: =IF(AQ27<>0,VLOOKUP(AQ27,Info!A:B,2,FALSE),"") -> BAL | AC27: schoj | AD27: 0.2037037037 | AE27: 0.6543209877 | AF27: 0.5802469136 | AG27: 0.01234567901 | AH27: 0.2222222222 | AI27: 0.006172839506 | AJ27: 1.135802469 | AK27: 0.01234567901 | AL27: 0.08024691358 | AM27: 0.8888888889 | AO27: 3860 | AP27: Jonathan Schoop | AQ27: Baltimore Orioles | AR27: schoj | AS27: 162 | AT27: 33 | AU27: 106 | AV27: 94 | AW27: 2 | AX27: 36 | AY27: 1 | AZ27: 184 | BA27: 2 | BB27: 13 | BC27: 144
A28: 3141 | B28: Manny Machado | C28: BAL | D28: Buy | O28: 0 | P28: 0 | Q28: 0 | R28: 0 | S28: 0 | T28: 0 | U28: 0 | V28: 0 | W28: 0 | X28: 0 | Z28: 3141 | AA28: Manny Machado | AB28: =IF(AQ28<>0,VLOOKUP(AQ28,Info!A:B,2,FALSE),"") -> BAL | AC28: macma | AD28: 0.2160493827 | AE28: 0.6111111111 | AF28: 0.524691358 | AG28: 0.06172839506 | AH28: 0.2160493827 | AI28: 0.01234567901 | AJ28: 1.049382716 | AK28: 0.03086419753 | AL28: 0.0987654321 | AM28: 0.7407407407 | AO28: 3141 | AP28: Manny Machado | AQ28: Baltimore Orioles | AR28: macma | AS28: 162 | AT28: 35 | AU28: 99 | AV28: 85 | AW28: 10 | AX28: 35 | AY28: 2 | AZ28: 170 | BA28: 5 | BB28: 16 | BC28: 120
A29: 2878 | B29: Mark Trumbo | C29: BAL | D29: Buy | O29: 0 | P29: 0 | Q29: 0 | R29: 0 | S29: 0 | T29: 0 | U29: 0 | V29: 0 | W29: 0 | X29: 0 | Z29: 2878 | AA29: Mark Trumbo | AB29: =IF(AQ29<>0,VLOOKUP(AQ29,Info!A:B,2,FALSE),"") -> BAL | AC29: trumm | AD29: 0.1604938272 | AE29: 0.4444444444 | AF29: 0.5432098765 | AG29: 0.01234567901 | AH29: 0.1543209877 | AI29: 0.006172839506 | AJ29: 0.8950617284 | AK29: 0.01234567901 | AL29: 0.03086419753 | AM29: 1.024691358 | AO29: 2878 | AP29: Mark Trumbo | AQ29: Baltimore Orioles | AR29: trumm | AS29: 162 | AT29: 26 | AU29: 72 | AV29: 88 | AW29: 2 | AX29: 25 | AY29: 1 | AZ29: 145 | BA29: 2 | BB29: 5 | BC29: 166
A30: 3078 | B30: Pedro Alvarez | C30: BAL | D30: Buy | O30: 0 | P30: 0 | Q30: 0 | R30: 0 | S30: 0 | T30: 0 | U30: 0 | V30: 0 | W30: 0 | X30: 0 | Z30: 3078 | AA30: Pedro Alvarez | AB30: =IF(AQ30<>0,VLOOKUP(AQ30,Info!A:B,2,FALSE),"") -> BAL | AC30: alvpe | AD30: 0.2098765432 | AE30: 0.450617284 | AF30: 0.4074074074 | AG30: 0.01234567901 | AH30: 0.1851851852 | AI30: 0.006172839506 | AJ30: 0.7962962963 | AK30: 0.01234567901 | AL30: 0.03086419753 | AM30: 0.8765432099 | AO30: 3078 | AP30: Pedro Alvarez | AQ30: Baltimore Orioles | AR30: alvpe | AS30: 162 | AT30: 34 | AU30: 73 | AV30: 66 | AW30: 2 | AX30: 30 | AY30: 1 | AZ30: 129 | BA30: 2 | BB30: 5 | BC30: 142
A31: 2857 | B31: Seth Smith | C31: BAL | D31: Buy | O31: 0 | P31: 0 | Q31: 0 | R31: 0 | S31: 0 | T31: 0 | U31: 0 | V31: 0 | W31: 0 | X31: 0 | Z31: 2857 | AA31: Seth Smith | AB31: =IF(AQ31<>0,VLOOKUP(AQ31,Info!A:B,2,FALSE),"") -> BAL | AC31: smise | AD31: 0.1172839506 | AE31: 0.3086419753 | AF31: 0.450617284 | AG31: 0.01851851852 | AH31: 0.1728395062 | AI31: 0.006172839506 | AJ31: 0.7530864198 | AK31: 0.01234567901 | AL31: 0.03086419753 | AM31: 0.7283950617 | AO31: 2857 | AP31: Seth Smith | AQ31: Baltimore Orioles | AR31: smise | AS31: 162 | AT31: 19 | AU31: 50 | AV31: 73 | AW31: 3 | AX31: 28 | AY31: 1 | AZ31: 122 | BA31: 2 | BB31: 5 | BC31: 118
A32: 4192 | B32: Trey Mancini | C32: BAL | D32: Buy | O32: 0 | P32: 0 | Q32: 0 | R32: 0 | S32: 0 | T32: 0 | U32: 0 | V32: 0 | W32: 0 | X32: 0 | Z32: 4192 | AA32: Trey Mancini | AB32: =IF(AQ32<>0,VLOOKUP(AQ32,Info!A:B,2,FALSE),"") -> BAL | AC32: mantr | AD32: 0.1666666667 | AE32: 0.5308641975 | AF32: 0.4444444444 | AG32: 0.01234567901 | AH32: 0.1790123457 | AI32: 0.03086419753 | AJ32: 1.086419753 | AK32: 0.01234567901 | AL32: 0.03086419753 | AM32: 0.950617284 | AO32: 4192 | AP32: Trey Mancini | AQ32: Baltimore Orioles | AR32: mantr | AS32: 162 | AT32: 27 | AU32: 86 | AV32: 72 | AW32: 2 | AX32: 29 | AY32: 5 | AZ32: 176 | BA32: 2 | BB32: 5 | BC32: 154
A33: 3523 | B33: Welington Castillo | C33: BAL | D33: Buy | O33: 0 | P33: 0 | Q33: 0 | R33: 0 | S33: 0 | T33: 0 | U33: 0 | V33: 0 | W33: 0 | X33: 0 | Z33: 3523 | AA33: Welington Castillo | AB33: =IF(AQ33<>0,VLOOKUP(AQ33,Info!A:B,2,FALSE),"") -> BAL | AC33: caswe | AD33: 0.2098765432 | AE33: 0.549382716 | AF33: 0.4567901235 | AG33: 0.006172839506 | AH33: 0.1234567901 | AI33: 0.006172839506 | AJ33: 0.9938271605 | AK33: 0.01234567901 | AL33: 0.04320987654 | AM33: 1.024691358 | AO33: 3523 | AP33: Welington Castillo | AQ33: Baltimore Orioles | AR33: caswe | AS33: 162 | AT33: 34 | AU33: 89 | AV33: 74 | AW33: 1 | AX33: 20 | AY33: 1 | AZ33: 161 | BA33: 2 | BB33: 7 | BC33: 166
A34: 3079 | B34: Allen Craig | C34: BOS | D34: Buy | O34: 0 | P34: 0 | Q34: 0 | R34: 0 | S34: 0 | T34: 0 | U34: 0 | V34: 0 | W34: 0 | X34: 0 | Z34: 3079 | AA34: Allen Craig | AB34: =IF(AQ34<>0,VLOOKUP(AQ34,Info!A:B,2,FALSE),"") -> BOS | AC34: craal | AD34: 0.06172839506 | AE34: 0.3086419753 | AF34: 0.3086419753 | AG34: 0.006172839506 | AH34: 0.1234567901 | AI34: 0.006172839506 | AJ34: 0.6172839506 | AK34: 0.01234567901 | AL34: 0.03086419753 | AM34: 0.7222222222 | AO34: 3079 | AP34: Allen Craig | AQ34: Boston Red Sox | AR34: craal | AS34: 162 | AT34: 10 | AU34: 50 | AV34: 50 | AW34: 1 | AX34: 20 | AY34: 1 | AZ34: 100 | BA34: 2 | BB34: 5 | BC34: 117
A35: 4160 | B35: Andrew Benintendi | C35: BOS | D35: Buy | O35: 0 | P35: 0 | Q35: 0 | R35: 0 | S35: 0 | T35: 0 | U35: 0 | V35: 0 | W35: 0 | X35: 0 | Z35: 4160 | AA35: Andrew Benintendi | AB35: =IF(AQ35<>0,VLOOKUP(AQ35,Info!A:B,2,FALSE),"") -> BOS | AC35: benan | AD35: 0.1358024691 | AE35: 0.6111111111 | AF35: 0.5617283951 | AG35: 0.1296296296 | AH35: 0.1666666667 | AI35: 0.01234567901 | AJ35: 1.024691358 | AK35: 0.03703703704 | AL35: 0.03086419753 | AM35: 0.7469135802 | AO35: 4160 | AP35: Andrew Benintendi | AQ35: Boston Red Sox | AR35: benan | AS35: 162 | AT35: 22 | AU35: 99 | AV35: 91 | AW35: 21 | AX35: 27 | AY35: 2 | AZ35: 166 | BA35: 6 | BB35: 5 | BC35: 121
A36: 3583 | B36: Brock Holt | C36: BOS | D36: Buy | O36: 0 | P36: 0 | Q36: 0 | R36: 0 | S36: 0 | T36: 0 | U36: 0 | V36: 0 | W36: 0 | X36: 0 | Z36: 3583 | AA36: Brock Holt | AB36: =IF(AQ36<>0,VLOOKUP(AQ36,Info!A:B,2,FALSE),"") -> BOS | AC36: holtb | AD36: 0.06172839506 | AE36: 0.3086419753 | AF36: 0.3086419753 | AG36: 0.03086419753 | AH36: 0.1234567901 | AI36: 0.006172839506 | AJ36: 0.6172839506 | AK36: 0.01851851852 | AL36: 0.03086419753 | AM36: 0.524691358 | AO36: 3583 | AP36: Brock Holt | AQ36: Boston Red Sox | AR36: holtb | AS36: 162 | AT36: 10 | AU36: 50 | AV36: 50 | AW36: 5 | AX36: 20 | AY36: 1 | AZ36: 100 | BA36: 3 | BB36: 5 | BC36: 85
A37: 1990 | B37: Chris B. Young | C37: BOS | D37: Buy | O37: 0 | P37: 0 | Q37: 0 | R37: 0 | S37: 0 | T37: 0 | U37: 0 | V37: 0 | W37: 0 | X37: 0 | Z37: 1990 | AA37: Chris B. Young | AB37: =IF(AQ37<>0,VLOOKUP(AQ37,Info!A:B,2,FALSE),"") -> BOS | AC37: younc | AD37: 0.08024691358 | AE37: 0.3086419753 | AF37: 0.3456790123 | AG37: 0.04938271605 | AH37: 0.1481481481 | AI37: 0.02469135802 | AJ37: 0.6419753086 | AK37: 0.02469135802 | AL37: 0.03086419753 | AM37: 0.6049382716 | AO37: 1990 | AP37: Chris B. Young | AQ37: Boston Red Sox | AR37: younc | AS37: 162 | AT37: 13 | AU37: 50 | AV37: 56 | AW37: 8 | AX37: 24 | AY37: 4 | AZ37: 104 | BA37: 4 | BB37: 5 | BC37: 98
A38: 2005 | B38: Dustin Pedroia | C38: BOS | D38: Buy | O38: 0 | P38: 0 | Q38: 0 | R38: 0 | S38: 0 | T38: 0 | U38: 0 | V38: 0 | W38: 0 | X38: 0 | Z38: 2005 | AA38: Dustin Pedroia | AB38: =IF(AQ38<>0,VLOOKUP(AQ38,Info!A:B,2,FALSE),"") -> BOS | AC38: peddu | AD38: 0.06790123457 | AE38: 0.5740740741 | AF38: 0.450617284 | AG38: 0.03703703704 | AH38: 0.1728395062 | AI38: 0.006172839506 | AJ38: 1.12345679 | AK38: 0.03086419753 | AL38: 0.03086419753 | AM38: 0.462962963 | AO38: 2005 | AP38: Dustin Pedroia | AQ38: Boston Red Sox | AR38: peddu | AS38: 162 | AT38: 11 | AU38: 93 | AV38: 73 | AW38: 6 | AX38: 28 | AY38: 1 | AZ38: 182 | BA38: 5 | BB38: 5 | BC38: 75
A39: 4015 | B39: Eduardo Nunez | C39: BOS | D39: Buy | O39: 0 | P39: 0 | Q39: 0 | R39: 0 | S39: 0 | T39: 0 | U39: 0 | V39: 0 | W39: 0 | X39: 0 | Z39: 4015 | AA39: Eduardo Nunez | AB39: =IF(AQ39<>0,VLOOKUP(AQ39,Info!A:B,2,FALSE),"") -> BOS | AC39: nuned | AD39: 0.1049382716 | AE39: 0.5 | AF39: 0.5308641975 | AG39: 0.2098765432 | AH39: 0.2901234568 | AI39: 0.006172839506 | AJ39: 1.259259259 | AK39: 0.06172839506 | AL39: 0.05555555556 | AM39: 0.4691358025 | AO39: 4015 | AP39: Eduardo Nunez | AQ39: Boston Red Sox | AR39: nuned | AS39: 162 | AT39: 17 | AU39: 81 | AV39: 86 | AW39: 34 | AX39: 47 | AY39: 1 | AZ39: 204 | BA39: 10 | BB39: 9 | BC39: 76
A40: 1745 | B40: Hanley Ramirez | C40: BOS | D40: Buy | O40: 0 | P40: 0 | Q40: 0 | R40: 0 | S40: 0 | T40: 0 | U40: 0 | V40: 0 | W40: 0 | X40: 0 | Z40: 1745 | AA40: Hanley Ramirez | AB40: =IF(AQ40<>0,VLOOKUP(AQ40,Info!A:B,2,FALSE),"") -> BOS | AC40: ramha | AD40: 0.1666666667 | AE40: 0.475308642 | AF40: 0.4382716049 | AG40: 0.01234567901 | AH40: 0.1913580247 | AI40: 0.006172839506 | AJ40: 0.9382716049 | AK40: 0.02469135802 | AL40: 0.03086419753 | AM40: 0.8641975309 | AO40: 1745 | AP40: Hanley Ramirez | AQ40: Boston Red Sox | AR40: ramha | AS40: 162 | AT40: 27 | AU40: 77 | AV40: 71 | AW40: 2 | AX40: 31 | AY40: 1 | AZ40: 152 | BA40: 4 | BB40: 5 | BC40: 140
A41: 4013 | B41: Jackie Bradley Jr | C41: BOS | D41: Buy | O41: 0 | P41: 0 | Q41: 0 | R41: 0 | S41: 0 | T41: 0 | U41: 0 | V41: 0 | W41: 0 | X41: 0 | Z41: 4013 | AA41: Jackie Bradley Jr | AB41: =IF(AQ41<>0,VLOOKUP(AQ41,Info!A:B,2,FALSE),"") -> BOS | AC41: braja | AD41: 0.1358024691 | AE41: 0.5 | AF41: 0.4320987654 | AG41: 0.06172839506 | AH41: 0.1419753086 | AI41: 0.02469135802 | AJ41: 0.8703703704 | AK41: 0.02469135802 | AL41: 0.03086419753 | AM41: 0.950617284 | AO41: 4013 | AP41: Jackie Bradley Jr | AQ41: Boston Red Sox | AR41: braja | AS41: 162 | AT41: 22 | AU41: 81 | AV41: 70 | AW41: 10 | AX41: 23 | AY41: 4 | AZ41: 141 | BA41: 4 | BB41: 5 | BC41: 154
A42: 3524 | B42: Junior Lake | C42: BOS | D42: Buy | O42: 0 | P42: 0 | Q42: 0 | R42: 0 | S42: 0 | T42: 0 | U42: 0 | V42: 0 | W42: 0 | X42: 0 | Z42: 3524 | AA42: Junior Lake | AB42: =IF(AQ42<>0,VLOOKUP(AQ42,Info!A:B,2,FALSE),"") -> BOS | AC42: lakju | AD42: 0.06172839506 | AE42: 0.3086419753 | AF42: 0.3086419753 | AG42: 0.1419753086 | AH42: 0.2469135802 | AI42: 0.006172839506 | AJ42: 0.6172839506 | AK42: 0.01234567901 | AL42: 0.1049382716 | AM42: 1 | AO42: 3524 | AP42: Junior Lake | AQ42: Boston Red Sox | AR42: lakju | AS42: 162 | AT42: 10 | AU42: 50 | AV42: 50 | AW42: 23 | AX42: 40 | AY42: 1 | AZ42: 100 | BA42: 2 | BB42: 17 | BC42: 162
A43: 3285 | B43: Matt Dominguez | C43: BOS | D43: Buy | O43: 0 | P43: 0 | Q43: 0 | R43: 0 | S43: 0 | T43: 0 | U43: 0 | V43: 0 | W43: 0 | X43: 0 | Z43: 3285 | AA43: Matt Dominguez | AB43: =IF(AQ43<>0,VLOOKUP(AQ43,Info!A:B,2,FALSE),"") -> BOS | AC43: domma | AD43: 0.1049382716 | AE43: 0.3641975309 | AF43: 0.3271604938 | AG43: 0.006172839506 | AH43: 0.1234567901 | AI43: 0.006172839506 | AJ43: 0.7654320988 | AK43: 0.01234567901 | AL43: 0.05555555556 | AM43: 0.7962962963 | AO43: 3285 | AP43: Matt Dominguez | AQ43: Boston Red Sox | AR43: domma | AS43: 162 | AT43: 17 | AU43: 59 | AV43: 53 | AW43: 1 | AX43: 20 | AY43: 1 | AZ43: 124 | BA43: 2 | BB43: 9 | BC43: 129
A44: 2897 | B44: Mitch Moreland | C44: BOS | D44: Buy | O44: 0 | P44: 0 | Q44: 0 | R44: 0 | S44: 0 | T44: 0 | U44: 0 | V44: 0 | W44: 0 | X44: 0 | Z44: 2897 | AA44: Mitch Moreland | AB44: =IF(AQ44<>0,VLOOKUP(AQ44,Info!A:B,2,FALSE),"") -> BOS | AC44: morem | AD44: 0.1481481481 | AE44: 0.537037037 | AF44: 0.5185185185 | AG44: 0.006172839506 | AH44: 0.2407407407 | AI44: 0.006172839506 | AJ44: 0.8580246914 | AK44: 0.01234567901 | AL44: 0.03703703704 | AM44: 0.8024691358 | AO44: 2897 | AP44: Mitch Moreland | AQ44: Boston Red Sox | AR44: morem | AS44: 162 | AT44: 24 | AU44: 87 | AV44: 84 | AW44: 1 | AX44: 39 | AY44: 1 | AZ44: 139 | BA44: 2 | BB44: 6 | BC44: 130
A45: 3788 | B45: Mookie Betts | C45: BOS | D45: Buy | O45: 0 | P45: 0 | Q45: 0 | R45: 0 | S45: 0 | T45: 0 | U45: 0 | V45: 0 | W45: 0 | X45: 0 | Z45: 3788 | AA45: Mookie Betts | AB45: =IF(AQ45<>0,VLOOKUP(AQ45,Info!A:B,2,FALSE),"") -> BOS | AC45: betmo | AD45: 0.1543209877 | AE45: 0.6481481481 | AF45: 0.6604938272 | AG45: 0.1728395062 | AH45: 0.3024691358 | AI45: 0.01851851852 | AJ45: 1.086419753 | AK45: 0.02469135802 | AL45: 0.04320987654 | AM45: 0.5308641975 | AO45: 3788 | AP45: Mookie Betts | AQ45: Boston Red Sox | AR45: betmo | AS45: 162 | AT45: 25 | AU45: 105 | AV45: 107 | AW45: 28 | AX45: 49 | AY45: 3 | AZ45: 176 | BA45: 4 | BB45: 7 | BC45: 86
A46: 4199 | B46: Rafael Devers | C46: BOS | D46: Buy | O46: 0 | P46: 0 | Q46: 0 | R46: 0 | S46: 0 | T46: 0 | U46: 0 | V46: 0 | W46: 0 | X46: 0 | Z46: 4199 | AA46: Rafael Devers | AB46: =IF(AQ46<>0,VLOOKUP(AQ46,Info!A:B,2,FALSE),"") -> BOS | AC46: devra | AD46: 0.1975308642 | AE46: 0.5679012346 | AF46: 0.5987654321 | AG46: 0.04938271605 | AH46: 0.2469135802 | AI46: 0.006172839506 | AJ46: 1.086419753 | AK46: 0.01851851852 | AL46: 0.2283950617 | AM46: 0.987654321 | AO46: 4199 | AP46: Rafael Devers | AQ46: Boston Red Sox | AR46: devra | AS46: 162 | AT46: 32 | AU46: 92 | AV46: 97 | AW46: 8 | AX46: 40 | AY46: 1 | AZ46: 176 | BA46: 3 | BB46: 37 | BC46: 160
A47: 2635 | B47: Rajai Davis | C47: BOS | D47: Buy | O47: 0 | P47: 0 | Q47: 0 | R47: 0 | S47: 0 | T47: 0 | U47: 0 | V47: 0 | W47: 0 | X47: 0 | Z47: 2635 | AA47: Rajai Davis | AB47: =IF(AQ47<>0,VLOOKUP(AQ47,Info!A:B,2,FALSE),"") -> BOS | AC47: davra | AD47: 0.06172839506 | AE47: 0.3086419753 | AF47: 0.475308642 | AG47: 0.2530864198 | AH47: 0.1604938272 | AI47: 0.01851851852 | AJ47: 0.6666666667 | AK47: 0.06172839506 | AL47: 0.03086419753 | AM47: 0.7098765432 | AO47: 2635 | AP47: Rajai Davis | AQ47: Boston Red Sox | AR47: davra | AS47: 162 | AT47: 10 | AU47: 50 | AV47: 77 | AW47: 41 | AX47: 26 | AY47: 3 | AZ47: 108 | BA47: 10 | BB47: 5 | BC47: 115
A48: 3789 | B48: Rusney Castillo | C48: BOS | D48: Buy | O48: 0 | P48: 0 | Q48: 0 | R48: 0 | S48: 0 | T48: 0 | U48: 0 | V48: 0 | W48: 0 | X48: 0 | Z48: 3789 | AA48: Rusney Castillo | AB48: =IF(AQ48<>0,VLOOKUP(AQ48,Info!A:B,2,FALSE),"") -> BOS | AC48: casru | AD48: 0.06790123457 | AE48: 0.3641975309 | AF48: 0.4382716049 | AG48: 0.05555555556 | AH48: 0.1296296296 | AI48: 0.03086419753 | AJ48: 0.8641975309 | AK48: 0.06790123457 | AL48: 0.06790123457 | AM48: 0.6790123457 | AO48: 3789 | AP48: Rusney Castillo | AQ48: Boston Red Sox | AR48: casru | AS48: 162 | AT48: 11 | AU48: 59 | AV48: 71 | AW48: 9 | AX48: 21 | AY48: 5 | AZ48: 140 | BA48: 11 | BB48: 11 | BC48: 110
A49: 3507 | B49: Xander Bogaerts | C49: BOS | D49: Buy | O49: 0 | P49: 0 | Q49: 0 | R49: 0 | S49: 0 | T49: 0 | U49: 0 | V49: 0 | W49: 0 | X49: 0 | Z49: 3507 | AA49: Xander Bogaerts | AB49: =IF(AQ49<>0,VLOOKUP(AQ49,Info!A:B,2,FALSE),"") -> BOS | AC49: bogxa | AD49: 0.07407407407 | AE49: 0.4197530864 | AF49: 0.6419753086 | AG49: 0.0987654321 | AH49: 0.2222222222 | AI49: 0.04320987654 | AJ49: 1.049382716 | AK49: 0.01234567901 | AL49: 0.1049382716 | AM49: 0.7962962963 | AO49: 3507 | AP49: Xander Bogaerts | AQ49: Boston Red Sox | AR49: bogxa | AS49: 162 | AT49: 12 | AU49: 68 | AV49: 104 | AW49: 16 | AX49: 36 | AY49: 7 | AZ49: 170 | BA49: 2 | BB49: 17 | BC49: 129
A50: 3820 | B50: Addison Russell | C50: CHC | D50: Buy | O50: 0 | P50: 0 | Q50: 0 | R50: 0 | S50: 0 | T50: 0 | U50: 0 | V50: 0 | W50: 0 | X50: 0 | Z50: 3820 | AA50: Addison Russell | AB50: =IF(AQ50<>0,VLOOKUP(AQ50,Info!A:B,2,FALSE),"") -> CHC | AC50: rusad | AD50: 0.1111111111 | AE50: 0.4074074074 | AF50: 0.462962963 | AG50: 0.03086419753 | AH50: 0.1975308642 | AI50: 0.03086419753 | AJ50: 0.7592592593 | AK50: 0.01234567901 | AL50: 0.1111111111 | AM50: 0.8703703704 | AO50: 3820 | AP50: Addison Russell | AQ50: Chicago Cubs | AR50: rusad | AS50: 162 | AT50: 18 | AU50: 66 | AV50: 75 | AW50: 5 | AX50: 32 | AY50: 5 | AZ50: 123 | BA50: 2 | BB50: 18 | BC50: 141
A51: 2859 | B51: Alex Avila | C51: CHC | D51: Buy | O51: 0 | P51: 0 | Q51: 0 | R51: 0 | S51: 0 | T51: 0 | U51: 0 | V51: 0 | W51: 0 | X51: 0 | Z51: 2859 | AA51: Alex Avila | AB51: =IF(AQ51<>0,VLOOKUP(AQ51,Info!A:B,2,FALSE),"") -> CHC | AC51: avial | AD51: 0.1296296296 | AE51: 0.4382716049 | AF51: 0.3703703704 | AG51: 0.006172839506 | AH51: 0.1234567901 | AI51: 0.01234567901 | AJ51: 0.7283950617 | AK51: 0.01234567901 | AL51: 0.03086419753 | AM51: 1.074074074 | AO51: 2859 | AP51: Alex Avila | AQ51: Chicago Cubs | AR51: avial | AS51: 162 | AT51: 21 | AU51: 71 | AV51: 60 | AW51: 1 | AX51: 20 | AY51: 2 | AZ51: 118 | BA51: 2 | BB51: 5 | BC51: 174
A52: 3143 | B52: Anthony Rizzo | C52: CHC | D52: Buy | O52: 0 | P52: 0 | Q52: 0 | R52: 0 | S52: 0 | T52: 0 | U52: 0 | V52: 0 | W52: 0 | X52: 0 | Z52: 3143 | AA52: Anthony Rizzo | AB52: =IF(AQ52<>0,VLOOKUP(AQ52,Info!A:B,2,FALSE),"") -> CHC | AC52: rizan | AD52: 0.2037037037 | AE52: 0.6975308642 | AF52: 0.6111111111 | AG52: 0.06172839506 | AH52: 0.2037037037 | AI52: 0.01851851852 | AJ52: 0.9814814815 | AK52: 0.02469135802 | AL52: 0.03086419753 | AM52: 0.6172839506 | AO52: 3143 | AP52: Anthony Rizzo | AQ52: Chicago Cubs | AR52: rizan | AS52: 162 | AT52: 33 | AU52: 113 | AV52: 99 | AW52: 10 | AX52: 33 | AY52: 3 | AZ52: 159 | BA52: 4 | BB52: 5 | BC52: 100
A53: 2452 | B53: Ben Zobrist | C53: CHC | D53: Buy | O53: 0 | P53: 0 | Q53: 0 | R53: 0 | S53: 0 | T53: 0 | U53: 0 | V53: 0 | W53: 0 | X53: 0 | Z53: 2452 | AA53: Ben Zobrist | AB53: =IF(AQ53<>0,VLOOKUP(AQ53,Info!A:B,2,FALSE),"") -> CHC | AC53: zobbe | AD53: 0.09259259259 | AE53: 0.3703703704 | AF53: 0.450617284 | AG53: 0.01851851852 | AH53: 0.1666666667 | AI53: 0.02469135802 | AJ53: 0.7777777778 | AK53: 0.01851851852 | AL53: 0.03086419753 | AM53: 0.5555555556 | AO53: 2452 | AP53: Ben Zobrist | AQ53: Chicago Cubs | AR53: zobbe | AS53: 162 | AT53: 15 | AU53: 60 | AV53: 73 | AW53: 3 | AX53: 27 | AY53: 4 | AZ53: 126 | BA53: 3 | BB53: 5 | BC53: 90
A54: 2616 | B54: Jason Heyward | C54: CHC | D54: Buy | O54: 0 | P54: 0 | Q54: 0 | R54: 0 | S54: 0 | T54: 0 | U54: 0 | V54: 0 | W54: 0 | X54: 0 | Z54: 2616 | AA54: Jason Heyward | AB54: =IF(AQ54<>0,VLOOKUP(AQ54,Info!A:B,2,FALSE),"") -> CHC | AC54: heyja | AD54: 0.08641975309 | AE54: 0.4444444444 | AF54: 0.462962963 | AG54: 0.03086419753 | AH54: 0.1234567901 | AI54: 0.03086419753 | AJ54: 0.8703703704 | AK54: 0.03086419753 | AL54: 0.03086419753 | AM54: 0.537037037 | AO54: 2616 | AP54: Jason Heyward | AQ54: Chicago Cubs | AR54: heyja | AS54: 162 | AT54: 14 | AU54: 72 | AV54: 75 | AW54: 5 | AX54: 20 | AY54: 5 | AZ54: 141 | BA54: 5 | BB54: 5 | BC54: 87
A55: 3791 | B55: Javier Baez | C55: CHC | D55: Buy | O55: 0 | P55: 0 | Q55: 0 | R55: 0 | S55: 0 | T55: 0 | U55: 0 | V55: 0 | W55: 0 | X55: 0 | Z55: 3791 | AA55: Javier Baez | AB55: =IF(AQ55<>0,VLOOKUP(AQ55,Info!A:B,2,FALSE),"") -> CHC | AC55: baeja | AD55: 0.1543209877 | AE55: 0.5 | AF55: 0.5 | AG55: 0.08024691358 | AH55: 0.1604938272 | AI55: 0.01851851852 | AJ55: 0.8395061728 | AK55: 0.02469135802 | AL55: 0.06790123457 | AM55: 1 | AO55: 3791 | AP55: Javier Baez | AQ55: Chicago Cubs | AR55: baeja | AS55: 162 | AT55: 25 | AU55: 81 | AV55: 81 | AW55: 13 | AX55: 26 | AY55: 3 | AZ55: 136 | BA55: 4 | BB55: 11 | BC55: 162
A56: 3283 | B56: Jon Jay | C56: CHC | D56: Buy | O56: 0 | P56: 0 | Q56: 0 | R56: 0 | S56: 0 | T56: 0 | U56: 0 | V56: 0 | W56: 0 | X56: 0 | Z56: 3283 | AA56: Jon Jay | AB56: =IF(AQ56<>0,VLOOKUP(AQ56,Info!A:B,2,FALSE),"") -> CHC | AC56: jayjo | AD56: 0.06172839506 | AE56: 0.3086419753 | AF56: 0.450617284 | AG56: 0.04320987654 | AH56: 0.1358024691 | AI56: 0.02469135802 | AJ56: 0.7839506173 | AK56: 0.01851851852 | AL56: 0.03086419753 | AM56: 0.5617283951 | AO56: 3283 | AP56: Jon Jay | AQ56: Chicago Cubs | AR56: jayjo | AS56: 162 | AT56: 10 | AU56: 50 | AV56: 73 | AW56: 7 | AX56: 22 | AY56: 4 | AZ56: 127 | BA56: 3 | BB56: 5 | BC56: 91
A57: 3819 | B57: Kris Bryant | C57: CHC | D57: Buy | O57: 0 | P57: 0 | Q57: 0 | R57: 0 | S57: 0 | T57: 0 | U57: 0 | V57: 0 | W57: 0 | X57: 0 | Z57: 3819 | AA57: Kris Bryant | AB57: =IF(AQ57<>0,VLOOKUP(AQ57,Info!A:B,2,FALSE),"") -> CHC | AC57: brykr | AD57: 0.1851851852 | AE57: 0.475308642 | AF57: 0.7222222222 | AG57: 0.04938271605 | AH57: 0.2530864198 | AI57: 0.03086419753 | AJ57: 1.061728395 | AK57: 0.03703703704 | AL57: 0.1049382716 | AM57: 0.8888888889 | AO57: 3819 | AP57: Kris Bryant | AQ57: Chicago Cubs | AR57: brykr | AS57: 162 | AT57: 30 | AU57: 77 | AV57: 117 | AW57: 8 | AX57: 41 | AY57: 5 | AZ57: 172 | BA57: 6 | BB57: 17 | BC57: 144
A58: 3856 | B58: Kyle Schwarber | C58: CHC | D58: Buy | O58: 0 | P58: 0 | Q58: 0 | R58: 0 | S58: 0 | T58: 0 | U58: 0 | V58: 0 | W58: 0 | X58: 0 | Z58: 3856 | AA58: Kyle Schwarber | AB58: =IF(AQ58<>0,VLOOKUP(AQ58,Info!A:B,2,FALSE),"") -> CHC | AC58: schky | AD58: 0.2283950617 | AE58: 0.450617284 | AF58: 0.512345679 | AG58: 0.01234567901 | AH58: 0.1234567901 | AI58: 0.01234567901 | AJ58: 0.6851851852 | AK58: 0.01234567901 | AL58: 0.04938271605 | AM58: 1.160493827 | AO58: 3856 | AP58: Kyle Schwarber | AQ58: Chicago Cubs | AR58: schky | AS58: 162 | AT58: 37 | AU58: 73 | AV58: 83 | AW58: 2 | AX58: 20 | AY58: 2 | AZ58: 111 | BA58: 2 | BB58: 8 | BC58: 188
A59: 3302 | B59: Leonys Martin | C59: CHC | D59: Buy | O59: 0 | P59: 0 | Q59: 0 | R59: 0 | S59: 0 | T59: 0 | U59: 0 | V59: 0 | W59: 0 | X59: 0 | Z59: 3302 | AA59: Leonys Martin | AB59: =IF(AQ59<>0,VLOOKUP(AQ59,Info!A:B,2,FALSE),"") -> CHC | AC59: marle | AD59: 0.06172839506 | AE59: 0.3086419753 | AF59: 0.3086419753 | AG59: 0.1358024691 | AH59: 0.1234567901 | AI59: 0.02469135802 | AJ59: 0.6172839506 | AK59: 0.08024691358 | AL59: 0.03086419753 | AM59: 0.6543209877 | AO59: 3302 | AP59: Leonys Martin | AQ59: Chicago Cubs | AR59: marle | AS59: 162 | AT59: 10 | AU59: 50 | AV59: 50 | AW59: 22 | AX59: 20 | AY59: 4 | AZ59: 100 | BA59: 13 | BB59: 5 | BC59: 106
A60: 4161 | B60: Willson Contreras | C60: CHC | D60: Buy | O60: 0 | P60: 0 | Q60: 0 | R60: 0 | S60: 0 | T60: 0 | U60: 0 | V60: 0 | W60: 0 | X60: 0 | Z60: 4161 | AA60: Willson Contreras | AB60: =IF(AQ60<>0,VLOOKUP(AQ60,Info!A:B,2,FALSE),"") -> CHC | AC60: conwi | AD60: 0.1790123457 | AE60: 0.6111111111 | AF60: 0.4320987654 | AG60: 0.04320987654 | AH60: 0.1728395062 | AI60: 0.006172839506 | AJ60: 0.8765432099 | AK60: 0.03703703704 | AL60: 0.0987654321 | AM60: 0.8641975309 | AO60: 4161 | AP60: Willson Contreras | AQ60: Chicago Cubs | AR60: conwi | AS60: 162 | AT60: 29 | AU60: 99 | AV60: 70 | AW60: 7 | AX60: 28 | AY60: 1 | AZ60: 142 | BA60: 6 | BB60: 16 | BC60: 140
A61: 3795 | B61: Avisail Garcia | C61: CHW | D61: Buy | O61: 0 | P61: 0 | Q61: 0 | R61: 0 | S61: 0 | T61: 0 | U61: 0 | V61: 0 | W61: 0 | X61: 0 | Z61: 3795 | AA61: Avisail Garcia | AB61: =IF(AQ61<>0,VLOOKUP(AQ61,Info!A:B,2,FALSE),"") -> CHW | AC61: garav | AD61: 0.1358024691 | AE61: 0.5864197531 | AF61: 0.5555555556 | AG61: 0.03703703704 | AH61: 0.1975308642 | AI61: 0.03703703704 | AJ61: 1.265432099 | AK61: 0.02469135802 | AL61: 0.06790123457 | AM61: 0.8209876543 | AO61: 3795 | AP61: Avisail Garcia | AQ61: Chicago White Sox | AR61: garav | AS61: 162 | AT61: 22 | AU61: 95 | AV61: 90 | AW61: 6 | AX61: 32 | AY61: 6 | AZ61: 205 | BA61: 4 | BB61: 11 | BC61: 133
A62: 3563 | B62: Cody Asche | C62: CHW | D62: Buy | O62: 0 | P62: 0 | Q62: 0 | R62: 0 | S62: 0 | T62: 0 | U62: 0 | V62: 0 | W62: 0 | X62: 0 | Z62: 3563 | AA62: Cody Asche | AB62: =IF(AQ62<>0,VLOOKUP(AQ62,Info!A:B,2,FALSE),"") -> CHW | AC62: ascco | AD62: 0.06172839506 | AE62: 0.3086419753 | AF62: 0.3086419753 | AG62: 0.04320987654 | AH62: 0.2098765432 | AI62: 0.006172839506 | AJ62: 0.6172839506 | AK62: 0.01851851852 | AL62: 0.03086419753 | AM62: 0.7592592593 | AO62: 3563 | AP62: Cody Asche | AQ62: Chicago White Sox | AR62: ascco | AS62: 162 | AT62: 10 | AU62: 50 | AV62: 50 | AW62: 7 | AX62: 34 | AY62: 1 | AZ62: 100 | BA62: 3 | BB62: 5 | BC62: 123
A63: 2169 | B63: Geovany Soto | C63: CHW | D63: Buy | O63: 0 | P63: 0 | Q63: 0 | R63: 0 | S63: 0 | T63: 0 | U63: 0 | V63: 0 | W63: 0 | X63: 0 | Z63: 2169 | AA63: Geovany Soto | AB63: =IF(AQ63<>0,VLOOKUP(AQ63,Info!A:B,2,FALSE),"") -> CHW | AC63: sotge | AD63: 0.1543209877 | AE63: 0.3518518519 | AF63: 0.4259259259 | AG63: 0.006172839506 | AH63: 0.1975308642 | AI63: 0.006172839506 | AJ63: 0.8086419753 | AK63: 0.01234567901 | AL63: 0.03086419753 | AM63: 0.8086419753 | AO63: 2169 | AP63: Geovany Soto | AQ63: Chicago White Sox | AR63: sotge | AS63: 162 | AT63: 25 | AU63: 57 | AV63: 69 | AW63: 1 | AX63: 32 | AY63: 1 | AZ63: 131 | BA63: 2 | BB63: 5 | BC63: 131
A64: 3508 | B64: Jose Abreu | C64: CHW | D64: Buy | O64: 0 | P64: 0 | Q64: 0 | R64: 0 | S64: 0 | T64: 0 | U64: 0 | V64: 0 | W64: 0 | X64: 0 | Z64: 3508 | AA64: Jose Abreu | AB64: =IF(AQ64<>0,VLOOKUP(AQ64,Info!A:B,2,FALSE),"") -> CHW | AC64: abrej | AD64: 0.2160493827 | AE64: 0.6604938272 | AF64: 0.6172839506 | AG64: 0.02469135802 | AH64: 0.2839506173 | AI64: 0.04320987654 | AJ64: 1.228395062 | AK64: 0.01234567901 | AL64: 0.03703703704 | AM64: 0.7592592593 | AO64: 3508 | AP64: Jose Abreu | AQ64: Chicago White Sox | AR64: abrej | AS64: 162 | AT64: 35 | AU64: 107 | AV64: 100 | AW64: 4 | AX64: 46 | AY64: 7 | AZ64: 199 | BA64: 2 | BB64: 6 | BC64: 123
A65: 4012 | B65: Adam Duvall | C65: CIN | D65: Buy | O65: 0 | P65: 0 | Q65: 0 | R65: 0 | S65: 0 | T65: 0 | U65: 0 | V65: 0 | W65: 0 | X65: 0 | Z65: 4012 | AA65: Adam Duvall | AB65: =IF(AQ65<>0,VLOOKUP(AQ65,Info!A:B,2,FALSE),"") -> CIN | AC65: duvad | AD65: 0.1975308642 | AE65: 0.6296296296 | AF65: 0.4938271605 | AG65: 0.03703703704 | AH65: 0.2345679012 | AI65: 0.02469135802 | AJ65: 0.9259259259 | AK65: 0.02469135802 | AL65: 0.03086419753 | AM65: 1.080246914 | AO65: 4012 | AP65: Adam Duvall | AQ65: Cincinnati Reds | AR65: duvad | AS65: 162 | AT65: 32 | AU65: 102 | AV65: 80 | AW65: 6 | AX65: 38 | AY65: 4 | AZ65: 150 | BA65: 4 | BB65: 5 | BC65: 175
A66: 3516 | B66: Billy Hamilton | C66: CIN | D66: Buy | O66: 0 | P66: 0 | Q66: 0 | R66: 0 | S66: 0 | T66: 0 | U66: 0 | V66: 0 | W66: 0 | X66: 0 | Z66: 3516 | AA66: Billy Hamilton | AB66: =IF(AQ66<>0,VLOOKUP(AQ66,Info!A:B,2,FALSE),"") -> CIN | AC66: hambi | AD66: 0.06172839506 | AE66: 0.3086419753 | AF66: 0.6172839506 | AG66: 0.3086419753 | AH66: 0.1234567901 | AI66: 0.05555555556 | AJ66: 1.030864198 | AK66: 0.0987654321 | AL66: 0.03086419753 | AM66: 0.962962963 | AO66: 3516 | AP66: Billy Hamilton | AQ66: Cincinnati Reds | AR66: hambi | AS66: 162 | AT66: 10 | AU66: 50 | AV66: 100 | AW66: 50 | AX66: 20 | AY66: 9 | AZ66: 167 | BA66: 16 | BB66: 5 | BC66: 156
A67: =IF(Z67<>0,Z67,"") -> 3544 | B67: =IF(A67<>0,VLOOKUP(A67,Z:AA,2,FALSE),"") -> Devin Mesoraco | C67: =IF(A67<>0,VLOOKUP(A67,Z:AB,3,FALSE)) -> CIN | D67: =HYPERLINK("http://www.jockstocks.com/buysell.php?action=buymax&plid="&A67,"Buy") -> Buy | O67: =VLOOKUP($A67,$A:$N,5,FALSE)/VLOOKUP($A67,$Z:$AM,5,FALSE) -> 0 | P67: =VLOOKUP($A67,$A:$N,6,FALSE)/VLOOKUP($A67,$Z:$AM,6,FALSE) -> 0 | Q67: =VLOOKUP($A67,$A:$N,7,FALSE)/VLOOKUP($A67,$Z:$AM,7,FALSE) -> 0 | R67: =VLOOKUP($A67,$A:$N,8,FALSE)/VLOOKUP($A67,$Z:$AM,8,FALSE) -> 0 | S67: =VLOOKUP($A67,$A:$N,9,FALSE)/VLOOKUP($A67,$Z:$AM,9,FALSE) -> 0 | T67: =VLOOKUP($A67,$A:$N,10,FALSE)/VLOOKUP($A67,$Z:$AM,10,FALSE) -> 0 | U67: =VLOOKUP($A67,$A:$N,11,FALSE)/VLOOKUP($A67,$Z:$AM,11,FALSE) -> 0 | V67: =VLOOKUP($A67,$A:$N,12,FALSE)/VLOOKUP($A67,$Z:$AM,12,FALSE) -> 0 | W67: =VLOOKUP($A67,$A:$N,13,FALSE)/VLOOKUP($A67,$Z:$AM,13,FALSE) -> 0 | X67: =VLOOKUP($A67,$A:$N,14,FALSE)/VLOOKUP($A67,$Z:$AM,14,FALSE) -> 0 | Z67: =IF(AO67<>0,AO67,"") -> 3544 | AA67: =IF(AP67<>0,VLOOKUP(Z67,AO:AP,2,FALSE),"") -> Devin Mesoraco | AB67: =IF(AQ67<>0,VLOOKUP(AQ67,Info!A:B,2,FALSE),"") -> CIN | AC67: =IF(AO67<>0,VLOOKUP(Z67,AO:AR,4,FALSE),"") -> mesde | AD67: =IF($AO67<>0,AT67/$AS67,"") -> 0.1234567901 | AE67: =IF($AO67<>0,AU67/$AS67,"") -> 0.3086419753 | AF67: =IF($AO67<>0,AV67/$AS67,"") -> 0.3209876543 | AG67: =IF($AO67<>0,AW67/$AS67,"") -> 0.01851851852 | AH67: =IF($AO67<>0,AX67/$AS67,"") -> 0.1234567901 | AI67: =IF($AO67<>0,AY67/$AS67,"") -> 0.01851851852 | AJ67: =IF($AO67<>0,AZ67/$AS67,"") -> 0.6172839506 | AK67: =IF($AO67<>0,BA67/$AS67,"") -> 0.01234567901 | AL67: =IF($AO67<>0,BB67/$AS67,"") -> 0.03703703704 | AM67: =IF($AO67<>0,BC67/$AS67,"") -> 0.6851851852 | AO67: 3544 | AP67: Devin Mesoraco | AQ67: Cincinnati Reds | AR67: mesde | AS67: 162 | AT67: 20 | AU67: 50 | AV67: 52 | AW67: 3 | AX67: 20 | AY67: 3 | AZ67: 100 | BA67: 2 | BB67: 6 | BC67: 111
A68: 3861 | B68: Eugenio Suarez | C68: CIN | D68: Buy | O68: 0 | P68: 0 | Q68: 0 | R68: 0 | S68: 0 | T68: 0 | U68: 0 | V68: 0 | W68: 0 | X68: 0 | Z68: 3861 | AA68: Eugenio Suarez | AB68: =IF(AQ68<>0,VLOOKUP(AQ68,Info!A:B,2,FALSE),"") -> CIN | AC68: suaeu | AD68: 0.1666666667 | AE68: 0.524691358 | AF68: 0.5617283951 | AG68: 0.03086419753 | AH68: 0.1604938272 | AI68: 0.01851851852 | AJ68: 0.9012345679 | AK68: 0.03703703704 | AL68: 0.06172839506 | AM68: 0.9382716049 | AO68: 3861 | AP68: Eugenio Suarez | AQ68: Cincinnati Reds | AR68: suaeu | AS68: 162 | AT68: 27 | AU68: 85 | AV68: 91 | AW68: 5 | AX68: 26 | AY68: 3 | AZ68: 146 | BA68: 6 | BB68: 10 | BC68: 152
A69: 2171 | B69: Joey Votto | C69: CIN | D69: Buy | O69: 0 | P69: 0 | Q69: 0 | R69: 0 | S69: 0 | T69: 0 | U69: 0 | V69: 0 | W69: 0 | X69: 0 | Z69: 2171 | AA69: Joey Votto | AB69: =IF(AQ69<>0,VLOOKUP(AQ69,Info!A:B,2,FALSE),"") -> CIN | AC69: votjo | AD69: 0.2222222222 | AE69: 0.6172839506 | AF69: 0.6543209877 | AG69: 0.03086419753 | AH69: 0.2098765432 | AI69: 0.006172839506 | AJ69: 1.117283951 | AK69: 0.01234567901 | AL69: 0.03086419753 | AM69: 0.5185185185 | AO69: 2171 | AP69: Joey Votto | AQ69: Cincinnati Reds | AR69: votjo | AS69: 162 | AT69: 36 | AU69: 100 | AV69: 106 | AW69: 5 | AX69: 34 | AY69: 1 | AZ69: 181 | BA69: 2 | BB69: 5 | BC69: 84
A70: 3543 | B70: Scooter Gennett | C70: CIN | D70: Buy | O70: 0 | P70: 0 | Q70: 0 | R70: 0 | S70: 0 | T70: 0 | U70: 0 | V70: 0 | W70: 0 | X70: 0 | Z70: 3543 | AA70: Scooter Gennett | AB70: =IF(AQ70<>0,VLOOKUP(AQ70,Info!A:B,2,FALSE),"") -> CIN | AC70: gensc | AD70: 0.1913580247 | AE70: 0.6851851852 | AF70: 0.5740740741 | AG70: 0.02469135802 | AH70: 0.1666666667 | AI70: 0.02469135802 | AJ70: 0.9691358025 | AK70: 0.01851851852 | AL70: 0.03703703704 | AM70: 0.8148148148 | AO70: 3543 | AP70: Scooter Gennett | AQ70: Cincinnati Reds | AR70: gensc | AS70: 162 | AT70: 31 | AU70: 111 | AV70: 93 | AW70: 4 | AX70: 27 | AY70: 4 | AZ70: 157 | BA70: 3 | BB70: 6 | BC70: 132
A71: 4182 | B71: Scott Schebler | C71: CIN | D71: Buy | O71: 0 | P71: 0 | Q71: 0 | R71: 0 | S71: 0 | T71: 0 | U71: 0 | V71: 0 | W71: 0 | X71: 0 | Z71: 4182 | AA71: Scott Schebler | AB71: =IF(AQ71<>0,VLOOKUP(AQ71,Info!A:B,2,FALSE),"") -> CIN | AC71: schsc | AD71: 0.2160493827 | AE71: 0.475308642 | AF71: 0.450617284 | AG71: 0.03703703704 | AH71: 0.1790123457 | AI71: 0.01851851852 | AJ71: 0.7839506173 | AK71: 0.02469135802 | AL71: 0.03086419753 | AM71: 0.8888888889 | AO71: 4182 | AP71: Scott Schebler | AQ71: Cincinnati Reds | AR71: schsc | AS71: 162 | AT71: 35 | AU71: 77 | AV71: 73 | AW71: 6 | AX71: 29 | AY71: 3 | AZ71: 127 | BA71: 4 | BB71: 5 | BC71: 144
A72: 3077 | B72: Zack Cozart | C72: CIN | D72: Buy | O72: 0 | P72: 0 | Q72: 0 | R72: 0 | S72: 0 | T72: 0 | U72: 0 | V72: 0 | W72: 0 | X72: 0 | Z72: 3077 | AA72: Zack Cozart | AB72: =IF(AQ72<>0,VLOOKUP(AQ72,Info!A:B,2,FALSE),"") -> CIN | AC72: cozza | AD72: 0.1975308642 | AE72: 0.512345679 | AF72: 0.6666666667 | AG72: 0.02469135802 | AH72: 0.1975308642 | AI72: 0.05555555556 | AJ72: 1.061728395 | AK72: 0.01234567901 | AL72: 0.09259259259 | AM72: 0.6481481481 | AO72: 3077 | AP72: Zack Cozart | AQ72: Cincinnati Reds | AR72: cozza | AS72: 162 | AT72: 32 | AU72: 83 | AV72: 108 | AW72: 4 | AX72: 32 | AY72: 9 | AZ72: 172 | BA72: 2 | BB72: 15 | BC72: 105
A73: 2631 | B73: Austin Jackson | C73: CLE | D73: Buy | O73: 0 | P73: 0 | Q73: 0 | R73: 0 | S73: 0 | T73: 0 | U73: 0 | V73: 0 | W73: 0 | X73: 0 | Z73: 2631 | AA73: Austin Jackson | AB73: =IF(AQ73<>0,VLOOKUP(AQ73,Info!A:B,2,FALSE),"") -> CLE | AC73: jacau | AD73: 0.08024691358 | AE73: 0.3888888889 | AF73: 0.5432098765 | AG73: 0.04938271605 | AH73: 0.2098765432 | AI73: 0.03703703704 | AJ73: 1.012345679 | AK73: 0.01234567901 | AL73: 0.03703703704 | AM73: 0.7839506173 | AO73: 2631 | AP73: Austin Jackson | AQ73: Cleveland Indians | AR73: jacau | AS73: 162 | AT73: 13 | AU73: 63 | AV73: 88 | AW73: 8 | AX73: 34 | AY73: 6 | AZ73: 164 | BA73: 2 | BB73: 6 | BC73: 127
A74: 2671 | B74: Carlos Santana | C74: CLE | D74: Buy | O74: 0 | P74: 0 | Q74: 0 | R74: 0 | S74: 0 | T74: 0 | U74: 0 | V74: 0 | W74: 0 | X74: 0 | Z74: 2671 | AA74: Carlos Santana | AB74: =IF(AQ74<>0,VLOOKUP(AQ74,Info!A:B,2,FALSE),"") -> CLE | AC74: sanca | AD74: 0.1604938272 | AE74: 0.5308641975 | AF74: 0.5864197531 | AG74: 0.03703703704 | AH74: 0.2345679012 | AI74: 0.02469135802 | AJ74: 0.9567901235 | AK74: 0.01234567901 | AL74: 0.03086419753 | AM74: 0.6296296296 | AO74: 2671 | AP74: Carlos Santana | AQ74: Cleveland Indians | AR74: sanca | AS74: 162 | AT74: 26 | AU74: 86 | AV74: 95 | AW74: 6 | AX74: 38 | AY74: 4 | AZ74: 155 | BA74: 2 | BB74: 5 | BC74: 102
A75: 1767 | B75: Edwin Encarnacion | C75: CLE | D75: Buy | O75: 0 | P75: 0 | Q75: 0 | R75: 0 | S75: 0 | T75: 0 | U75: 0 | V75: 0 | W75: 0 | X75: 0 | Z75: 1767 | AA75: Edwin Encarnacion | AB75: =IF(AQ75<>0,VLOOKUP(AQ75,Info!A:B,2,FALSE),"") -> CLE | AC75: enced | AD75: 0.2469135802 | AE75: 0.6790123457 | AF75: 0.6111111111 | AG75: 0.01851851852 | AH75: 0.1358024691 | AI75: 0.01234567901 | AJ75: 0.9012345679 | AK75: 0.01234567901 | AL75: 0.03086419753 | AM75: 0.8518518519 | AO75: 1767 | AP75: Edwin Encarnacion | AQ75: Cleveland Indians | AR75: enced | AS75: 162 | AT75: 40 | AU75: 110 | AV75: 99 | AW75: 3 | AX75: 22 | AY75: 2 | AZ75: 146 | BA75: 2 | BB75: 5 | BC75: 138
A76: 4002 | B76: Francisco Lindor | C76: CLE | D76: Buy | O76: 0 | P76: 0 | Q76: 0 | R76: 0 | S76: 0 | T76: 0 | U76: 0 | V76: 0 | W76: 0 | X76: 0 | Z76: 4002 | AA76: Francisco Lindor | AB76: =IF(AQ76<>0,VLOOKUP(AQ76,Info!A:B,2,FALSE),"") -> CLE | AC76: linfr | AD76: 0.2098765432 | AE76: 0.5679012346 | AF76: 0.6234567901 | AG76: 0.09259259259 | AH76: 0.2716049383 | AI76: 0.02469135802 | AJ76: 1.092592593 | AK76: 0.01851851852 | AL76: 0.05555555556 | AM76: 0.6049382716 | AO76: 4002 | AP76: Francisco Lindor | AQ76: Cleveland Indians | AR76: linfr | AS76: 162 | AT76: 34 | AU76: 92 | AV76: 101 | AW76: 15 | AX76: 44 | AY76: 4 | AZ76: 177 | BA76: 3 | BB76: 9 | BC76: 98
A77: 3060 | B77: Jason Kipnis | C77: CLE | D77: Buy | O77: 0 | P77: 0 | Q77: 0 | R77: 0 | S77: 0 | T77: 0 | U77: 0 | V77: 0 | W77: 0 | X77: 0 | Z77: 3060 | AA77: Jason Kipnis | AB77: =IF(AQ77<>0,VLOOKUP(AQ77,Info!A:B,2,FALSE),"") -> CLE | AC77: kipja | AD77: 0.1296296296 | AE77: 0.3765432099 | AF77: 0.450617284 | AG77: 0.06790123457 | AH77: 0.2654320988 | AI77: 0.01234567901 | AJ77: 0.8580246914 | AK77: 0.02469135802 | AL77: 0.08641975309 | AM77: 0.8333333333 | AO77: 3060 | AP77: Jason Kipnis | AQ77: Cleveland Indians | AR77: kipja | AS77: 162 | AT77: 21 | AU77: 61 | AV77: 73 | AW77: 11 | AX77: 43 | AY77: 2 | AZ77: 139 | BA77: 4 | BB77: 14 | BC77: 135
A78: 2203 | B78: Jay Bruce | C78: CLE | D78: Buy | O78: 0 | P78: 0 | Q78: 0 | R78: 0 | S78: 0 | T78: 0 | U78: 0 | V78: 0 | W78: 0 | X78: 0 | Z78: 2203 | AA78: Jay Bruce | AB78: =IF(AQ78<>0,VLOOKUP(AQ78,Info!A:B,2,FALSE),"") -> CLE | AC78: bruja | AD78: 0.2592592593 | AE78: 0.7160493827 | AF78: 0.5864197531 | AG78: 0.01234567901 | AH78: 0.1975308642 | AI78: 0.01851851852 | AJ78: 0.975308642 | AK78: 0.01234567901 | AL78: 0.03703703704 | AM78: 0.9691358025 | AO78: 2203 | AP78: Jay Bruce | AQ78: Cleveland Indians | AR78: bruja | AS78: 162 | AT78: 42 | AU78: 116 | AV78: 95 | AW78: 2 | AX78: 32 | AY78: 3 | AZ78: 158 | BA78: 2 | BB78: 6 | BC78: 157
A79: 4159 | B79: Jose Ramirez | C79: CLE | D79: Buy | O79: 0 | P79: 0 | Q79: 0 | R79: 0 | S79: 0 | T79: 0 | U79: 0 | V79: 0 | W79: 0 | X79: 0 | Z79: 4159 | AA79: Jose Ramirez | AB79: =IF(AQ79<>0,VLOOKUP(AQ79,Info!A:B,2,FALSE),"") -> CLE | AC79: ramjo | AD79: 0.1851851852 | AE79: 0.5308641975 | AF79: 0.6913580247 | AG79: 0.1111111111 | AH79: 0.3086419753 | AI79: 0.04320987654 | AJ79: 1.191358025 | AK79: 0.03703703704 | AL79: 0.06172839506 | AM79: 0.4814814815 | AO79: 4159 | AP79: Jose Ramirez | AQ79: Cleveland Indians | AR79: ramjo | AS79: 162 | AT79: 30 | AU79: 86 | AV79: 112 | AW79: 18 | AX79: 50 | AY79: 7 | AZ79: 193 | BA79: 6 | BB79: 10 | BC79: 78
A80: 3584 | B80: Lonnie Chisenhall | C80: CLE | D80: Buy | O80: 0 | P80: 0 | Q80: 0 | R80: 0 | S80: 0 | T80: 0 | U80: 0 | V80: 0 | W80: 0 | X80: 0 | Z80: 3584 | AA80: Lonnie Chisenhall | AB80: =IF(AQ80<>0,VLOOKUP(AQ80,Info!A:B,2,FALSE),"") -> CLE | AC80: chilo | AD80: 0.1419753086 | AE80: 0.6111111111 | AF80: 0.4074074074 | AG80: 0.02469135802 | AH80: 0.1975308642 | AI80: 0.01234567901 | AJ80: 0.7839506173 | AK80: 0.02469135802 | AL80: 0.03086419753 | AM80: 0.6790123457 | AO80: 3584 | AP80: Lonnie Chisenhall | AQ80: Cleveland Indians | AR80: chilo | AS80: 162 | AT80: 23 | AU80: 99 | AV80: 66 | AW80: 4 | AX80: 32 | AY80: 2 | AZ80: 127 | BA80: 4 | BB80: 5 | BC80: 110
A81: 2864 | B81: Michael Brantley | C81: CLE | D81: Buy | O81: 0 | P81: 0 | Q81: 0 | R81: 0 | S81: 0 | T81: 0 | U81: 0 | V81: 0 | W81: 0 | X81: 0 | Z81: 2864 | AA81: Michael Brantley | AB81: =IF(AQ81<>0,VLOOKUP(AQ81,Info!A:B,2,FALSE),"") -> CLE | AC81: branm | AD81: 0.0987654321 | AE81: 0.5555555556 | AF81: 0.512345679 | AG81: 0.1172839506 | AH81: 0.2283950617 | AI81: 0.01234567901 | AJ81: 1.098765432 | AK81: 0.01234567901 | AL81: 0.03086419753 | AM81: 0.5864197531 | AO81: 2864 | AP81: Michael Brantley | AQ81: Cleveland Indians | AR81: branm | AS81: 162 | AT81: 16 | AU81: 90 | AV81: 83 | AW81: 19 | AX81: 37 | AY81: 2 | AZ81: 178 | BA81: 2 | BB81: 5 | BC81: 95
A82: 4030 | B82: Tyler Naquin | C82: CLE | D82: Buy | O82: 0 | P82: 0 | Q82: 0 | R82: 0 | S82: 0 | T82: 0 | U82: 0 | V82: 0 | W82: 0 | X82: 0 | Z82: 4030 | AA82: Tyler Naquin | AB82: =IF(AQ82<>0,VLOOKUP(AQ82,Info!A:B,2,FALSE),"") -> CLE | AC82: naqty | AD82: 0.06172839506 | AE82: 0.3086419753 | AF82: 0.3333333333 | AG82: 0.06790123457 | AH82: 0.1296296296 | AI82: 0.006172839506 | AJ82: 0.6296296296 | AK82: 0.04320987654 | AL82: 0.03086419753 | AM82: 1.067901235 | AO82: 4030 | AP82: Tyler Naquin | AQ82: Cleveland Indians | AR82: naqty | AS82: 162 | AT82: 10 | AU82: 50 | AV82: 54 | AW82: 11 | AX82: 21 | AY82: 1 | AZ82: 102 | BA82: 7 | BB82: 5 | BC82: 173
A83: 3539 | B83: Yan Gomes | C83: CLE | D83: Buy | O83: 0 | P83: 0 | Q83: 0 | R83: 0 | S83: 0 | T83: 0 | U83: 0 | V83: 0 | W83: 0 | X83: 0 | Z83: 3539 | AA83: Yan Gomes | AB83: =IF(AQ83<>0,VLOOKUP(AQ83,Info!A:B,2,FALSE),"") -> CLE | AC83: gomya | AD83: 0.1296296296 | AE83: 0.524691358 | AF83: 0.4074074074 | AG83: 0.006172839506 | AH83: 0.1481481481 | AI83: 0.006172839506 | AJ83: 0.7345679012 | AK83: 0.01234567901 | AL83: 0.08641975309 | AM83: 0.950617284 | AO83: 3539 | AP83: Yan Gomes | AQ83: Cleveland Indians | AR83: gomya | AS83: 162 | AT83: 21 | AU83: 85 | AV83: 66 | AW83: 1 | AX83: 24 | AY83: 1 | AZ83: 119 | BA83: 2 | BB83: 14 | BC83: 154
A84: 2612 | B84: Carlos Gonzalez | C84: COL | D84: Buy | O84: 0 | P84: 0 | Q84: 0 | R84: 0 | S84: 0 | T84: 0 | U84: 0 | V84: 0 | W84: 0 | X84: 0 | Z84: 2612 | AA84: Carlos Gonzalez | AB84: =IF(AQ84<>0,VLOOKUP(AQ84,Info!A:B,2,FALSE),"") -> COL | AC84: gonca | AD84: 0.1049382716 | AE84: 0.4259259259 | AF84: 0.524691358 | AG84: 0.02469135802 | AH84: 0.2407407407 | AI84: 0.006172839506 | AJ84: 0.9012345679 | AK84: 0.01234567901 | AL84: 0.03086419753 | AM84: 0.8703703704 | AO84: 2612 | AP84: Carlos Gonzalez | AQ84: Colorado Rockies | AR84: gonca | AS84: 162 | AT84: 17 | AU84: 69 | AV84: 85 | AW84: 4 | AX84: 39 | AY84: 1 | AZ84: 146 | BA84: 2 | BB84: 5 | BC84: 141
A85: 3542 | B85: Charlie Blackmon | C85: COL | D85: Buy | O85: 0 | P85: 0 | Q85: 0 | R85: 0 | S85: 0 | T85: 0 | U85: 0 | V85: 0 | W85: 0 | X85: 0 | Z85: 3542 | AA85: Charlie Blackmon | AB85: =IF(AQ85<>0,VLOOKUP(AQ85,Info!A:B,2,FALSE),"") -> COL | AC85: blach | AD85: 0.2407407407 | AE85: 0.6604938272 | AF85: 0.7407407407 | AG85: 0.09259259259 | AH85: 0.2283950617 | AI85: 0.05555555556 | AJ85: 1.351851852 | AK85: 0.06790123457 | AL85: 0.03703703704 | AM85: 0.8580246914 | AO85: 3542 | AP85: Charlie Blackmon | AQ85: Colorado Rockies | AR85: blach | AS85: 162 | AT85: 39 | AU85: 107 | AV85: 120 | AW85: 15 | AX85: 37 | AY85: 9 | AZ85: 219 | BA85: 11 | BB85: 6 | BC85: 139
A86: 3845 | B86: DJ LeMahieu | C86: COL | D86: Buy | O86: 0 | P86: 0 | Q86: 0 | R86: 0 | S86: 0 | T86: 0 | U86: 0 | V86: 0 | W86: 0 | X86: 0 | Z86: 3845 | AA86: DJ LeMahieu | AB86: =IF(AQ86<>0,VLOOKUP(AQ86,Info!A:B,2,FALSE),"") -> COL | AC86: lemdj | AD86: 0.06172839506 | AE86: 0.4197530864 | AF86: 0.6296296296 | AG86: 0.04320987654 | AH86: 0.1851851852 | AI86: 0.03086419753 | AJ86: 1.222222222 | AK86: 0.03703703704 | AL86: 0.04938271605 | AM86: 0.5925925926 | AO86: 3845 | AP86: DJ LeMahieu | AQ86: Colorado Rockies | AR86: lemdj | AS86: 162 | AT86: 10 | AU86: 68 | AV86: 102 | AW86: 7 | AX86: 30 | AY86: 5 | AZ86: 198 | BA86: 6 | BB86: 8 | BC86: 96
A87: 2952 | B87: Gerardo Parra | C87: COL | D87: Buy | O87: 0 | P87: 0 | Q87: 0 | R87: 0 | S87: 0 | T87: 0 | U87: 0 | V87: 0 | W87: 0 | X87: 0 | Z87: 2952 | AA87: Gerardo Parra | AB87: =IF(AQ87<>0,VLOOKUP(AQ87,Info!A:B,2,FALSE),"") -> COL | AC87: parge | AD87: 0.08641975309 | AE87: 0.6296296296 | AF87: 0.4938271605 | AG87: 0.01851851852 | AH87: 0.2098765432 | AI87: 0.01234567901 | AJ87: 1.074074074 | AK87: 0.04320987654 | AL87: 0.03086419753 | AM87: 0.5802469136 | AO87: 2952 | AP87: Gerardo Parra | AQ87: Colorado Rockies | AR87: parge | AS87: 162 | AT87: 14 | AU87: 102 | AV87: 80 | AW87: 3 | AX87: 34 | AY87: 2 | AZ87: 174 | BA87: 7 | BB87: 5 | BC87: 94
A88: 3040 | B88: Ian Desmond | C88: COL | D88: Buy | O88: 0 | P88: 0 | Q88: 0 | R88: 0 | S88: 0 | T88: 0 | U88: 0 | V88: 0 | W88: 0 | X88: 0 | Z88: 3040 | AA88: Ian Desmond | AB88: =IF(AQ88<>0,VLOOKUP(AQ88,Info!A:B,2,FALSE),"") -> COL | AC88: desia | AD88: 0.07407407407 | AE88: 0.4259259259 | AF88: 0.5 | AG88: 0.1604938272 | AH88: 0.1234567901 | AI88: 0.01234567901 | AJ88: 0.9814814815 | AK88: 0.04320987654 | AL88: 0.03086419753 | AM88: 0.9074074074 | AO88: 3040 | AP88: Ian Desmond | AQ88: Colorado Rockies | AR88: desia | AS88: 162 | AT88: 12 | AU88: 69 | AV88: 81 | AW88: 26 | AX88: 20 | AY88: 2 | AZ88: 159 | BA88: 7 | BB88: 5 | BC88: 147
A89: 2898 | B89: Jonathan Lucroy | C89: COL | D89: Buy | O89: 0 | P89: 0 | Q89: 0 | R89: 0 | S89: 0 | T89: 0 | U89: 0 | V89: 0 | W89: 0 | X89: 0 | Z89: 2898 | AA89: Jonathan Lucroy | AB89: =IF(AQ89<>0,VLOOKUP(AQ89,Info!A:B,2,FALSE),"") -> COL | AC89: lucjo | AD89: 0.06172839506 | AE89: 0.3333333333 | AF89: 0.3765432099 | AG89: 0.01234567901 | AH89: 0.1851851852 | AI89: 0.02469135802 | AJ89: 0.9135802469 | AK89: 0.01234567901 | AL89: 0.03703703704 | AM89: 0.462962963 | AO89: 2898 | AP89: Jonathan Lucroy | AQ89: Colorado Rockies | AR89: lucjo | AS89: 162 | AT89: 10 | AU89: 54 | AV89: 61 | AW89: 2 | AX89: 30 | AY89: 4 | AZ89: 148 | BA89: 2 | BB89: 6 | BC89: 75
A90: 2166 | B90: Mark Reynolds | C90: COL | D90: Buy | O90: 0 | P90: 0 | Q90: 0 | R90: 0 | S90: 0 | T90: 0 | U90: 0 | V90: 0 | W90: 0 | X90: 0 | Z90: 2166 | AA90: Mark Reynolds | AB90: =IF(AQ90<>0,VLOOKUP(AQ90,Info!A:B,2,FALSE),"") -> COL | AC90: reyma | AD90: 0.2098765432 | AE90: 0.6666666667 | AF90: 0.5617283951 | AG90: 0.01851851852 | AH90: 0.1543209877 | AI90: 0.01234567901 | AJ90: 0.9567901235 | AK90: 0.01234567901 | AL90: 0.03703703704 | AM90: 1.179012346 | AO90: 2166 | AP90: Mark Reynolds | AQ90: Colorado Rockies | AR90: reyma | AS90: 162 | AT90: 34 | AU90: 108 | AV90: 91 | AW90: 3 | AX90: 25 | AY90: 2 | AZ90: 155 | BA90: 2 | BB90: 6 | BC90: 191
A91: 3517 | B91: Nolan Arenado | C91: COL | D91: Buy | O91: 0 | P91: 0 | Q91: 0 | R91: 0 | S91: 0 | T91: 0 | U91: 0 | V91: 0 | W91: 0 | X91: 0 | Z91: 3517 | AA91: Nolan Arenado | AB91: =IF(AQ91<>0,VLOOKUP(AQ91,Info!A:B,2,FALSE),"") -> COL | AC91: areno | AD91: 0.2407407407 | AE91: 0.7407407407 | AF91: 0.6419753086 | AG91: 0.02469135802 | AH91: 0.2777777778 | AI91: 0.04938271605 | AJ91: 1.179012346 | AK91: 0.01851851852 | AL91: 0.06790123457 | AM91: 0.6728395062 | AO91: 3517 | AP91: Nolan Arenado | AQ91: Colorado Rockies | AR91: areno | AS91: 162 | AT91: 39 | AU91: 120 | AV91: 104 | AW91: 4 | AX91: 45 | AY91: 8 | AZ91: 191 | BA91: 3 | BB91: 11 | BC91: 109
A92: 4005 | B92: Trevor Story | C92: COL | D92: Buy | O92: 0 | P92: 0 | Q92: 0 | R92: 0 | S92: 0 | T92: 0 | U92: 0 | V92: 0 | W92: 0 | X92: 0 | Z92: 4005 | AA92: Trevor Story | AB92: =IF(AQ92<>0,VLOOKUP(AQ92,Info!A:B,2,FALSE),"") -> COL | AC92: stotr | AD92: 0.1728395062 | AE92: 0.5740740741 | AF92: 0.4814814815 | AG92: 0.04938271605 | AH92: 0.2222222222 | AI92: 0.02469135802 | AJ92: 0.8333333333 | AK92: 0.01851851852 | AL92: 0.08024691358 | AM92: 1.308641975 | AO92: 4005 | AP92: Trevor Story | AQ92: Colorado Rockies | AR92: stotr | AS92: 162 | AT92: 28 | AU92: 93 | AV92: 78 | AW92: 8 | AX92: 36 | AY92: 4 | AZ92: 135 | BA92: 3 | BB92: 13 | BC92: 212
A93: 1991 | B93: Ian Kinsler | C93: DET | D93: Buy | O93: 0 | P93: 0 | Q93: 0 | R93: 0 | S93: 0 | T93: 0 | U93: 0 | V93: 0 | W93: 0 | X93: 0 | Z93: 1991 | AA93: Ian Kinsler | AB93: =IF(AQ93<>0,VLOOKUP(AQ93,Info!A:B,2,FALSE),"") -> DET | AC93: kinia | AD93: 0.1604938272 | AE93: 0.3765432099 | AF93: 0.6604938272 | AG93: 0.1049382716 | AH93: 0.1790123457 | AI93: 0.02469135802 | AJ93: 0.9444444444 | AK93: 0.03703703704 | AL93: 0.07407407407 | AM93: 0.6172839506 | AO93: 1991 | AP93: Ian Kinsler | AQ93: Detroit Tigers | AR93: kinia | AS93: 162 | AT93: 26 | AU93: 61 | AV93: 107 | AW93: 17 | AX93: 29 | AY93: 4 | AZ93: 153 | BA93: 6 | BB93: 12 | BC93: 100
A94: 3375 | B94: Jose Iglesias | C94: DET | D94: Buy | O94: 0 | P94: 0 | Q94: 0 | R94: 0 | S94: 0 | T94: 0 | U94: 0 | V94: 0 | W94: 0 | X94: 0 | Z94: 3375 | AA94: Jose Iglesias | AB94: =IF(AQ94<>0,VLOOKUP(AQ94,Info!A:B,2,FALSE),"") -> DET | AC94: igljo | AD94: 0.06172839506 | AE94: 0.4135802469 | AF94: 0.4382716049 | AG94: 0.05555555556 | AH94: 0.2654320988 | AI94: 0.01234567901 | AJ94: 0.9197530864 | AK94: 0.03086419753 | AL94: 0.04938271605 | AM94: 0.5 | AO94: 3375 | AP94: Jose Iglesias | AQ94: Detroit Tigers | AR94: igljo | AS94: 162 | AT94: 10 | AU94: 67 | AV94: 71 | AW94: 9 | AX94: 43 | AY94: 2 | AZ94: 149 | BA94: 5 | BB94: 8 | BC94: 81
A95: 1098 | B95: Miguel Cabrera | C95: DET | D95: Buy | O95: 0 | P95: 0 | Q95: 0 | R95: 0 | S95: 0 | T95: 0 | U95: 0 | V95: 0 | W95: 0 | X95: 0 | Z95: 1098 | AA95: Miguel Cabrera | AB95: =IF(AQ95<>0,VLOOKUP(AQ95,Info!A:B,2,FALSE),"") -> DET | AC95: cabmi | AD95: 0.1234567901 | AE95: 0.475308642 | AF95: 0.3950617284 | AG95: 0.006172839506 | AH95: 0.1728395062 | AI95: 0.006172839506 | AJ95: 0.9135802469 | AK95: 0.01234567901 | AL95: 0.03086419753 | AM95: 0.8641975309 | AO95: 1098 | AP95: Miguel Cabrera | AQ95: Detroit Tigers | AR95: cabmi | AS95: 162 | AT95: 20 | AU95: 77 | AV95: 64 | AW95: 1 | AX95: 28 | AY95: 1 | AZ95: 148 | BA95: 2 | BB95: 5 | BC95: 140
A96: 3569 | B96: Nick Castellanos | C96: DET | D96: Buy | O96: 0 | P96: 0 | Q96: 0 | R96: 0 | S96: 0 | T96: 0 | U96: 0 | V96: 0 | W96: 0 | X96: 0 | Z96: 3569 | AA96: Nick Castellanos | AB96: =IF(AQ96<>0,VLOOKUP(AQ96,Info!A:B,2,FALSE),"") -> DET | AC96: casni | AD96: 0.2283950617 | AE96: 0.7407407407 | AF96: 0.4567901235 | AG96: 0.03086419753 | AH96: 0.2592592593 | AI96: 0.05555555556 | AJ96: 1.228395062 | AK96: 0.04320987654 | AL96: 0.07407407407 | AM96: 0.7222222222 | AO96: 3569 | AP96: Nick Castellanos | AQ96: Detroit Tigers | AR96: casni | AS96: 162 | AT96: 37 | AU96: 120 | AV96: 74 | AW96: 5 | AX96: 42 | AY96: 9 | AZ96: 199 | BA96: 7 | BB96: 12 | BC96: 117
A97: 2706 | B97: Omar Infante | C97: DET | D97: Buy | O97: 0 | P97: 0 | Q97: 0 | R97: 0 | S97: 0 | T97: 0 | U97: 0 | V97: 0 | W97: 0 | X97: 0 | Z97: 2706 | AA97: Omar Infante | AB97: =IF(AQ97<>0,VLOOKUP(AQ97,Info!A:B,2,FALSE),"") -> DET | AC97: infom | AD97: 0.06172839506 | AE97: 0.3086419753 | AF97: 0.4135802469 | AG97: 0.006172839506 | AH97: 0.2345679012 | AI97: 0.03086419753 | AJ97: 0.8209876543 | AK97: 0.01234567901 | AL97: 0.08024691358 | AM97: 0.5925925926 | AO97: 2706 | AP97: Omar Infante | AQ97: Detroit Tigers | AR97: infom | AS97: 162 | AT97: 10 | AU97: 50 | AV97: 67 | AW97: 1 | AX97: 38 | AY97: 5 | AZ97: 133 | BA97: 2 | BB97: 13 | BC97: 96
A98: 1148 | B98: Victor Martinez | C98: DET | D98: Buy | O98: 0 | P98: 0 | Q98: 0 | R98: 0 | S98: 0 | T98: 0 | U98: 0 | V98: 0 | W98: 0 | X98: 0 | Z98: 1148 | AA98: Victor Martinez | AB98: =IF(AQ98<>0,VLOOKUP(AQ98,Info!A:B,2,FALSE),"") -> DET | AC98: marvi | AD98: 0.09259259259 | AE98: 0.4382716049 | AF98: 0.3518518519 | AG98: 0.006172839506 | AH98: 0.1481481481 | AI98: 0.006172839506 | AJ98: 0.9382716049 | AK98: 0.01234567901 | AL98: 0.03086419753 | AM98: 0.6049382716 | AO98: 1148 | AP98: Victor Martinez | AQ98: Detroit Tigers | AR98: marvi | AS98: 162 | AT98: 15 | AU98: 71 | AV98: 57 | AW98: 1 | AX98: 24 | AY98: 1 | AZ98: 152 | BA98: 2 | BB98: 5 | BC98: 98
A99: 177 | B99: A.J. Pierzynski | C99: XXX | D99: Buy | O99: 0 | P99: 0 | Q99: 0 | R99: 0 | S99: 0 | T99: 0 | U99: 0 | V99: 0 | W99: 0 | X99: 0 | Z99: 177 | AA99: A.J. Pierzynski | AB99: =IF(AQ99<>0,VLOOKUP(AQ99,Info!A:B,2,FALSE),"") -> XXX | AC99: pieaj | AD99: 0.06172839506 | AE99: 0.3086419753 | AF99: 0.3086419753 | AG99: 0.01234567901 | AH99: 0.1975308642 | AI99: 0.006172839506 | AJ99: 0.6481481481 | AK99: 0.01234567901 | AL99: 0.04938271605 | AM99: 0.462962963 | AO99: 177 | AP99: A.J. Pierzynski | AQ99: FA/RET/DEC/HON | AR99: pieaj | AS99: 162 | AT99: 10 | AU99: 50 | AV99: 50 | AW99: 2 | AX99: 32 | AY99: 1 | AZ99: 105 | BA99: 2 | BB99: 8 | BC99: 75
A100: 697 | B100: Alex Rodriguez | C100: XXX | D100: Buy | O100: 0 | P100: 0 | Q100: 0 | R100: 0 | S100: 0 | T100: 0 | U100: 0 | V100: 0 | W100: 0 | X100: 0 | Z100: 697 | AA100: Alex Rodriguez | AB100: =IF(AQ100<>0,VLOOKUP(AQ100,Info!A:B,2,FALSE),"") -> XXX | AC100: rodal | AD100: 0.1419753086 | AE100: 0.4814814815 | AF100: 0.3086419753 | AG100: 0.04938271605 | AH100: 0.1234567901 | AI100: 0.006172839506 | AJ100: 0.6975308642 | AK100: 0.01234567901 | AL100: 0.03086419753 | AM100: 1.030864198 | AO100: 697 | AP100: Alex Rodriguez | AQ100: FA/RET/DEC/HON | AR100: rodal | AS100: 162 | AT100: 23 | AU100: 78 | AV100: 50 | AW100: 8 | AX100: 20 | AY100: 1 | AZ100: 113 | BA100: 2 | BB100: 5 | BC100: 167
A101: 2227 | B101: Alexei Ramirez | C101: XXX | D101: Buy | O101: 0 | P101: 0 | Q101: 0 | R101: 0 | S101: 0 | T101: 0 | U101: 0 | V101: 0 | W101: 0 | X101: 0 | Z101: 2227 | AA101: Alexei Ramirez | AB101: =IF(AQ101<>0,VLOOKUP(AQ101,Info!A:B,2,FALSE),"") -> XXX | AC101: ramal | AD101: 0.06172839506 | AE101: 0.3333333333 | AF101: 0.3086419753 | AG101: 0.05555555556 | AH101: 0.1481481481 | AI101: 0.01851851852 | AJ101: 0.7901234568 | AK101: 0.06172839506 | AL101: 0.04938271605 | AM101: 0.462962963 | AO101: 2227 | AP101: Alexei Ramirez | AQ101: FA/RET/DEC/HON | AR101: ramal | AS101: 162 | AT101: 10 | AU101: 54 | AV101: 50 | AW101: 9 | AX101: 24 | AY101: 3 | AZ101: 128 | BA101: 10 | BB101: 8 | BC101: 75
A102: 2226 | B102: Alexi Casilla | C102: XXX | D102: Buy | O102: 0 | P102: 0 | Q102: 0 | R102: 0 | S102: 0 | T102: 0 | U102: 0 | V102: 0 | W102: 0 | X102: 0 | Z102: 2226 | AA102: Alexi Casilla | AB102: =IF(AQ102<>0,VLOOKUP(AQ102,Info!A:B,2,FALSE),"") -> XXX | AC102: casal | AD102: 0.06172839506 | AE102: 0.3086419753 | AF102: 0.3086419753 | AG102: 0.1481481481 | AH102: 0.1234567901 | AI102: 0.01851851852 | AJ102: 0.6172839506 | AK102: 0.03703703704 | AL102: 0.03086419753 | AM102: 0.462962963 | AO102: 2226 | AP102: Alexi Casilla | AQ102: FA/RET/DEC/HON | AR102: casal | AS102: 162 | AT102: 10 | AU102: 50 | AV102: 50 | AW102: 24 | AX102: 20 | AY102: 3 | AZ102: 100 | BA102: 6 | BB102: 5 | BC102: 75
A103: 2675 | B103: Angel Pagan | C103: XXX | D103: Buy | O103: 0 | P103: 0 | Q103: 0 | R103: 0 | S103: 0 | T103: 0 | U103: 0 | V103: 0 | W103: 0 | X103: 0 | Z103: 2675 | AA103: Angel Pagan | AB103: =IF(AQ103<>0,VLOOKUP(AQ103,Info!A:B,2,FALSE),"") -> XXX | AC103: pagan | AD103: 0.09259259259 | AE103: 0.4135802469 | AF103: 0.5308641975 | AG103: 0.1172839506 | AH103: 0.1913580247 | AI103: 0.04320987654 | AJ103: 1.055555556 | AK103: 0.04320987654 | AL103: 0.03086419753 | AM103: 0.5308641975 | AO103: 2675 | AP103: Angel Pagan | AQ103: FA/RET/DEC/HON | AR103: pagan | AS103: 162 | AT103: 15 | AU103: 67 | AV103: 86 | AW103: 19 | AX103: 31 | AY103: 7 | AZ103: 171 | BA103: 7 | BB103: 5 | BC103: 86
A104: 2172 | B104: Billy Butler | C104: XXX | D104: Buy | O104: 0 | P104: 0 | Q104: 0 | R104: 0 | S104: 0 | T104: 0 | U104: 0 | V104: 0 | W104: 0 | X104: 0 | Z104: 2172 | AA104: Billy Butler | AB104: =IF(AQ104<>0,VLOOKUP(AQ104,Info!A:B,2,FALSE),"") -> XXX | AC104: butbi | AD104: 0.06172839506 | AE104: 0.3580246914 | AF104: 0.3086419753 | AG104: 0.006172839506 | AH104: 0.1851851852 | AI104: 0.006172839506 | AJ104: 0.7407407407 | AK104: 0.01234567901 | AL104: 0.03086419753 | AM104: 0.462962963 | AO104: 2172 | AP104: Billy Butler | AQ104: FA/RET/DEC/HON | AR104: butbi | AS104: 162 | AT104: 10 | AU104: 58 | AV104: 50 | AW104: 1 | AX104: 30 | AY104: 1 | AZ104: 120 | BA104: 2 | BB104: 5 | BC104: 75
A105: 2646 | B105: Brennan Boesch | C105: XXX | D105: Buy | O105: 0 | P105: 0 | Q105: 0 | R105: 0 | S105: 0 | T105: 0 | U105: 0 | V105: 0 | W105: 0 | X105: 0 | Z105: 2646 | AA105: Brennan Boesch | AB105: =IF(AQ105<>0,VLOOKUP(AQ105,Info!A:B,2,FALSE),"") -> XXX | AC105: boebr | AD105: 0.06172839506 | AE105: 0.3086419753 | AF105: 0.3086419753 | AG105: 0.02469135802 | AH105: 0.1234567901 | AI105: 0.006172839506 | AJ105: 0.6172839506 | AK105: 0.01234567901 | AL105: 0.03086419753 | AM105: 0.5925925926 | AO105: 2646 | AP105: Brennan Boesch | AQ105: FA/RET/DEC/HON | AR105: boebr | AS105: 162 | AT105: 10 | AU105: 50 | AV105: 50 | AW105: 4 | AX105: 20 | AY105: 1 | AZ105: 100 | BA105: 2 | BB105: 5 | BC105: 96
A106: 3042 | B106: Brett Lawrie | C106: XXX | D106: Buy | O106: 0 | P106: 0 | Q106: 0 | R106: 0 | S106: 0 | T106: 0 | U106: 0 | V106: 0 | W106: 0 | X106: 0 | Z106: 3042 | AA106: Brett Lawrie | AB106: =IF(AQ106<>0,VLOOKUP(AQ106,Info!A:B,2,FALSE),"") -> XXX | AC106: lawrb | AD106: 0.1296296296 | AE106: 0.3888888889 | AF106: 0.3765432099 | AG106: 0.08024691358 | AH106: 0.2345679012 | AI106: 0.006172839506 | AJ106: 0.9259259259 | AK106: 0.03703703704 | AL106: 0.04320987654 | AM106: 1.160493827 | AO106: 3042 | AP106: Brett Lawrie | AQ106: FA/RET/DEC/HON | AR106: lawrb | AS106: 162 | AT106: 21 | AU106: 63 | AV106: 61 | AW106: 13 | AX106: 38 | AY106: 1 | AZ106: 150 | BA106: 6 | BB106: 7 | BC106: 188
A107: 757 | B107: Carl Crawford | C107: XXX | D107: Buy | O107: 0 | P107: 0 | Q107: 0 | R107: 0 | S107: 0 | T107: 0 | U107: 0 | V107: 0 | W107: 0 | X107: 0 | Z107: 757 | AA107: Carl Crawford | AB107: =IF(AQ107<>0,VLOOKUP(AQ107,Info!A:B,2,FALSE),"") -> XXX | AC107: craca | AD107: 0.06172839506 | AE107: 0.3086419753 | AF107: 0.3086419753 | AG107: 0.006172839506 | AH107: 0.1234567901 | AI107: 0.03703703704 | AJ107: 0.6172839506 | AK107: 0.03703703704 | AL107: 0.03086419753 | AM107: 0.462962963 | AO107: 757 | AP107: Carl Crawford | AQ107: FA/RET/DEC/HON | AR107: craca | AS107: 162 | AT107: 10 | AU107: 50 | AV107: 50 | AW107: 1 | AX107: 20 | AY107: 6 | AZ107: 100 | BA107: 6 | BB107: 5 | BC107: 75
A108: 1485 | B108: Clint Barmes | C108: XXX | D108: Buy | O108: 0 | P108: 0 | Q108: 0 | R108: 0 | S108: 0 | T108: 0 | U108: 0 | V108: 0 | W108: 0 | X108: 0 | Z108: 1485 | AA108: Clint Barmes | AB108: =IF(AQ108<>0,VLOOKUP(AQ108,Info!A:B,2,FALSE),"") -> XXX | AC108: barcl | AD108: 0.06172839506 | AE108: 0.3086419753 | AF108: 0.3086419753 | AG108: 0.006172839506 | AH108: 0.1481481481 | AI108: 0.01234567901 | AJ108: 0.6172839506 | AK108: 0.01234567901 | AL108: 0.08641975309 | AM108: 0.5617283951 | AO108: 1485 | AP108: Clint Barmes | AQ108: FA/RET/DEC/HON | AR108: barcl | AS108: 162 | AT108: 10 | AU108: 50 | AV108: 50 | AW108: 1 | AX108: 24 | AY108: 2 | AZ108: 100 | BA108: 2 | BB108: 14 | BC108: 91
A109: 1459 | B109: Coco Crisp | C109: XXX | D109: Buy | O109: 0 | P109: 0 | Q109: 0 | R109: 0 | S109: 0 | T109: 0 | U109: 0 | V109: 0 | W109: 0 | X109: 0 | Z109: 1459 | AA109: Coco Crisp | AB109: =IF(AQ109<>0,VLOOKUP(AQ109,Info!A:B,2,FALSE),"") -> XXX | AC109: crico | AD109: 0.1111111111 | AE109: 0.462962963 | AF109: 0.4382716049 | AG109: 0.08024691358 | AH109: 0.2222222222 | AI109: 0.03703703704 | AJ109: 0.8333333333 | AK109: 0.04320987654 | AL109: 0.03086419753 | AM109: 0.6481481481 | AO109: 1459 | AP109: Coco Crisp | AQ109: FA/RET/DEC/HON | AR109: crico | AS109: 162 | AT109: 18 | AU109: 75 | AV109: 71 | AW109: 13 | AX109: 36 | AY109: 6 | AZ109: 135 | BA109: 7 | BB109: 5 | BC109: 105
A110: 931 | B110: David Ortiz | C110: XXX | D110: Buy | O110: 0 | P110: 0 | Q110: 0 | R110: 0 | S110: 0 | T110: 0 | U110: 0 | V110: 0 | W110: 0 | X110: 0 | Z110: 931 | AA110: David Ortiz | AB110: =IF(AQ110<>0,VLOOKUP(AQ110,Info!A:B,2,FALSE),"") -> XXX | AC110: ortda | AD110: 0.2469135802 | AE110: 0.7407407407 | AF110: 0.512345679 | AG110: 0.01851851852 | AH110: 0.3086419753 | AI110: 0.01234567901 | AJ110: 1.117283951 | AK110: 0.01234567901 | AL110: 0.03086419753 | AM110: 0.5740740741 | AO110: 931 | AP110: David Ortiz | AQ110: FA/RET/DEC/HON | AR110: ortda | AS110: 162 | AT110: 40 | AU110: 120 | AV110: 83 | AW110: 3 | AX110: 50 | AY110: 2 | AZ110: 181 | BA110: 2 | BB110: 5 | BC110: 93
A111: 1816 | B111: David Ross | C111: XXX | D111: Buy | O111: 0 | P111: 0 | Q111: 0 | R111: 0 | S111: 0 | T111: 0 | U111: 0 | V111: 0 | W111: 0 | X111: 0 | Z111: 1816 | AA111: David Ross | AB111: =IF(AQ111<>0,VLOOKUP(AQ111,Info!A:B,2,FALSE),"") -> XXX | AC111: rosda | AD111: 0.1728395062 | AE111: 0.5 | AF111: 0.3765432099 | AG111: 0.006172839506 | AH111: 0.1234567901 | AI111: 0.006172839506 | AJ111: 0.6172839506 | AK111: 0.01851851852 | AL111: 0.06172839506 | AM111: 0.8148148148 | AO111: 1816 | AP111: David Ross | AQ111: FA/RET/DEC/HON | AR111: rosda | AS111: 162 | AT111: 28 | AU111: 81 | AV111: 61 | AW111: 1 | AX111: 20 | AY111: 1 | AZ111: 100 | BA111: 3 | BB111: 10 | BC111: 132
A112: 2217 | B112: Dioner Navarro | C112: XXX | D112: Buy | O112: 0 | P112: 0 | Q112: 0 | R112: 0 | S112: 0 | T112: 0 | U112: 0 | V112: 0 | W112: 0 | X112: 0 | Z112: 2217 | AA112: Dioner Navarro | AB112: =IF(AQ112<>0,VLOOKUP(AQ112,Info!A:B,2,FALSE),"") -> XXX | AC112: navdi | AD112: 0.06172839506 | AE112: 0.3518518519 | AF112: 0.3086419753 | AG112: 0.01234567901 | AH112: 0.1296296296 | AI112: 0.02469135802 | AJ112: 0.6296296296 | AK112: 0.02469135802 | AL112: 0.03086419753 | AM112: 0.7037037037 | AO112: 2217 | AP112: Dioner Navarro | AQ112: FA/RET/DEC/HON | AR112: navdi | AS112: 162 | AT112: 10 | AU112: 57 | AV112: 50 | AW112: 2 | AX112: 21 | AY112: 4 | AZ112: 102 | BA112: 4 | BB112: 5 | BC112: 114
A113: 3278 | B113: Domonic Brown | C113: XXX | D113: Buy | O113: 0 | P113: 0 | Q113: 0 | R113: 0 | S113: 0 | T113: 0 | U113: 0 | V113: 0 | W113: 0 | X113: 0 | Z113: 3278 | AA113: Domonic Brown | AB113: =IF(AQ113<>0,VLOOKUP(AQ113,Info!A:B,2,FALSE),"") -> XXX | AC113: browd | AD113: 0.08024691358 | AE113: 0.4012345679 | AF113: 0.3086419753 | AG113: 0.04938271605 | AH113: 0.1234567901 | AI113: 0.01851851852 | AJ113: 0.6851851852 | AK113: 0.01851851852 | AL113: 0.03086419753 | AM113: 0.5740740741 | AO113: 3278 | AP113: Domonic Brown | AQ113: FA/RET/DEC/HON | AR113: browd | AS113: 162 | AT113: 13 | AU113: 65 | AV113: 50 | AW113: 8 | AX113: 20 | AY113: 3 | AZ113: 111 | BA113: 3 | BB113: 5 | BC113: 93
A114: 2876 | B114: J.P. Arencibia | C114: XXX | D114: Buy | O114: 0 | P114: 0 | Q114: 0 | R114: 0 | S114: 0 | T114: 0 | U114: 0 | V114: 0 | W114: 0 | X114: 0 | Z114: 2876 | AA114: J.P. Arencibia | AB114: =IF(AQ114<>0,VLOOKUP(AQ114,Info!A:B,2,FALSE),"") -> XXX | AC114: arejp | AD114: 0.1666666667 | AE114: 0.5679012346 | AF114: 0.3271604938 | AG114: 0.006172839506 | AH114: 0.1481481481 | AI114: 0.006172839506 | AJ114: 0.6172839506 | AK114: 0.01234567901 | AL114: 0.06790123457 | AM114: 1 | AO114: 2876 | AP114: J.P. Arencibia | AQ114: FA/RET/DEC/HON | AR114: arejp | AS114: 162 | AT114: 27 | AU114: 92 | AV114: 53 | AW114: 1 | AX114: 24 | AY114: 1 | AZ114: 100 | BA114: 2 | BB114: 11 | BC114: 162
A115: 2147 | B115: James Loney | C115: XXX | D115: Buy | O115: 0 | P115: 0 | Q115: 0 | R115: 0 | S115: 0 | T115: 0 | U115: 0 | V115: 0 | W115: 0 | X115: 0 | Z115: 2147 | AA115: James Loney | AB115: =IF(AQ115<>0,VLOOKUP(AQ115,Info!A:B,2,FALSE),"") -> XXX | AC115: lonja | AD115: 0.09259259259 | AE115: 0.3333333333 | AF115: 0.3148148148 | AG115: 0.006172839506 | AH115: 0.1604938272 | AI115: 0.01234567901 | AJ115: 0.9074074074 | AK115: 0.01234567901 | AL115: 0.03086419753 | AM115: 0.462962963 | AO115: 2147 | AP115: James Loney | AQ115: FA/RET/DEC/HON | AR115: lonja | AS115: 162 | AT115: 15 | AU115: 54 | AV115: 51 | AW115: 1 | AX115: 26 | AY115: 2 | AZ115: 147 | BA115: 2 | BB115: 5 | BC115: 75
A116: 1554 | B116: Jeff Francoeur | C116: XXX | D116: Buy | O116: 0 | P116: 0 | Q116: 0 | R116: 0 | S116: 0 | T116: 0 | U116: 0 | V116: 0 | W116: 0 | X116: 0 | Z116: 1554 | AA116: Jeff Francoeur | AB116: =IF(AQ116<>0,VLOOKUP(AQ116,Info!A:B,2,FALSE),"") -> XXX | AC116: franj | AD116: 0.06172839506 | AE116: 0.3086419753 | AF116: 0.3086419753 | AG116: 0.01851851852 | AH116: 0.1234567901 | AI116: 0.01234567901 | AJ116: 0.6296296296 | AK116: 0.01851851852 | AL116: 0.03086419753 | AM116: 0.7160493827 | AO116: 1554 | AP116: Jeff Francoeur | AQ116: FA/RET/DEC/HON | AR116: franj | AS116: 162 | AT116: 10 | AU116: 50 | AV116: 50 | AW116: 3 | AX116: 20 | AY116: 2 | AZ116: 102 | BA116: 3 | BB116: 5 | BC116: 116
A117: 3846 | B117: Jimmy Paredes | C117: XXX | D117: Buy | O117: 0 | P117: 0 | Q117: 0 | R117: 0 | S117: 0 | T117: 0 | U117: 0 | V117: 0 | W117: 0 | X117: 0 | Z117: 3846 | AA117: Jimmy Paredes | AB117: =IF(AQ117<>0,VLOOKUP(AQ117,Info!A:B,2,FALSE),"") -> XXX | AC117: parji | AD117: 0.06172839506 | AE117: 0.3086419753 | AF117: 0.3086419753 | AG117: 0.006172839506 | AH117: 0.1234567901 | AI117: 0.006172839506 | AJ117: 0.6172839506 | AK117: 0.01234567901 | AL117: 0.03086419753 | AM117: 0.5987654321 | AO117: 3846 | AP117: Jimmy Paredes | AQ117: FA/RET/DEC/HON | AR117: parji | AS117: 162 | AT117: 10 | AU117: 50 | AV117: 50 | AW117: 1 | AX117: 20 | AY117: 1 | AZ117: 100 | BA117: 2 | BB117: 5 | BC117: 97
A118: 821 | B118: Jimmy Rollins | C118: XXX | D118: Buy | O118: 0 | P118: 0 | Q118: 0 | R118: 0 | S118: 0 | T118: 0 | U118: 0 | V118: 0 | W118: 0 | X118: 0 | Z118: 821 | AA118: Jimmy Rollins | AB118: =IF(AQ118<>0,VLOOKUP(AQ118,Info!A:B,2,FALSE),"") -> XXX | AC118: rolji | AD118: 0.06172839506 | AE118: 0.3086419753 | AF118: 0.6111111111 | AG118: 0.1234567901 | AH118: 0.1975308642 | AI118: 0.02469135802 | AJ118: 0.8086419753 | AK118: 0.04938271605 | AL118: 0.04938271605 | AM118: 0.8086419753 | AO118: 821 | AP118: Jimmy Rollins | AQ118: FA/RET/DEC/HON | AR118: rolji | AS118: 162 | AT118: 10 | AU118: 50 | AV118: 99 | AW118: 20 | AX118: 32 | AY118: 4 | AZ118: 131 | BA118: 8 | BB118: 8 | BC118: 131
A119: 2613 | B119: Julio Borbon | C119: XXX | D119: Buy | O119: 0 | P119: 0 | Q119: 0 | R119: 0 | S119: 0 | T119: 0 | U119: 0 | V119: 0 | W119: 0 | X119: 0 | Z119: 2613 | AA119: Julio Borbon | AB119: =IF(AQ119<>0,VLOOKUP(AQ119,Info!A:B,2,FALSE),"") -> XXX | AC119: borju | AD119: 0.06172839506 | AE119: 0.3086419753 | AF119: 0.3086419753 | AG119: 0.09259259259 | AH119: 0.1234567901 | AI119: 0.01851851852 | AJ119: 0.6172839506 | AK119: 0.01234567901 | AL119: 0.03086419753 | AM119: 0.462962963 | AO119: 2613 | AP119: Julio Borbon | AQ119: FA/RET/DEC/HON | AR119: borju | AS119: 162 | AT119: 10 | AU119: 50 | AV119: 50 | AW119: 15 | AX119: 20 | AY119: 3 | AZ119: 100 | BA119: 2 | BB119: 5 | BC119: 75
A120: 3821 | B120: Justin Maxwell | C120: XXX | D120: Buy | O120: 0 | P120: 0 | Q120: 0 | R120: 0 | S120: 0 | T120: 0 | U120: 0 | V120: 0 | W120: 0 | X120: 0 | Z120: 3821 | AA120: Justin Maxwell | AB120: =IF(AQ120<>0,VLOOKUP(AQ120,Info!A:B,2,FALSE),"") -> XXX | AC120: maxju | AD120: 0.07407407407 | AE120: 0.3086419753 | AF120: 0.3086419753 | AG120: 0.02469135802 | AH120: 0.1234567901 | AI120: 0.02469135802 | AJ120: 0.6172839506 | AK120: 0.01234567901 | AL120: 0.03086419753 | AM120: 0.7530864198 | AO120: 3821 | AP120: Justin Maxwell | AQ120: FA/RET/DEC/HON | AR120: maxju | AS120: 162 | AT120: 12 | AU120: 50 | AV120: 50 | AW120: 4 | AX120: 20 | AY120: 4 | AZ120: 100 | BA120: 2 | BB120: 5 | BC120: 122
A121: 1186 | B121: Justin Morneau | C121: XXX | D121: Buy | O121: 0 | P121: 0 | Q121: 0 | R121: 0 | S121: 0 | T121: 0 | U121: 0 | V121: 0 | W121: 0 | X121: 0 | Z121: 1186 | AA121: Justin Morneau | AB121: =IF(AQ121<>0,VLOOKUP(AQ121,Info!A:B,2,FALSE),"") -> XXX | AC121: morju | AD121: 0.1049382716 | AE121: 0.4382716049 | AF121: 0.3086419753 | AG121: 0.006172839506 | AH121: 0.2716049383 | AI121: 0.01851851852 | AJ121: 0.9197530864 | AK121: 0.01234567901 | AL121: 0.03086419753 | AM121: 0.8888888889 | AO121: 1186 | AP121: Justin Morneau | AQ121: FA/RET/DEC/HON | AR121: morju | AS121: 162 | AT121: 17 | AU121: 71 | AV121: 50 | AW121: 1 | AX121: 44 | AY121: 3 | AZ121: 149 | BA121: 2 | BB121: 5 | BC121: 144
A122: 1970 | B122: Kelly Johnson | C122: XXX | D122: Buy | O122: 0 | P122: 0 | Q122: 0 | R122: 0 | S122: 0 | T122: 0 | U122: 0 | V122: 0 | W122: 0 | X122: 0 | Z122: 1970 | AA122: Kelly Johnson | AB122: =IF(AQ122<>0,VLOOKUP(AQ122,Info!A:B,2,FALSE),"") -> XXX | AC122: jokel | AD122: 0.08641975309 | AE122: 0.3086419753 | AF122: 0.3086419753 | AG122: 0.03086419753 | AH122: 0.1234567901 | AI122: 0.006172839506 | AJ122: 0.6172839506 | AK122: 0.01234567901 | AL122: 0.04938271605 | AM122: 0.4938271605 | AO122: 1970 | AP122: Kelly Johnson | AQ122: FA/RET/DEC/HON | AR122: jokel | AS122: 162 | AT122: 14 | AU122: 50 | AV122: 50 | AW122: 5 | AX122: 20 | AY122: 1 | AZ122: 100 | BA122: 2 | BB122: 8 | BC122: 80
A123: 1097 | B123: Mark Teixeira | C123: XXX | D123: Buy | O123: 0 | P123: 0 | Q123: 0 | R123: 0 | S123: 0 | T123: 0 | U123: 0 | V123: 0 | W123: 0 | X123: 0 | Z123: 1097 | AA123: Mark Teixeira | AB123: =IF(AQ123<>0,VLOOKUP(AQ123,Info!A:B,2,FALSE),"") -> XXX | AC123: teima | AD123: 0.1296296296 | AE123: 0.3765432099 | AF123: 0.3703703704 | AG123: 0.01851851852 | AH123: 0.1481481481 | AI123: 0.006172839506 | AJ123: 0.6975308642 | AK123: 0.01234567901 | AL123: 0.03086419753 | AM123: 0.9074074074 | AO123: 1097 | AP123: Mark Teixeira | AQ123: FA/RET/DEC/HON | AR123: teima | AS123: 162 | AT123: 21 | AU123: 61 | AV123: 60 | AW123: 3 | AX123: 24 | AY123: 1 | AZ123: 113 | BA123: 2 | BB123: 5 | BC123: 147
A124: 2640 | B124: Marlon Byrd | C124: XXX | D124: Buy | O124: 0 | P124: 0 | Q124: 0 | R124: 0 | S124: 0 | T124: 0 | U124: 0 | V124: 0 | W124: 0 | X124: 0 | Z124: 2640 | AA124: Marlon Byrd | AB124: =IF(AQ124<>0,VLOOKUP(AQ124,Info!A:B,2,FALSE),"") -> XXX | AC124: byrma | AD124: 0.1481481481 | AE124: 0.5617283951 | AF124: 0.3271604938 | AG124: 0.006172839506 | AH124: 0.1790123457 | AI124: 0.006172839506 | AJ124: 0.9135802469 | AK124: 0.01234567901 | AL124: 0.03086419753 | AM124: 1.12345679 | AO124: 2640 | AP124: Marlon Byrd | AQ124: FA/RET/DEC/HON | AR124: byrma | AS124: 162 | AT124: 24 | AU124: 91 | AV124: 53 | AW124: 1 | AX124: 29 | AY124: 1 | AZ124: 148 | BA124: 2 | BB124: 5 | BC124: 182
A125: 2144 | B125: Michael Bourn | C125: XXX | D125: Buy | O125: 0 | P125: 0 | Q125: 0 | R125: 0 | S125: 0 | T125: 0 | U125: 0 | V125: 0 | W125: 0 | X125: 0 | Z125: 2144 | AA125: Michael Bourn | AB125: =IF(AQ125<>0,VLOOKUP(AQ125,Info!A:B,2,FALSE),"") -> XXX | AC125: bourm | AD125: 0.06172839506 | AE125: 0.3333333333 | AF125: 0.4197530864 | AG125: 0.1419753086 | AH125: 0.1234567901 | AI125: 0.05555555556 | AJ125: 0.8703703704 | AK125: 0.04938271605 | AL125: 0.03086419753 | AM125: 0.8209876543 | AO125: 2144 | AP125: Michael Bourn | AQ125: FA/RET/DEC/HON | AR125: bourm | AS125: 162 | AT125: 10 | AU125: 54 | AV125: 68 | AW125: 23 | AX125: 20 | AY125: 9 | AZ125: 141 | BA125: 8 | BB125: 5 | BC125: 133
A126: 3065 | B126: Mike Aviles | C126: XXX | D126: Buy | O126: 0 | P126: 0 | Q126: 0 | R126: 0 | S126: 0 | T126: 0 | U126: 0 | V126: 0 | W126: 0 | X126: 0 | Z126: 3065 | AA126: Mike Aviles | AB126: =IF(AQ126<>0,VLOOKUP(AQ126,Info!A:B,2,FALSE),"") -> XXX | AC126: avimi | AD126: 0.06172839506 | AE126: 0.3086419753 | AF126: 0.3086419753 | AG126: 0.006172839506 | AH126: 0.1234567901 | AI126: 0.006172839506 | AJ126: 0.6172839506 | AK126: 0.01234567901 | AL126: 0.03086419753 | AM126: 0.462962963 | AO126: 3065 | AP126: Mike Aviles | AQ126: FA/RET/DEC/HON | AR126: avimi | AS126: 162 | AT126: 10 | AU126: 50 | AV126: 50 | AW126: 1 | AX126: 20 | AY126: 1 | AZ126: 100 | BA126: 2 | BB126: 5 | BC126: 75
A127: 2461 | B127: Nate Schierholtz | C127: XXX | D127: Buy | O127: 0 | P127: 0 | Q127: 0 | R127: 0 | S127: 0 | T127: 0 | U127: 0 | V127: 0 | W127: 0 | X127: 0 | Z127: 2461 | AA127: Nate Schierholtz | AB127: =IF(AQ127<>0,VLOOKUP(AQ127,Info!A:B,2,FALSE),"") -> XXX | AC127: schna | AD127: 0.06172839506 | AE127: 0.3086419753 | AF127: 0.3086419753 | AG127: 0.03703703704 | AH127: 0.1234567901 | AI127: 0.03703703704 | AJ127: 0.6172839506 | AK127: 0.04320987654 | AL127: 0.03086419753 | AM127: 0.6604938272 | AO127: 2461 | AP127: Nate Schierholtz | AQ127: FA/RET/DEC/HON | AR127: schna | AS127: 162 | AT127: 10 | AU127: 50 | AV127: 50 | AW127: 6 | AX127: 20 | AY127: 6 | AZ127: 100 | BA127: 7 | BB127: 5 | BC127: 107
A128: 1587 | B128: Nick Swisher | C128: XXX | D128: Buy | O128: 0 | P128: 0 | Q128: 0 | R128: 0 | S128: 0 | T128: 0 | U128: 0 | V128: 0 | W128: 0 | X128: 0 | Z128: 1587 | AA128: Nick Swisher | AB128: =IF(AQ128<>0,VLOOKUP(AQ128,Info!A:B,2,FALSE),"") -> XXX | AC128: swini | AD128: 0.08024691358 | AE128: 0.3333333333 | AF128: 0.3086419753 | AG128: 0.006172839506 | AH128: 0.1234567901 | AI128: 0.006172839506 | AJ128: 0.6172839506 | AK128: 0.01234567901 | AL128: 0.03086419753 | AM128: 0.7160493827 | AO128: 1587 | AP128: Nick Swisher | AQ128: FA/RET/DEC/HON | AR128: swini | AS128: 162 | AT128: 13 | AU128: 54 | AV128: 50 | AW128: 1 | AX128: 20 | AY128: 1 | AZ128: 100 | BA128: 2 | BB128: 5 | BC128: 116
A129: 2460 | B129: Nolan Reimold | C129: XXX | D129: Buy | O129: 0 | P129: 0 | Q129: 0 | R129: 0 | S129: 0 | T129: 0 | U129: 0 | V129: 0 | W129: 0 | X129: 0 | Z129: 2460 | AA129: Nolan Reimold | AB129: =IF(AQ129<>0,VLOOKUP(AQ129,Info!A:B,2,FALSE),"") -> XXX | AC129: reino | AD129: 0.06172839506 | AE129: 0.3086419753 | AF129: 0.3086419753 | AG129: 0.01234567901 | AH129: 0.1234567901 | AI129: 0.01234567901 | AJ129: 0.6172839506 | AK129: 0.02469135802 | AL129: 0.03086419753 | AM129: 0.6049382716 | AO129: 2460 | AP129: Nolan Reimold | AQ129: FA/RET/DEC/HON | AR129: reino | AS129: 162 | AT129: 10 | AU129: 50 | AV129: 50 | AW129: 2 | AX129: 20 | AY129: 2 | AZ129: 100 | BA129: 4 | BB129: 5 | BC129: 98
A130: 2853 | B130: Sam Fuld | C130: XXX | D130: Buy | O130: 0 | P130: 0 | Q130: 0 | R130: 0 | S130: 0 | T130: 0 | U130: 0 | V130: 0 | W130: 0 | X130: 0 | Z130: 2853 | AA130: Sam Fuld | AB130: =IF(AQ130<>0,VLOOKUP(AQ130,Info!A:B,2,FALSE),"") -> XXX | AC130: fulsa | AD130: 0.06172839506 | AE130: 0.3086419753 | AF130: 0.3086419753 | AG130: 0.08024691358 | AH130: 0.1358024691 | AI130: 0.03086419753 | AJ130: 0.6172839506 | AK130: 0.03086419753 | AL130: 0.03703703704 | AM130: 0.462962963 | AO130: 2853 | AP130: Sam Fuld | AQ130: FA/RET/DEC/HON | AR130: fulsa | AS130: 162 | AT130: 10 | AU130: 50 | AV130: 50 | AW130: 13 | AX130: 22 | AY130: 5 | AZ130: 100 | BA130: 5 | BB130: 6 | BC130: 75
A131: =IF(Z131<>0,Z131,"") -> 1988 | B131: =IF(A131<>0,VLOOKUP(A131,Z:AA,2,FALSE),"") -> Shane Victorino | C131: =IF(A131<>0,VLOOKUP(A131,Z:AB,3,FALSE)) -> XXX | D131: =HYPERLINK("http://www.jockstocks.com/buysell.php?action=buymax&plid="&A131,"Buy") -> Buy | O131: =VLOOKUP($A131,$A:$N,5,FALSE)/VLOOKUP($A131,$Z:$AM,5,FALSE) -> 0 | P131: =VLOOKUP($A131,$A:$N,6,FALSE)/VLOOKUP($A131,$Z:$AM,6,FALSE) -> 0 | Q131: =VLOOKUP($A131,$A:$N,7,FALSE)/VLOOKUP($A131,$Z:$AM,7,FALSE) -> 0 | R131: =VLOOKUP($A131,$A:$N,8,FALSE)/VLOOKUP($A131,$Z:$AM,8,FALSE) -> 0 | S131: =VLOOKUP($A131,$A:$N,9,FALSE)/VLOOKUP($A131,$Z:$AM,9,FALSE) -> 0 | T131: =VLOOKUP($A131,$A:$N,10,FALSE)/VLOOKUP($A131,$Z:$AM,10,FALSE) -> 0 | U131: =VLOOKUP($A131,$A:$N,11,FALSE)/VLOOKUP($A131,$Z:$AM,11,FALSE) -> 0 | V131: =VLOOKUP($A131,$A:$N,12,FALSE)/VLOOKUP($A131,$Z:$AM,12,FALSE) -> 0 | W131: =VLOOKUP($A131,$A:$N,13,FALSE)/VLOOKUP($A131,$Z:$AM,13,FALSE) -> 0 | X131: =VLOOKUP($A131,$A:$N,14,FALSE)/VLOOKUP($A131,$Z:$AM,14,FALSE) -> 0 | Z131: =IF(AO131<>0,AO131,"") -> 1988 | AA131: =IF(AP131<>0,VLOOKUP(Z131,AO:AP,2,FALSE),"") -> Shane Victorino | AB131: =IF(AQ131<>0,VLOOKUP(AQ131,Info!A:B,2,FALSE),"") -> XXX | AC131: =IF(AO131<>0,VLOOKUP(Z131,AO:AR,4,FALSE),"") -> vicsh | AD131: =IF($AO131<>0,AT131/$AS131,"") -> 0.06172839506 | AE131: =IF($AO131<>0,AU131/$AS131,"") -> 0.3086419753 | AF131: =IF($AO131<>0,AV131/$AS131,"") -> 0.3086419753 | AG131: =IF($AO131<>0,AW131/$AS131,"") -> 0.0987654321 | AH131: =IF($AO131<>0,AX131/$AS131,"") -> 0.1234567901 | AI131: =IF($AO131<>0,AY131/$AS131,"") -> 0.03086419753 | AJ131: =IF($AO131<>0,AZ131/$AS131,"") -> 0.6172839506 | AK131: =IF($AO131<>0,BA131/$AS131,"") -> 0.01234567901 | AL131: =IF($AO131<>0,BB131/$AS131,"") -> 0.03086419753 | AM131: =IF($AO131<>0,BC131/$AS131,"") -> 0.462962963 | AO131: 1988 | AP131: Shane Victorino | AQ131: FA/RET/DEC/HON | AR131: vicsh | AS131: 162 | AT131: 10 | AU131: 50 | AV131: 50 | AW131: 16 | AX131: 20 | AY131: 5 | AZ131: 100 | BA131: 2 | BB131: 5 | BC131: 75
A132: 3280 | B132: Will Venable | C132: XXX | D132: Buy | O132: 0 | P132: 0 | Q132: 0 | R132: 0 | S132: 0 | T132: 0 | U132: 0 | V132: 0 | W132: 0 | X132: 0 | Z132: 3280 | AA132: Will Venable | AB132: =IF(AQ132<>0,VLOOKUP(AQ132,Info!A:B,2,FALSE),"") -> XXX | AC132: venwi | AD132: 0.06172839506 | AE132: 0.3086419753 | AF132: 0.3086419753 | AG132: 0.1234567901 | AH132: 0.1234567901 | AI132: 0.02469135802 | AJ132: 0.6296296296 | AK132: 0.01234567901 | AL132: 0.03086419753 | AM132: 0.6975308642 | AO132: 3280 | AP132: Will Venable | AQ132: FA/RET/DEC/HON | AR132: venwi | AS132: 162 | AT132: 10 | AU132: 50 | AV132: 50 | AW132: 20 | AX132: 20 | AY132: 4 | AZ132: 102 | BA132: 2 | BB132: 5 | BC132: 113
A133: 4157 | B133: Alex Bregman | C133: HOU | D133: Buy | O133: 0 | P133: 0 | Q133: 0 | R133: 0 | S133: 0 | T133: 0 | U133: 0 | V133: 0 | W133: 0 | X133: 0 | Z133: 4157 | AA133: Alex Bregman | AB133: =IF(AQ133<>0,VLOOKUP(AQ133,Info!A:B,2,FALSE),"") -> HOU | AC133: breal | AD133: 0.1296296296 | AE133: 0.4567901235 | AF133: 0.5617283951 | AG133: 0.1049382716 | AH133: 0.2469135802 | AI133: 0.03086419753 | AJ133: 1.00617284 | AK133: 0.03086419753 | AL133: 0.04938271605 | AM133: 0.6234567901 | AO133: 4157 | AP133: Alex Bregman | AQ133: Houston Astros | AR133: breal | AS133: 162 | AT133: 21 | AU133: 74 | AV133: 91 | AW133: 17 | AX133: 40 | AY133: 5 | AZ133: 163 | BA133: 5 | BB133: 8 | BC133: 101
A134: 1775 | B134: Brian McCann | C134: HOU | D134: Buy | O134: 0 | P134: 0 | Q134: 0 | R134: 0 | S134: 0 | T134: 0 | U134: 0 | V134: 0 | W134: 0 | X134: 0 | Z134: 1775 | AA134: Brian McCann | AB134: =IF(AQ134<>0,VLOOKUP(AQ134,Info!A:B,2,FALSE),"") -> HOU | AC134: mccab | AD134: 0.1851851852 | AE134: 0.6296296296 | AF134: 0.475308642 | AG134: 0.01234567901 | AH134: 0.1234567901 | AI134: 0.01234567901 | AJ134: 0.8395061728 | AK134: 0.01234567901 | AL134: 0.04938271605 | AM134: 0.6172839506 | AO134: 1775 | AP134: Brian McCann | AQ134: Houston Astros | AR134: mccab | AS134: 162 | AT134: 30 | AU134: 102 | AV134: 77 | AW134: 2 | AX134: 20 | AY134: 2 | AZ134: 136 | BA134: 2 | BB134: 8 | BC134: 100
A135: 2916 | B135: Cameron Maybin | C135: HOU | D135: Buy | O135: 0 | P135: 0 | Q135: 0 | R135: 0 | S135: 0 | T135: 0 | U135: 0 | V135: 0 | W135: 0 | X135: 0 | Z135: 2916 | AA135: Cameron Maybin | AB135: =IF(AQ135<>0,VLOOKUP(AQ135,Info!A:B,2,FALSE),"") -> HOU | AC135: mayca | AD135: 0.08641975309 | AE135: 0.3086419753 | AF135: 0.5432098765 | AG135: 0.2839506173 | AH135: 0.1728395062 | AI135: 0.01851851852 | AJ135: 0.7716049383 | AK135: 0.06790123457 | AL135: 0.03086419753 | AM135: 0.8024691358 | AO135: 2916 | AP135: Cameron Maybin | AQ135: Houston Astros | AR135: mayca | AS135: 162 | AT135: 14 | AU135: 50 | AV135: 88 | AW135: 46 | AX135: 28 | AY135: 3 | AZ135: 125 | BA135: 11 | BB135: 5 | BC135: 130
A136: 701 | B136: Carlos Beltran | C136: HOU | D136: Buy | O136: 0 | P136: 0 | Q136: 0 | R136: 0 | S136: 0 | T136: 0 | U136: 0 | V136: 0 | W136: 0 | X136: 0 | Z136: 701 | AA136: Carlos Beltran | AB136: =IF(AQ136<>0,VLOOKUP(AQ136,Info!A:B,2,FALSE),"") -> HOU | AC136: belca | AD136: 0.1049382716 | AE136: 0.3888888889 | AF136: 0.4444444444 | AG136: 0.006172839506 | AH136: 0.2345679012 | AI136: 0.006172839506 | AJ136: 0.8271604938 | AK136: 0.01234567901 | AL136: 0.03086419753 | AM136: 0.7654320988 | AO136: 701 | AP136: Carlos Beltran | AQ136: Houston Astros | AR136: belca | AS136: 162 | AT136: 17 | AU136: 63 | AV136: 72 | AW136: 1 | AX136: 38 | AY136: 1 | AZ136: 134 | BA136: 2 | BB136: 5 | BC136: 124
A137: 3844 | B137: Carlos Correa | C137: HOU | D137: Buy | O137: 0 | P137: 0 | Q137: 0 | R137: 0 | S137: 0 | T137: 0 | U137: 0 | V137: 0 | W137: 0 | X137: 0 | Z137: 3844 | AA137: Carlos Correa | AB137: =IF(AQ137<>0,VLOOKUP(AQ137,Info!A:B,2,FALSE),"") -> HOU | AC137: corca | AD137: 0.2345679012 | AE137: 0.7407407407 | AF137: 0.7407407407 | AG137: 0.01851851852 | AH137: 0.2345679012 | AI137: 0.01234567901 | AJ137: 1.209876543 | AK137: 0.01234567901 | AL137: 0.07407407407 | AM137: 0.8518518519 | AO137: 3844 | AP137: Carlos Correa | AQ137: Houston Astros | AR137: corca | AS137: 162 | AT137: 38 | AU137: 120 | AV137: 120 | AW137: 3 | AX137: 38 | AY137: 2 | AZ137: 196 | BA137: 2 | BB137: 12 | BC137: 138
A138: 3506 | B138: Evan Gattis | C138: HOU | D138: Buy | O138: 0 | P138: 0 | Q138: 0 | R138: 0 | S138: 0 | T138: 0 | U138: 0 | V138: 0 | W138: 0 | X138: 0 | Z138: 3506 | AA138: Evan Gattis | AB138: =IF(AQ138<>0,VLOOKUP(AQ138,Info!A:B,2,FALSE),"") -> HOU | AC138: gatev | AD138: 0.1419753086 | AE138: 0.6419753086 | AF138: 0.5 | AG138: 0.006172839506 | AH138: 0.2777777778 | AI138: 0.006172839506 | AJ138: 0.9444444444 | AK138: 0.01234567901 | AL138: 0.09259259259 | AM138: 0.6049382716 | AO138: 3506 | AP138: Evan Gattis | AQ138: Houston Astros | AR138: gatev | AS138: 162 | AT138: 23 | AU138: 104 | AV138: 81 | AW138: 1 | AX138: 45 | AY138: 1 | AZ138: 153 | BA138: 2 | BB138: 15 | BC138: 98
A139: 3538 | B139: George Springer | C139: HOU | D139: Buy | O139: 0 | P139: 0 | Q139: 0 | R139: 0 | S139: 0 | T139: 0 | U139: 0 | V139: 0 | W139: 0 | X139: 0 | Z139: 3538 | AA139: George Springer | AB139: =IF(AQ139<>0,VLOOKUP(AQ139,Info!A:B,2,FALSE),"") -> HOU | AC139: sprge | AD139: 0.2407407407 | AE139: 0.5925925926 | AF139: 0.7407407407 | AG139: 0.03703703704 | AH139: 0.2098765432 | AI139: 0.006172839506 | AJ139: 1.117283951 | AK139: 0.04938271605 | AL139: 0.03086419753 | AM139: 0.8086419753 | AO139: 3538 | AP139: George Springer | AQ139: Houston Astros | AR139: sprge | AS139: 162 | AT139: 39 | AU139: 96 | AV139: 120 | AW139: 6 | AX139: 34 | AY139: 1 | AZ139: 181 | BA139: 8 | BB139: 5 | BC139: 131
A140: 3081 | B140: Jose Altuve | C140: HOU | D140: Buy | O140: 0 | P140: 0 | Q140: 0 | R140: 0 | S140: 0 | T140: 0 | U140: 0 | V140: 0 | W140: 0 | X140: 0 | Z140: 3081 | AA140: Jose Altuve | AB140: =IF(AQ140<>0,VLOOKUP(AQ140,Info!A:B,2,FALSE),"") -> HOU | AC140: altjo | AD140: 0.1728395062 | AE140: 0.5308641975 | AF140: 0.7407407407 | AG140: 0.2098765432 | AH140: 0.2469135802 | AI140: 0.03086419753 | AJ140: 1.364197531 | AK140: 0.04320987654 | AL140: 0.07407407407 | AM140: 0.549382716 | AO140: 3081 | AP140: Jose Altuve | AQ140: Houston Astros | AR140: altjo | AS140: 162 | AT140: 28 | AU140: 86 | AV140: 120 | AW140: 34 | AX140: 40 | AY140: 5 | AZ140: 221 | BA140: 7 | BB140: 12 | BC140: 89
A141: 2912 | B141: Josh Reddick | C141: HOU | D141: Buy | O141: 0 | P141: 0 | Q141: 0 | R141: 0 | S141: 0 | T141: 0 | U141: 0 | V141: 0 | W141: 0 | X141: 0 | Z141: 2912 | AA141: Josh Reddick | AB141: =IF(AQ141<>0,VLOOKUP(AQ141,Info!A:B,2,FALSE),"") -> HOU | AC141: redjo | AD141: 0.09259259259 | AE141: 0.5925925926 | AF141: 0.5740740741 | AG141: 0.04938271605 | AH141: 0.2469135802 | AI141: 0.03086419753 | AJ141: 1.111111111 | AK141: 0.02469135802 | AL141: 0.03086419753 | AM141: 0.5432098765 | AO141: 2912 | AP141: Josh Reddick | AQ141: Houston Astros | AR141: redjo | AS141: 162 | AT141: 15 | AU141: 96 | AV141: 93 | AW141: 8 | AX141: 40 | AY141: 5 | AZ141: 180 | BA141: 4 | BB141: 5 | BC141: 88
A142: 4194 | B142: Marwin Gonzalez | C142: HOU | D142: Buy | O142: 0 | P142: 0 | Q142: 0 | R142: 0 | S142: 0 | T142: 0 | U142: 0 | V142: 0 | W142: 0 | X142: 0 | Z142: 4194 | AA142: Marwin Gonzalez | AB142: =IF(AQ142<>0,VLOOKUP(AQ142,Info!A:B,2,FALSE),"") -> HOU | AC142: gonma | AD142: 0.1666666667 | AE142: 0.6543209877 | AF142: 0.5 | AG142: 0.06172839506 | AH142: 0.2530864198 | AI142: 0.006172839506 | AJ142: 1 | AK142: 0.02469135802 | AL142: 0.06172839506 | AM142: 0.7592592593 | AO142: 4194 | AP142: Marwin Gonzalez | AQ142: Houston Astros | AR142: gonma | AS142: 162 | AT142: 27 | AU142: 106 | AV142: 81 | AW142: 10 | AX142: 41 | AY142: 1 | AZ142: 162 | BA142: 4 | BB142: 10 | BC142: 123
A143: 4009 | B143: Tyler White | C143: HOU | D143: Buy | O143: 0 | P143: 0 | Q143: 0 | R143: 0 | S143: 0 | T143: 0 | U143: 0 | V143: 0 | W143: 0 | X143: 0 | Z143: 4009 | AA143: Tyler White | AB143: =IF(AQ143<>0,VLOOKUP(AQ143,Info!A:B,2,FALSE),"") -> HOU | AC143: whity | AD143: 0.06790123457 | AE143: 0.3086419753 | AF143: 0.3086419753 | AG143: 0.01851851852 | AH143: 0.1913580247 | AI143: 0.006172839506 | AJ143: 0.6172839506 | AK143: 0.01234567901 | AL143: 0.03086419753 | AM143: 0.7345679012 | AO143: 4009 | AP143: Tyler White | AQ143: Houston Astros | AR143: whity | AS143: 162 | AT143: 11 | AU143: 50 | AV143: 50 | AW143: 3 | AX143: 31 | AY143: 1 | AZ143: 100 | BA143: 2 | BB143: 5 | BC143: 119
A144: 4190 | B144: Yuli Gurriel | C144: HOU | D144: Buy | O144: 0 | P144: 0 | Q144: 0 | R144: 0 | S144: 0 | T144: 0 | U144: 0 | V144: 0 | W144: 0 | X144: 0 | Z144: 4190 | AA144: Yuli Gurriel | AB144: =IF(AQ144<>0,VLOOKUP(AQ144,Info!A:B,2,FALSE),"") -> HOU | AC144: guryu | AD144: 0.1234567901 | AE144: 0.5185185185 | AF144: 0.4814814815 | AG144: 0.02469135802 | AH144: 0.3086419753 | AI144: 0.01851851852 | AJ144: 1.154320988 | AK144: 0.01851851852 | AL144: 0.04938271605 | AM144: 0.462962963 | AO144: 4190 | AP144: Yuli Gurriel | AQ144: Houston Astros | AR144: guryu | AS144: 162 | AT144: 20 | AU144: 84 | AV144: 78 | AW144: 4 | AX144: 50 | AY144: 3 | AZ144: 187 | BA144: 3 | BB144: 8 | BC144: 75
A145: 2637 | B145: Alcides Escobar | C145: KAN | D145: Buy | O145: 0 | P145: 0 | Q145: 0 | R145: 0 | S145: 0 | T145: 0 | U145: 0 | V145: 0 | W145: 0 | X145: 0 | Z145: 2637 | AA145: Alcides Escobar | AB145: =IF(AQ145<>0,VLOOKUP(AQ145,Info!A:B,2,FALSE),"") -> KAN | AC145: escal | AD145: 0.06172839506 | AE145: 0.3395061728 | AF145: 0.450617284 | AG145: 0.02469135802 | AH145: 0.2222222222 | AI145: 0.03086419753 | AJ145: 0.9382716049 | AK145: 0.04320987654 | AL145: 0.09259259259 | AM145: 0.6419753086 | AO145: 2637 | AP145: Alcides Escobar | AQ145: Kansas City Royals | AR145: escal | AS145: 162 | AT145: 10 | AU145: 55 | AV145: 73 | AW145: 4 | AX145: 36 | AY145: 5 | AZ145: 152 | BA145: 7 | BB145: 15 | BC145: 104
A146: 2145 | B146: Alex Gordon | C146: KAN | D146: Buy | O146: 0 | P146: 0 | Q146: 0 | R146: 0 | S146: 0 | T146: 0 | U146: 0 | V146: 0 | W146: 0 | X146: 0 | Z146: 2145 | AA146: Alex Gordon | AB146: =IF(AQ146<>0,VLOOKUP(AQ146,Info!A:B,2,FALSE),"") -> KAN | AC146: goral | AD146: 0.06172839506 | AE146: 0.3086419753 | AF146: 0.3703703704 | AG146: 0.04938271605 | AH146: 0.1419753086 | AI146: 0.01851851852 | AJ146: 0.6851851852 | AK146: 0.03086419753 | AL146: 0.03086419753 | AM146: 0.8641975309 | AO146: 2145 | AP146: Alex Gordon | AQ146: Kansas City Royals | AR146: goral | AS146: 162 | AT146: 10 | AU146: 50 | AV146: 60 | AW146: 8 | AX146: 23 | AY146: 3 | AZ146: 111 | BA146: 5 | BB146: 5 | BC146: 140
A147: 3830 | B147: Billy Burns | C147: KAN | D147: Buy | O147: 0 | P147: 0 | Q147: 0 | R147: 0 | S147: 0 | T147: 0 | U147: 0 | V147: 0 | W147: 0 | X147: 0 | Z147: 3830 | AA147: Billy Burns | AB147: =IF(AQ147<>0,VLOOKUP(AQ147,Info!A:B,2,FALSE),"") -> KAN | AC147: burbi | AD147: 0.06172839506 | AE147: 0.3086419753 | AF147: 0.4074074074 | AG147: 0.1728395062 | AH147: 0.1234567901 | AI147: 0.04320987654 | AJ147: 0.7530864198 | AK147: 0.05555555556 | AL147: 0.03086419753 | AM147: 0.462962963 | AO147: 3830 | AP147: Billy Burns | AQ147: Kansas City Royals | AR147: burbi | AS147: 162 | AT147: 10 | AU147: 50 | AV147: 66 | AW147: 28 | AX147: 20 | AY147: 7 | AZ147: 122 | BA147: 9 | BB147: 5 | BC147: 75
A148: 3153 | B148: Brandon Moss | C148: KAN | D148: Buy | O148: 0 | P148: 0 | Q148: 0 | R148: 0 | S148: 0 | T148: 0 | U148: 0 | V148: 0 | W148: 0 | X148: 0 | Z148: 3153 | AA148: Brandon Moss | AB148: =IF(AQ148<>0,VLOOKUP(AQ148,Info!A:B,2,FALSE),"") -> KAN | AC148: mosbr | AD148: 0.1851851852 | AE148: 0.4259259259 | AF148: 0.3456790123 | AG148: 0.01851851852 | AH148: 0.1234567901 | AI148: 0.006172839506 | AJ148: 0.6358024691 | AK148: 0.01234567901 | AL148: 0.03086419753 | AM148: 1.080246914 | AO148: 3153 | AP148: Brandon Moss | AQ148: Kansas City Royals | AR148: mosbr | AS148: 162 | AT148: 30 | AU148: 69 | AV148: 56 | AW148: 3 | AX148: 20 | AY148: 1 | AZ148: 103 | BA148: 2 | BB148: 5 | BC148: 175
A149: 2867 | B149: Eric Hosmer | C149: KAN | D149: Buy | O149: 0 | P149: 0 | Q149: 0 | R149: 0 | S149: 0 | T149: 0 | U149: 0 | V149: 0 | W149: 0 | X149: 0 | Z149: 2867 | AA149: Eric Hosmer | AB149: =IF(AQ149<>0,VLOOKUP(AQ149,Info!A:B,2,FALSE),"") -> KAN | AC149: hoser | AD149: 0.1604938272 | AE149: 0.5925925926 | AF149: 0.6111111111 | AG149: 0.03703703704 | AH149: 0.1913580247 | AI149: 0.006172839506 | AJ149: 1.191358025 | AK149: 0.01234567901 | AL149: 0.03086419753 | AM149: 0.6481481481 | AO149: 2867 | AP149: Eric Hosmer | AQ149: Kansas City Royals | AR149: hoser | AS149: 162 | AT149: 26 | AU149: 96 | AV149: 99 | AW149: 6 | AX149: 31 | AY149: 1 | AZ149: 193 | BA149: 2 | BB149: 5 | BC149: 105
A150: 3790 | B150: Jorge Soler | C150: KAN | D150: Buy | O150: 0 | P150: 0 | Q150: 0 | R150: 0 | S150: 0 | T150: 0 | U150: 0 | V150: 0 | W150: 0 | X150: 0 | Z150: 3790 | AA150: Jorge Soler | AB150: =IF(AQ150<>0,VLOOKUP(AQ150,Info!A:B,2,FALSE),"") -> KAN | AC150: soljo | AD150: 0.06172839506 | AE150: 0.3086419753 | AF150: 0.3086419753 | AG150: 0.006172839506 | AH150: 0.1481481481 | AI150: 0.006172839506 | AJ150: 0.6172839506 | AK150: 0.01234567901 | AL150: 0.03086419753 | AM150: 1.030864198 | AO150: 3790 | AP150: Jorge Soler | AQ150: Kansas City Royals | AR150: soljo | AS150: 162 | AT150: 10 | AU150: 50 | AV150: 50 | AW150: 1 | AX150: 24 | AY150: 1 | AZ150: 100 | BA150: 2 | BB150: 5 | BC150: 167
A151: 3255 | B151: Lorenzo Cain | C151: KAN | D151: Buy | O151: 0 | P151: 0 | Q151: 0 | R151: 0 | S151: 0 | T151: 0 | U151: 0 | V151: 0 | W151: 0 | X151: 0 | Z151: 3255 | AA151: Lorenzo Cain | AB151: =IF(AQ151<>0,VLOOKUP(AQ151,Info!A:B,2,FALSE),"") -> KAN | AC151: cailo | AD151: 0.1111111111 | AE151: 0.3580246914 | AF151: 0.5740740741 | AG151: 0.1666666667 | AH151: 0.1790123457 | AI151: 0.03703703704 | AJ151: 1.154320988 | AK151: 0.01851851852 | AL151: 0.04938271605 | AM151: 0.6419753086 | AO151: 3255 | AP151: Lorenzo Cain | AQ151: Kansas City Royals | AR151: cailo | AS151: 162 | AT151: 18 | AU151: 58 | AV151: 93 | AW151: 27 | AX151: 29 | AY151: 6 | AZ151: 187 | BA151: 3 | BB151: 8 | BC151: 104
A152: 2164 | B152: Melky Cabrera | C152: KAN | D152: Buy | O152: 0 | P152: 0 | Q152: 0 | R152: 0 | S152: 0 | T152: 0 | U152: 0 | V152: 0 | W152: 0 | X152: 0 | Z152: 2164 | AA152: Melky Cabrera | AB152: =IF(AQ152<>0,VLOOKUP(AQ152,Info!A:B,2,FALSE),"") -> KAN | AC152: cabme | AD152: 0.1111111111 | AE152: 0.5555555556 | AF152: 0.5 | AG152: 0.01234567901 | AH152: 0.1975308642 | AI152: 0.01851851852 | AJ152: 1.154320988 | AK152: 0.01851851852 | AL152: 0.03086419753 | AM152: 0.475308642 | AO152: 2164 | AP152: Melky Cabrera | AQ152: Kansas City Royals | AR152: cabme | AS152: 162 | AT152: 18 | AU152: 90 | AV152: 81 | AW152: 2 | AX152: 32 | AY152: 3 | AZ152: 187 | BA152: 3 | BB152: 5 | BC152: 77
A153: 3061 | B153: Mike Moustakas | C153: KAN | D153: Buy | O153: 0 | P153: 0 | Q153: 0 | R153: 0 | S153: 0 | T153: 0 | U153: 0 | V153: 0 | W153: 0 | X153: 0 | Z153: 3061 | AA153: Mike Moustakas | AB153: =IF(AQ153<>0,VLOOKUP(AQ153,Info!A:B,2,FALSE),"") -> KAN | AC153: moumi | AD153: 0.2592592593 | AE153: 0.5740740741 | AF153: 0.512345679 | AG153: 0.006172839506 | AH153: 0.1728395062 | AI153: 0.006172839506 | AJ153: 1.024691358 | AK153: 0.01234567901 | AL153: 0.08641975309 | AM153: 0.6419753086 | AO153: 3061 | AP153: Mike Moustakas | AQ153: Kansas City Royals | AR153: moumi | AS153: 162 | AT153: 42 | AU153: 93 | AV153: 83 | AW153: 1 | AX153: 28 | AY153: 1 | AZ153: 166 | BA153: 2 | BB153: 14 | BC153: 104
A154: 3254 | B154: Salvador Perez | C154: KAN | D154: Buy | O154: 0 | P154: 0 | Q154: 0 | R154: 0 | S154: 0 | T154: 0 | U154: 0 | V154: 0 | W154: 0 | X154: 0 | Z154: 3254 | AA154: Salvador Perez | AB154: =IF(AQ154<>0,VLOOKUP(AQ154,Info!A:B,2,FALSE),"") -> KAN | AC154: persa | AD154: 0.2160493827 | AE154: 0.6234567901 | AF154: 0.450617284 | AG154: 0.01234567901 | AH154: 0.1851851852 | AI154: 0.01234567901 | AJ154: 0.9814814815 | AK154: 0.01234567901 | AL154: 0.04320987654 | AM154: 0.7345679012 | AO154: 3254 | AP154: Salvador Perez | AQ154: Kansas City Royals | AR154: persa | AS154: 162 | AT154: 35 | AU154: 101 | AV154: 73 | AW154: 2 | AX154: 30 | AY154: 2 | AZ154: 159 | BA154: 2 | BB154: 7 | BC154: 119
A155: 4195 | B155: Whit Merrifield | C155: KAN | D155: Buy | O155: 0 | P155: 0 | Q155: 0 | R155: 0 | S155: 0 | T155: 0 | U155: 0 | V155: 0 | W155: 0 | X155: 0 | Z155: 4195 | AA155: Whit Merrifield | AB155: =IF(AQ155<>0,VLOOKUP(AQ155,Info!A:B,2,FALSE),"") -> KAN | AC155: merrw | AD155: 0.1358024691 | AE155: 0.5432098765 | AF155: 0.5555555556 | AG155: 0.2345679012 | AH155: 0.2222222222 | AI155: 0.04320987654 | AJ155: 1.166666667 | AK155: 0.05555555556 | AL155: 0.08641975309 | AM155: 0.6111111111 | AO155: 4195 | AP155: Whit Merrifield | AQ155: Kansas City Royals | AR155: merrw | AS155: 162 | AT155: 22 | AU155: 88 | AV155: 90 | AW155: 38 | AX155: 36 | AY155: 7 | AZ155: 189 | BA155: 9 | BB155: 14 | BC155: 99
A156: 135 | B156: Albert Pujols | C156: LAA | D156: Buy | O156: 0 | P156: 0 | Q156: 0 | R156: 0 | S156: 0 | T156: 0 | U156: 0 | V156: 0 | W156: 0 | X156: 0 | Z156: 135 | AA156: Albert Pujols | AB156: =IF(AQ156<>0,VLOOKUP(AQ156,Info!A:B,2,FALSE),"") -> LAA | AC156: pujal | AD156: 0.1543209877 | AE156: 0.6790123457 | AF156: 0.3580246914 | AG156: 0.02469135802 | AH156: 0.1234567901 | AI156: 0.006172839506 | AJ156: 0.962962963 | AK156: 0.01234567901 | AL156: 0.03086419753 | AM156: 0.6234567901 | AO156: 135 | AP156: Albert Pujols | AQ156: Los Angeles Angels | AR156: pujal | AS156: 162 | AT156: 25 | AU156: 110 | AV156: 58 | AW156: 4 | AX156: 20 | AY156: 1 | AZ156: 156 | BA156: 2 | BB156: 5 | BC156: 101
A157: 3256 | B157: Andrelton Simmons | C157: LAA | D157: Buy | O157: 0 | P157: 0 | Q157: 0 | R157: 0 | S157: 0 | T157: 0 | U157: 0 | V157: 0 | W157: 0 | X157: 0 | Z157: 3256 | AA157: Andrelton Simmons | AB157: =IF(AQ157<>0,VLOOKUP(AQ157,Info!A:B,2,FALSE),"") -> LAA | AC157: siman | AD157: 0.09259259259 | AE157: 0.4444444444 | AF157: 0.5 | AG157: 0.1234567901 | AH157: 0.2407407407 | AI157: 0.01851851852 | AJ157: 1.037037037 | AK157: 0.04320987654 | AL157: 0.09259259259 | AM157: 0.462962963 | AO157: 3256 | AP157: Andrelton Simmons | AQ157: Los Angeles Angels | AR157: siman | AS157: 162 | AT157: 15 | AU157: 72 | AV157: 81 | AW157: 20 | AX157: 39 | AY157: 3 | AZ157: 168 | BA157: 7 | BB157: 15 | BC157: 75
A158: 2896 | B158: Ben Revere | C158: LAA | D158: Buy | O158: 0 | P158: 0 | Q158: 0 | R158: 0 | S158: 0 | T158: 0 | U158: 0 | V158: 0 | W158: 0 | X158: 0 | Z158: 2896 | AA158: Ben Revere | AB158: =IF(AQ158<>0,VLOOKUP(AQ158,Info!A:B,2,FALSE),"") -> LAA | AC158: revbe | AD158: 0.06172839506 | AE158: 0.3086419753 | AF158: 0.3456790123 | AG158: 0.2037037037 | AH158: 0.1234567901 | AI158: 0.01851851852 | AJ158: 0.7283950617 | AK158: 0.05555555556 | AL158: 0.03086419753 | AM158: 0.462962963 | AO158: 2896 | AP158: Ben Revere | AQ158: Los Angeles Angels | AR158: revbe | AS158: 162 | AT158: 10 | AU158: 50 | AV158: 56 | AW158: 33 | AX158: 20 | AY158: 3 | AZ158: 118 | BA158: 9 | BB158: 5 | BC158: 75
A159: 1766 | B159: Brandon Phillips | C159: LAA | D159: Buy | O159: 0 | P159: 0 | Q159: 0 | R159: 0 | S159: 0 | T159: 0 | U159: 0 | V159: 0 | W159: 0 | X159: 0 | Z159: 1766 | AA159: Brandon Phillips | AB159: =IF(AQ159<>0,VLOOKUP(AQ159,Info!A:B,2,FALSE),"") -> LAA | AC159: phibr | AD159: 0.0987654321 | AE159: 0.4197530864 | AF159: 0.5617283951 | AG159: 0.08024691358 | AH159: 0.2407407407 | AI159: 0.01234567901 | AJ159: 1.141975309 | AK159: 0.05555555556 | AL159: 0.04320987654 | AM159: 0.512345679 | AO159: 1766 | AP159: Brandon Phillips | AQ159: Los Angeles Angels | AR159: phibr | AS159: 162 | AT159: 16 | AU159: 68 | AV159: 91 | AW159: 13 | AX159: 39 | AY159: 2 | AZ159: 185 | BA159: 9 | BB159: 7 | BC159: 83
A160: 3568 | B160: CJ Cron | C160: LAA | D160: Buy | O160: 0 | P160: 0 | Q160: 0 | R160: 0 | S160: 0 | T160: 0 | U160: 0 | V160: 0 | W160: 0 | X160: 0 | Z160: 3568 | AA160: CJ Cron | AB160: =IF(AQ160<>0,VLOOKUP(AQ160,Info!A:B,2,FALSE),"") -> LAA | AC160: crocj | AD160: 0.1604938272 | AE160: 0.5555555556 | AF160: 0.3888888889 | AG160: 0.03086419753 | AH160: 0.1419753086 | AI160: 0.01234567901 | AJ160: 0.8333333333 | AK160: 0.02469135802 | AL160: 0.04320987654 | AM160: 0.9814814815 | AO160: 3568 | AP160: CJ Cron | AQ160: Los Angeles Angels | AR160: crocj | AS160: 162 | AT160: 26 | AU160: 90 | AV160: 63 | AW160: 5 | AX160: 23 | AY160: 2 | AZ160: 135 | BA160: 4 | BB160: 7 | BC160: 159
A161: 2676 | B161: Cliff Pennington | C161: LAA | D161: Buy | O161: 0 | P161: 0 | Q161: 0 | R161: 0 | S161: 0 | T161: 0 | U161: 0 | V161: 0 | W161: 0 | X161: 0 | Z161: 2676 | AA161: Cliff Pennington | AB161: =IF(AQ161<>0,VLOOKUP(AQ161,Info!A:B,2,FALSE),"") -> LAA | AC161: pencl | AD161: 0.06172839506 | AE161: 0.3086419753 | AF161: 0.3086419753 | AG161: 0.03703703704 | AH161: 0.1234567901 | AI161: 0.006172839506 | AJ161: 0.6172839506 | AK161: 0.01234567901 | AL161: 0.06172839506 | AM161: 0.6728395062 | AO161: 2676 | AP161: Cliff Pennington | AQ161: Los Angeles Angels | AR161: pencl | AS161: 162 | AT161: 10 | AU161: 50 | AV161: 50 | AW161: 6 | AX161: 20 | AY161: 1 | AZ161: 100 | BA161: 2 | BB161: 10 | BC161: 109
A162: 4197 | B162: Don Baylor | C162: LAA | D162: Buy | O162: 0 | P162: 0 | Q162: 0 | R162: 0 | S162: 0 | T162: 0 | U162: 0 | V162: 0 | W162: 0 | X162: 0 | Z162: 4197 | AA162: Don Baylor | AB162: =IF(AQ162<>0,VLOOKUP(AQ162,Info!A:B,2,FALSE),"") -> LAA | AC162: baydo | AD162: 1 | AE162: 1 | AF162: 1 | AG162: 1 | AH162: 1 | AI162: 1 | AJ162: 1 | AK162: 1 | AL162: 1 | AM162: 1 | AO162: 4197 | AP162: Don Baylor | AQ162: Los Angeles Angels | AR162: baydo | AS162: 1 | AT162: 1 | AU162: 1 | AV162: 1 | AW162: 1 | AX162: 1 | AY162: 1 | AZ162: 1 | BA162: 1 | BB162: 1 | BC162: 1
A163: 3063 | B163: Dustin Ackley | C163: LAA | D163: Buy | O163: 0 | P163: 0 | Q163: 0 | R163: 0 | S163: 0 | T163: 0 | U163: 0 | V163: 0 | W163: 0 | X163: 0 | Z163: 3063 | AA163: Dustin Ackley | AB163: =IF(AQ163<>0,VLOOKUP(AQ163,Info!A:B,2,FALSE),"") -> LAA | AC163: ackdu | AD163: 0.06172839506 | AE163: 0.3086419753 | AF163: 0.3086419753 | AG163: 0.006172839506 | AH163: 0.1234567901 | AI163: 0.006172839506 | AJ163: 0.6172839506 | AK163: 0.01234567901 | AL163: 0.03086419753 | AM163: 0.462962963 | AO163: 3063 | AP163: Dustin Ackley | AQ163: Los Angeles Angels | AR163: ackdu | AS163: 162 | AT163: 10 | AU163: 50 | AV163: 50 | AW163: 1 | AX163: 20 | AY163: 1 | AZ163: 100 | BA163: 2 | BB163: 5 | BC163: 75
A164: 3565 | B164: Eric Young Jr. | C164: LAA | D164: Buy | O164: 0 | P164: 0 | Q164: 0 | R164: 0 | S164: 0 | T164: 0 | U164: 0 | V164: 0 | W164: 0 | X164: 0 | Z164: 3565 | AA164: Eric Young Jr. | AB164: =IF(AQ164<>0,VLOOKUP(AQ164,Info!A:B,2,FALSE),"") -> LAA | AC164: youer | AD164: 0.08641975309 | AE164: 0.3333333333 | AF164: 0.5 | AG164: 0.2530864198 | AH164: 0.1234567901 | AI164: 0.006172839506 | AJ164: 0.6172839506 | AK164: 0.06790123457 | AL164: 0.03086419753 | AM164: 0.6913580247 | AO164: 3565 | AP164: Eric Young Jr. | AQ164: Los Angeles Angels | AR164: youer | AS164: 162 | AT164: 14 | AU164: 54 | AV164: 81 | AW164: 41 | AX164: 20 | AY164: 1 | AZ164: 100 | BA164: 11 | BB164: 5 | BC164: 112
A165: 2040 | B165: Justin Upton | C165: LAA | D165: Buy | O165: 0 | P165: 0 | Q165: 0 | R165: 0 | S165: 0 | T165: 0 | U165: 0 | V165: 0 | W165: 0 | X165: 0 | Z165: 2040 | AA165: Justin Upton | AB165: =IF(AQ165<>0,VLOOKUP(AQ165,Info!A:B,2,FALSE),"") -> LAA | AC165: uptju | AD165: 0.2345679012 | AE165: 0.7160493827 | AF165: 0.6604938272 | AG165: 0.09259259259 | AH165: 0.2962962963 | AI165: 0.006172839506 | AJ165: 1 | AK165: 0.03703703704 | AL165: 0.05555555556 | AM165: 1.185185185 | AO165: 2040 | AP165: Justin Upton | AQ165: Los Angeles Angels | AR165: uptju | AS165: 162 | AT165: 38 | AU165: 116 | AV165: 107 | AW165: 15 | AX165: 48 | AY165: 1 | AZ165: 162 | BA165: 6 | BB165: 9 | BC165: 192
A166: 3567 | B166: Kole Calhoun | C166: LAA | D166: Buy | O166: 0 | P166: 0 | Q166: 0 | R166: 0 | S166: 0 | T166: 0 | U166: 0 | V166: 0 | W166: 0 | X166: 0 | Z166: 3567 | AA166: Kole Calhoun | AB166: =IF(AQ166<>0,VLOOKUP(AQ166,Info!A:B,2,FALSE),"") -> LAA | AC166: calko | AD166: 0.1234567901 | AE166: 0.4567901235 | AF166: 0.4938271605 | AG166: 0.03703703704 | AH166: 0.1481481481 | AI166: 0.01851851852 | AJ166: 0.8950617284 | AK166: 0.01234567901 | AL166: 0.03086419753 | AM166: 0.8765432099 | AO166: 3567 | AP166: Kole Calhoun | AQ166: Los Angeles Angels | AR166: calko | AS166: 162 | AT166: 20 | AU166: 74 | AV166: 80 | AW166: 6 | AX166: 24 | AY166: 3 | AZ166: 145 | BA166: 2 | BB166: 5 | BC166: 142
A167: 3825 | B167: Luis Valbuena | C167: LAA | D167: Buy | O167: 0 | P167: 0 | Q167: 0 | R167: 0 | S167: 0 | T167: 0 | U167: 0 | V167: 0 | W167: 0 | X167: 0 | Z167: 3825 | AA167: Luis Valbuena | AB167: =IF(AQ167<>0,VLOOKUP(AQ167,Info!A:B,2,FALSE),"") -> LAA | AC167: vallu | AD167: 0.1913580247 | AE167: 0.5555555556 | AF167: 0.3580246914 | AG167: 0.006172839506 | AH167: 0.1296296296 | AI167: 0.006172839506 | AJ167: 0.6172839506 | AK167: 0.01851851852 | AL167: 0.06172839506 | AM167: 0.9012345679 | AO167: 3825 | AP167: Luis Valbuena | AQ167: Los Angeles Angels | AR167: vallu | AS167: 162 | AT167: 31 | AU167: 90 | AV167: 58 | AW167: 1 | AX167: 21 | AY167: 1 | AZ167: 100 | BA167: 3 | BB167: 10 | BC167: 146
A168: 3062 | B168: Mike Trout | C168: LAA | D168: Buy | O168: 0 | P168: 0 | Q168: 0 | R168: 0 | S168: 0 | T168: 0 | U168: 0 | V168: 0 | W168: 0 | X168: 0 | Z168: 3062 | AA168: Mike Trout | AB168: =IF(AQ168<>0,VLOOKUP(AQ168,Info!A:B,2,FALSE),"") -> LAA | AC168: tromi | AD168: 0.2901234568 | AE168: 0.6358024691 | AF168: 0.7407407407 | AG168: 0.1975308642 | AH168: 0.2222222222 | AI168: 0.03086419753 | AJ168: 1.080246914 | AK168: 0.03703703704 | AL168: 0.03086419753 | AM168: 0.7901234568 | AO168: 3062 | AP168: Mike Trout | AQ168: Los Angeles Angels | AR168: tromi | AS168: 162 | AT168: 47 | AU168: 103 | AV168: 120 | AW168: 32 | AX168: 36 | AY168: 5 | AZ168: 175 | BA168: 6 | BB168: 5 | BC168: 128
A169: 2142 | B169: Yunel Escobar | C169: LAA | D169: Buy | O169: 0 | P169: 0 | Q169: 0 | R169: 0 | S169: 0 | T169: 0 | U169: 0 | V169: 0 | W169: 0 | X169: 0 | Z169: 2142 | AA169: Yunel Escobar | AB169: =IF(AQ169<>0,VLOOKUP(AQ169,Info!A:B,2,FALSE),"") -> LAA | AC169: escyu | AD169: 0.08024691358 | AE169: 0.3456790123 | AF169: 0.4814814815 | AG169: 0.01234567901 | AH169: 0.2222222222 | AI169: 0.01234567901 | AJ169: 1.080246914 | AK169: 0.04938271605 | AL169: 0.1358024691 | AM169: 0.5802469136 | AO169: 2142 | AP169: Yunel Escobar | AQ169: Los Angeles Angels | AR169: escyu | AS169: 162 | AT169: 13 | AU169: 56 | AV169: 78 | AW169: 2 | AX169: 36 | AY169: 2 | AZ169: 175 | BA169: 8 | BB169: 22 | BC169: 94
A170: 1780 | B170: Adrian Gonzalez | C170: LAD | D170: Buy | O170: 0 | P170: 0 | Q170: 0 | R170: 0 | S170: 0 | T170: 0 | U170: 0 | V170: 0 | W170: 0 | X170: 0 | Z170: 1780 | AA170: Adrian Gonzalez | AB170: =IF(AQ170<>0,VLOOKUP(AQ170,Info!A:B,2,FALSE),"") -> LAD | AC170: gonad | AD170: 0.06172839506 | AE170: 0.4320987654 | AF170: 0.3086419753 | AG170: 0.006172839506 | AH170: 0.2407407407 | AI170: 0.006172839506 | AJ170: 0.7777777778 | AK170: 0.01851851852 | AL170: 0.03086419753 | AM170: 0.5987654321 | AO170: 1780 | AP170: Adrian Gonzalez | AQ170: Los Angeles Dodgers | AR170: gonad | AS170: 162 | AT170: 10 | AU170: 70 | AV170: 50 | AW170: 1 | AX170: 39 | AY170: 1 | AZ170: 126 | BA170: 3 | BB170: 5 | BC170: 97
A171: 1814 | B171: Andre Ethier | C171: LAD | D171: Buy | O171: 0 | P171: 0 | Q171: 0 | R171: 0 | S171: 0 | T171: 0 | U171: 0 | V171: 0 | W171: 0 | X171: 0 | Z171: 1814 | AA171: Andre Ethier | AB171: =IF(AQ171<>0,VLOOKUP(AQ171,Info!A:B,2,FALSE),"") -> LAD | AC171: ethan | AD171: 0.0987654321 | AE171: 0.3765432099 | AF171: 0.3827160494 | AG171: 0.01851851852 | AH171: 0.1419753086 | AI171: 0.04938271605 | AJ171: 0.8209876543 | AK171: 0.02469135802 | AL171: 0.03086419753 | AM171: 0.5308641975 | AO171: 1814 | AP171: Andre Ethier | AQ171: Los Angeles Dodgers | AR171: ethan | AS171: 162 | AT171: 16 | AU171: 61 | AV171: 62 | AW171: 3 | AX171: 23 | AY171: 8 | AZ171: 133 | BA171: 4 | BB171: 5 | BC171: 86
A172: 1518 | B172: Chase Utley | C172: LAD | D172: Buy | O172: 0 | P172: 0 | Q172: 0 | R172: 0 | S172: 0 | T172: 0 | U172: 0 | V172: 0 | W172: 0 | X172: 0 | Z172: 1518 | AA172: Chase Utley | AB172: =IF(AQ172<>0,VLOOKUP(AQ172,Info!A:B,2,FALSE),"") -> LAD | AC172: utlch | AD172: 0.06172839506 | AE172: 0.3086419753 | AF172: 0.3395061728 | AG172: 0.04938271605 | AH172: 0.1728395062 | AI172: 0.03086419753 | AJ172: 0.6172839506 | AK172: 0.01234567901 | AL172: 0.04320987654 | AM172: 0.462962963 | AO172: 1518 | AP172: Chase Utley | AQ172: Los Angeles Dodgers | AR172: utlch | AS172: 162 | AT172: 10 | AU172: 50 | AV172: 55 | AW172: 8 | AX172: 28 | AY172: 5 | AZ172: 100 | BA172: 2 | BB172: 7 | BC172: 75
A173: 4196 | B173: Chris Taylor | C173: LAD | D173: Buy | O173: 0 | P173: 0 | Q173: 0 | R173: 0 | S173: 0 | T173: 0 | U173: 0 | V173: 0 | W173: 0 | X173: 0 | Z173: 4196 | AA173: Chris Taylor | AB173: =IF(AQ173<>0,VLOOKUP(AQ173,Info!A:B,2,FALSE),"") -> LAD | AC173: taych | AD173: 0.1543209877 | AE173: 0.512345679 | AF173: 0.6234567901 | AG173: 0.1172839506 | AH173: 0.2469135802 | AI173: 0.03703703704 | AJ173: 1.055555556 | AK173: 0.03086419753 | AL173: 0.06790123457 | AM173: 1 | AO173: 4196 | AP173: Chris Taylor | AQ173: Los Angeles Dodgers | AR173: taych | AS173: 162 | AT173: 25 | AU173: 83 | AV173: 101 | AW173: 19 | AX173: 40 | AY173: 6 | AZ173: 171 | BA173: 5 | BB173: 11 | BC173: 162
A174: 4181 | B174: Cody Bellinger | C174: LAD | D174: Buy | O174: 0 | P174: 0 | Q174: 0 | R174: 0 | S174: 0 | T174: 0 | U174: 0 | V174: 0 | W174: 0 | X174: 0 | Z174: 4181 | AA174: Cody Bellinger | AB174: =IF(AQ174<>0,VLOOKUP(AQ174,Info!A:B,2,FALSE),"") -> LAD | AC174: belco | AD174: 0.2962962963 | AE174: 0.7283950617 | AF174: 0.6666666667 | AG174: 0.08641975309 | AH174: 0.1975308642 | AI174: 0.03086419753 | AJ174: 0.9814814815 | AK174: 0.02469135802 | AL174: 0.03086419753 | AM174: 1.12962963 | AO174: 4181 | AP174: Cody Bellinger | AQ174: Los Angeles Dodgers | AR174: belco | AS174: 162 | AT174: 48 | AU174: 118 | AV174: 108 | AW174: 14 | AX174: 32 | AY174: 5 | AZ174: 159 | BA174: 4 | BB174: 5 | BC174: 183
A175: 4001 | B175: Corey Seager | C175: LAD | D175: Buy | O175: 0 | P175: 0 | Q175: 0 | R175: 0 | S175: 0 | T175: 0 | U175: 0 | V175: 0 | W175: 0 | X175: 0 | Z175: 4001 | AA175: Corey Seager | AB175: =IF(AQ175<>0,VLOOKUP(AQ175,Info!A:B,2,FALSE),"") -> LAD | AC175: seaco | AD175: 0.1481481481 | AE175: 0.549382716 | AF175: 0.5987654321 | AG175: 0.03703703704 | AH175: 0.2407407407 | AI175: 0.01234567901 | AJ175: 1.104938272 | AK175: 0.01851851852 | AL175: 0.09259259259 | AM175: 0.9012345679 | AO175: 4001 | AP175: Corey Seager | AQ175: Los Angeles Dodgers | AR175: seaco | AS175: 162 | AT175: 24 | AU175: 89 | AV175: 97 | AW175: 6 | AX175: 39 | AY175: 2 | AZ175: 179 | BA175: 3 | BB175: 15 | BC175: 146
A176: 1769 | B176: Curtis Granderson | C176: LAD | D176: Buy | O176: 0 | P176: 0 | Q176: 0 | R176: 0 | S176: 0 | T176: 0 | U176: 0 | V176: 0 | W176: 0 | X176: 0 | Z176: 1769 | AA176: Curtis Granderson | AB176: =IF(AQ176<>0,VLOOKUP(AQ176,Info!A:B,2,FALSE),"") -> LAD | AC176: gracu | AD176: 0.1728395062 | AE176: 0.4197530864 | AF176: 0.5 | AG176: 0.04320987654 | AH176: 0.1604938272 | AI176: 0.02469135802 | AJ176: 0.6296296296 | AK176: 0.01851851852 | AL176: 0.03086419753 | AM176: 0.8518518519 | AO176: 1769 | AP176: Curtis Granderson | AQ176: Los Angeles Dodgers | AR176: gracu | AS176: 162 | AT176: 28 | AU176: 68 | AV176: 81 | AW176: 7 | AX176: 26 | AY176: 4 | AZ176: 102 | BA176: 3 | BB176: 5 | BC176: 138
A177: 2395 | B177: Franklin Gutierrez | C177: LAD | D177: Buy | O177: 0 | P177: 0 | Q177: 0 | R177: 0 | S177: 0 | T177: 0 | U177: 0 | V177: 0 | W177: 0 | X177: 0 | Z177: 2395 | AA177: Franklin Gutierrez | AB177: =IF(AQ177<>0,VLOOKUP(AQ177,Info!A:B,2,FALSE),"") -> LAD | AC177: gutfr | AD177: 0.06172839506 | AE177: 0.3086419753 | AF177: 0.3086419753 | AG177: 0.006172839506 | AH177: 0.1234567901 | AI177: 0.006172839506 | AJ177: 0.6172839506 | AK177: 0.03086419753 | AL177: 0.03086419753 | AM177: 0.475308642 | AO177: 2395 | AP177: Franklin Gutierrez | AQ177: Los Angeles Dodgers | AR177: gutfr | AS177: 162 | AT177: 10 | AU177: 50 | AV177: 50 | AW177: 1 | AX177: 20 | AY177: 1 | AZ177: 100 | BA177: 5 | BB177: 5 | BC177: 77
A178: 2648 | B178: Ike Davis | C178: LAD | D178: Buy | O178: 0 | P178: 0 | Q178: 0 | R178: 0 | S178: 0 | T178: 0 | U178: 0 | V178: 0 | W178: 0 | X178: 0 | Z178: 2648 | AA178: Ike Davis | AB178: =IF(AQ178<>0,VLOOKUP(AQ178,Info!A:B,2,FALSE),"") -> LAD | AC178: davik | AD178: 0.06172839506 | AE178: 0.3086419753 | AF178: 0.3086419753 | AG178: 0.006172839506 | AH178: 0.2407407407 | AI178: 0.006172839506 | AJ178: 0.6975308642 | AK178: 0.01234567901 | AL178: 0.05555555556 | AM178: 0.6172839506 | AO178: 2648 | AP178: Ike Davis | AQ178: Los Angeles Dodgers | AR178: davik | AS178: 162 | AT178: 10 | AU178: 50 | AV178: 50 | AW178: 1 | AX178: 39 | AY178: 1 | AZ178: 113 | BA178: 2 | BB178: 9 | BC178: 100
A179: 3824 | B179: Joc Pederson | C179: LAD | D179: Buy | O179: 0 | P179: 0 | Q179: 0 | R179: 0 | S179: 0 | T179: 0 | U179: 0 | V179: 0 | W179: 0 | X179: 0 | Z179: 3824 | AA179: Joc Pederson | AB179: =IF(AQ179<>0,VLOOKUP(AQ179,Info!A:B,2,FALSE),"") -> LAD | AC179: pedjo | AD179: 0.1111111111 | AE179: 0.3395061728 | AF179: 0.4567901235 | AG179: 0.04320987654 | AH179: 0.1975308642 | AI179: 0.006172839506 | AJ179: 0.6172839506 | AK179: 0.04320987654 | AL179: 0.03086419753 | AM179: 0.6543209877 | AO179: 3824 | AP179: Joc Pederson | AQ179: Los Angeles Dodgers | AR179: pedjo | AS179: 162 | AT179: 18 | AU179: 55 | AV179: 74 | AW179: 7 | AX179: 32 | AY179: 1 | AZ179: 100 | BA179: 7 | BB179: 5 | BC179: 106
A180: 3847 | B180: Justin Turner | C180: LAD | D180: Buy | O180: 0 | P180: 0 | Q180: 0 | R180: 0 | S180: 0 | T180: 0 | U180: 0 | V180: 0 | W180: 0 | X180: 0 | Z180: 3847 | AA180: Justin Turner | AB180: =IF(AQ180<>0,VLOOKUP(AQ180,Info!A:B,2,FALSE),"") -> LAD | AC180: turju | AD180: 0.1728395062 | AE180: 0.5987654321 | AF180: 0.549382716 | AG180: 0.06172839506 | AH180: 0.2407407407 | AI180: 0.006172839506 | AJ180: 1.160493827 | AK180: 0.01234567901 | AL180: 0.06790123457 | AM180: 0.462962963 | AO180: 3847 | AP180: Justin Turner | AQ180: Los Angeles Dodgers | AR180: turju | AS180: 162 | AT180: 28 | AU180: 97 | AV180: 89 | AW180: 10 | AX180: 39 | AY180: 1 | AZ180: 188 | BA180: 2 | BB180: 11 | BC180: 75
A181: 3853 | B181: Logan Forsythe | C181: LAD | D181: Buy | O181: 0 | P181: 0 | Q181: 0 | R181: 0 | S181: 0 | T181: 0 | U181: 0 | V181: 0 | W181: 0 | X181: 0 | Z181: 3853 | AA181: Logan Forsythe | AB181: =IF(AQ181<>0,VLOOKUP(AQ181,Info!A:B,2,FALSE),"") -> LAD | AC181: forla | AD181: 0.06172839506 | AE181: 0.3086419753 | AF181: 0.5 | AG181: 0.03703703704 | AH181: 0.1604938272 | AI181: 0.006172839506 | AJ181: 0.7098765432 | AK181: 0.01851851852 | AL181: 0.03086419753 | AM181: 0.9074074074 | AO181: 3853 | AP181: Logan Forsythe | AQ181: Los Angeles Dodgers | AR181: forla | AS181: 162 | AT181: 10 | AU181: 50 | AV181: 81 | AW181: 6 | AX181: 26 | AY181: 1 | AZ181: 115 | BA181: 3 | BB181: 5 | BC181: 147
A182: 3295 | B182: Yasiel Puig | C182: LAD | D182: Buy | O182: 0 | P182: 0 | Q182: 0 | R182: 0 | S182: 0 | T182: 0 | U182: 0 | V182: 0 | W182: 0 | X182: 0 | Z182: 3295 | AA182: Yasiel Puig | AB182: =IF(AQ182<>0,VLOOKUP(AQ182,Info!A:B,2,FALSE),"") -> LAD | AC182: puiya | AD182: 0.1851851852 | AE182: 0.5185185185 | AF182: 0.487654321 | AG182: 0.0987654321 | AH182: 0.1790123457 | AI182: 0.01851851852 | AJ182: 0.8888888889 | AK182: 0.05555555556 | AL182: 0.03086419753 | AM182: 0.6481481481 | AO182: 3295 | AP182: Yasiel Puig | AQ182: Los Angeles Dodgers | AR182: puiya | AS182: 162 | AT182: 30 | AU182: 84 | AV182: 79 | AW182: 16 | AX182: 29 | AY182: 3 | AZ182: 144 | BA182: 9 | BB182: 5 | BC182: 105
A183: 3794 | B183: Yasmani Grandal | C183: LAD | D183: Buy | O183: 0 | P183: 0 | Q183: 0 | R183: 0 | S183: 0 | T183: 0 | U183: 0 | V183: 0 | W183: 0 | X183: 0 | Z183: 3794 | AA183: Yasmani Grandal | AB183: =IF(AQ183<>0,VLOOKUP(AQ183,Info!A:B,2,FALSE),"") -> LAD | AC183: graya | AD183: 0.1728395062 | AE183: 0.4444444444 | AF183: 0.3827160494 | AG183: 0.006172839506 | AH183: 0.2098765432 | AI183: 0.006172839506 | AJ183: 0.8271604938 | AK183: 0.01234567901 | AL183: 0.05555555556 | AM183: 1.012345679 | AO183: 3794 | AP183: Yasmani Grandal | AQ183: Los Angeles Dodgers | AR183: graya | AS183: 162 | AT183: 28 | AU183: 72 | AV183: 62 | AW183: 1 | AX183: 34 | AY183: 1 | AZ183: 134 | BA183: 2 | BB183: 9 | BC183: 164
A184: 3518 | B184: Christian Yelich | C184: MIA | D184: Buy | O184: 0 | P184: 0 | Q184: 0 | R184: 0 | S184: 0 | T184: 0 | U184: 0 | V184: 0 | W184: 0 | X184: 0 | Z184: 3518 | AA184: Christian Yelich | AB184: =IF(AQ184<>0,VLOOKUP(AQ184,Info!A:B,2,FALSE),"") -> MIA | AC184: yelch | AD184: 0.1172839506 | AE184: 0.5185185185 | AF184: 0.6481481481 | AG184: 0.1049382716 | AH184: 0.2345679012 | AI184: 0.01851851852 | AJ184: 1.092592593 | AK184: 0.01851851852 | AL184: 0.03086419753 | AM184: 0.8950617284 | AO184: 3518 | AP184: Christian Yelich | AQ184: Miami Marlins | AR184: yelch | AS184: 162 | AT184: 19 | AU184: 84 | AV184: 105 | AW184: 17 | AX184: 38 | AY184: 3 | AZ184: 177 | BA184: 3 | BB184: 5 | BC184: 145
A185: 3275 | B185: Dee Gordon | C185: MIA | D185: Buy | O185: 0 | P185: 0 | Q185: 0 | R185: 0 | S185: 0 | T185: 0 | U185: 0 | V185: 0 | W185: 0 | X185: 0 | Z185: 3275 | AA185: Dee Gordon | AB185: =IF(AQ185<>0,VLOOKUP(AQ185,Info!A:B,2,FALSE),"") -> MIA | AC185: gorde | AD185: 0.06172839506 | AE185: 0.3086419753 | AF185: 0.7222222222 | AG185: 0.3086419753 | AH185: 0.1296296296 | AI185: 0.05555555556 | AJ185: 1.259259259 | AK185: 0.1049382716 | AL185: 0.07407407407 | AM185: 0.5987654321 | AO185: 3275 | AP185: Dee Gordon | AQ185: Miami Marlins | AR185: gorde | AS185: 162 | AT185: 10 | AU185: 50 | AV185: 117 | AW185: 50 | AX185: 21 | AY185: 9 | AZ185: 204 | BA185: 17 | BB185: 12 | BC185: 97
A186: 2877 | B186: Giancarlo Stanton | C186: MIA | D186: Buy | O186: 0 | P186: 0 | Q186: 0 | R186: 0 | S186: 0 | T186: 0 | U186: 0 | V186: 0 | W186: 0 | X186: 0 | Z186: 2877 | AA186: Giancarlo Stanton | AB186: =IF(AQ186<>0,VLOOKUP(AQ186,Info!A:B,2,FALSE),"") -> MIA | AC186: stagi | AD186: 0.3086419753 | AE186: 0.7407407407 | AF186: 0.7407407407 | AG186: 0.01851851852 | AH186: 0.2037037037 | AI186: 0.006172839506 | AJ186: 1.055555556 | AK186: 0.01851851852 | AL186: 0.03086419753 | AM186: 1.024691358 | AO186: 2877 | AP186: Giancarlo Stanton | AQ186: Miami Marlins | AR186: stagi | AS186: 162 | AT186: 50 | AU186: 120 | AV186: 120 | AW186: 3 | AX186: 33 | AY186: 1 | AZ186: 171 | BA186: 3 | BB186: 5 | BC186: 166
A187: 707 | B187: Ichiro Suzuki | C187: MIA | D187: Buy | O187: 0 | P187: 0 | Q187: 0 | R187: 0 | S187: 0 | T187: 0 | U187: 0 | V187: 0 | W187: 0 | X187: 0 | Z187: 707 | AA187: Ichiro Suzuki | AB187: =IF(AQ187<>0,VLOOKUP(AQ187,Info!A:B,2,FALSE),"") -> MIA | AC187: suzic | AD187: 0.06172839506 | AE187: 0.3086419753 | AF187: 0.3086419753 | AG187: 0.01234567901 | AH187: 0.1234567901 | AI187: 0.006172839506 | AJ187: 0.6172839506 | AK187: 0.01851851852 | AL187: 0.03086419753 | AM187: 0.462962963 | AO187: 707 | AP187: Ichiro Suzuki | AQ187: Miami Marlins | AR187: suzic | AS187: 162 | AT187: 10 | AU187: 50 | AV187: 50 | AW187: 2 | AX187: 20 | AY187: 1 | AZ187: 100 | BA187: 3 | BB187: 5 | BC187: 75
A188: 4162 | B188: JT Realmuto | C188: MIA | D188: Buy | O188: 0 | P188: 0 | Q188: 0 | R188: 0 | S188: 0 | T188: 0 | U188: 0 | V188: 0 | W188: 0 | X188: 0 | Z188: 4162 | AA188: JT Realmuto | AB188: =IF(AQ188<>0,VLOOKUP(AQ188,Info!A:B,2,FALSE),"") -> MIA | AC188: reajt | AD188: 0.1296296296 | AE188: 0.4814814815 | AF188: 0.4938271605 | AG188: 0.06172839506 | AH188: 0.2345679012 | AI188: 0.03703703704 | AJ188: 1.067901235 | AK188: 0.01851851852 | AL188: 0.04320987654 | AM188: 0.7469135802 | AO188: 4162 | AP188: JT Realmuto | AQ188: Miami Marlins | AR188: reajt | AS188: 162 | AT188: 21 | AU188: 78 | AV188: 80 | AW188: 10 | AX188: 38 | AY188: 6 | AZ188: 173 | BA188: 3 | BB188: 7 | BC188: 121
A189: 3850 | B189: Justin Bour | C189: MIA | D189: Buy | O189: 0 | P189: 0 | Q189: 0 | R189: 0 | S189: 0 | T189: 0 | U189: 0 | V189: 0 | W189: 0 | X189: 0 | Z189: 3850 | AA189: Justin Bour | AB189: =IF(AQ189<>0,VLOOKUP(AQ189,Info!A:B,2,FALSE),"") -> MIA | AC189: bouju | AD189: 0.2345679012 | AE189: 0.7407407407 | AF189: 0.4814814815 | AG189: 0.01234567901 | AH189: 0.1666666667 | AI189: 0.006172839506 | AJ189: 1.012345679 | AK189: 0.01234567901 | AL189: 0.03086419753 | AM189: 0.8827160494 | AO189: 3850 | AP189: Justin Bour | AQ189: Miami Marlins | AR189: bouju | AS189: 162 | AT189: 38 | AU189: 120 | AV189: 78 | AW189: 2 | AX189: 27 | AY189: 1 | AZ189: 164 | BA189: 2 | BB189: 5 | BC189: 143
A190: 3298 | B190: Marcell Ozuna | C190: MIA | D190: Buy | O190: 0 | P190: 0 | Q190: 0 | R190: 0 | S190: 0 | T190: 0 | U190: 0 | V190: 0 | W190: 0 | X190: 0 | Z190: 3298 | AA190: Marcell Ozuna | AB190: =IF(AQ190<>0,VLOOKUP(AQ190,Info!A:B,2,FALSE),"") -> MIA | AC190: ozuma | AD190: 0.2345679012 | AE190: 0.7407407407 | AF190: 0.5987654321 | AG190: 0.01234567901 | AH190: 0.2037037037 | AI190: 0.01851851852 | AJ190: 1.197530864 | AK190: 0.02469135802 | AL190: 0.03086419753 | AM190: 0.9074074074 | AO190: 3298 | AP190: Marcell Ozuna | AQ190: Miami Marlins | AR190: ozuma | AS190: 162 | AT190: 38 | AU190: 120 | AV190: 97 | AW190: 2 | AX190: 33 | AY190: 3 | AZ190: 194 | BA190: 4 | BB190: 5 | BC190: 147
A191: 2633 | B191: Martin Prado | C191: MIA | D191: Buy | O191: 0 | P191: 0 | Q191: 0 | R191: 0 | S191: 0 | T191: 0 | U191: 0 | V191: 0 | W191: 0 | X191: 0 | Z191: 2633 | AA191: Martin Prado | AB191: =IF(AQ191<>0,VLOOKUP(AQ191,Info!A:B,2,FALSE),"") -> MIA | AC191: pradm | AD191: 0.06172839506 | AE191: 0.3271604938 | AF191: 0.3518518519 | AG191: 0.006172839506 | AH191: 0.2469135802 | AI191: 0.006172839506 | AJ191: 0.950617284 | AK191: 0.01234567901 | AL191: 0.03086419753 | AM191: 0.5987654321 | AO191: 2633 | AP191: Martin Prado | AQ191: Miami Marlins | AR191: pradm | AS191: 162 | AT191: 10 | AU191: 53 | AV191: 57 | AW191: 1 | AX191: 40 | AY191: 1 | AZ191: 154 | BA191: 2 | BB191: 5 | BC191: 97
A192: 4193 | B192: Domingo Santana | C192: MIL | D192: Buy | O192: 0 | P192: 0 | Q192: 0 | R192: 0 | S192: 0 | T192: 0 | U192: 0 | V192: 0 | W192: 0 | X192: 0 | Z192: 4193 | AA192: Domingo Santana | AB192: =IF(AQ192<>0,VLOOKUP(AQ192,Info!A:B,2,FALSE),"") -> MIL | AC192: sando | AD192: 0.2037037037 | AE192: 0.5679012346 | AF192: 0.5864197531 | AG192: 0.1049382716 | AH192: 0.1975308642 | AI192: 0.006172839506 | AJ192: 0.9691358025 | AK192: 0.03086419753 | AL192: 0.03703703704 | AM192: 1.172839506 | AO192: 4193 | AP192: Domingo Santana | AQ192: Milwaukee Brewers | AR192: sando | AS192: 162 | AT192: 33 | AU192: 92 | AV192: 95 | AW192: 17 | AX192: 32 | AY192: 1 | AZ192: 157 | BA192: 5 | BB192: 6 | BC192: 190
A193: 4168 | B193: Eric Thames | C193: MIL | D193: Buy | O193: 0 | P193: 0 | Q193: 0 | R193: 0 | S193: 0 | T193: 0 | U193: 0 | V193: 0 | W193: 0 | X193: 0 | Z193: 4168 | AA193: Eric Thames | AB193: =IF(AQ193<>0,VLOOKUP(AQ193,Info!A:B,2,FALSE),"") -> MIL | AC193: thaer | AD193: 0.2283950617 | AE193: 0.4567901235 | AF193: 0.5987654321 | AG193: 0.03086419753 | AH193: 0.1913580247 | AI193: 0.03086419753 | AJ193: 0.8395061728 | AK193: 0.01851851852 | AL193: 0.03703703704 | AM193: 1.185185185 | AO193: 4168 | AP193: Eric Thames | AQ193: Milwaukee Brewers | AR193: thaer | AS193: 162 | AT193: 37 | AU193: 74 | AV193: 97 | AW193: 5 | AX193: 31 | AY193: 5 | AZ193: 136 | BA193: 3 | BB193: 6 | BC193: 192
A194: 4029 | B194: Hernan Perez | C194: MIL | D194: Buy | O194: 0 | P194: 0 | Q194: 0 | R194: 0 | S194: 0 | T194: 0 | U194: 0 | V194: 0 | W194: 0 | X194: 0 | Z194: 4029 | AA194: Hernan Perez | AB194: =IF(AQ194<>0,VLOOKUP(AQ194,Info!A:B,2,FALSE),"") -> MIL | AC194: perhe | AD194: 0.1111111111 | AE194: 0.3888888889 | AF194: 0.3518518519 | AG194: 0.0987654321 | AH194: 0.1419753086 | AI194: 0.02469135802 | AJ194: 0.8271604938 | AK194: 0.03086419753 | AL194: 0.03086419753 | AM194: 0.5802469136 | AO194: 4029 | AP194: Hernan Perez | AQ194: Milwaukee Brewers | AR194: perhe | AS194: 162 | AT194: 18 | AU194: 63 | AV194: 57 | AW194: 16 | AX194: 23 | AY194: 4 | AZ194: 134 | BA194: 5 | BB194: 5 | BC194: 94
A195: =IF(Z195<>0,Z195,"") -> 3519 | B195: =IF(A195<>0,VLOOKUP(A195,Z:AA,2,FALSE),"") -> Jonathan Villar | C195: =IF(A195<>0,VLOOKUP(A195,Z:AB,3,FALSE)) -> MIL | D195: =HYPERLINK("http://www.jockstocks.com/buysell.php?action=buymax&plid="&A195,"Buy") -> Buy | O195: =VLOOKUP($A195,$A:$N,5,FALSE)/VLOOKUP($A195,$Z:$AM,5,FALSE) -> 0 | P195: =VLOOKUP($A195,$A:$N,6,FALSE)/VLOOKUP($A195,$Z:$AM,6,FALSE) -> 0 | Q195: =VLOOKUP($A195,$A:$N,7,FALSE)/VLOOKUP($A195,$Z:$AM,7,FALSE) -> 0 | R195: =VLOOKUP($A195,$A:$N,8,FALSE)/VLOOKUP($A195,$Z:$AM,8,FALSE) -> 0 | S195: =VLOOKUP($A195,$A:$N,9,FALSE)/VLOOKUP($A195,$Z:$AM,9,FALSE) -> 0 | T195: =VLOOKUP($A195,$A:$N,10,FALSE)/VLOOKUP($A195,$Z:$AM,10,FALSE) -> 0 | U195: =VLOOKUP($A195,$A:$N,11,FALSE)/VLOOKUP($A195,$Z:$AM,11,FALSE) -> 0 | V195: =VLOOKUP($A195,$A:$N,12,FALSE)/VLOOKUP($A195,$Z:$AM,12,FALSE) -> 0 | W195: =VLOOKUP($A195,$A:$N,13,FALSE)/VLOOKUP($A195,$Z:$AM,13,FALSE) -> 0 | X195: =VLOOKUP($A195,$A:$N,14,FALSE)/VLOOKUP($A195,$Z:$AM,14,FALSE) -> 0 | Z195: =IF(AO195<>0,AO195,"") -> 3519 | AA195: =IF(AP195<>0,VLOOKUP(Z195,AO:AP,2,FALSE),"") -> Jonathan Villar | AB195: =IF(AQ195<>0,VLOOKUP(AQ195,Info!A:B,2,FALSE),"") -> MIL | AC195: =IF(AO195<>0,VLOOKUP(Z195,AO:AR,4,FALSE),"") -> villj | AD195: =IF($AO195<>0,AT195/$AS195,"") -> 0.09259259259 | AE195: =IF($AO195<>0,AU195/$AS195,"") -> 0.3333333333 | AF195: =IF($AO195<>0,AV195/$AS195,"") -> 0.4074074074 | AG195: =IF($AO195<>0,AW195/$AS195,"") -> 0.1913580247 | AH195: =IF($AO195<>0,AX195/$AS195,"") -> 0.1481481481 | AI195: =IF($AO195<>0,AY195/$AS195,"") -> 0.01234567901 | AJ195: =IF($AO195<>0,AZ195/$AS195,"") -> 0.7962962963 | AK195: =IF($AO195<>0,BA195/$AS195,"") -> 0.06790123457 | AL195: =IF($AO195<>0,BB195/$AS195,"") -> 0.1172839506 | AM195: =IF($AO195<>0,BC195/$AS195,"") -> 1.086419753 | AO195: 3519 | AP195: Jonathan Villar | AQ195: Milwaukee Brewers | AR195: villj | AS195: 162 | AT195: 15 | AU195: 54 | AV195: 66 | AW195: 31 | AX195: 24 | AY195: 2 | AZ195: 129 | BA195: 11 | BB195: 19 | BC195: 176
A196: 2678 | B196: Neil Walker | C196: MIL | D196: Buy | O196: 0 | P196: 0 | Q196: 0 | R196: 0 | S196: 0 | T196: 0 | U196: 0 | V196: 0 | W196: 0 | X196: 0 | Z196: 2678 | AA196: Neil Walker | AB196: =IF(AQ196<>0,VLOOKUP(AQ196,Info!A:B,2,FALSE),"") -> MIL | AC196: walne | AD196: 0.1296296296 | AE196: 0.4382716049 | AF196: 0.5432098765 | AG196: 0.006172839506 | AH196: 0.1913580247 | AI196: 0.01851851852 | AJ196: 0.9259259259 | AK196: 0.01851851852 | AL196: 0.04938271605 | AM196: 0.6851851852 | AO196: 2678 | AP196: Neil Walker | AQ196: Milwaukee Brewers | AR196: walne | AS196: 162 | AT196: 21 | AU196: 71 | AV196: 88 | AW196: 1 | AX196: 31 | AY196: 3 | AZ196: 150 | BA196: 3 | BB196: 8 | BC196: 111
A197: 4189 | B197: Orlando Arcia | C197: MIL | D197: Buy | O197: 0 | P197: 0 | Q197: 0 | R197: 0 | S197: 0 | T197: 0 | U197: 0 | V197: 0 | W197: 0 | X197: 0 | Z197: 4189 | AA197: Orlando Arcia | AB197: =IF(AQ197<>0,VLOOKUP(AQ197,Info!A:B,2,FALSE),"") -> MIL | AC197: arcor | AD197: 0.0987654321 | AE197: 0.3518518519 | AF197: 0.3703703704 | AG197: 0.09259259259 | AH197: 0.1234567901 | AI197: 0.01851851852 | AJ197: 0.9259259259 | AK197: 0.04938271605 | AL197: 0.1296296296 | AM197: 0.6604938272 | AO197: 4189 | AP197: Orlando Arcia | AQ197: Milwaukee Brewers | AR197: arcor | AS197: 162 | AT197: 16 | AU197: 57 | AV197: 60 | AW197: 15 | AX197: 20 | AY197: 3 | AZ197: 150 | BA197: 8 | BB197: 21 | BC197: 107
A198: 2000 | B198: Ryan Braun | C198: MIL | D198: Buy | O198: 0 | P198: 0 | Q198: 0 | R198: 0 | S198: 0 | T198: 0 | U198: 0 | V198: 0 | W198: 0 | X198: 0 | Z198: 2000 | AA198: Ryan Braun | AB198: =IF(AQ198<>0,VLOOKUP(AQ198,Info!A:B,2,FALSE),"") -> MIL | AC198: brary | AD198: 0.1666666667 | AE198: 0.5 | AF198: 0.5617283951 | AG198: 0.1172839506 | AH198: 0.2654320988 | AI198: 0.02469135802 | AJ198: 0.9814814815 | AK198: 0.04320987654 | AL198: 0.03086419753 | AM198: 0.7345679012 | AO198: 2000 | AP198: Ryan Braun | AQ198: Milwaukee Brewers | AR198: brary | AS198: 162 | AT198: 27 | AU198: 81 | AV198: 91 | AW198: 19 | AX198: 43 | AY198: 4 | AZ198: 159 | BA198: 7 | BB198: 5 | BC198: 119
A199: 3585 | B199: Stephen Vogt | C199: MIL | D199: Buy | O199: 0 | P199: 0 | Q199: 0 | R199: 0 | S199: 0 | T199: 0 | U199: 0 | V199: 0 | W199: 0 | X199: 0 | Z199: 3585 | AA199: Stephen Vogt | AB199: =IF(AQ199<>0,VLOOKUP(AQ199,Info!A:B,2,FALSE),"") -> MIL | AC199: vogst | AD199: 0.1234567901 | AE199: 0.4074074074 | AF199: 0.3086419753 | AG199: 0.006172839506 | AH199: 0.1543209877 | AI199: 0.01234567901 | AJ199: 0.6419753086 | AK199: 0.01234567901 | AL199: 0.06172839506 | AM199: 0.5679012346 | AO199: 3585 | AP199: Stephen Vogt | AQ199: Milwaukee Brewers | AR199: vogst | AS199: 162 | AT199: 20 | AU199: 66 | AV199: 50 | AW199: 1 | AX199: 25 | AY199: 2 | AZ199: 104 | BA199: 2 | BB199: 10 | BC199: 92
A200: 4014 | B200: Travis Shaw | C200: MIL | D200: Buy | O200: 0 | P200: 0 | Q200: 0 | R200: 0 | S200: 0 | T200: 0 | U200: 0 | V200: 0 | W200: 0 | X200: 0 | Z200: 4014 | AA200: Travis Shaw | AB200: =IF(AQ200<>0,VLOOKUP(AQ200,Info!A:B,2,FALSE),"") -> MIL | AC200: shatr | AD200: 0.2160493827 | AE200: 0.7037037037 | AF200: 0.5864197531 | AG200: 0.07407407407 | AH200: 0.2407407407 | AI200: 0.01234567901 | AJ200: 1.024691358 | AK200: 0.01234567901 | AL200: 0.04938271605 | AM200: 0.962962963 | AO200: 4014 | AP200: Travis Shaw | AQ200: Milwaukee Brewers | AR200: shatr | AS200: 162 | AT200: 35 | AU200: 114 | AV200: 95 | AW200: 12 | AX200: 39 | AY200: 2 | AZ200: 166 | BA200: 2 | BB200: 8 | BC200: 156
... 200 more rows

Sheet MLBS
A1: plid | B1: Name | C1: Team | E1: W | F1: Save | G1: Ks | H1: L | I1: SO | J1: ERs | O1: W | P1: Save | Q1: Ks | R1: L | S1: SO | T1: ERs | Z1: =IF(AO1<>0,AO1,"") -> ID | AA1: =IF(AP1<>0,AP1,"") -> Name | AB1: =IF(AQ1<>0,AQ1,"") -> Team | AC1: =IF(AR1<>0,AR1,"") -> Symbol | AD1: =IF(AT1<>0,AT1,"") -> Wins | AE1: Saves | AF1: Strikeouts | AG1: Losses | AH1: Shutouts | AI1: Earned Runs | AJ1: =IF(BL1<>0,BL1,"") ->  | AK1: =IF(BM1<>0,BM1,"") ->  | AL1: =IF(BN1<>0,BN1,"") ->  | AM1: =IF(BO1<>0,BO1,"") ->  | AO1: ID | AP1: Name | AQ1: Team | AR1: Symbol | AS1: Appearances | AT1: Wins | AU1: Saves | AV1: Strikeouts | AW1: Losses | AX1: Shutouts | AY1: Earned Runs
A2: =IF(Z2<>0,Z2,"") -> 2624 | B2: =IF(A2<>0,VLOOKUP(A2,Z:AA,2,FALSE),"") -> Brian Matusz | C2: =IF(A2<>0,VLOOKUP(A2,Z:AB,3,FALSE)) -> ARI | D2: =HYPERLINK("http://www.jockstocks.com/buysell.php?action=buymax&plid="&A2,"Buy") -> Buy | O2: =VLOOKUP($A2,$A:$N,5,FALSE)/VLOOKUP($A2,$Z:$AM,5,FALSE) -> 0 | P2: =VLOOKUP($A2,$A:$N,6,FALSE)/VLOOKUP($A2,$Z:$AM,6,FALSE) -> 0 | Q2: =VLOOKUP($A2,$A:$N,7,FALSE)/VLOOKUP($A2,$Z:$AM,7,FALSE) -> 0 | R2: =VLOOKUP($A2,$A:$N,8,FALSE)/VLOOKUP($A2,$Z:$AM,8,FALSE) -> 0 | S2: =VLOOKUP($A2,$A:$N,9,FALSE)/VLOOKUP($A2,$Z:$AM,9,FALSE) -> 0 | T2: =VLOOKUP($A2,$A:$N,10,FALSE)/VLOOKUP($A2,$Z:$AM,10,FALSE) -> 0 | U2: =VLOOKUP($A2,$A:$N,11,FALSE)/VLOOKUP($A2,$Z:$AM,11,FALSE) ->  | V2: =VLOOKUP($A2,$A:$N,12,FALSE)/VLOOKUP($A2,$Z:$AM,12,FALSE) ->  | W2: =VLOOKUP($A2,$A:$N,13,FALSE)/VLOOKUP($A2,$Z:$AM,13,FALSE) ->  | X2: =VLOOKUP($A2,$A:$N,14,FALSE)/VLOOKUP($A2,$Z:$AM,14,FALSE) ->  | Z2: =IF(AO2<>0,AO2,"") -> 2624 | AA2: =IF(AP2<>0,VLOOKUP(Z2,AO:AP,2,FALSE),"") -> Brian Matusz | AB2: =IF(AQ2<>0,VLOOKUP(AQ2,Info!A:B,2,FALSE),"") -> ARI | AC2: =IF(AO2<>0,VLOOKUP(Z2,AO:AR,4,FALSE),"") -> matbr | AD2: =IF($AO2<>0,AT2/$AS2,"") -> 0.2285714286 | AE2: 0.02857142857 | AF2: 2.142857143 | AG2: 0.1714285714 | AH2: 0.02857142857 | AI2: 2 | AJ2: =IF($AO2<>0,BL2/$AS2,"") -> 0 | AK2: =IF($AO2<>0,BM2/$AS2,"") -> 0 | AL2: =IF($AO2<>0,BN2/$AS2,"") -> 0 | AM2: =IF($AO2<>0,BO2/$AS2,"") -> 0 | AO2: 2624 | AP2: Brian Matusz | AQ2: Arizona Diamondbacks | AR2: matbr | AS2: 35 | AT2: 8 | AU2: 1 | AV2: 75 | AW2: 6 | AX2: 1 | AY2: 70
A3: =IF(Z3<>0,Z3,"") -> 1979 | B3: =IF(A3<>0,VLOOKUP(A3,Z:AA,2,FALSE),"") -> Jorge De La Rosa | C3: =IF(A3<>0,VLOOKUP(A3,Z:AB,3,FALSE)) -> ARI | D3: =HYPERLINK("http://www.jockstocks.com/buysell.php?action=buymax&plid="&A3,"Buy") -> Buy | O3: =VLOOKUP($A3,$A:$N,5,FALSE)/VLOOKUP($A3,$Z:$AM,5,FALSE) -> 0 | P3: =VLOOKUP($A3,$A:$N,6,FALSE)/VLOOKUP($A3,$Z:$AM,6,FALSE) -> 0 | Q3: =VLOOKUP($A3,$A:$N,7,FALSE)/VLOOKUP($A3,$Z:$AM,7,FALSE) -> 0 | R3: =VLOOKUP($A3,$A:$N,8,FALSE)/VLOOKUP($A3,$Z:$AM,8,FALSE) -> 0 | S3: =VLOOKUP($A3,$A:$N,9,FALSE)/VLOOKUP($A3,$Z:$AM,9,FALSE) -> 0 | T3: =VLOOKUP($A3,$A:$N,10,FALSE)/VLOOKUP($A3,$Z:$AM,10,FALSE) -> 0 | U3: =VLOOKUP($A3,$A:$N,11,FALSE)/VLOOKUP($A3,$Z:$AM,11,FALSE) ->  | V3: =VLOOKUP($A3,$A:$N,12,FALSE)/VLOOKUP($A3,$Z:$AM,12,FALSE) ->  | W3: =VLOOKUP($A3,$A:$N,13,FALSE)/VLOOKUP($A3,$Z:$AM,13,FALSE) ->  | X3: =VLOOKUP($A3,$A:$N,14,FALSE)/VLOOKUP($A3,$Z:$AM,14,FALSE) ->  | Z3: =IF(AO3<>0,AO3,"") -> 1979 | AA3: =IF(AP3<>0,VLOOKUP(Z3,AO:AP,2,FALSE),"") -> Jorge De La Rosa | AB3: =IF(AQ3<>0,VLOOKUP(AQ3,Info!A:B,2,FALSE),"") -> ARI | AC3: =IF(AO3<>0,VLOOKUP(Z3,AO:AR,4,FALSE),"") -> deljo | AD3: =IF($AO3<>0,AT3/$AS3,"") -> 0.2285714286 | AE3: =IF($AO3<>0,AU3/$AS3,"") -> 0.02857142857 | AF3: =IF($AO3<>0,AV3/$AS3,"") -> 2.142857143 | AG3: =IF($AO3<>0,AW3/$AS3,"") -> 0.1714285714 | AH3: =IF($AO3<>0,AX3/$AS3,"") -> 0.02857142857 | AI3: =IF($AO3<>0,AY3/$AS3,"") -> 2 | AJ3: =IF($AO3<>0,BL3/$AS3,"") -> 0 | AK3: =IF($AO3<>0,BM3/$AS3,"") -> 0 | AL3: =IF($AO3<>0,BN3/$AS3,"") -> 0 | AM3: =IF($AO3<>0,BO3/$AS3,"") -> 0 | AO3: 1979 | AP3: Jorge De La Rosa | AQ3: Arizona Diamondbacks | AR3: deljo | AS3: 35 | AT3: 8 | AU3: 1 | AV3: 75 | AW3: 6 | AX3: 1 | AY3: 70
A4: 3288 | B4: Patrick Corbin | C4: ARI | D4: Buy | O4: 0 | P4: 0 | Q4: 0 | R4: 0 | S4: 0 | T4: 0 | Z4: 3288 | AA4: Patrick Corbin | AB4: =IF(AQ4<>0,VLOOKUP(AQ4,Info!A:B,2,FALSE),"") -> ARI | AC4: corpa | AD4: 0.4285714286 | AE4: 0.02857142857 | AF4: 5.4 | AG4: 0.4 | AH4: 0.02857142857 | AI4: 2.628571429 | AJ4: 0 | AK4: 0 | AL4: 0 | AM4: 0 | AO4: 3288 | AP4: Patrick Corbin | AQ4: Arizona Diamondbacks | AR4: corpa | AS4: 35 | AT4: 15 | AU4: 1 | AV4: 189 | AW4: 14 | AX4: 1 | AY4: 92
A5: 4165 | B5: Robbie Ray | C5: ARI | D5: Buy | O5: 0 | P5: 0 | Q5: 0 | R5: 0 | S5: 0 | T5: 0 | Z5: 4165 | AA5: Robbie Ray | AB5: =IF(AQ5<>0,VLOOKUP(AQ5,Info!A:B,2,FALSE),"") -> ARI | AC5: rayro | AD5: 0.5142857143 | AE5: 0.02857142857 | AF5: 7.142857143 | AG5: 0.2 | AH5: 0.05714285714 | AI5: 2 | AJ5: 0 | AK5: 0 | AL5: 0 | AM5: 0 | AO5: 4165 | AP5: Robbie Ray | AQ5: Arizona Diamondbacks | AR5: rayro | AS5: 35 | AT5: 18 | AU5: 1 | AV5: 250 | AW5: 7 | AX5: 2 | AY5: 70
A6: 3864 | B6: Rubby De La Rosa | C6: ARI | D6: Buy | O6: 0 | P6: 0 | Q6: 0 | R6: 0 | S6: 0 | T6: 0 | Z6: 3864 | AA6: Rubby De La Rosa | AB6: =IF(AQ6<>0,VLOOKUP(AQ6,Info!A:B,2,FALSE),"") -> ARI | AC6: delru | AD6: 0.3142857143 | AE6: 0.02857142857 | AF6: 4.171428571 | AG6: 0.4 | AH6: 0.02857142857 | AI6: 2 | AJ6: 0 | AK6: 0 | AL6: 0 | AM6: 0 | AO6: 3864 | AP6: Rubby De La Rosa | AQ6: Arizona Diamondbacks | AR6: delru | AS6: 35 | AT6: 11 | AU6: 1 | AV6: 146 | AW6: 14 | AX6: 1 | AY6: 70
A7: 3284 | B7: Shelby Miller | C7: ARI | D7: Buy | O7: 0 | P7: 0 | Q7: 0 | R7: 0 | S7: 0 | T7: 0 | Z7: 3284 | AA7: Shelby Miller | AB7: =IF(AQ7<>0,VLOOKUP(AQ7,Info!A:B,2,FALSE),"") -> ARI | AC7: milsh | AD7: 0.2285714286 | AE7: 0.02857142857 | AF7: 3.514285714 | AG7: 0.5714285714 | AH7: 0.05714285714 | AI7: 3.571428571 | AJ7: 0 | AK7: 0 | AL7: 0 | AM7: 0 | AO7: 3284 | AP7: Shelby Miller | AQ7: Arizona Diamondbacks | AR7: milsh | AS7: 35 | AT7: 8 | AU7: 1 | AV7: 123 | AW7: 20 | AX7: 2 | AY7: 125
A8: 3802 | B8: Taijuan Walker | C8: ARI | D8: Buy | O8: 0 | P8: 0 | Q8: 0 | R8: 0 | S8: 0 | T8: 0 | Z8: 3802 | AA8: Taijuan Walker | AB8: =IF(AQ8<>0,VLOOKUP(AQ8,Info!A:B,2,FALSE),"") -> ARI | AC8: walta | AD8: 0.3142857143 | AE8: 0.02857142857 | AF8: 5.142857143 | AG8: 0.3714285714 | AH8: 0.02857142857 | AI8: 2.257142857 | AJ8: 0 | AK8: 0 | AL8: 0 | AM8: 0 | AO8: 3802 | AP8: Taijuan Walker | AQ8: Arizona Diamondbacks | AR8: walta | AS8: 35 | AT8: 11 | AU8: 1 | AV8: 180 | AW8: 13 | AX8: 1 | AY8: 79
A9: 2176 | B9: Zack Greinke | C9: ARI | D9: Buy | O9: 0 | P9: 0 | Q9: 0 | R9: 0 | S9: 0 | T9: 0 | Z9: 2176 | AA9: Zack Greinke | AB9: =IF(AQ9<>0,VLOOKUP(AQ9,Info!A:B,2,FALSE),"") -> ARI | AC9: greza | AD9: 0.5142857143 | AE9: 0.02857142857 | AF9: 6.485714286 | AG9: 0.2571428571 | AH9: 0.02857142857 | AI9: 2.342857143 | AJ9: 0 | AK9: 0 | AL9: 0 | AM9: 0 | AO9: 2176 | AP9: Zack Greinke | AQ9: Arizona Diamondbacks | AR9: greza | AS9: 35 | AT9: 18 | AU9: 1 | AV9: 227 | AW9: 9 | AX9: 1 | AY9: 82
A10: 3572 | B10: Josh Collmenter | C10: ATL | D10: Buy | O10: 0 | P10: 0 | Q10: 0 | R10: 0 | S10: 0 | T10: 0 | Z10: 3572 | AA10: Josh Collmenter | AB10: =IF(AQ10<>0,VLOOKUP(AQ10,Info!A:B,2,FALSE),"") -> ATL | AC10: coljo | AD10: 0.2285714286 | AE10: 0.02857142857 | AF10: 2.142857143 | AG10: 0.2 | AH10: 0.02857142857 | AI10: 2 | AJ10: 0 | AK10: 0 | AL10: 0 | AM10: 0 | AO10: 3572 | AP10: Josh Collmenter | AQ10: Atlanta Braves | AR10: coljo | AS10: 35 | AT10: 8 | AU10: 1 | AV10: 75 | AW10: 7 | AX10: 1 | AY10: 70
A11: 3262 | B11: Julio Teheran | C11: ATL | D11: Buy | O11: 0 | P11: 0 | Q11: 0 | R11: 0 | S11: 0 | T11: 0 | Z11: 3262 | AA11: Julio Teheran | AB11: =IF(AQ11<>0,VLOOKUP(AQ11,Info!A:B,2,FALSE),"") -> ATL | AC11: tehju | AD11: 0.3714285714 | AE11: 0.02857142857 | AF11: 4.742857143 | AG11: 0.4285714286 | AH11: 0.02857142857 | AI11: 2.971428571 | AJ11: 0 | AK11: 0 | AL11: 0 | AM11: 0 | AO11: 3262 | AP11: Julio Teheran | AQ11: Atlanta Braves | AR11: tehju | AS11: 35 | AT11: 13 | AU11: 1 | AV11: 166 | AW11: 15 | AX11: 1 | AY11: 104
A12: 2665 | B12: Kris Medlen | C12: ATL | D12: Buy | O12: 0 | P12: 0 | Q12: 0 | R12: 0 | S12: 0 | T12: 0 | Z12: 2665 | AA12: Kris Medlen | AB12: =IF(AQ12<>0,VLOOKUP(AQ12,Info!A:B,2,FALSE),"") -> ATL | AC12: medkr | AD12: 0.4 | AE12: 0.02857142857 | AF12: 2.685714286 | AG12: 0.1714285714 | AH12: 0.02857142857 | AI12: 2 | AJ12: 0 | AK12: 0 | AL12: 0 | AM12: 0 | AO12: 2665 | AP12: Kris Medlen | AQ12: Atlanta Braves | AR12: medkr | AS12: 35 | AT12: 14 | AU12: 1 | AV12: 94 | AW12: 6 | AX12: 1 | AY12: 70
A13: 4187 | B13: Mike Foltynewicz | C13: ATL | D13: Buy | O13: 0 | P13: 0 | Q13: 0 | R13: 0 | S13: 0 | T13: 0 | Z13: 4187 | AA13: Mike Foltynewicz | AB13: =IF(AQ13<>0,VLOOKUP(AQ13,Info!A:B,2,FALSE),"") -> ATL | AC13: folmi | AD13: 0.3714285714 | AE13: 0.02857142857 | AF13: 4.942857143 | AG13: 0.4571428571 | AH13: 0.02857142857 | AI13: 2.828571429 | AJ13: 0 | AK13: 0 | AL13: 0 | AM13: 0 | AO13: 4187 | AP13: Mike Foltynewicz | AQ13: Atlanta Braves | AR13: folmi | AS13: 35 | AT13: 13 | AU13: 1 | AV13: 173 | AW13: 16 | AX13: 1 | AY13: 99
A14: 2666 | B14: R.A. Dickey | C14: ATL | D14: Buy | O14: 0 | P14: 0 | Q14: 0 | R14: 0 | S14: 0 | T14: 0 | Z14: 2666 | AA14: R.A. Dickey | AB14: =IF(AQ14<>0,VLOOKUP(AQ14,Info!A:B,2,FALSE),"") -> ATL | AC14: dicra | AD14: 0.3428571429 | AE14: 0.02857142857 | AF14: 4.4 | AG14: 0.3428571429 | AH14: 0.02857142857 | AI14: 2.914285714 | AJ14: 0 | AK14: 0 | AL14: 0 | AM14: 0 | AO14: 2666 | AP14: R.A. Dickey | AQ14: Atlanta Braves | AR14: dicra | AS14: 35 | AT14: 12 | AU14: 1 | AV14: 154 | AW14: 12 | AX14: 1 | AY14: 102
A15: 3146 | B15: Chris Tillman | C15: BAL | D15: Buy | O15: 0 | P15: 0 | Q15: 0 | R15: 0 | S15: 0 | T15: 0 | Z15: 3146 | AA15: Chris Tillman | AB15: =IF(AQ15<>0,VLOOKUP(AQ15,Info!A:B,2,FALSE),"") -> BAL | AC15: tillc | AD15: 0.2285714286 | AE15: 0.02857142857 | AF15: 2.628571429 | AG15: 0.3142857143 | AH15: 0.02857142857 | AI15: 3.4 | AJ15: 0 | AK15: 0 | AL15: 0 | AM15: 0 | AO15: 3146 | AP15: Chris Tillman | AQ15: Baltimore Orioles | AR15: tillc | AS15: 35 | AT15: 8 | AU15: 1 | AV15: 92 | AW15: 11 | AX15: 1 | AY15: 119
A16: 4170 | B16: Dylan Bundy | C16: BAL | D16: Buy | O16: 0 | P16: 0 | Q16: 0 | R16: 0 | S16: 0 | T16: 0 | Z16: 4170 | AA16: Dylan Bundy | AB16: =IF(AQ16<>0,VLOOKUP(AQ16,Info!A:B,2,FALSE),"") -> BAL | AC16: bundy | AD16: 0.4571428571 | AE16: 0.02857142857 | AF16: 5.285714286 | AG16: 0.3142857143 | AH16: 0.05714285714 | AI16: 2.771428571 | AJ16: 0 | AK16: 0 | AL16: 0 | AM16: 0 | AO16: 4170 | AP16: Dylan Bundy | AQ16: Baltimore Orioles | AR16: bundy | AS16: 35 | AT16: 16 | AU16: 1 | AV16: 185 | AW16: 11 | AX16: 2 | AY16: 97
A17: 2874 | B17: Jeremy Hellickson | C17: BAL | D17: Buy | O17: 0 | P17: 0 | Q17: 0 | R17: 0 | S17: 0 | T17: 0 | Z17: 2874 | AA17: Jeremy Hellickson | AB17: =IF(AQ17<>0,VLOOKUP(AQ17,Info!A:B,2,FALSE),"") -> BAL | AC17: helje | AD17: 0.2857142857 | AE17: 0.02857142857 | AF17: 3.2 | AG17: 0.3714285714 | AH17: 0.02857142857 | AI17: 3.314285714 | AJ17: 0 | AK17: 0 | AL17: 0 | AM17: 0 | AO17: 2874 | AP17: Jeremy Hellickson | AQ17: Baltimore Orioles | AR17: helje | AS17: 35 | AT17: 10 | AU17: 1 | AV17: 112 | AW17: 13 | AX17: 1 | AY17: 116
A18: 3801 | B18: Kevin Gausman | C18: BAL | D18: Buy | O18: 0 | P18: 0 | Q18: 0 | R18: 0 | S18: 0 | T18: 0 | Z18: 3801 | AA18: Kevin Gausman | AB18: =IF(AQ18<>0,VLOOKUP(AQ18,Info!A:B,2,FALSE),"") -> BAL | AC18: gauke | AD18: 0.3428571429 | AE18: 0.02857142857 | AF18: 5.285714286 | AG18: 0.3714285714 | AH18: 0.02857142857 | AI18: 2.857142857 | AJ18: 0 | AK18: 0 | AL18: 0 | AM18: 0 | AO18: 3801 | AP18: Kevin Gausman | AQ18: Baltimore Orioles | AR18: gauke | AS18: 35 | AT18: 12 | AU18: 1 | AV18: 185 | AW18: 13 | AX18: 1 | AY18: 100
A19: 2473 | B19: Ubaldo Jimenez | C19: BAL | D19: Buy | O19: 0 | P19: 0 | Q19: 0 | R19: 0 | S19: 0 | T19: 0 | Z19: 2473 | AA19: Ubaldo Jimenez | AB19: =IF(AQ19<>0,VLOOKUP(AQ19,Info!A:B,2,FALSE),"") -> BAL | AC19: jimub | AD19: 0.2285714286 | AE19: 0.02857142857 | AF19: 4.485714286 | AG19: 0.3714285714 | AH19: 0.02857142857 | AI19: 3.485714286 | AJ19: 0 | AK19: 0 | AL19: 0 | AM19: 0 | AO19: 2473 | AP19: Ubaldo Jimenez | AQ19: Baltimore Orioles | AR19: jimub | AS19: 35 | AT19: 8 | AU19: 1 | AV19: 157 | AW19: 13 | AX19: 1 | AY19: 122
A20: 3088 | B20: Wade Miley | C20: BAL | D20: Buy | O20: 0 | P20: 0 | Q20: 0 | R20: 0 | S20: 0 | T20: 0 | Z20: 3088 | AA20: Wade Miley | AB20: =IF(AQ20<>0,VLOOKUP(AQ20,Info!A:B,2,FALSE),"") -> BAL | AC20: milew | AD20: 0.2571428571 | AE20: 0.02857142857 | AF20: 4.457142857 | AG20: 0.4857142857 | AH20: 0.02857142857 | AI20: 3.085714286 | AJ20: 0 | AK20: 0 | AL20: 0 | AM20: 0 | AO20: 3088 | AP20: Wade Miley | AQ20: Baltimore Orioles | AR20: milew | AS20: 35 | AT20: 9 | AU20: 1 | AV20: 156 | AW20: 17 | AX20: 1 | AY20: 108
A21: 3051 | B21: Chris Sale | C21: BOS | D21: Buy | O21: 0 | P21: 0 | Q21: 0 | R21: 0 | S21: 0 | T21: 0 | Z21: 3051 | AA21: Chris Sale | AB21: =IF(AQ21<>0,VLOOKUP(AQ21,Info!A:B,2,FALSE),"") -> BOS | AC21: salch | AD21: 0.5142857143 | AE21: 0.02857142857 | AF21: 7.142857143 | AG21: 0.3142857143 | AH21: 0.02857142857 | AI21: 2.314285714 | AJ21: 0 | AK21: 0 | AL21: 0 | AM21: 0 | AO21: 3051 | AP21: Chris Sale | AQ21: Boston Red Sox | AR21: salch | AS21: 35 | AT21: 18 | AU21: 1 | AV21: 250 | AW21: 11 | AX21: 1 | AY21: 81
A22: 2448 | B22: David Price | C22: BOS | D22: Buy | O22: 0 | P22: 0 | Q22: 0 | R22: 0 | S22: 0 | T22: 0 | Z22: 2448 | AA22: David Price | AB22: =IF(AQ22<>0,VLOOKUP(AQ22,Info!A:B,2,FALSE),"") -> BOS | AC22: prida | AD22: 0.3428571429 | AE22: 0.02857142857 | AF22: 4.571428571 | AG22: 0.1714285714 | AH22: 0.02857142857 | AI22: 2 | AJ22: 0 | AK22: 0 | AL22: 0 | AM22: 0 | AO22: 2448 | AP22: David Price | AQ22: Boston Red Sox | AR22: prida | AS22: 35 | AT22: 12 | AU22: 1 | AV22: 160 | AW22: 6 | AX22: 1 | AY22: 70
A23: 2949 | B23: Doug Fister | C23: BOS | D23: Buy | O23: 0 | P23: 0 | Q23: 0 | R23: 0 | S23: 0 | T23: 0 | Z23: 2949 | AA23: Doug Fister | AB23: =IF(AQ23<>0,VLOOKUP(AQ23,Info!A:B,2,FALSE),"") -> BOS | AC23: fisdo | AD23: 0.2857142857 | AE23: 0.02857142857 | AF23: 4.428571429 | AG23: 0.4857142857 | AH23: 0.02857142857 | AI23: 2.971428571 | AJ23: 0 | AK23: 0 | AL23: 0 | AM23: 0 | AO23: 2949 | AP23: Doug Fister | AQ23: Boston Red Sox | AR23: fisdo | AS23: 35 | AT23: 10 | AU23: 1 | AV23: 155 | AW23: 17 | AX23: 1 | AY23: 104
A24: 3552 | B24: Drew Pomeranz | C24: BOS | D24: Buy | O24: 0 | P24: 0 | Q24: 0 | R24: 0 | S24: 0 | T24: 0 | Z24: 3552 | AA24: Drew Pomeranz | AB24: =IF(AQ24<>0,VLOOKUP(AQ24,Info!A:B,2,FALSE),"") -> BOS | AC24: pomdr | AD24: 0.5428571429 | AE24: 0.02857142857 | AF24: 5.314285714 | AG24: 0.2285714286 | AH24: 0.02857142857 | AI24: 2.085714286 | AJ24: 0 | AK24: 0 | AL24: 0 | AM24: 0 | AO24: 3552 | AP24: Drew Pomeranz | AQ24: Boston Red Sox | AR24: pomdr | AS24: 35 | AT24: 19 | AU24: 1 | AV24: 186 | AW24: 8 | AX24: 1 | AY24: 73
A25: 3868 | B25: Joe Kelly | C25: BOS | D25: Buy | O25: 0 | P25: 0 | Q25: 0 | R25: 0 | S25: 0 | T25: 0 | Z25: 3868 | AA25: Joe Kelly | AB25: =IF(AQ25<>0,VLOOKUP(AQ25,Info!A:B,2,FALSE),"") -> BOS | AC25: keljo | AD25: 0.2285714286 | AE25: 0.02857142857 | AF25: 2.142857143 | AG25: 0.1714285714 | AH25: 0.02857142857 | AI25: 2 | AJ25: 0 | AK25: 0 | AL25: 0 | AM25: 0 | AO25: 3868 | AP25: Joe Kelly | AQ25: Boston Red Sox | AR25: keljo | AS25: 35 | AT25: 8 | AU25: 1 | AV25: 75 | AW25: 6 | AX25: 1 | AY25: 70
A26: 2220 | B26: Kyle Kendrick | C26: BOS | D26: Buy | O26: 0 | P26: 0 | Q26: 0 | R26: 0 | S26: 0 | T26: 0 | Z26: 2220 | AA26: Kyle Kendrick | AB26: =IF(AQ26<>0,VLOOKUP(AQ26,Info!A:B,2,FALSE),"") -> BOS | AC26: kenky | AD26: 0.2857142857 | AE26: 0.02857142857 | AF26: 2.971428571 | AG26: 0.4857142857 | AH26: 0.02857142857 | AI26: 3.714285714 | AJ26: 0 | AK26: 0 | AL26: 0 | AM26: 0 | AO26: 2220 | AP26: Kyle Kendrick | AQ26: Boston Red Sox | AR26: kenky | AS26: 35 | AT26: 10 | AU26: 1 | AV26: 104 | AW26: 17 | AX26: 1 | AY26: 130
A27: 2449 | B27: Rick Porcello | C27: BOS | D27: Buy | O27: 0 | P27: 0 | Q27: 0 | R27: 0 | S27: 0 | T27: 0 | Z27: 2449 | AA27: Rick Porcello | AB27: =IF(AQ27<>0,VLOOKUP(AQ27,Info!A:B,2,FALSE),"") -> BOS | AC27: porri | AD27: 0.3142857143 | AE27: 0.02857142857 | AF27: 5.285714286 | AG27: 0.4857142857 | AH27: 0.02857142857 | AI27: 3.057142857 | AJ27: 0 | AK27: 0 | AL27: 0 | AM27: 0 | AO27: 2449 | AP27: Rick Porcello | AQ27: Boston Red Sox | AR27: porri | AS27: 35 | AT27: 11 | AU27: 1 | AV27: 185 | AW27: 17 | AX27: 1 | AY27: 107
A28: 3535 | B28: Roenis Elias | C28: BOS | D28: Buy | O28: 0 | P28: 0 | Q28: 0 | R28: 0 | S28: 0 | T28: 0 | Z28: 3535 | AA28: Roenis Elias | AB28: =IF(AQ28<>0,VLOOKUP(AQ28,Info!A:B,2,FALSE),"") -> BOS | AC28: eliro | AD28: 0.2285714286 | AE28: 0.02857142857 | AF28: 4.428571429 | AG28: 0.3714285714 | AH28: 0.02857142857 | AI28: 2.428571429 | AJ28: 0 | AK28: 0 | AL28: 0 | AM28: 0 | AO28: 3535 | AP28: Roenis Elias | AQ28: Boston Red Sox | AR28: eliro | AS28: 35 | AT28: 8 | AU28: 1 | AV28: 155 | AW28: 13 | AX28: 1 | AY28: 85
A29: 4037 | B29: Steven Wright | C29: BOS | D29: Buy | O29: 0 | P29: 0 | Q29: 0 | R29: 0 | S29: 0 | T29: 0 | Z29: 4037 | AA29: Steven Wright | AB29: =IF(AQ29<>0,VLOOKUP(AQ29,Info!A:B,2,FALSE),"") -> BOS | AC29: wrist | AD29: 0.5428571429 | AE29: 0.02857142857 | AF29: 4.857142857 | AG29: 0.2571428571 | AH29: 0.02857142857 | AI29: 2.571428571 | AJ29: 0 | AK29: 0 | AL29: 0 | AM29: 0 | AO29: 4037 | AP29: Steven Wright | AQ29: Boston Red Sox | AR29: wrist | AS29: 35 | AT29: 19 | AU29: 1 | AV29: 170 | AW29: 9 | AX29: 1 | AY29: 90
A30: 2685 | B30: Brian Duensing | C30: CHC | D30: Buy | O30: 0 | P30: 0 | Q30: 0 | R30: 0 | S30: 0 | T30: 0 | Z30: 2685 | AA30: Brian Duensing | AB30: =IF(AQ30<>0,VLOOKUP(AQ30,Info!A:B,2,FALSE),"") -> CHC | AC30: duebr | AD30: 0.2285714286 | AE30: 0.02857142857 | AF30: 2.142857143 | AG30: 0.1714285714 | AH30: 0.02857142857 | AI30: 2 | AJ30: 0 | AK30: 0 | AL30: 0 | AM30: 0 | AO30: 2685 | AP30: Brian Duensing | AQ30: Chicago Cubs | AR30: duebr | AS30: 35 | AT30: 8 | AU30: 1 | AV30: 75 | AW30: 6 | AX30: 1 | AY30: 70
A31: 2871 | B31: Jake Arrieta | C31: CHC | D31: Buy | O31: 0 | P31: 0 | Q31: 0 | R31: 0 | S31: 0 | T31: 0 | Z31: 2871 | AA31: Jake Arrieta | AB31: =IF(AQ31<>0,VLOOKUP(AQ31,Info!A:B,2,FALSE),"") -> CHC | AC31: arrja | AD31: 0.4571428571 | AE31: 0.02857142857 | AF31: 5.4 | AG31: 0.3714285714 | AH31: 0.02857142857 | AI31: 2.142857143 | AJ31: 0 | AK31: 0 | AL31: 0 | AM31: 0 | AO31: 2871 | AP31: Jake Arrieta | AQ31: Chicago Cubs | AR31: arrja | AS31: 35 | AT31: 16 | AU31: 1 | AV31: 189 | AW31: 13 | AX31: 1 | AY31: 75
A32: 378 | B32: John Lackey | C32: CHC | D32: Buy | O32: 0 | P32: 0 | Q32: 0 | R32: 0 | S32: 0 | T32: 0 | Z32: 378 | AA32: John Lackey | AB32: =IF(AQ32<>0,VLOOKUP(AQ32,Info!A:B,2,FALSE),"") -> CHC | AC32: lacjo | AD32: 0.3714285714 | AE32: 0.02857142857 | AF32: 4.571428571 | AG32: 0.3714285714 | AH32: 0.02857142857 | AI32: 2.714285714 | AJ32: 0 | AK32: 0 | AL32: 0 | AM32: 0 | AO32: 378 | AP32: John Lackey | AQ32: Chicago Cubs | AR32: lacjo | AS32: 35 | AT32: 13 | AU32: 1 | AV32: 160 | AW32: 13 | AX32: 1 | AY32: 95
A33: 1799 | B33: Jon Lester | C33: CHC | D33: Buy | O33: 0 | P33: 0 | Q33: 0 | R33: 0 | S33: 0 | T33: 0 | Z33: 1799 | AA33: Jon Lester | AB33: =IF(AQ33<>0,VLOOKUP(AQ33,Info!A:B,2,FALSE),"") -> CHC | AC33: lesjo | AD33: 0.3714285714 | AE33: 0.02857142857 | AF33: 5.342857143 | AG33: 0.2285714286 | AH33: 0.02857142857 | AI33: 2.571428571 | AJ33: 0 | AK33: 0 | AL33: 0 | AM33: 0 | AO33: 1799 | AP33: Jon Lester | AQ33: Chicago Cubs | AR33: lesjo | AS33: 35 | AT33: 13 | AU33: 1 | AV33: 187 | AW33: 8 | AX33: 1 | AY33: 90
A34: 3263 | B34: Jose Quintana | C34: CHC | D34: Buy | O34: 0 | P34: 0 | Q34: 0 | R34: 0 | S34: 0 | T34: 0 | Z34: 3263 | AA34: Jose Quintana | AB34: =IF(AQ34<>0,VLOOKUP(AQ34,Info!A:B,2,FALSE),"") -> CHC | AC34: quinj | AD34: 0.3142857143 | AE34: 0.02857142857 | AF34: 6.228571429 | AG34: 0.3142857143 | AH34: 0.02857142857 | AI34: 2.542857143 | AJ34: 0 | AK34: 0 | AL34: 0 | AM34: 0 | AO34: 3263 | AP34: Jose Quintana | AQ34: Chicago Cubs | AR34: quinj | AS34: 35 | AT34: 11 | AU34: 1 | AV34: 218 | AW34: 11 | AX34: 1 | AY34: 89
A35: 3872 | B35: Kyle Hendricks | C35: CHC | D35: Buy | O35: 0 | P35: 0 | Q35: 0 | R35: 0 | S35: 0 | T35: 0 | Z35: 3872 | AA35: Kyle Hendricks | AB35: =IF(AQ35<>0,VLOOKUP(AQ35,Info!A:B,2,FALSE),"") -> CHC | AC35: henky | AD35: 0.3142857143 | AE35: 0.02857142857 | AF35: 5.257142857 | AG35: 0.2 | AH35: 0.02857142857 | AI35: 2 | AJ35: 0 | AK35: 0 | AL35: 0 | AM35: 0 | AO35: 3872 | AP35: Kyle Hendricks | AQ35: Chicago Cubs | AR35: henky | AS35: 35 | AT35: 11 | AU35: 1 | AV35: 184 | AW35: 7 | AX35: 1 | AY35: 70
A36: 2210 | B36: Manny Parra | C36: CHC | D36: Buy | O36: 0 | P36: 0 | Q36: 0 | R36: 0 | S36: 0 | T36: 0 | Z36: 2210 | AA36: Manny Parra | AB36: =IF(AQ36<>0,VLOOKUP(AQ36,Info!A:B,2,FALSE),"") -> CHC | AC36: parrm | AD36: 0.2285714286 | AE36: 0.02857142857 | AF36: 2.142857143 | AG36: 0.1714285714 | AH36: 0.02857142857 | AI36: 2 | AJ36: 0 | AK36: 0 | AL36: 0 | AM36: 0 | AO36: 2210 | AP36: Manny Parra | AQ36: Chicago Cubs | AR36: parrm | AS36: 35 | AT36: 8 | AU36: 1 | AV36: 75 | AW36: 6 | AX36: 1 | AY36: 70
A37: 3871 | B37: Carlos Rodon | C37: CHW | D37: Buy | O37: 0 | P37: 0 | Q37: 0 | R37: 0 | S37: 0 | T37: 0 | Z37: 3871 | AA37: Carlos Rodon | AB37: =IF(AQ37<>0,VLOOKUP(AQ37,Info!A:B,2,FALSE),"") -> CHW | AC37: rodca | AD37: 0.2285714286 | AE37: 0.02857142857 | AF37: 6.342857143 | AG37: 0.4285714286 | AH37: 0.02857142857 | AI37: 2.685714286 | AJ37: 0 | AK37: 0 | AL37: 0 | AM37: 0 | AO37: 3871 | AP37: Carlos Rodon | AQ37: Chicago White Sox | AR37: rodca | AS37: 35 | AT37: 8 | AU37: 1 | AV37: 222 | AW37: 15 | AX37: 1 | AY37: 94
A38: 2846 | B38: Derek Holland | C38: CHW | D38: Buy | O38: 0 | P38: 0 | Q38: 0 | R38: 0 | S38: 0 | T38: 0 | Z38: 2846 | AA38: Derek Holland | AB38: =IF(AQ38<>0,VLOOKUP(AQ38,Info!A:B,2,FALSE),"") -> CHW | AC38: holde | AD38: 0.2571428571 | AE38: 0.02857142857 | AF38: 3.6 | AG38: 0.4857142857 | AH38: 0.02857142857 | AI38: 3.4 | AJ38: 0 | AK38: 0 | AL38: 0 | AM38: 0 | AO38: 2846 | AP38: Derek Holland | AQ38: Chicago White Sox | AR38: holde | AS38: 35 | AT38: 9 | AU38: 1 | AV38: 126 | AW38: 17 | AX38: 1 | AY38: 119
A39: 1983 | B39: James Shields | C39: CHW | D39: Buy | O39: 0 | P39: 0 | Q39: 0 | R39: 0 | S39: 0 | T39: 0 | Z39: 1983 | AA39: James Shields | AB39: =IF(AQ39<>0,VLOOKUP(AQ39,Info!A:B,2,FALSE),"") -> CHW | AC39: shija | AD39: 0.2571428571 | AE39: 0.02857142857 | AF39: 4.914285714 | AG39: 0.3428571429 | AH39: 0.02857142857 | AI39: 3.257142857 | AJ39: 0 | AK39: 0 | AL39: 0 | AM39: 0 | AO39: 1983 | AP39: James Shields | AQ39: Chicago White Sox | AR39: shija | AS39: 35 | AT39: 9 | AU39: 1 | AV39: 172 | AW39: 12 | AX39: 1 | AY39: 114
A40: 2229 | B40: Mike Pelfrey | C40: CHW | D40: Buy | O40: 0 | P40: 0 | Q40: 0 | R40: 0 | S40: 0 | T40: 0 | Z40: 2229 | AA40: Mike Pelfrey | AB40: =IF(AQ40<>0,VLOOKUP(AQ40,Info!A:B,2,FALSE),"") -> CHW | AC40: pelmi | AD40: 0.2285714286 | AE40: 0.02857142857 | AF40: 2.342857143 | AG40: 0.3714285714 | AH40: 0.02857142857 | AI40: 2.342857143 | AJ40: 0 | AK40: 0 | AL40: 0 | AM40: 0 | AO40: 2229 | AP40: Mike Pelfrey | AQ40: Chicago White Sox | AR40: pelmi | AS40: 35 | AT40: 8 | AU40: 1 | AV40: 82 | AW40: 13 | AX40: 1 | AY40: 82
A41: 4041 | B41: Anthony DeSclafani | C41: CIN | D41: Buy | O41: 0 | P41: 0 | Q41: 0 | R41: 0 | S41: 0 | T41: 0 | Z41: 4041 | AA41: Anthony DeSclafani | AB41: =IF(AQ41<>0,VLOOKUP(AQ41,Info!A:B,2,FALSE),"") -> CIN | AC41: desan | AD41: 0.4857142857 | AE41: 0.02857142857 | AF41: 5.428571429 | AG41: 0.2 | AH41: 0.02857142857 | AI41: 2.857142857 | AJ41: 0 | AK41: 0 | AL41: 0 | AM41: 0 | AO41: 4041 | AP41: Anthony DeSclafani | AQ41: Cincinnati Reds | AR41: desan | AS41: 35 | AT41: 17 | AU41: 1 | AV41: 190 | AW41: 7 | AX41: 1 | AY41: 100
A42: 1473 | B42: Bronson Arroyo | C42: CIN | D42: Buy | O42: 0 | P42: 0 | Q42: 0 | R42: 0 | S42: 0 | T42: 0 | Z42: 1473 | AA42: Bronson Arroyo | AB42: =IF(AQ42<>0,VLOOKUP(AQ42,Info!A:B,2,FALSE),"") -> CIN | AC42: arrbr | AD42: 0.2285714286 | AE42: 0.02857142857 | AF42: 3.228571429 | AG42: 0.4285714286 | AH42: 0.02857142857 | AI42: 4.142857143 | AJ42: 0 | AK42: 0 | AL42: 0 | AM42: 0 | AO42: 1473 | AP42: Bronson Arroyo | AQ42: Cincinnati Reds | AR42: arrbr | AS42: 35 | AT42: 8 | AU42: 1 | AV42: 113 | AW42: 15 | AX42: 1 | AY42: 145
A43: 2908 | B43: Homer Bailey | C43: CIN | D43: Buy | O43: 0 | P43: 0 | Q43: 0 | R43: 0 | S43: 0 | T43: 0 | Z43: 2908 | AA43: Homer Bailey | AB43: =IF(AQ43<>0,VLOOKUP(AQ43,Info!A:B,2,FALSE),"") -> CIN | AC43: baiho | AD43: 0.3714285714 | AE43: 0.02857142857 | AF43: 3.828571429 | AG43: 0.4857142857 | AH43: 0.02857142857 | AI43: 3.371428571 | AJ43: 0 | AK43: 0 | AL43: 0 | AM43: 0 | AO43: 2908 | AP43: Homer Bailey | AQ43: Cincinnati Reds | AR43: baiho | AS43: 35 | AT43: 13 | AU43: 1 | AV43: 134 | AW43: 17 | AX43: 1 | AY43: 118
A44: 2474 | B44: Scott Feldman | C44: CIN | D44: Buy | O44: 0 | P44: 0 | Q44: 0 | R44: 0 | S44: 0 | T44: 0 | Z44: 2474 | AA44: Scott Feldman | AB44: =IF(AQ44<>0,VLOOKUP(AQ44,Info!A:B,2,FALSE),"") -> CIN | AC44: felsc | AD44: 0.3428571429 | AE44: 0.02857142857 | AF44: 4.428571429 | AG44: 0.3428571429 | AH44: 0.05714285714 | AI44: 2.828571429 | AJ44: 0 | AK44: 0 | AL44: 0 | AM44: 0 | AO44: 2474 | AP44: Scott Feldman | AQ44: Cincinnati Reds | AR44: felsc | AS44: 35 | AT44: 12 | AU44: 1 | AV44: 155 | AW44: 12 | AX44: 2 | AY44: 99
A45: 2891 | B45: Carlos Carrasco | C45: CLE | D45: Buy | O45: 0 | P45: 0 | Q45: 0 | R45: 0 | S45: 0 | T45: 0 | Z45: 2891 | AA45: Carlos Carrasco | AB45: =IF(AQ45<>0,VLOOKUP(AQ45,Info!A:B,2,FALSE),"") -> CLE | AC45: carca | AD45: 0.5714285714 | AE45: 0.02857142857 | AF45: 7.085714286 | AG45: 0.2 | AH45: 0.02857142857 | AI45: 2.228571429 | AJ45: 0 | AK45: 0 | AL45: 0 | AM45: 0 | AO45: 2891 | AP45: Carlos Carrasco | AQ45: Cleveland Indians | AR45: carca | AS45: 35 | AT45: 20 | AU45: 1 | AV45: 248 | AW45: 7 | AX45: 1 | AY45: 78
A46: 3501 | B46: Corey Kluber | C46: CLE | D46: Buy | O46: 0 | P46: 0 | Q46: 0 | R46: 0 | S46: 0 | T46: 0 | Z46: 3501 | AA46: Corey Kluber | AB46: =IF(AQ46<>0,VLOOKUP(AQ46,Info!A:B,2,FALSE),"") -> CLE | AC46: kluco | AD46: 0.5714285714 | AE46: 0.02857142857 | AF46: 7.142857143 | AG46: 0.1714285714 | AH46: 0.1142857143 | AI46: 2 | AJ46: 0 | AK46: 0 | AL46: 0 | AM46: 0 | AO46: 3501 | AP46: Corey Kluber | AQ46: Cleveland Indians | AR46: kluco | AS46: 35 | AT46: 20 | AU46: 1 | AV46: 250 | AW46: 6 | AX46: 4 | AY46: 70
A47: 3511 | B47: Danny Salazar | C47: CLE | D47: Buy | O47: 0 | P47: 0 | Q47: 0 | R47: 0 | S47: 0 | T47: 0 | Z47: 3511 | AA47: Danny Salazar | AB47: =IF(AQ47<>0,VLOOKUP(AQ47,Info!A:B,2,FALSE),"") -> CLE | AC47: salda | AD47: 0.2285714286 | AE47: 0.02857142857 | AF47: 6.171428571 | AG47: 0.2571428571 | AH47: 0.02857142857 | AI47: 2.057142857 | AJ47: 0 | AK47: 0 | AL47: 0 | AM47: 0 | AO47: 3511 | AP47: Danny Salazar | AQ47: Cleveland Indians | AR47: salda | AS47: 35 | AT47: 8 | AU47: 1 | AV47: 216 | AW47: 9 | AX47: 1 | AY47: 72
A48: 2849 | B48: Josh Tomlin | C48: CLE | D48: Buy | O48: 0 | P48: 0 | Q48: 0 | R48: 0 | S48: 0 | T48: 0 | Z48: 2849 | AA48: Josh Tomlin | AB48: =IF(AQ48<>0,VLOOKUP(AQ48,Info!A:B,2,FALSE),"") -> CLE | AC48: tomjo | AD48: 0.4 | AE48: 0.02857142857 | AF48: 4.057142857 | AG48: 0.3428571429 | AH48: 0.02857142857 | AI48: 2.8 | AJ48: 0 | AK48: 0 | AL48: 0 | AM48: 0 | AO48: 2849 | AP48: Josh Tomlin | AQ48: Cleveland Indians | AR48: tomjo | AS48: 35 | AT48: 14 | AU48: 1 | AV48: 142 | AW48: 12 | AX48: 1 | AY48: 98
A49: 1965 | B49: Tom Gorzelanny | C49: CLE | D49: Buy | O49: 0 | P49: 0 | Q49: 0 | R49: 0 | S49: 0 | T49: 0 | Z49: 1965 | AA49: Tom Gorzelanny | AB49: =IF(AQ49<>0,VLOOKUP(AQ49,Info!A:B,2,FALSE),"") -> CLE | AC49: gorzt | AD49: 0.2285714286 | AE49: 0.02857142857 | AF49: 2.142857143 | AG49: 0.1714285714 | AH49: 0.02857142857 | AI49: 2 | AJ49: 0 | AK49: 0 | AL49: 0 | AM49: 0 | AO49: 1965 | AP49: Tom Gorzelanny | AQ49: Cleveland Indians | AR49: gorzt | AS49: 35 | AT49: 8 | AU49: 1 | AV49: 75 | AW49: 6 | AX49: 1 | AY49: 70
A50: 3836 | B50: Trevor Bauer | C50: CLE | D50: Buy | O50: 0 | P50: 0 | Q50: 0 | R50: 0 | S50: 0 | T50: 0 | Z50: 3836 | AA50: Trevor Bauer | AB50: =IF(AQ50<>0,VLOOKUP(AQ50,Info!A:B,2,FALSE),"") -> CLE | AC50: bautr | AD50: 0.5428571429 | AE50: 0.02857142857 | AF50: 6.114285714 | AG50: 0.3142857143 | AH50: 0.02857142857 | AI50: 2.428571429 | AJ50: 0 | AK50: 0 | AL50: 0 | AM50: 0 | AO50: 3836 | AP50: Trevor Bauer | AQ50: Cleveland Indians | AR50: bautr | AS50: 35 | AT50: 19 | AU50: 1 | AV50: 214 | AW50: 11 | AX50: 1 | AY50: 85
A51: 3308 | B51: Tyler Chatwood | C51: COL | D51: Buy | O51: 0 | P51: 0 | Q51: 0 | R51: 0 | S51: 0 | T51: 0 | Z51: 3308 | AA51: Tyler Chatwood | AB51: =IF(AQ51<>0,VLOOKUP(AQ51,Info!A:B,2,FALSE),"") -> COL | AC51: chaty | AD51: 0.2571428571 | AE51: 0.05714285714 | AF51: 3.657142857 | AG51: 0.4571428571 | AH51: 0.05714285714 | AI51: 2.314285714 | AJ51: 0 | AK51: 0 | AL51: 0 | AM51: 0 | AO51: 3308 | AP51: Tyler Chatwood | AQ51: Colorado Rockies | AR51: chaty | AS51: 35 | AT51: 9 | AU51: 2 | AV51: 128 | AW51: 16 | AX51: 2 | AY51: 81
A52: 2873 | B52: Anibal Sanchez | C52: DET | D52: Buy | O52: 0 | P52: 0 | Q52: 0 | R52: 0 | S52: 0 | T52: 0 | Z52: 2873 | AA52: Anibal Sanchez | AB52: =IF(AQ52<>0,VLOOKUP(AQ52,Info!A:B,2,FALSE),"") -> DET | AC52: sanan | AD52: 0.2285714286 | AE52: 0.02857142857 | AF52: 3.714285714 | AG52: 0.2857142857 | AH52: 0.02857142857 | AI52: 2.914285714 | AJ52: 0 | AK52: 0 | AL52: 0 | AM52: 0 | AO52: 2873 | AP52: Anibal Sanchez | AQ52: Detroit Tigers | AR52: sanan | AS52: 35 | AT52: 8 | AU52: 1 | AV52: 130 | AW52: 10 | AX52: 1 | AY52: 102
A53: 4174 | B53: Jim Bunning | C53: DET | D53: Buy | O53: 0 | P53: 0 | Q53: 0 | R53: 0 | S53: 0 | T53: 0 | Z53: 4174 | AA53: Jim Bunning | AB53: =IF(AQ53<>0,VLOOKUP(AQ53,Info!A:B,2,FALSE),"") -> DET | AC53: bunji | AD53: 1 | AE53: 1 | AF53: 1 | AG53: 1 | AH53: 1 | AI53: 1 | AJ53: 0 | AK53: 0 | AL53: 0 | AM53: 0 | AO53: 4174 | AP53: Jim Bunning | AQ53: Detroit Tigers | AR53: bunji | AS53: 1 | AT53: 1 | AU53: 1 | AV53: 1 | AW53: 1 | AX53: 1 | AY53: 1
A54: 2892 | B54: Jordan Zimmermann | C54: DET | D54: Buy | O54: 0 | P54: 0 | Q54: 0 | R54: 0 | S54: 0 | T54: 0 | Z54: 2892 | AA54: Jordan Zimmermann | AB54: =IF(AQ54<>0,VLOOKUP(AQ54,Info!A:B,2,FALSE),"") -> DET | AC54: zimjo | AD54: 0.2857142857 | AE54: 0.02857142857 | AF54: 3.571428571 | AG54: 0.4571428571 | AH54: 0.02857142857 | AI54: 3.742857143 | AJ54: 0 | AK54: 0 | AL54: 0 | AM54: 0 | AO54: 2892 | AP54: Jordan Zimmermann | AQ54: Detroit Tigers | AR54: zimjo | AS54: 35 | AT54: 10 | AU54: 1 | AV54: 125 | AW54: 16 | AX54: 1 | AY54: 131
A55: 4164 | B55: Michael Fulmer | C55: DET | D55: Buy | O55: 0 | P55: 0 | Q55: 0 | R55: 0 | S55: 0 | T55: 0 | Z55: 4164 | AA55: Michael Fulmer | AB55: =IF(AQ55<>0,VLOOKUP(AQ55,Info!A:B,2,FALSE),"") -> DET | AC55: fulmi | AD55: 0.4 | AE55: 0.02857142857 | AF55: 4.371428571 | AG55: 0.4857142857 | AH55: 0.02857142857 | AI55: 2.8 | AJ55: 0 | AK55: 0 | AL55: 0 | AM55: 0 | AO55: 4164 | AP55: Michael Fulmer | AQ55: Detroit Tigers | AR55: fulmi | AS55: 35 | AT55: 14 | AU55: 1 | AV55: 153 | AW55: 17 | AX55: 1 | AY55: 98
A56: 2435 | B56: Aaron Laffey | C56: XXX | D56: Buy | O56: 0 | P56: 0 | Q56: 0 | R56: 0 | S56: 0 | T56: 0 | Z56: 2435 | AA56: Aaron Laffey | AB56: =IF(AQ56<>0,VLOOKUP(AQ56,Info!A:B,2,FALSE),"") -> XXX | AC56: lafaa | AD56: 0.2285714286 | AE56: 0.02857142857 | AF56: 2.2 | AG56: 0.2857142857 | AH56: 0.02857142857 | AI56: 2.428571429 | AJ56: 0 | AK56: 0 | AL56: 0 | AM56: 0 | AO56: 2435 | AP56: Aaron Laffey | AQ56: FA/RET/DEC/HON | AR56: lafaa | AS56: 35 | AT56: 8 | AU56: 1 | AV56: 77 | AW56: 10 | AX56: 1 | AY56: 85
A57: 2660 | B57: Alfredo Simon | C57: XXX | D57: Buy | O57: 0 | P57: 0 | Q57: 0 | R57: 0 | S57: 0 | T57: 0 | Z57: 2660 | AA57: Alfredo Simon | AB57: =IF(AQ57<>0,VLOOKUP(AQ57,Info!A:B,2,FALSE),"") -> XXX | AC57: simal | AD57: 0.2285714286 | AE57: 0.02857142857 | AF57: 2.6 | AG57: 0.4857142857 | AH57: 0.02857142857 | AI57: 4.085714286 | AJ57: 0 | AK57: 0 | AL57: 0 | AM57: 0 | AO57: 2660 | AP57: Alfredo Simon | AQ57: FA/RET/DEC/HON | AR57: simal | AS57: 35 | AT57: 8 | AU57: 1 | AV57: 91 | AW57: 17 | AX57: 1 | AY57: 143
A58: 3066 | B58: Brandon Beachy | C58: XXX | D58: Buy | O58: 0 | P58: 0 | Q58: 0 | R58: 0 | S58: 0 | T58: 0 | Z58: 3066 | AA58: Brandon Beachy | AB58: =IF(AQ58<>0,VLOOKUP(AQ58,Info!A:B,2,FALSE),"") -> XXX | AC58: beabr | AD58: 0.4 | AE58: 0.02857142857 | AF58: 5.257142857 | AG58: 0.4 | AH58: 0.02857142857 | AI58: 2 | AJ58: 0 | AK58: 0 | AL58: 0 | AM58: 0 | AO58: 3066 | AP58: Brandon Beachy | AQ58: FA/RET/DEC/HON | AR58: beabr | AS58: 35 | AT58: 14 | AU58: 1 | AV58: 184 | AW58: 14 | AX58: 1 | AY58: 70
A59: 2202 | B59: C.J. Wilson | C59: XXX | D59: Buy | O59: 0 | P59: 0 | Q59: 0 | R59: 0 | S59: 0 | T59: 0 | Z59: 2202 | AA59: C.J. Wilson | AB59: =IF(AQ59<>0,VLOOKUP(AQ59,Info!A:B,2,FALSE),"") -> XXX | AC59: wilcj | AD59: 0.4 | AE59: 0.02857142857 | AF59: 5.257142857 | AG59: 0.4 | AH59: 0.02857142857 | AI59: 2.714285714 | AJ59: 0 | AK59: 0 | AL59: 0 | AM59: 0 | AO59: 2202 | AP59: C.J. Wilson | AQ59: FA/RET/DEC/HON | AR59: wilcj | AS59: 35 | AT59: 14 | AU59: 1 | AV59: 184 | AW59: 14 | AX59: 1 | AY59: 95
A60: 1527 | B60: Chris Capuano | C60: XXX | D60: Buy | O60: 0 | P60: 0 | Q60: 0 | R60: 0 | S60: 0 | T60: 0 | Z60: 1527 | AA60: Chris Capuano | AB60: =IF(AQ60<>0,VLOOKUP(AQ60,Info!A:B,2,FALSE),"") -> XXX | AC60: capch | AD60: 0.2285714286 | AE60: 0.02857142857 | AF60: 2.142857143 | AG60: 0.1714285714 | AH60: 0.02857142857 | AI60: 2 | AJ60: 0 | AK60: 0 | AL60: 0 | AM60: 0 | AO60: 1527 | AP60: Chris Capuano | AQ60: FA/RET/DEC/HON | AR60: capch | AS60: 35 | AT60: 8 | AU60: 1 | AV60: 75 | AW60: 6 | AX60: 1 | AY60: 70
A61: 2845 | B61: Colby Lewis | C61: XXX | D61: Buy | O61: 0 | P61: 0 | Q61: 0 | R61: 0 | S61: 0 | T61: 0 | Z61: 2845 | AA61: Colby Lewis | AB61: =IF(AQ61<>0,VLOOKUP(AQ61,Info!A:B,2,FALSE),"") -> XXX | AC61: lewco | AD61: 0.3142857143 | AE61: 0.02857142857 | AF61: 3.771428571 | AG61: 0.2571428571 | AH61: 0.02857142857 | AI61: 2.657142857 | AJ61: 0 | AK61: 0 | AL61: 0 | AM61: 0 | AO61: 2845 | AP61: Colby Lewis | AQ61: FA/RET/DEC/HON | AR61: lewco | AS61: 35 | AT61: 11 | AU61: 1 | AV61: 132 | AW61: 9 | AX61: 1 | AY61: 93
A62: 804 | B62: Jake Peavy | C62: XXX | D62: Buy | O62: 0 | P62: 0 | Q62: 0 | R62: 0 | S62: 0 | T62: 0 | Z62: 804 | AA62: Jake Peavy | AB62: =IF(AQ62<>0,VLOOKUP(AQ62,Info!A:B,2,FALSE),"") -> XXX | AC62: peaja | AD62: 0.2285714286 | AE62: 0.02857142857 | AF62: 3.314285714 | AG62: 0.3142857143 | AH62: 0.02857142857 | AI62: 2.342857143 | AJ62: 0 | AK62: 0 | AL62: 0 | AM62: 0 | AO62: 804 | AP62: Jake Peavy | AQ62: FA/RET/DEC/HON | AR62: peaja | AS62: 35 | AT62: 8 | AU62: 1 | AV62: 116 | AW62: 11 | AX62: 1 | AY62: 82
A63: 3151 | B63: Jarrod Parker | C63: XXX | D63: Buy | O63: 0 | P63: 0 | Q63: 0 | R63: 0 | S63: 0 | T63: 0 | Z63: 3151 | AA63: Jarrod Parker | AB63: =IF(AQ63<>0,VLOOKUP(AQ63,Info!A:B,2,FALSE),"") -> XXX | AC63: parja | AD63: 0.4285714286 | AE63: 0.02857142857 | AF63: 4.085714286 | AG63: 0.2285714286 | AH63: 0.02857142857 | AI63: 2.8 | AJ63: 0 | AK63: 0 | AL63: 0 | AM63: 0 | AO63: 3151 | AP63: Jarrod Parker | AQ63: FA/RET/DEC/HON | AR63: parja | AS63: 35 | AT63: 15 | AU63: 1 | AV63: 143 | AW63: 8 | AX63: 1 | AY63: 98
A64: 2179 | B64: John Danks | C64: XXX | D64: Buy | O64: 0 | P64: 0 | Q64: 0 | R64: 0 | S64: 0 | T64: 0 | Z64: 2179 | AA64: John Danks | AB64: =IF(AQ64<>0,VLOOKUP(AQ64,Info!A:B,2,FALSE),"") -> XXX | AC64: danjo | AD64: 0.2571428571 | AE64: 0.02857142857 | AF64: 4.142857143 | AG64: 0.5142857143 | AH64: 0.05714285714 | AI64: 3.057142857 | AJ64: 0 | AK64: 0 | AL64: 0 | AM64: 0 | AO64: 2179 | AP64: John Danks | AQ64: FA/RET/DEC/HON | AR64: danjo | AS64: 35 | AT64: 9 | AU64: 1 | AV64: 145 | AW64: 18 | AX64: 2 | AY64: 107
A65: 2667 | B65: Jonathon Niese | C65: XXX | D65: Buy | O65: 0 | P65: 0 | Q65: 0 | R65: 0 | S65: 0 | T65: 0 | Z65: 2667 | AA65: Jonathon Niese | AB65: =IF(AQ65<>0,VLOOKUP(AQ65,Info!A:B,2,FALSE),"") -> XXX | AC65: niesj | AD65: 0.2857142857 | AE65: 0.02857142857 | AF65: 3.057142857 | AG65: 0.2571428571 | AH65: 0.02857142857 | AI65: 2.657142857 | AJ65: 0 | AK65: 0 | AL65: 0 | AM65: 0 | AO65: 2667 | AP65: Jonathon Niese | AQ65: FA/RET/DEC/HON | AR65: niesj | AS65: 35 | AT65: 10 | AU65: 1 | AV65: 107 | AW65: 9 | AX65: 1 | AY65: 93
A66: 2848 | B66: Kyle Drabek | C66: XXX | D66: Buy | O66: 0 | P66: 0 | Q66: 0 | R66: 0 | S66: 0 | T66: 0 | Z66: 2848 | AA66: Kyle Drabek | AB66: =IF(AQ66<>0,VLOOKUP(AQ66,Info!A:B,2,FALSE),"") -> XXX | AC66: draky | AD66: 0.3142857143 | AE66: 0.02857142857 | AF66: 3.628571429 | AG66: 0.5428571429 | AH66: 0.02857142857 | AI66: 3 | AJ66: 0 | AK66: 0 | AL66: 0 | AM66: 0 | AO66: 2848 | AP66: Kyle Drabek | AQ66: FA/RET/DEC/HON | AR66: draky | AS66: 35 | AT66: 11 | AU66: 1 | AV66: 127 | AW66: 19 | AX66: 1 | AY66: 105
A67: =IF(Z67<>0,Z67,"") -> 2471 | B67: =IF(A67<>0,VLOOKUP(A67,Z:AA,2,FALSE),"") -> Luke Hochevar | C67: =IF(A67<>0,VLOOKUP(A67,Z:AB,3,FALSE)) -> XXX | D67: =HYPERLINK("http://www.jockstocks.com/buysell.php?action=buymax&plid="&A67,"Buy") -> Buy | O67: =VLOOKUP($A67,$A:$N,5,FALSE)/VLOOKUP($A67,$Z:$AM,5,FALSE) -> 0 | P67: =VLOOKUP($A67,$A:$N,6,FALSE)/VLOOKUP($A67,$Z:$AM,6,FALSE) -> 0 | Q67: =VLOOKUP($A67,$A:$N,7,FALSE)/VLOOKUP($A67,$Z:$AM,7,FALSE) -> 0 | R67: =VLOOKUP($A67,$A:$N,8,FALSE)/VLOOKUP($A67,$Z:$AM,8,FALSE) -> 0 | S67: =VLOOKUP($A67,$A:$N,9,FALSE)/VLOOKUP($A67,$Z:$AM,9,FALSE) -> 0 | T67: =VLOOKUP($A67,$A:$N,10,FALSE)/VLOOKUP($A67,$Z:$AM,10,FALSE) -> 0 | U67: =VLOOKUP($A67,$A:$N,11,FALSE)/VLOOKUP($A67,$Z:$AM,11,FALSE) ->  | V67: =VLOOKUP($A67,$A:$N,12,FALSE)/VLOOKUP($A67,$Z:$AM,12,FALSE) ->  | W67: =VLOOKUP($A67,$A:$N,13,FALSE)/VLOOKUP($A67,$Z:$AM,13,FALSE) ->  | X67: =VLOOKUP($A67,$A:$N,14,FALSE)/VLOOKUP($A67,$Z:$AM,14,FALSE) ->  | Z67: =IF(AO67<>0,AO67,"") -> 2471 | AA67: =IF(AP67<>0,VLOOKUP(Z67,AO:AP,2,FALSE),"") -> Luke Hochevar | AB67: =IF(AQ67<>0,VLOOKUP(AQ67,Info!A:B,2,FALSE),"") -> XXX | AC67: =IF(AO67<>0,VLOOKUP(Z67,AO:AR,4,FALSE),"") -> hoclu | AD67: =IF($AO67<>0,AT67/$AS67,"") -> 0.2285714286 | AE67: =IF($AO67<>0,AU67/$AS67,"") -> 0.02857142857 | AF67: =IF($AO67<>0,AV67/$AS67,"") -> 2.142857143 | AG67: =IF($AO67<>0,AW67/$AS67,"") -> 0.1714285714 | AH67: =IF($AO67<>0,AX67/$AS67,"") -> 0.02857142857 | AI67: =IF($AO67<>0,AY67/$AS67,"") -> 2 | AJ67: =IF($AO67<>0,BL67/$AS67,"") -> 0 | AK67: =IF($AO67<>0,BM67/$AS67,"") -> 0 | AL67: =IF($AO67<>0,BN67/$AS67,"") -> 0 | AM67: =IF($AO67<>0,BO67/$AS67,"") -> 0 | AO67: 2471 | AP67: Luke Hochevar | AQ67: FA/RET/DEC/HON | AR67: hoclu | AS67: 35 | AT67: 8 | AU67: 1 | AV67: 75 | AW67: 6 | AX67: 1 | AY67: 70
A68: 744 | B68: Mark Buehrle | C68: XXX | D68: Buy | O68: 0 | P68: 0 | Q68: 0 | R68: 0 | S68: 0 | T68: 0 | Z68: 744 | AA68: Mark Buehrle | AB68: =IF(AQ68<>0,VLOOKUP(AQ68,Info!A:B,2,FALSE),"") -> XXX | AC68: buema | AD68: 0.4857142857 | AE68: 0.02857142857 | AF68: 2.857142857 | AG68: 0.2571428571 | AH68: 0.05714285714 | AI68: 2.628571429 | AJ68: 0 | AK68: 0 | AL68: 0 | AM68: 0 | AO68: 744 | AP68: Mark Buehrle | AQ68: FA/RET/DEC/HON | AR68: buema | AS68: 35 | AT68: 17 | AU68: 1 | AV68: 100 | AW68: 9 | AX68: 2 | AY68: 92
A69: 3086 | B69: Matt Harrison | C69: XXX | D69: Buy | O69: 0 | P69: 0 | Q69: 0 | R69: 0 | S69: 0 | T69: 0 | Z69: 3086 | AA69: Matt Harrison | AB69: =IF(AQ69<>0,VLOOKUP(AQ69,Info!A:B,2,FALSE),"") -> XXX | AC69: harrm | AD69: 0.5714285714 | AE69: 0.02857142857 | AF69: 4.171428571 | AG69: 0.3714285714 | AH69: 0.05714285714 | AI69: 2.457142857 | AJ69: 0 | AK69: 0 | AL69: 0 | AM69: 0 | AO69: 3086 | AP69: Matt Harrison | AQ69: FA/RET/DEC/HON | AR69: harrm | AS69: 35 | AT69: 20 | AU69: 1 | AV69: 146 | AW69: 13 | AX69: 2 | AY69: 86
A70: 1978 | B70: Roberto Hernandez | C70: XXX | D70: Buy | O70: 0 | P70: 0 | Q70: 0 | R70: 0 | S70: 0 | T70: 0 | Z70: 1978 | AA70: Roberto Hernandez | AB70: =IF(AQ70<>0,VLOOKUP(AQ70,Info!A:B,2,FALSE),"") -> XXX | AC70: herro | AD70: 0.2285714286 | AE70: 0.02857142857 | AF70: 2.142857143 | AG70: 0.2571428571 | AH70: 0.02857142857 | AI70: 2.057142857 | AJ70: 0 | AK70: 0 | AL70: 0 | AM70: 0 | AO70: 1978 | AP70: Roberto Hernandez | AQ70: FA/RET/DEC/HON | AR70: herro | AS70: 35 | AT70: 8 | AU70: 1 | AV70: 75 | AW70: 9 | AX70: 1 | AY70: 72
A71: 751 | B71: Roy Halladay | C71: XXX | D71: Buy | O71: 0 | P71: 0 | Q71: 0 | R71: 0 | S71: 0 | T71: 0 | Z71: 751 | AA71: Roy Halladay | AB71: =IF(AQ71<>0,VLOOKUP(AQ71,Info!A:B,2,FALSE),"") -> XXX | AC71: halro | AD71: 0.3142857143 | AE71: 0.02857142857 | AF71: 3.942857143 | AG71: 0.4 | AH71: 0.02857142857 | AI71: 3.628571429 | AJ71: 0 | AK71: 0 | AL71: 0 | AM71: 0 | AO71: 751 | AP71: Roy Halladay | AQ71: FA/RET/DEC/HON | AR71: halro | AS71: 35 | AT71: 11 | AU71: 1 | AV71: 138 | AW71: 14 | AX71: 1 | AY71: 127
A72: 2887 | B72: Ryan Vogelsong | C72: XXX | D72: Buy | O72: 0 | P72: 0 | Q72: 0 | R72: 0 | S72: 0 | T72: 0 | Z72: 2887 | AA72: Ryan Vogelsong | AB72: =IF(AQ72<>0,VLOOKUP(AQ72,Info!A:B,2,FALSE),"") -> XXX | AC72: vogry | AD72: 0.2285714286 | AE72: 0.02857142857 | AF72: 2.542857143 | AG72: 0.3142857143 | AH72: 0.02857142857 | AI72: 2 | AJ72: 0 | AK72: 0 | AL72: 0 | AM72: 0 | AO72: 2887 | AP72: Ryan Vogelsong | AQ72: FA/RET/DEC/HON | AR72: vogry | AS72: 35 | AT72: 8 | AU72: 1 | AV72: 89 | AW72: 11 | AX72: 1 | AY72: 70
A73: 1992 | B73: Tim Lincecum | C73: XXX | D73: Buy | O73: 0 | P73: 0 | Q73: 0 | R73: 0 | S73: 0 | T73: 0 | Z73: 1992 | AA73: Tim Lincecum | AB73: =IF(AQ73<>0,VLOOKUP(AQ73,Info!A:B,2,FALSE),"") -> XXX | AC73: linti | AD73: 0.4857142857 | AE73: 0.02857142857 | AF73: 4 | AG73: 0.2857142857 | AH73: 0.02857142857 | AI73: 2.342857143 | AJ73: 0 | AK73: 0 | AL73: 0 | AM73: 0 | AO73: 1992 | AP73: Tim Lincecum | AQ73: FA/RET/DEC/HON | AR73: linti | AS73: 35 | AT73: 17 | AU73: 1 | AV73: 140 | AW73: 10 | AX73: 1 | AY73: 82
A74: 3505 | B74: Yordano Ventura | C74: XXX | D74: Buy | O74: 0 | P74: 0 | Q74: 0 | R74: 0 | S74: 0 | T74: 0 | Z74: 3505 | AA74: Yordano Ventura | AB74: =IF(AQ74<>0,VLOOKUP(AQ74,Info!A:B,2,FALSE),"") -> XXX | AC74: venyo | AD74: 0.3714285714 | AE74: 0.02857142857 | AF74: 4.514285714 | AG74: 0.4 | AH74: 0.02857142857 | AI74: 2.885714286 | AJ74: 0 | AK74: 0 | AL74: 0 | AM74: 0 | AO74: 3505 | AP74: Yordano Ventura | AQ74: FA/RET/DEC/HON | AR74: venyo | AS74: 35 | AT74: 13 | AU74: 1 | AV74: 158 | AW74: 14 | AX74: 1 | AY74: 101
A75: 3574 | B75: Charlie Morton | C75: HOU | D75: Buy | O75: 0 | P75: 0 | Q75: 0 | R75: 0 | S75: 0 | T75: 0 | Z75: 3574 | AA75: Charlie Morton | AB75: =IF(AQ75<>0,VLOOKUP(AQ75,Info!A:B,2,FALSE),"") -> HOU | AC75: morch | AD75: 0.5428571429 | AE75: 0.02857142857 | AF75: 6.371428571 | AG75: 0.3142857143 | AH75: 0.02857142857 | AI75: 2.542857143 | AJ75: 0 | AK75: 0 | AL75: 0 | AM75: 0 | AO75: 3574 | AP75: Charlie Morton | AQ75: Houston Astros | AR75: morch | AS75: 35 | AT75: 19 | AU75: 1 | AV75: 223 | AW75: 11 | AX75: 1 | AY75: 89
A76: 3547 | B76: Collin McHugh | C76: HOU | D76: Buy | O76: 0 | P76: 0 | Q76: 0 | R76: 0 | S76: 0 | T76: 0 | Z76: 3547 | AA76: Collin McHugh | AB76: =IF(AQ76<>0,VLOOKUP(AQ76,Info!A:B,2,FALSE),"") -> HOU | AC76: mchco | AD76: 0.4 | AE76: 0.02857142857 | AF76: 5 | AG76: 0.1714285714 | AH76: 0.02857142857 | AI76: 2 | AJ76: 0 | AK76: 0 | AL76: 0 | AM76: 0 | AO76: 3547 | AP76: Collin McHugh | AQ76: Houston Astros | AR76: mchco | AS76: 35 | AT76: 14 | AU76: 1 | AV76: 175 | AW76: 6 | AX76: 1 | AY76: 70
A77: 3555 | B77: Dallas Keuchel | C77: HOU | D77: Buy | O77: 0 | P77: 0 | Q77: 0 | R77: 0 | S77: 0 | T77: 0 | Z77: 3555 | AA77: Dallas Keuchel | AB77: =IF(AQ77<>0,VLOOKUP(AQ77,Info!A:B,2,FALSE),"") -> HOU | AC77: keuda | AD77: 0.5714285714 | AE77: 0.02857142857 | AF77: 5.685714286 | AG77: 0.2 | AH77: 0.02857142857 | AI77: 2 | AJ77: 0 | AK77: 0 | AL77: 0 | AM77: 0 | AO77: 3555 | AP77: Dallas Keuchel | AQ77: Houston Astros | AR77: keuda | AS77: 35 | AT77: 20 | AU77: 1 | AV77: 199 | AW77: 7 | AX77: 1 | AY77: 70
A78: 1785 | B78: Francisco Liriano | C78: HOU | D78: Buy | O78: 0 | P78: 0 | Q78: 0 | R78: 0 | S78: 0 | T78: 0 | Z78: 1785 | AA78: Francisco Liriano | AB78: =IF(AQ78<>0,VLOOKUP(AQ78,Info!A:B,2,FALSE),"") -> HOU | AC78: lirfr | AD78: 0.2285714286 | AE78: 0.02857142857 | AF78: 2.142857143 | AG78: 0.2 | AH78: 0.02857142857 | AI78: 2 | AJ78: 0 | AK78: 0 | AL78: 0 | AM78: 0 | AO78: 1785 | AP78: Francisco Liriano | AQ78: Houston Astros | AR78: lirfr | AS78: 35 | AT78: 8 | AU78: 1 | AV78: 75 | AW78: 7 | AX78: 1 | AY78: 70
A79: 1762 | B79: Justin Verlander | C79: HOU | D79: Buy | O79: 0 | P79: 0 | Q79: 0 | R79: 0 | S79: 0 | T79: 0 | Z79: 1762 | AA79: Justin Verlander | AB79: =IF(AQ79<>0,VLOOKUP(AQ79,Info!A:B,2,FALSE),"") -> HOU | AC79: verju | AD79: 0.5142857143 | AE79: 0.02857142857 | AF79: 6.542857143 | AG79: 0.2285714286 | AH79: 0.02857142857 | AI79: 2.257142857 | AJ79: 0 | AK79: 0 | AL79: 0 | AM79: 0 | AO79: 1762 | AP79: Justin Verlander | AQ79: Houston Astros | AR79: verju | AS79: 35 | AT79: 18 | AU79: 1 | AV79: 229 | AW79: 8 | AX79: 1 | AY79: 79
A80: 3873 | B80: Lance McCullers | C80: HOU | D80: Buy | O80: 0 | P80: 0 | Q80: 0 | R80: 0 | S80: 0 | T80: 0 | Z80: 3873 | AA80: Lance McCullers | AB80: =IF(AQ80<>0,VLOOKUP(AQ80,Info!A:B,2,FALSE),"") -> HOU | AC80: mccla | AD80: 0.3142857143 | AE80: 0.02857142857 | AF80: 5.914285714 | AG80: 0.2 | AH80: 0.02857142857 | AI80: 2.542857143 | AJ80: 0 | AK80: 0 | AL80: 0 | AM80: 0 | AO80: 3873 | AP80: Lance McCullers | AQ80: Houston Astros | AR80: mccla | AS80: 35 | AT80: 11 | AU80: 1 | AV80: 207 | AW80: 7 | AX80: 1 | AY80: 89
A81: 3800 | B81: Mike Fiers | C81: HOU | D81: Buy | O81: 0 | P81: 0 | Q81: 0 | R81: 0 | S81: 0 | T81: 0 | Z81: 3800 | AA81: Mike Fiers | AB81: =IF(AQ81<>0,VLOOKUP(AQ81,Info!A:B,2,FALSE),"") -> HOU | AC81: fiemi | AD81: 0.2857142857 | AE81: 0.02857142857 | AF81: 5.057142857 | AG81: 0.3714285714 | AH81: 0.02857142857 | AI81: 3.114285714 | AJ81: 0 | AK81: 0 | AL81: 0 | AM81: 0 | AO81: 3800 | AP81: Mike Fiers | AQ81: Houston Astros | AR81: fiemi | AS81: 35 | AT81: 10 | AU81: 1 | AV81: 177 | AW81: 13 | AX81: 1 | AY81: 109
A82: 1502 | B82: Chris Young | C82: KAN | D82: Buy | O82: 0 | P82: 0 | Q82: 0 | R82: 0 | S82: 0 | T82: 0 | Z82: 1502 | AA82: Chris Young | AB82: =IF(AQ82<>0,VLOOKUP(AQ82,Info!A:B,2,FALSE),"") -> KAN | AC82: youch | AD82: 0.2285714286 | AE82: 0.02857142857 | AF82: 2.142857143 | AG82: 0.1714285714 | AH82: 0.02857142857 | AI82: 2 | AJ82: 0 | AK82: 0 | AL82: 0 | AM82: 0 | AO82: 1502 | AP82: Chris Young | AQ82: Kansas City Royals | AR82: youch | AS82: 35 | AT82: 8 | AU82: 1 | AV82: 75 | AW82: 6 | AX82: 1 | AY82: 70
A83: 3044 | B83: Danny Duffy | C83: KAN | D83: Buy | O83: 0 | P83: 0 | Q83: 0 | R83: 0 | S83: 0 | T83: 0 | Z83: 3044 | AA83: Danny Duffy | AB83: =IF(AQ83<>0,VLOOKUP(AQ83,Info!A:B,2,FALSE),"") -> KAN | AC83: dufda | AD83: 0.4 | AE83: 0.02857142857 | AF83: 5.428571429 | AG83: 0.4285714286 | AH83: 0.02857142857 | AI83: 2.6 | AJ83: 0 | AK83: 0 | AL83: 0 | AM83: 0 | AO83: 3044 | AP83: Danny Duffy | AQ83: Kansas City Royals | AR83: dufda | AS83: 35 | AT83: 14 | AU83: 1 | AV83: 190 | AW83: 15 | AX83: 1 | AY83: 91
A84: 2622 | B84: Ian Kennedy | C84: KAN | D84: Buy | O84: 0 | P84: 0 | Q84: 0 | R84: 0 | S84: 0 | T84: 0 | Z84: 2622 | AA84: Ian Kennedy | AB84: =IF(AQ84<>0,VLOOKUP(AQ84,Info!A:B,2,FALSE),"") -> KAN | AC84: kenia | AD84: 0.2285714286 | AE84: 0.02857142857 | AF84: 4.371428571 | AG84: 0.4571428571 | AH84: 0.02857142857 | AI84: 3.085714286 | AJ84: 0 | AK84: 0 | AL84: 0 | AM84: 0 | AO84: 2622 | AP84: Ian Kennedy | AQ84: Kansas City Royals | AR84: kenia | AS84: 35 | AT84: 8 | AU84: 1 | AV84: 153 | AW84: 16 | AX84: 1 | AY84: 108
A85: 2664 | B85: Jason Hammel | C85: KAN | D85: Buy | O85: 0 | P85: 0 | Q85: 0 | R85: 0 | S85: 0 | T85: 0 | Z85: 2664 | AA85: Jason Hammel | AB85: =IF(AQ85<>0,VLOOKUP(AQ85,Info!A:B,2,FALSE),"") -> KAN | AC85: hamja | AD85: 0.2571428571 | AE85: 0.02857142857 | AF85: 4.542857143 | AG85: 0.4285714286 | AH85: 0.02857142857 | AI85: 3.314285714 | AJ85: 0 | AK85: 0 | AL85: 0 | AM85: 0 | AO85: 2664 | AP85: Jason Hammel | AQ85: Kansas City Royals | AR85: hamja | AS85: 35 | AT85: 9 | AU85: 1 | AV85: 159 | AW85: 15 | AX85: 1 | AY85: 116
A86: 2669 | B86: Jason Vargas | C86: KAN | D86: Buy | O86: 0 | P86: 0 | Q86: 0 | R86: 0 | S86: 0 | T86: 0 | Z86: 2669 | AA86: Jason Vargas | AB86: =IF(AQ86<>0,VLOOKUP(AQ86,Info!A:B,2,FALSE),"") -> KAN | AC86: vargj | AD86: 0.5714285714 | AE86: 0.02857142857 | AF86: 4.2 | AG86: 0.3714285714 | AH86: 0.05714285714 | AI86: 2.6 | AJ86: 0 | AK86: 0 | AL86: 0 | AM86: 0 | AO86: 2669 | AP86: Jason Vargas | AQ86: Kansas City Royals | AR86: vargj | AS86: 35 | AT86: 20 | AU86: 1 | AV86: 147 | AW86: 13 | AX86: 2 | AY86: 91
A87: 3046 | B87: Mike Minor | C87: KAN | D87: Buy | O87: 0 | P87: 0 | Q87: 0 | R87: 0 | S87: 0 | T87: 0 | Z87: 3046 | AA87: Mike Minor | AB87: =IF(AQ87<>0,VLOOKUP(AQ87,Info!A:B,2,FALSE),"") -> KAN | AC87: minom | AD87: 0.2285714286 | AE87: 0.1142857143 | AF87: 2.142857143 | AG87: 0.1714285714 | AH87: 0.02857142857 | AI87: 2 | AJ87: 0 | AK87: 0 | AL87: 0 | AM87: 0 | AO87: 3046 | AP87: Mike Minor | AQ87: Kansas City Royals | AR87: minom | AS87: 35 | AT87: 8 | AU87: 4 | AV87: 75 | AW87: 6 | AX87: 1 | AY87: 70
A88: 2662 | B88: Trevor Cahill | C88: KAN | D88: Buy | O88: 0 | P88: 0 | Q88: 0 | R88: 0 | S88: 0 | T88: 0 | Z88: 2662 | AA88: Trevor Cahill | AB88: =IF(AQ88<>0,VLOOKUP(AQ88,Info!A:B,2,FALSE),"") -> KAN | AC88: cahtr | AD88: 0.2285714286 | AE88: 0.02857142857 | AF88: 4.142857143 | AG88: 0.1714285714 | AH88: 0.02857142857 | AI88: 2.2 | AJ88: 0 | AK88: 0 | AL88: 0 | AM88: 0 | AO88: 2662 | AP88: Trevor Cahill | AQ88: Kansas City Royals | AR88: cahtr | AS88: 35 | AT88: 8 | AU88: 1 | AV88: 145 | AW88: 6 | AX88: 1 | AY88: 77
A89: 2628 | B89: Bud Norris | C89: LAA | D89: Buy | O89: 0 | P89: 0 | Q89: 0 | R89: 0 | S89: 0 | T89: 0 | Z89: 2628 | AA89: Bud Norris | AB89: =IF(AQ89<>0,VLOOKUP(AQ89,Info!A:B,2,FALSE),"") -> LAA | AC89: norbu | AD89: 0.2285714286 | AE89: 0.3428571429 | AF89: 2.142857143 | AG89: 0.1714285714 | AH89: 0.02857142857 | AI89: 2 | AJ89: 0 | AK89: 0 | AL89: 0 | AM89: 0 | AO89: 2628 | AP89: Bud Norris | AQ89: Los Angeles Angels | AR89: norbu | AS89: 35 | AT89: 8 | AU89: 12 | AV89: 75 | AW89: 6 | AX89: 1 | AY89: 70
A90: 3570 | B90: Garrett Richards | C90: LAA | D90: Buy | O90: 0 | P90: 0 | Q90: 0 | R90: 0 | S90: 0 | T90: 0 | Z90: 3570 | AA90: Garrett Richards | AB90: =IF(AQ90<>0,VLOOKUP(AQ90,Info!A:B,2,FALSE),"") -> LAA | AC90: ricga | AD90: 0.4857142857 | AE90: 0.02857142857 | AF90: 5.514285714 | AG90: 0.4 | AH90: 0.05714285714 | AI90: 2.628571429 | AJ90: 0 | AK90: 0 | AL90: 0 | AM90: 0 | AO90: 3570 | AP90: Garrett Richards | AQ90: Los Angeles Angels | AR90: ricga | AS90: 35 | AT90: 17 | AU90: 1 | AV90: 193 | AW90: 14 | AX90: 2 | AY90: 92
A91: 4180 | B91: JC Ramirez | C91: LAA | D91: Buy | O91: 0 | P91: 0 | Q91: 0 | R91: 0 | S91: 0 | T91: 0 | Z91: 4180 | AA91: JC Ramirez | AB91: =IF(AQ91<>0,VLOOKUP(AQ91,Info!A:B,2,FALSE),"") -> LAA | AC91: ramjc | AD91: 0.4285714286 | AE91: 0.02857142857 | AF91: 3.914285714 | AG91: 0.3714285714 | AH91: 0.02857142857 | AI91: 2.542857143 | AJ91: 0 | AK91: 0 | AL91: 0 | AM91: 0 | AO91: 4180 | AP91: JC Ramirez | AQ91: Los Angeles Angels | AR91: ramjc | AS91: 35 | AT91: 15 | AU91: 1 | AV91: 137 | AW91: 13 | AX91: 1 | AY91: 89
A92: 3553 | B92: Jesse Chavez | C92: LAA | D92: Buy | O92: 0 | P92: 0 | Q92: 0 | R92: 0 | S92: 0 | T92: 0 | Z92: 3553 | AA92: Jesse Chavez | AB92: =IF(AQ92<>0,VLOOKUP(AQ92,Info!A:B,2,FALSE),"") -> LAA | AC92: chaje | AD92: 0.2285714286 | AE92: 0.02857142857 | AF92: 3.142857143 | AG92: 0.3142857143 | AH92: 0.02857142857 | AI92: 2.2 | AJ92: 0 | AK92: 0 | AL92: 0 | AM92: 0 | AO92: 3553 | AP92: Jesse Chavez | AQ92: Los Angeles Angels | AR92: chaje | AS92: 35 | AT92: 8 | AU92: 1 | AV92: 110 | AW92: 11 | AX92: 1 | AY92: 77
A93: 3571 | B93: Matt Shoemaker | C93: LAA | D93: Buy | O93: 0 | P93: 0 | Q93: 0 | R93: 0 | S93: 0 | T93: 0 | Z93: 3571 | AA93: Matt Shoemaker | AB93: =IF(AQ93<>0,VLOOKUP(AQ93,Info!A:B,2,FALSE),"") -> LAA | AC93: shoma | AD93: 0.4285714286 | AE93: 0.02857142857 | AF93: 4.942857143 | AG93: 0.2285714286 | AH93: 0.02857142857 | AI93: 2.8 | AJ93: 0 | AK93: 0 | AL93: 0 | AM93: 0 | AO93: 3571 | AP93: Matt Shoemaker | AQ93: Los Angeles Angels | AR93: shoma | AS93: 35 | AT93: 15 | AU93: 1 | AV93: 173 | AW93: 8 | AX93: 1 | AY93: 98
A94: 1820 | B94: Ricky Nolasco | C94: LAA | D94: Buy | O94: 0 | P94: 0 | Q94: 0 | R94: 0 | S94: 0 | T94: 0 | Z94: 1820 | AA94: Ricky Nolasco | AB94: =IF(AQ94<>0,VLOOKUP(AQ94,Info!A:B,2,FALSE),"") -> LAA | AC94: nolri | AD94: 0.2285714286 | AE94: 0.02857142857 | AF94: 4.342857143 | AG94: 0.4571428571 | AH94: 0.02857142857 | AI94: 2.885714286 | AJ94: 0 | AK94: 0 | AL94: 0 | AM94: 0 | AO94: 1820 | AP94: Ricky Nolasco | AQ94: Los Angeles Angels | AR94: nolri | AS94: 35 | AT94: 8 | AU94: 1 | AV94: 152 | AW94: 16 | AX94: 1 | AY94: 101
A95: 3803 | B95: Alex Wood | C95: LAD | D95: Buy | O95: 0 | P95: 0 | Q95: 0 | R95: 0 | S95: 0 | T95: 0 | Z95: 3803 | AA95: Alex Wood | AB95: =IF(AQ95<>0,VLOOKUP(AQ95,Info!A:B,2,FALSE),"") -> LAD | AC95: wooal | AD95: 0.5714285714 | AE95: 0.02857142857 | AF95: 5.6 | AG95: 0.1714285714 | AH95: 0.02857142857 | AI95: 2 | AJ95: 0 | AK95: 0 | AL95: 0 | AM95: 0 | AO95: 3803 | AP95: Alex Wood | AQ95: Los Angeles Dodgers | AR95: wooal | AS95: 35 | AT95: 20 | AU95: 1 | AV95: 196 | AW95: 6 | AX95: 1 | AY95: 70
A96: 1982 | B96: Brandon McCarthy | C96: LAD | D96: Buy | O96: 0 | P96: 0 | Q96: 0 | R96: 0 | S96: 0 | T96: 0 | Z96: 1982 | AA96: Brandon McCarthy | AB96: =IF(AQ96<>0,VLOOKUP(AQ96,Info!A:B,2,FALSE),"") -> LAD | AC96: mcbra | AD96: 0.3428571429 | AE96: 0.02857142857 | AF96: 3.8 | AG96: 0.2285714286 | AH96: 0.02857142857 | AI96: 2.171428571 | AJ96: 0 | AK96: 0 | AL96: 0 | AM96: 0 | AO96: 1982 | AP96: Brandon McCarthy | AQ96: Los Angeles Dodgers | AR96: mcbra | AS96: 35 | AT96: 12 | AU96: 1 | AV96: 133 | AW96: 8 | AX96: 1 | AY96: 76
A97: 2422 | B97: Brandon Morrow | C97: LAD | D97: Buy | O97: 0 | P97: 0 | Q97: 0 | R97: 0 | S97: 0 | T97: 0 | Z97: 2422 | AA97: Brandon Morrow | AB97: =IF(AQ97<>0,VLOOKUP(AQ97,Info!A:B,2,FALSE),"") -> LAD | AC97: mobra | AD97: 0.2285714286 | AE97: 0.05714285714 | AF97: 2.142857143 | AG97: 0.1714285714 | AH97: 0.02857142857 | AI97: 2 | AJ97: 0 | AK97: 0 | AL97: 0 | AM97: 0 | AO97: 2422 | AP97: Brandon Morrow | AQ97: Los Angeles Dodgers | AR97: mobra | AS97: 35 | AT97: 8 | AU97: 2 | AV97: 75 | AW97: 6 | AX97: 1 | AY97: 70
A98: 2428 | B98: Clayton Kershaw | C98: LAD | D98: Buy | O98: 0 | P98: 0 | Q98: 0 | R98: 0 | S98: 0 | T98: 0 | Z98: 2428 | AA98: Clayton Kershaw | AB98: =IF(AQ98<>0,VLOOKUP(AQ98,Info!A:B,2,FALSE),"") -> LAD | AC98: kercl | AD98: 0.5714285714 | AE98: 0.02857142857 | AF98: 7.142857143 | AG98: 0.1714285714 | AH98: 0.02857142857 | AI98: 2 | AJ98: 0 | AK98: 0 | AL98: 0 | AM98: 0 | AO98: 2428 | AP98: Clayton Kershaw | AQ98: Los Angeles Dodgers | AR98: kercl | AS98: 35 | AT98: 20 | AU98: 1 | AV98: 250 | AW98: 6 | AX98: 1 | AY98: 70
A99: 3261 | B99: Hyun-Jin Ryu | C99: LAD | D99: Buy | O99: 0 | P99: 0 | Q99: 0 | R99: 0 | S99: 0 | T99: 0 | Z99: 3261 | AA99: Hyun-Jin Ryu | AB99: =IF(AQ99<>0,VLOOKUP(AQ99,Info!A:B,2,FALSE),"") -> LAD | AC99: ryuhy | AD99: 0.2285714286 | AE99: 0.05714285714 | AF99: 4.657142857 | AG99: 0.3714285714 | AH99: 0.02857142857 | AI99: 2.142857143 | AJ99: 0 | AK99: 0 | AL99: 0 | AM99: 0 | AO99: 3261 | AP99: Hyun-Jin Ryu | AQ99: Los Angeles Dodgers | AR99: ryuhy | AS99: 35 | AT99: 8 | AU99: 2 | AV99: 163 | AW99: 13 | AX99: 1 | AY99: 75
A100: 2625 | B100: Justin Masterson | C100: LAD | D100: Buy | O100: 0 | P100: 0 | Q100: 0 | R100: 0 | S100: 0 | T100: 0 | Z100: 2625 | AA100: Justin Masterson | AB100: =IF(AQ100<>0,VLOOKUP(AQ100,Info!A:B,2,FALSE),"") -> LAD | AC100: masju | AD100: 0.2285714286 | AE100: 0.02857142857 | AF100: 2.742857143 | AG100: 0.1714285714 | AH100: 0.02857142857 | AI100: 2.057142857 | AJ100: 0 | AK100: 0 | AL100: 0 | AM100: 0 | AO100: 2625 | AP100: Justin Masterson | AQ100: Los Angeles Dodgers | AR100: masju | AS100: 35 | AT100: 8 | AU100: 1 | AV100: 96 | AW100: 6 | AX100: 1 | AY100: 72
A101: 4039 | B101: Kenta Maeda | C101: LAD | D101: Buy | O101: 0 | P101: 0 | Q101: 0 | R101: 0 | S101: 0 | T101: 0 | Z101: 4039 | AA101: Kenta Maeda | AB101: =IF(AQ101<>0,VLOOKUP(AQ101,Info!A:B,2,FALSE),"") -> LAD | AC101: maeke | AD101: 0.4857142857 | AE101: 0.05714285714 | AF101: 4.514285714 | AG101: 0.2 | AH101: 0.02857142857 | AI101: 2 | AJ101: 0 | AK101: 0 | AL101: 0 | AM101: 0 | AO101: 4039 | AP101: Kenta Maeda | AQ101: Los Angeles Dodgers | AR101: maeke | AS101: 35 | AT101: 17 | AU101: 2 | AV101: 158 | AW101: 7 | AX101: 1 | AY101: 70
A102: 4111 | B102: Ralph Branca | C102: LAD | D102: Buy | O102: 0 | P102: 0 | Q102: 0 | R102: 0 | S102: 0 | T102: 0 | Z102: 4111 | AA102: Ralph Branca | AB102: =IF(AQ102<>0,VLOOKUP(AQ102,Info!A:B,2,FALSE),"") -> LAD | AC102: brara | AD102: 1 | AE102: 1 | AF102: 1 | AG102: 1 | AH102: 1 | AI102: 1 | AJ102: 0 | AK102: 0 | AL102: 0 | AM102: 0 | AO102: 4111 | AP102: Ralph Branca | AQ102: Los Angeles Dodgers | AR102: brara | AS102: 1 | AT102: 1 | AU102: 1 | AV102: 1 | AW102: 1 | AX102: 1 | AY102: 1
A103: 1976 | B103: Rich Hill | C103: LAD | D103: Buy | O103: 0 | P103: 0 | Q103: 0 | R103: 0 | S103: 0 | T103: 0 | Z103: 1976 | AA103: Rich Hill | AB103: =IF(AQ103<>0,VLOOKUP(AQ103,Info!A:B,2,FALSE),"") -> LAD | AC103: hilri | AD103: 0.4571428571 | AE103: 0.02857142857 | AF103: 6.6 | AG103: 0.3142857143 | AH103: 0.02857142857 | AI103: 2 | AJ103: 0 | AK103: 0 | AL103: 0 | AM103: 0 | AO103: 1976 | AP103: Rich Hill | AQ103: Los Angeles Dodgers | AR103: hilri | AS103: 35 | AT103: 16 | AU103: 1 | AV103: 231 | AW103: 11 | AX103: 1 | AY103: 70
A104: 1477 | B104: Scott Kazmir | C104: LAD | D104: Buy | O104: 0 | P104: 0 | Q104: 0 | R104: 0 | S104: 0 | T104: 0 | Z104: 1477 | AA104: Scott Kazmir | AB104: =IF(AQ104<>0,VLOOKUP(AQ104,Info!A:B,2,FALSE),"") -> LAD | AC104: kazsc | AD104: 0.4 | AE104: 0.02857142857 | AF104: 5.171428571 | AG104: 0.2571428571 | AH104: 0.02857142857 | AI104: 2.657142857 | AJ104: 0 | AK104: 0 | AL104: 0 | AM104: 0 | AO104: 1477 | AP104: Scott Kazmir | AQ104: Los Angeles Dodgers | AR104: kazsc | AS104: 35 | AT104: 14 | AU104: 1 | AV104: 181 | AW104: 9 | AX104: 1 | AY104: 93
A105: 3047 | B105: Yu Darvish | C105: LAD | D105: Buy | O105: 0 | P105: 0 | Q105: 0 | R105: 0 | S105: 0 | T105: 0 | Z105: 3047 | AA105: Yu Darvish | AB105: =IF(AQ105<>0,VLOOKUP(AQ105,Info!A:B,2,FALSE),"") -> LAD | AC105: daryu | AD105: 0.3714285714 | AE105: 0.02857142857 | AF105: 6.771428571 | AG105: 0.4 | AH105: 0.02857142857 | AI105: 2.514285714 | AJ105: 0 | AK105: 0 | AL105: 0 | AM105: 0 | AO105: 3047 | AP105: Yu Darvish | AQ105: Los Angeles Dodgers | AR105: daryu | AS105: 35 | AT105: 13 | AU105: 1 | AV105: 237 | AW105: 14 | AX105: 1 | AY105: 88
A106: 3514 | B106: Dan Straily | C106: MIA | D106: Buy | O106: 0 | P106: 0 | Q106: 0 | R106: 0 | S106: 0 | T106: 0 | Z106: 3514 | AA106: Dan Straily | AB106: =IF(AQ106<>0,VLOOKUP(AQ106,Info!A:B,2,FALSE),"") -> MIA | AC106: strad | AD106: 0.3142857143 | AE106: 0.02857142857 | AF106: 5.171428571 | AG106: 0.2857142857 | AH106: 0.02857142857 | AI106: 2.628571429 | AJ106: 0 | AK106: 0 | AL106: 0 | AM106: 0 | AO106: 3514 | AP106: Dan Straily | AQ106: Miami Marlins | AR106: strad | AS106: 35 | AT106: 11 | AU106: 1 | AV106: 181 | AW106: 10 | AX106: 1 | AY106: 92
A107: 2158 | B107: Dustin McGowan | C107: MIA | D107: Buy | O107: 0 | P107: 0 | Q107: 0 | R107: 0 | S107: 0 | T107: 0 | Z107: 2158 | AA107: Dustin McGowan | AB107: =IF(AQ107<>0,VLOOKUP(AQ107,Info!A:B,2,FALSE),"") -> MIA | AC107: mcgdu | AD107: 0.2285714286 | AE107: 0.02857142857 | AF107: 2.142857143 | AG107: 0.1714285714 | AH107: 0.02857142857 | AI107: 2 | AJ107: 0 | AK107: 0 | AL107: 0 | AM107: 0 | AO107: 2158 | AP107: Dustin McGowan | AQ107: Miami Marlins | AR107: mcgdu | AS107: 35 | AT107: 8 | AU107: 1 | AV107: 75 | AW107: 6 | AX107: 1 | AY107: 70
A108: 2174 | B108: Edinson Volquez | C108: MIA | D108: Buy | O108: 0 | P108: 0 | Q108: 0 | R108: 0 | S108: 0 | T108: 0 | Z108: 2174 | AA108: Edinson Volquez | AB108: =IF(AQ108<>0,VLOOKUP(AQ108,Info!A:B,2,FALSE),"") -> MIA | AC108: voled | AD108: 0.2571428571 | AE108: 0.02857142857 | AF108: 4.771428571 | AG108: 0.4857142857 | AH108: 0.08571428571 | AI108: 2.542857143 | AJ108: 0 | AK108: 0 | AL108: 0 | AM108: 0 | AO108: 2174 | AP108: Edinson Volquez | AQ108: Miami Marlins | AR108: voled | AS108: 35 | AT108: 9 | AU108: 1 | AV108: 167 | AW108: 17 | AX108: 3 | AY108: 89
A109: 3289 | B109: Jeff Locke | C109: MIA | D109: Buy | O109: 0 | P109: 0 | Q109: 0 | R109: 0 | S109: 0 | T109: 0 | Z109: 3289 | AA109: Jeff Locke | AB109: =IF(AQ109<>0,VLOOKUP(AQ109,Info!A:B,2,FALSE),"") -> MIA | AC109: locje | AD109: 0.3142857143 | AE109: 0.02857142857 | AF109: 2.457142857 | AG109: 0.2857142857 | AH109: 0.05714285714 | AI109: 2.571428571 | AJ109: 0 | AK109: 0 | AL109: 0 | AM109: 0 | AO109: 3289 | AP109: Jeff Locke | AQ109: Miami Marlins | AR109: locje | AS109: 35 | AT109: 11 | AU109: 1 | AV109: 86 | AW109: 10 | AX109: 2 | AY109: 90
A110: 3310 | B110: Jose Fernandez | C110: MIA | D110: Buy | O110: 0 | P110: 0 | Q110: 0 | R110: 0 | S110: 0 | T110: 0 | Z110: 3310 | AA110: Jose Fernandez | AB110: =IF(AQ110<>0,VLOOKUP(AQ110,Info!A:B,2,FALSE),"") -> MIA | AC110: ferjo | AD110: 0.5714285714 | AE110: 0.02857142857 | AF110: 7.142857143 | AG110: 0.2857142857 | AH110: 0.02857142857 | AI110: 2 | AJ110: 0 | AK110: 0 | AL110: 0 | AM110: 0 | AO110: 3310 | AP110: Jose Fernandez | AQ110: Miami Marlins | AR110: ferjo | AS110: 35 | AT110: 20 | AU110: 1 | AV110: 250 | AW110: 10 | AX110: 1 | AY110: 70
A111: 3551 | B111: Tom Koehler | C111: MIA | D111: Buy | O111: 0 | P111: 0 | Q111: 0 | R111: 0 | S111: 0 | T111: 0 | Z111: 3551 | AA111: Tom Koehler | AB111: =IF(AQ111<>0,VLOOKUP(AQ111,Info!A:B,2,FALSE),"") -> MIA | AC111: koeto | AD111: 0.2285714286 | AE111: 0.02857142857 | AF111: 2.314285714 | AG111: 0.2857142857 | AH111: 0.02857142857 | AI111: 2 | AJ111: 0 | AK111: 0 | AL111: 0 | AM111: 0 | AO111: 3551 | AP111: Tom Koehler | AQ111: Miami Marlins | AR111: koeto | AS111: 35 | AT111: 8 | AU111: 1 | AV111: 81 | AW111: 10 | AX111: 1 | AY111: 70
A112: 2950 | B112: Vance Worley | C112: MIA | D112: Buy | O112: 0 | P112: 0 | Q112: 0 | R112: 0 | S112: 0 | T112: 0 | Z112: 2950 | AA112: Vance Worley | AB112: =IF(AQ112<>0,VLOOKUP(AQ112,Info!A:B,2,FALSE),"") -> MIA | AC112: worva | AD112: 0.2285714286 | AE112: 0.05714285714 | AF112: 2.142857143 | AG112: 0.2571428571 | AH112: 0.02857142857 | AI112: 2.314285714 | AJ112: 0 | AK112: 0 | AL112: 0 | AM112: 0 | AO112: 2950 | AP112: Vance Worley | AQ112: Miami Marlins | AR112: worva | AS112: 35 | AT112: 8 | AU112: 2 | AV112: 75 | AW112: 9 | AX112: 1 | AY112: 81
A113: 3082 | B113: Wei-Yin Chen | C113: MIA | D113: Buy | O113: 0 | P113: 0 | Q113: 0 | R113: 0 | S113: 0 | T113: 0 | Z113: 3082 | AA113: Wei-Yin Chen | AB113: =IF(AQ113<>0,VLOOKUP(AQ113,Info!A:B,2,FALSE),"") -> MIA | AC113: chewe | AD113: 0.2285714286 | AE113: 0.02857142857 | AF113: 4.571428571 | AG113: 0.2285714286 | AH113: 0.02857142857 | AI113: 3.114285714 | AJ113: 0 | AK113: 0 | AL113: 0 | AM113: 0 | AO113: 3082 | AP113: Wei-Yin Chen | AQ113: Miami Marlins | AR113: chewe | AS113: 35 | AT113: 8 | AU113: 1 | AV113: 160 | AW113: 8 | AX113: 1 | AY113: 109
A114: 3865 | B114: Jimmy Nelson | C114: MIL | D114: Buy | O114: 0 | P114: 0 | Q114: 0 | R114: 0 | S114: 0 | T114: 0 | Z114: 3865 | AA114: Jimmy Nelson | AB114: =IF(AQ114<>0,VLOOKUP(AQ114,Info!A:B,2,FALSE),"") -> MIL | AC114: nelji | AD114: 0.4285714286 | AE114: 0.02857142857 | AF114: 6.885714286 | AG114: 0.2285714286 | AH114: 0.02857142857 | AI114: 2.371428571 | AJ114: 0 | AK114: 0 | AL114: 0 | AM114: 0 | AO114: 3865 | AP114: Jimmy Nelson | AQ114: Milwaukee Brewers | AR114: nelji | AS114: 35 | AT114: 15 | AU114: 1 | AV114: 241 | AW114: 8 | AX114: 1 | AY114: 83
A115: 2157 | B115: Matt Garza | C115: MIL | D115: Buy | O115: 0 | P115: 0 | Q115: 0 | R115: 0 | S115: 0 | T115: 0 | Z115: 2157 | AA115: Matt Garza | AB115: =IF(AQ115<>0,VLOOKUP(AQ115,Info!A:B,2,FALSE),"") -> MIL | AC115: garzm | AD115: 0.2571428571 | AE115: 0.02857142857 | AF115: 3.314285714 | AG115: 0.4 | AH115: 0.02857142857 | AI115: 2.628571429 | AJ115: 0 | AK115: 0 | AL115: 0 | AM115: 0 | AO115: 2157 | AP115: Matt Garza | AQ115: Milwaukee Brewers | AR115: garzm | AS115: 35 | AT115: 9 | AU115: 1 | AV115: 116 | AW115: 14 | AX115: 1 | AY115: 92
A116: 3867 | B116: Taylor Jungmann | C116: MIL | D116: Buy | O116: 0 | P116: 0 | Q116: 0 | R116: 0 | S116: 0 | T116: 0 | Z116: 3867 | AA116: Taylor Jungmann | AB116: =IF(AQ116<>0,VLOOKUP(AQ116,Info!A:B,2,FALSE),"") -> MIL | AC116: junta | AD116: 0.4285714286 | AE116: 0.02857142857 | AF116: 5.114285714 | AG116: 0.4 | AH116: 0.02857142857 | AI116: 2.4 | AJ116: 0 | AK116: 0 | AL116: 0 | AM116: 0 | AO116: 3867 | AP116: Taylor Jungmann | AQ116: Milwaukee Brewers | AR116: junta | AS116: 35 | AT116: 15 | AU116: 1 | AV116: 179 | AW116: 14 | AX116: 1 | AY116: 84
A117: 3554 | B117: Wily Peralta | C117: MIL | D117: Buy | O117: 0 | P117: 0 | Q117: 0 | R117: 0 | S117: 0 | T117: 0 | Z117: 3554 | AA117: Wily Peralta | AB117: =IF(AQ117<>0,VLOOKUP(AQ117,Info!A:B,2,FALSE),"") -> MIL | AC117: perwi | AD117: 0.2857142857 | AE117: 0.02857142857 | AF117: 2.742857143 | AG117: 0.2285714286 | AH117: 0.02857142857 | AI117: 2.657142857 | AJ117: 0 | AK117: 0 | AL117: 0 | AM117: 0 | AO117: 3554 | AP117: Wily Peralta | AQ117: Milwaukee Brewers | AR117: perwi | AS117: 35 | AT117: 10 | AU117: 1 | AV117: 96 | AW117: 8 | AX117: 1 | AY117: 93
A118: 4035 | B118: Zach Davies | C118: MIL | D118: Buy | O118: 0 | P118: 0 | Q118: 0 | R118: 0 | S118: 0 | T118: 0 | Z118: 4035 | AA118: Zach Davies | AB118: =IF(AQ118<>0,VLOOKUP(AQ118,Info!A:B,2,FALSE),"") -> MIL | AC118: davza | AD118: 0.5428571429 | AE118: 0.02857142857 | AF118: 3.771428571 | AG118: 0.2857142857 | AH118: 0.02857142857 | AI118: 2.542857143 | AJ118: 0 | AK118: 0 | AL118: 0 | AM118: 0 | AO118: 4035 | AP118: Zach Davies | AQ118: Milwaukee Brewers | AR118: davza | AS118: 35 | AT118: 19 | AU118: 1 | AV118: 132 | AW118: 10 | AX118: 1 | AY118: 89
A119: 735 | B119: Bartolo Colon | C119: MIN | D119: Buy | O119: 0 | P119: 0 | Q119: 0 | R119: 0 | S119: 0 | T119: 0 | Z119: 735 | AA119: Bartolo Colon | AB119: =IF(AQ119<>0,VLOOKUP(AQ119,Info!A:B,2,FALSE),"") -> MIN | AC119: colba | AD119: 0.2571428571 | AE119: 0.02857142857 | AF119: 3.2 | AG119: 0.5142857143 | AH119: 0.02857142857 | AI119: 3.685714286 | AJ119: 0 | AK119: 0 | AL119: 0 | AM119: 0 | AO119: 735 | AP119: Bartolo Colon | AQ119: Minnesota Twins | AR119: colba | AS119: 35 | AT119: 9 | AU119: 1 | AV119: 112 | AW119: 18 | AX119: 1 | AY119: 129
A120: 2889 | B120: Dillon Gee | C120: MIN | D120: Buy | O120: 0 | P120: 0 | Q120: 0 | R120: 0 | S120: 0 | T120: 0 | Z120: 2889 | AA120: Dillon Gee | AB120: =IF(AQ120<>0,VLOOKUP(AQ120,Info!A:B,2,FALSE),"") -> MIN | AC120: geedi | AD120: 0.2285714286 | AE120: 0.05714285714 | AF120: 2.342857143 | AG120: 0.1714285714 | AH120: 0.02857142857 | AI120: 2 | AJ120: 0 | AK120: 0 | AL120: 0 | AM120: 0 | AO120: 2889 | AP120: Dillon Gee | AQ120: Minnesota Twins | AR120: geedi | AS120: 35 | AT120: 8 | AU120: 2 | AV120: 82 | AW120: 6 | AX120: 1 | AY120: 70
A121: 1749 | B121: Ervin Santana | C121: MIN | D121: Buy | O121: 0 | P121: 0 | Q121: 0 | R121: 0 | S121: 0 | T121: 0 | Z121: 1749 | AA121: Ervin Santana | AB121: =IF(AQ121<>0,VLOOKUP(AQ121,Info!A:B,2,FALSE),"") -> MIN | AC121: saner | AD121: 0.4857142857 | AE121: 0.02857142857 | AF121: 4.914285714 | AG121: 0.2571428571 | AH121: 0.1142857143 | AI121: 2.4 | AJ121: 0 | AK121: 0 | AL121: 0 | AM121: 0 | AO121: 1749 | AP121: Ervin Santana | AQ121: Minnesota Twins | AR121: saner | AS121: 35 | AT121: 17 | AU121: 1 | AV121: 172 | AW121: 9 | AX121: 4 | AY121: 84
A122: 3870 | B122: Hector Santiago | C122: MIN | D122: Buy | O122: 0 | P122: 0 | Q122: 0 | R122: 0 | S122: 0 | T122: 0 | Z122: 3870 | AA122: Hector Santiago | AB122: =IF(AQ122<>0,VLOOKUP(AQ122,Info!A:B,2,FALSE),"") -> MIN | AC122: sanhe | AD122: 0.2857142857 | AE122: 0.02857142857 | AF122: 3.4 | AG122: 0.5428571429 | AH122: 0.02857142857 | AI122: 2.942857143 | AJ122: 0 | AK122: 0 | AL122: 0 | AM122: 0 | AO122: 3870 | AP122: Hector Santiago | AQ122: Minnesota Twins | AR122: sanhe | AS122: 35 | AT122: 10 | AU122: 1 | AV122: 119 | AW122: 19 | AX122: 1 | AY122: 103
A123: 4179 | B123: Jose Berrios | C123: MIN | D123: Buy | O123: 0 | P123: 0 | Q123: 0 | R123: 0 | S123: 0 | T123: 0 | Z123: 4179 | AA123: Jose Berrios | AB123: =IF(AQ123<>0,VLOOKUP(AQ123,Info!A:B,2,FALSE),"") -> MIN | AC123: berrj | AD123: 0.5428571429 | AE123: 0.02857142857 | AF123: 5.314285714 | AG123: 0.3428571429 | AH123: 0.02857142857 | AI123: 2.457142857 | AJ123: 0 | AK123: 0 | AL123: 0 | AM123: 0 | AO123: 4179 | AP123: Jose Berrios | AQ123: Minnesota Twins | AR123: berrj | AS123: 35 | AT123: 19 | AU123: 1 | AV123: 186 | AW123: 12 | AX123: 1 | AY123: 86
A124: 3522 | B124: Kyle Gibson | C124: MIN | D124: Buy | O124: 0 | P124: 0 | Q124: 0 | R124: 0 | S124: 0 | T124: 0 | Z124: 3522 | AA124: Kyle Gibson | AB124: =IF(AQ124<>0,VLOOKUP(AQ124,Info!A:B,2,FALSE),"") -> MIN | AC124: gibky | AD124: 0.4285714286 | AE124: 0.02857142857 | AF124: 4.2 | AG124: 0.3714285714 | AH124: 0.02857142857 | AI124: 3.085714286 | AJ124: 0 | AK124: 0 | AL124: 0 | AM124: 0 | AO124: 3522 | AP124: Kyle Gibson | AQ124: Minnesota Twins | AR124: gibky | AS124: 35 | AT124: 15 | AU124: 1 | AV124: 147 | AW124: 13 | AX124: 1 | AY124: 108
A125: 1962 | B125: Matt Belisle | C125: MIN | D125: Buy | O125: 0 | P125: 0 | Q125: 0 | R125: 0 | S125: 0 | T125: 0 | Z125: 1962 | AA125: Matt Belisle | AB125: =IF(AQ125<>0,VLOOKUP(AQ125,Info!A:B,2,FALSE),"") -> MIN | AC125: belim | AD125: 0.2285714286 | AE125: 0.1428571429 | AF125: 2.142857143 | AG125: 0.1714285714 | AH125: 0.02857142857 | AI125: 2 | AJ125: 0 | AK125: 0 | AL125: 0 | AM125: 0 | AO125: 1962 | AP125: Matt Belisle | AQ125: Minnesota Twins | AR125: belim | AS125: 35 | AT125: 8 | AU125: 5 | AV125: 75 | AW125: 6 | AX125: 1 | AY125: 70
A126: 2156 | B126: Phil Hughes | C126: MIN | D126: Buy | O126: 0 | P126: 0 | Q126: 0 | R126: 0 | S126: 0 | T126: 0 | Z126: 2156 | AA126: Phil Hughes | AB126: =IF(AQ126<>0,VLOOKUP(AQ126,Info!A:B,2,FALSE),"") -> MIN | AC126: hugph | AD126: 0.2857142857 | AE126: 0.02857142857 | AF126: 2.714285714 | AG126: 0.2285714286 | AH126: 0.02857142857 | AI126: 2.514285714 | AJ126: 0 | AK126: 0 | AL126: 0 | AM126: 0 | AO126: 2156 | AP126: Phil Hughes | AQ126: Minnesota Twins | AR126: hugph | AS126: 35 | AT126: 10 | AU126: 1 | AV126: 95 | AW126: 8 | AX126: 1 | AY126: 88
A127: 3874 | B127: Trevor May | C127: MIN | D127: Buy | O127: 0 | P127: 0 | Q127: 0 | R127: 0 | S127: 0 | T127: 0 | Z127: 3874 | AA127: Trevor May | AB127: =IF(AQ127<>0,VLOOKUP(AQ127,Info!A:B,2,FALSE),"") -> MIN | AC127: maytr | AD127: 0.2285714286 | AE127: 0.02857142857 | AF127: 2.142857143 | AG127: 0.1714285714 | AH127: 0.02857142857 | AI127: 2 | AJ127: 0 | AK127: 0 | AL127: 0 | AM127: 0 | AO127: 3874 | AP127: Trevor May | AQ127: Minnesota Twins | AR127: maytr | AS127: 35 | AT127: 8 | AU127: 1 | AV127: 75 | AW127: 6 | AX127: 1 | AY127: 70
A128: 3799 | B128: Jacob deGrom | C128: NYM | D128: Buy | O128: 0 | P128: 0 | Q128: 0 | R128: 0 | S128: 0 | T128: 0 | Z128: 3799 | AA128: Jacob deGrom | AB128: =IF(AQ128<>0,VLOOKUP(AQ128,Info!A:B,2,FALSE),"") -> NYM | AC128: degja | AD128: 0.4857142857 | AE128: 0.02857142857 | AF128: 7.142857143 | AG128: 0.3428571429 | AH128: 0.02857142857 | AI128: 2.571428571 | AJ128: 0 | AK128: 0 | AL128: 0 | AM128: 0 | AO128: 3799 | AP128: Jacob deGrom | AQ128: New York Mets | AR128: degja | AS128: 35 | AT128: 17 | AU128: 1 | AV128: 250 | AW128: 12 | AX128: 1 | AY128: 90
A129: 3260 | B129: Matt Harvey | C129: NYM | D129: Buy | O129: 0 | P129: 0 | Q129: 0 | R129: 0 | S129: 0 | T129: 0 | Z129: 3260 | AA129: Matt Harvey | AB129: =IF(AQ129<>0,VLOOKUP(AQ129,Info!A:B,2,FALSE),"") -> NYM | AC129: harma | AD129: 0.2857142857 | AE129: 0.02857142857 | AF129: 3.542857143 | AG129: 0.3714285714 | AH129: 0.02857142857 | AI129: 3.657142857 | AJ129: 0 | AK129: 0 | AL129: 0 | AM129: 0 | AO129: 3260 | AP129: Matt Harvey | AQ129: New York Mets | AR129: harma | AS129: 35 | AT129: 10 | AU129: 1 | AV129: 124 | AW129: 13 | AX129: 1 | AY129: 128
A130: 3869 | B130: Noah Syndergaard | C130: NYM | D130: Buy | O130: 0 | P130: 0 | Q130: 0 | R130: 0 | S130: 0 | T130: 0 | Z130: 3869 | AA130: Noah Syndergaard | AB130: =IF(AQ130<>0,VLOOKUP(AQ130,Info!A:B,2,FALSE),"") -> NYM | AC130: synno | AD130: 0.4571428571 | AE130: 0.02857142857 | AF130: 7.142857143 | AG130: 0.2857142857 | AH130: 0.02857142857 | AI130: 2 | AJ130: 0 | AK130: 0 | AL130: 0 | AM130: 0 | AO130: 3869 | AP130: Noah Syndergaard | AQ130: New York Mets | AR130: synno | AS130: 35 | AT130: 16 | AU130: 1 | AV130: 250 | AW130: 10 | AX130: 1 | AY130: 70
A131: =IF(Z131<>0,Z131,"") -> 3085 | B131: =IF(A131<>0,VLOOKUP(A131,Z:AA,2,FALSE),"") -> Tommy Milone | C131: =IF(A131<>0,VLOOKUP(A131,Z:AB,3,FALSE)) -> NYM | D131: =HYPERLINK("http://www.jockstocks.com/buysell.php?action=buymax&plid="&A131,"Buy") -> Buy | O131: =VLOOKUP($A131,$A:$N,5,FALSE)/VLOOKUP($A131,$Z:$AM,5,FALSE) -> 0 | P131: =VLOOKUP($A131,$A:$N,6,FALSE)/VLOOKUP($A131,$Z:$AM,6,FALSE) -> 0 | Q131: =VLOOKUP($A131,$A:$N,7,FALSE)/VLOOKUP($A131,$Z:$AM,7,FALSE) -> 0 | R131: =VLOOKUP($A131,$A:$N,8,FALSE)/VLOOKUP($A131,$Z:$AM,8,FALSE) -> 0 | S131: =VLOOKUP($A131,$A:$N,9,FALSE)/VLOOKUP($A131,$Z:$AM,9,FALSE) -> 0 | T131: =VLOOKUP($A131,$A:$N,10,FALSE)/VLOOKUP($A131,$Z:$AM,10,FALSE) -> 0 | U131: =VLOOKUP($A131,$A:$N,11,FALSE)/VLOOKUP($A131,$Z:$AM,11,FALSE) ->  | V131: =VLOOKUP($A131,$A:$N,12,FALSE)/VLOOKUP($A131,$Z:$AM,12,FALSE) ->  | W131: =VLOOKUP($A131,$A:$N,13,FALSE)/VLOOKUP($A131,$Z:$AM,13,FALSE) ->  | X131: =VLOOKUP($A131,$A:$N,14,FALSE)/VLOOKUP($A131,$Z:$AM,14,FALSE) ->  | Z131: =IF(AO131<>0,AO131,"") -> 3085 | AA131: =IF(AP131<>0,VLOOKUP(Z131,AO:AP,2,FALSE),"") -> Tommy Milone | AB131: =IF(AQ131<>0,VLOOKUP(AQ131,Info!A:B,2,FALSE),"") -> NYM | AC131: =IF(AO131<>0,VLOOKUP(Z131,AO:AR,4,FALSE),"") -> milto | AD131: =IF($AO131<>0,AT131/$AS131,"") -> 0.2285714286 | AE131: =IF($AO131<>0,AU131/$AS131,"") -> 0.08571428571 | AF131: =IF($AO131<>0,AV131/$AS131,"") -> 2.257142857 | AG131: =IF($AO131<>0,AW131/$AS131,"") -> 0.2 | AH131: =IF($AO131<>0,AX131/$AS131,"") -> 0.02857142857 | AI131: =IF($AO131<>0,AY131/$AS131,"") -> 2.428571429 | AJ131: =IF($AO131<>0,BL131/$AS131,"") -> 0 | AK131: =IF($AO131<>0,BM131/$AS131,"") -> 0 | AL131: =IF($AO131<>0,BN131/$AS131,"") -> 0 | AM131: =IF($AO131<>0,BO131/$AS131,"") -> 0 | AO131: 3085 | AP131: Tommy Milone | AQ131: New York Mets | AR131: milto | AS131: 35 | AT131: 8 | AU131: 3 | AV131: 79 | AW131: 7 | AX131: 1 | AY131: 85
A132: 3510 | B132: Zack Wheeler | C132: NYM | D132: Buy | O132: 0 | P132: 0 | Q132: 0 | R132: 0 | S132: 0 | T132: 0 | Z132: 3510 | AA132: Zack Wheeler | AB132: =IF(AQ132<>0,VLOOKUP(AQ132,Info!A:B,2,FALSE),"") -> NYM | AC132: wheza | AD132: 0.2285714286 | AE132: 0.02857142857 | AF132: 4.771428571 | AG132: 0.4285714286 | AH132: 0.02857142857 | AI132: 2.942857143 | AJ132: 0 | AK132: 0 | AL132: 0 | AM132: 0 | AO132: 3510 | AP132: Zack Wheeler | AQ132: New York Mets | AR132: wheza | AS132: 35 | AT132: 8 | AU132: 1 | AV132: 167 | AW132: 15 | AX132: 1 | AY132: 103
A133: 799 | B133: CC Sabathia | C133: NYY | D133: Buy | O133: 0 | P133: 0 | Q133: 0 | R133: 0 | S133: 0 | T133: 0 | Z133: 799 | AA133: CC Sabathia | AB133: =IF(AQ133<>0,VLOOKUP(AQ133,Info!A:B,2,FALSE),"") -> NYY | AC133: sabcc | AD133: 0.5142857143 | AE133: 0.02857142857 | AF133: 4.657142857 | AG133: 0.1714285714 | AH133: 0.02857142857 | AI133: 2.171428571 | AJ133: 0 | AK133: 0 | AL133: 0 | AM133: 0 | AO133: 799 | AP133: CC Sabathia | AQ133: New York Yankees | AR133: sabcc | AS133: 35 | AT133: 18 | AU133: 1 | AV133: 163 | AW133: 6 | AX133: 1 | AY133: 76
A134: 2651 | B134: Jaime Garcia | C134: NYY | D134: Buy | O134: 0 | P134: 0 | Q134: 0 | R134: 0 | S134: 0 | T134: 0 | Z134: 2651 | AA134: Jaime Garcia | AB134: =IF(AQ134<>0,VLOOKUP(AQ134,Info!A:B,2,FALSE),"") -> NYY | AC134: garja | AD134: 0.2285714286 | AE134: 0.02857142857 | AF134: 4.714285714 | AG134: 0.3714285714 | AH134: 0.02857142857 | AI134: 2.771428571 | AJ134: 0 | AK134: 0 | AL134: 0 | AM134: 0 | AO134: 2651 | AP134: Jaime Garcia | AQ134: New York Yankees | AR134: garja | AS134: 35 | AT134: 8 | AU134: 1 | AV134: 165 | AW134: 13 | AX134: 1 | AY134: 97
A135: 4188 | B135: Jordan Montgomery | C135: NYY | D135: Buy | O135: 0 | P135: 0 | Q135: 0 | R135: 0 | S135: 0 | T135: 0 | Z135: 4188 | AA135: Jordan Montgomery | AB135: =IF(AQ135<>0,VLOOKUP(AQ135,Info!A:B,2,FALSE),"") -> NYY | AC135: monjo | AD135: 0.3142857143 | AE135: 0.02857142857 | AF135: 4.971428571 | AG135: 0.2571428571 | AH135: 0.02857142857 | AI135: 2.314285714 | AJ135: 0 | AK135: 0 | AL135: 0 | AM135: 0 | AO135: 4188 | AP135: Jordan Montgomery | AQ135: New York Yankees | AR135: monjo | AS135: 35 | AT135: 11 | AU135: 1 | AV135: 174 | AW135: 9 | AX135: 1 | AY135: 81
A136: 4177 | B136: Luis Severino | C136: NYY | D136: Buy | O136: 0 | P136: 0 | Q136: 0 | R136: 0 | S136: 0 | T136: 0 | Z136: 4177 | AA136: Luis Severino | AB136: =IF(AQ136<>0,VLOOKUP(AQ136,Info!A:B,2,FALSE),"") -> NYY | AC136: sevlu | AD136: 0.4571428571 | AE136: 0.02857142857 | AF136: 7.057142857 | AG136: 0.2 | AH136: 0.02857142857 | AI136: 2.114285714 | AJ136: 0 | AK136: 0 | AL136: 0 | AM136: 0 | AO136: 4177 | AP136: Luis Severino | AQ136: New York Yankees | AR136: sevlu | AS136: 35 | AT136: 16 | AU136: 1 | AV136: 247 | AW136: 7 | AX136: 1 | AY136: 74
A137: 3513 | B137: Masahiro Tanaka | C137: NYY | D137: Buy | O137: 0 | P137: 0 | Q137: 0 | R137: 0 | S137: 0 | T137: 0 | Z137: 3513 | AA137: Masahiro Tanaka | AB137: =IF(AQ137<>0,VLOOKUP(AQ137,Info!A:B,2,FALSE),"") -> NYY | AC137: tanma | AD137: 0.4571428571 | AE137: 0.02857142857 | AF137: 6.4 | AG137: 0.4285714286 | AH137: 0.02857142857 | AI137: 3 | AJ137: 0 | AK137: 0 | AL137: 0 | AM137: 0 | AO137: 3513 | AP137: Masahiro Tanaka | AQ137: New York Yankees | AR137: tanma | AS137: 35 | AT137: 16 | AU137: 1 | AV137: 224 | AW137: 15 | AX137: 1 | AY137: 105
A138: 2870 | B138: Michael Pineda | C138: NYY | D138: Buy | O138: 0 | P138: 0 | Q138: 0 | R138: 0 | S138: 0 | T138: 0 | Z138: 2870 | AA138: Michael Pineda | AB138: =IF(AQ138<>0,VLOOKUP(AQ138,Info!A:B,2,FALSE),"") -> NYY | AC138: pinmi | AD138: 0.4857142857 | AE138: 0.02857142857 | AF138: 5.428571429 | AG138: 0.2571428571 | AH138: 0.02857142857 | AI138: 2.771428571 | AJ138: 0 | AK138: 0 | AL138: 0 | AM138: 0 | AO138: 2870 | AP138: Michael Pineda | AQ138: New York Yankees | AR138: pinmi | AS138: 35 | AT138: 17 | AU138: 1 | AV138: 190 | AW138: 9 | AX138: 1 | AY138: 97
A139: 3532 | B139: Sonny Gray | C139: NYY | D139: Buy | O139: 0 | P139: 0 | Q139: 0 | R139: 0 | S139: 0 | T139: 0 | Z139: 3532 | AA139: Sonny Gray | AB139: =IF(AQ139<>0,VLOOKUP(AQ139,Info!A:B,2,FALSE),"") -> NYY | AC139: graso | AD139: 0.3714285714 | AE139: 0.02857142857 | AF139: 5.542857143 | AG139: 0.4857142857 | AH139: 0.02857142857 | AI139: 2.4 | AJ139: 0 | AK139: 0 | AL139: 0 | AM139: 0 | AO139: 3532 | AP139: Sonny Gray | AQ139: New York Yankees | AR139: graso | AS139: 35 | AT139: 13 | AU139: 1 | AV139: 194 | AW139: 17 | AX139: 1 | AY139: 84
A140: 4171 | B140: Andrew Triggs | C140: OAK | D140: Buy | O140: 0 | P140: 0 | Q140: 0 | R140: 0 | S140: 0 | T140: 0 | Z140: 4171 | AA140: Andrew Triggs | AB140: =IF(AQ140<>0,VLOOKUP(AQ140,Info!A:B,2,FALSE),"") -> OAK | AC140: trian | AD140: 0.4 | AE140: 0.02857142857 | AF140: 3.857142857 | AG140: 0.4857142857 | AH140: 0.02857142857 | AI140: 2.4 | AJ140: 0 | AK140: 0 | AL140: 0 | AM140: 0 | AO140: 4171 | AP140: Andrew Triggs | AQ140: Oakland Athletics | AR140: trian | AS140: 35 | AT140: 14 | AU140: 1 | AV140: 135 | AW140: 17 | AX140: 1 | AY140: 84
A141: 3083 | B141: Felix Doubront | C141: OAK | D141: Buy | O141: 0 | P141: 0 | Q141: 0 | R141: 0 | S141: 0 | T141: 0 | Z141: 3083 | AA141: Felix Doubront | AB141: =IF(AQ141<>0,VLOOKUP(AQ141,Info!A:B,2,FALSE),"") -> OAK | AC141: doufe | AD141: 0.2285714286 | AE141: 0.08571428571 | AF141: 3.514285714 | AG141: 0.2 | AH141: 0.02857142857 | AI141: 2.885714286 | AJ141: 0 | AK141: 0 | AL141: 0 | AM141: 0 | AO141: 3083 | AP141: Felix Doubront | AQ141: Oakland Athletics | AR141: doufe | AS141: 35 | AT141: 8 | AU141: 3 | AV141: 123 | AW141: 7 | AX141: 1 | AY141: 101
A142: 3503 | B142: Henderson Alvarez | C142: OAK | D142: Buy | O142: 0 | P142: 0 | Q142: 0 | R142: 0 | S142: 0 | T142: 0 | Z142: 3503 | AA142: Henderson Alvarez | AB142: =IF(AQ142<>0,VLOOKUP(AQ142,Info!A:B,2,FALSE),"") -> OAK | AC142: alvhe | AD142: 0.4 | AE142: 0.02857142857 | AF142: 3.714285714 | AG142: 0.2571428571 | AH142: 0.1142857143 | AI142: 2 | AJ142: 0 | AK142: 0 | AL142: 0 | AM142: 0 | AO142: 3503 | AP142: Henderson Alvarez | AQ142: Oakland Athletics | AR142: alvhe | AS142: 35 | AT142: 14 | AU142: 1 | AV142: 130 | AW142: 9 | AX142: 4 | AY142: 70
A143: 3048 | B143: Ross Detwiler | C143: OAK | D143: Buy | O143: 0 | P143: 0 | Q143: 0 | R143: 0 | S143: 0 | T143: 0 | Z143: 3048 | AA143: Ross Detwiler | AB143: =IF(AQ143<>0,VLOOKUP(AQ143,Info!A:B,2,FALSE),"") -> OAK | AC143: detro | AD143: 0.2285714286 | AE143: 0.02857142857 | AF143: 2.142857143 | AG143: 0.2571428571 | AH143: 0.02857142857 | AI143: 2.085714286 | AJ143: 0 | AK143: 0 | AL143: 0 | AM143: 0 | AO143: 3048 | AP143: Ross Detwiler | AQ143: Oakland Athletics | AR143: detro | AS143: 35 | AT143: 8 | AU143: 1 | AV143: 75 | AW143: 9 | AX143: 1 | AY143: 73
A144: 4167 | B144: Sean Manaea | C144: OAK | D144: Buy | O144: 0 | P144: 0 | Q144: 0 | R144: 0 | S144: 0 | T144: 0 | Z144: 4167 | AA144: Sean Manaea | AB144: =IF(AQ144<>0,VLOOKUP(AQ144,Info!A:B,2,FALSE),"") -> OAK | AC144: manse | AD144: 0.4285714286 | AE144: 0.02857142857 | AF144: 4.828571429 | AG144: 0.3714285714 | AH144: 0.02857142857 | AI144: 2.657142857 | AJ144: 0 | AK144: 0 | AL144: 0 | AM144: 0 | AO144: 4167 | AP144: Sean Manaea | AQ144: Oakland Athletics | AR144: manse | AS144: 35 | AT144: 15 | AU144: 1 | AV144: 169 | AW144: 13 | AX144: 1 | AY144: 93
A145: 4166 | B145: Aaron Nola | C145: PHI | D145: Buy | O145: 0 | P145: 0 | Q145: 0 | R145: 0 | S145: 0 | T145: 0 | Z145: 4166 | AA145: Aaron Nola | AB145: =IF(AQ145<>0,VLOOKUP(AQ145,Info!A:B,2,FALSE),"") -> PHI | AC145: nolaa | AD145: 0.4571428571 | AE145: 0.02857142857 | AF145: 6.828571429 | AG145: 0.4285714286 | AH145: 0.02857142857 | AI145: 2.457142857 | AJ145: 0 | AK145: 0 | AL145: 0 | AM145: 0 | AO145: 4166 | AP145: Aaron Nola | AQ145: Philadelphia Phillies | AR145: nolaa | AS145: 35 | AT145: 16 | AU145: 1 | AV145: 239 | AW145: 15 | AX145: 1 | AY145: 86
A146: 2151 | B146: Clay Buchholz | C146: PHI | D146: Buy | O146: 0 | P146: 0 | Q146: 0 | R146: 0 | S146: 0 | T146: 0 | Z146: 2151 | AA146: Clay Buchholz | AB146: =IF(AQ146<>0,VLOOKUP(AQ146,Info!A:B,2,FALSE),"") -> PHI | AC146: buccl | AD146: 0.2285714286 | AE146: 0.02857142857 | AF146: 2.571428571 | AG146: 0.3142857143 | AH146: 0.02857142857 | AI146: 2 | AJ146: 0 | AK146: 0 | AL146: 0 | AM146: 0 | AO146: 2151 | AP146: Clay Buchholz | AQ146: Philadelphia Phillies | AR146: buccl | AS146: 35 | AT146: 8 | AU146: 1 | AV146: 90 | AW146: 11 | AX146: 1 | AY146: 70
A147: 4040 | B147: Vince Velasquez | C147: PHI | D147: Buy | O147: 0 | P147: 0 | Q147: 0 | R147: 0 | S147: 0 | T147: 0 | Z147: 4040 | AA147: Vince Velasquez | AB147: =IF(AQ147<>0,VLOOKUP(AQ147,Info!A:B,2,FALSE),"") -> PHI | AC147: velvi | AD147: 0.2285714286 | AE147: 0.02857142857 | AF147: 4.542857143 | AG147: 0.4857142857 | AH147: 0.02857142857 | AI147: 2.742857143 | AJ147: 0 | AK147: 0 | AL147: 0 | AM147: 0 | AO147: 4040 | AP147: Vince Velasquez | AQ147: Philadelphia Phillies | AR147: velvi | AS147: 35 | AT147: 8 | AU147: 1 | AV147: 159 | AW147: 17 | AX147: 1 | AY147: 96
A148: 2684 | B148: Daniel Hudson | C148: PIT | D148: Buy | O148: 0 | P148: 0 | Q148: 0 | R148: 0 | S148: 0 | T148: 0 | Z148: 2684 | AA148: Daniel Hudson | AB148: =IF(AQ148<>0,VLOOKUP(AQ148,Info!A:B,2,FALSE),"") -> PIT | AC148: hudda | AD148: 0.2285714286 | AE148: 0.02857142857 | AF148: 2.142857143 | AG148: 0.1714285714 | AH148: 0.02857142857 | AI148: 2 | AJ148: 0 | AK148: 0 | AL148: 0 | AM148: 0 | AO148: 2684 | AP148: Daniel Hudson | AQ148: Pittsburgh Pirates | AR148: hudda | AS148: 35 | AT148: 8 | AU148: 1 | AV148: 75 | AW148: 6 | AX148: 1 | AY148: 70
A149: 3548 | B149: Drew Hutchison | C149: PIT | D149: Buy | O149: 0 | P149: 0 | Q149: 0 | R149: 0 | S149: 0 | T149: 0 | Z149: 3548 | AA149: Drew Hutchison | AB149: =IF(AQ149<>0,VLOOKUP(AQ149,Info!A:B,2,FALSE),"") -> PIT | AC149: hutdr | AD149: 0.4571428571 | AE149: 0.02857142857 | AF149: 4.314285714 | AG149: 0.1714285714 | AH149: 0.05714285714 | AI149: 3.114285714 | AJ149: 0 | AK149: 0 | AL149: 0 | AM149: 0 | AO149: 3548 | AP149: Drew Hutchison | AQ149: Pittsburgh Pirates | AR149: hutdr | AS149: 35 | AT149: 16 | AU149: 1 | AV149: 151 | AW149: 6 | AX149: 2 | AY149: 109
A150: 3309 | B150: Gerrit Cole | C150: PIT | D150: Buy | O150: 0 | P150: 0 | Q150: 0 | R150: 0 | S150: 0 | T150: 0 | Z150: 3309 | AA150: Gerrit Cole | AB150: =IF(AQ150<>0,VLOOKUP(AQ150,Info!A:B,2,FALSE),"") -> PIT | AC150: colge | AD150: 0.3714285714 | AE150: 0.02857142857 | AF150: 5.942857143 | AG150: 0.3714285714 | AH150: 0.02857142857 | AI150: 2.914285714 | AJ150: 0 | AK150: 0 | AL150: 0 | AM150: 0 | AO150: 3309 | AP150: Gerrit Cole | AQ150: Pittsburgh Pirates | AR150: colge | AS150: 35 | AT150: 13 | AU150: 1 | AV150: 208 | AW150: 13 | AX150: 1 | AY150: 102
A151: 2900 | B151: Ivan Nova | C151: PIT | D151: Buy | O151: 0 | P151: 0 | Q151: 0 | R151: 0 | S151: 0 | T151: 0 | Z151: 2900 | AA151: Ivan Nova | AB151: =IF(AQ151<>0,VLOOKUP(AQ151,Info!A:B,2,FALSE),"") -> PIT | AC151: noviv | AD151: 0.3714285714 | AE151: 0.02857142857 | AF151: 4.228571429 | AG151: 0.4571428571 | AH151: 0.05714285714 | AI151: 2.8 | AJ151: 0 | AK151: 0 | AL151: 0 | AM151: 0 | AO151: 2900 | AP151: Ivan Nova | AQ151: Pittsburgh Pirates | AR151: noviv | AS151: 35 | AT151: 13 | AU151: 1 | AV151: 148 | AW151: 16 | AX151: 2 | AY151: 98
A152: 4172 | B152: Jameson Taillon | C152: PIT | D152: Buy | O152: 0 | P152: 0 | Q152: 0 | R152: 0 | S152: 0 | T152: 0 | Z152: 4172 | AA152: Jameson Taillon | AB152: =IF(AQ152<>0,VLOOKUP(AQ152,Info!A:B,2,FALSE),"") -> PIT | AC152: taija | AD152: 0.3428571429 | AE152: 0.02857142857 | AF152: 5 | AG152: 0.2857142857 | AH152: 0.02857142857 | AI152: 2.657142857 | AJ152: 0 | AK152: 0 | AL152: 0 | AM152: 0 | AO152: 4172 | AP152: Jameson Taillon | AQ152: Pittsburgh Pirates | AR152: taija | AS152: 35 | AT152: 12 | AU152: 1 | AV152: 175 | AW152: 10 | AX152: 1 | AY152: 93
A153: 2893 | B153: Alexi Ogando | C153: XXX | D153: Buy | O153: 0 | P153: 0 | Q153: 0 | R153: 0 | S153: 0 | T153: 0 | Z153: 2893 | AA153: Alexi Ogando | AB153: =IF(AQ153<>0,VLOOKUP(AQ153,Info!A:B,2,FALSE),"") -> XXX | AC153: ogaal | AD153: 0.2285714286 | AE153: 0.02857142857 | AF153: 2.142857143 | AG153: 0.1714285714 | AH153: 0.02857142857 | AI153: 2 | AJ153: 0 | AK153: 0 | AL153: 0 | AM153: 0 | AO153: 2893 | AP153: Alexi Ogando | AQ153: Playing Overseas | AR153: ogaal | AS153: 35 | AT153: 8 | AU153: 1 | AV153: 75 | AW153: 6 | AX153: 1 | AY153: 70
A154: 2851 | B154: Phil Coke | C154: XXX | D154: Buy | O154: 0 | P154: 0 | Q154: 0 | R154: 0 | S154: 0 | T154: 0 | Z154: 2851 | AA154: Phil Coke | AB154: =IF(AQ154<>0,VLOOKUP(AQ154,Info!A:B,2,FALSE),"") -> XXX | AC154: cokph | AD154: 0.2285714286 | AE154: 0.02857142857 | AF154: 2.142857143 | AG154: 0.1714285714 | AH154: 0.02857142857 | AI154: 2 | AJ154: 0 | AK154: 0 | AL154: 0 | AM154: 0 | AO154: 2851 | AP154: Phil Coke | AQ154: Playing Overseas | AR154: cokph | AS154: 35 | AT154: 8 | AU154: 1 | AV154: 75 | AW154: 6 | AX154: 1 | AY154: 70
A155: 2450 | B155: Ross Ohlendorf | C155: XXX | D155: Buy | O155: 0 | P155: 0 | Q155: 0 | R155: 0 | S155: 0 | T155: 0 | Z155: 2450 | AA155: Ross Ohlendorf | AB155: =IF(AQ155<>0,VLOOKUP(AQ155,Info!A:B,2,FALSE),"") -> XXX | AC155: ohlro | AD155: 0.2285714286 | AE155: 0.05714285714 | AF155: 2.142857143 | AG155: 0.1714285714 | AH155: 0.02857142857 | AI155: 2 | AJ155: 0 | AK155: 0 | AL155: 0 | AM155: 0 | AO155: 2450 | AP155: Ross Ohlendorf | AQ155: Playing Overseas | AR155: ohlro | AS155: 35 | AT155: 8 | AU155: 2 | AV155: 75 | AW155: 6 | AX155: 1 | AY155: 70
A156: 3084 | B156: Scott Diamond | C156: XXX | D156: Buy | O156: 0 | P156: 0 | Q156: 0 | R156: 0 | S156: 0 | T156: 0 | Z156: 3084 | AA156: Scott Diamond | AB156: =IF(AQ156<>0,VLOOKUP(AQ156,Info!A:B,2,FALSE),"") -> XXX | AC156: diasc | AD156: 0.2571428571 | AE156: 0.02857142857 | AF156: 2.171428571 | AG156: 0.5428571429 | AH156: 0.02857142857 | AI156: 3.314285714 | AJ156: 0 | AK156: 0 | AL156: 0 | AM156: 0 | AO156: 3084 | AP156: Scott Diamond | AQ156: Playing Overseas | AR156: diasc | AS156: 35 | AT156: 9 | AU156: 1 | AV156: 76 | AW156: 19 | AX156: 1 | AY156: 116
A157: 3534 | B157: Andre Rienzo | C157: SDP | D157: Buy | O157: 0 | P157: 0 | Q157: 0 | R157: 0 | S157: 0 | T157: 0 | Z157: 3534 | AA157: Andre Rienzo | AB157: =IF(AQ157<>0,VLOOKUP(AQ157,Info!A:B,2,FALSE),"") -> SDP | AC157: riean | AD157: 0.2285714286 | AE157: 0.02857142857 | AF157: 2.142857143 | AG157: 0.1714285714 | AH157: 0.02857142857 | AI157: 2 | AJ157: 0 | AK157: 0 | AL157: 0 | AM157: 0 | AO157: 3534 | AP157: Andre Rienzo | AQ157: San Diego Padres | AR157: riean | AS157: 35 | AT157: 8 | AU157: 1 | AV157: 75 | AW157: 6 | AX157: 1 | AY157: 70
A158: 2670 | B158: Clayton Richard | C158: SDP | D158: Buy | O158: 0 | P158: 0 | Q158: 0 | R158: 0 | S158: 0 | T158: 0 | Z158: 2670 | AA158: Clayton Richard | AB158: =IF(AQ158<>0,VLOOKUP(AQ158,Info!A:B,2,FALSE),"") -> SDP | AC158: riccl | AD158: 0.2571428571 | AE158: 0.02857142857 | AF158: 4.742857143 | AG158: 0.4857142857 | AH158: 0.05714285714 | AI158: 3.285714286 | AJ158: 0 | AK158: 0 | AL158: 0 | AM158: 0 | AO158: 2670 | AP158: Clayton Richard | AQ158: San Diego Padres | AR158: riccl | AS158: 35 | AT158: 9 | AU158: 1 | AV158: 166 | AW158: 17 | AX158: 2 | AY158: 115
A159: 3573 | B159: Jarred Cosart | C159: SDP | D159: Buy | O159: 0 | P159: 0 | Q159: 0 | R159: 0 | S159: 0 | T159: 0 | Z159: 3573 | AA159: Jarred Cosart | AB159: =IF(AQ159<>0,VLOOKUP(AQ159,Info!A:B,2,FALSE),"") -> SDP | AC159: cosja | AD159: 0.2285714286 | AE159: 0.02857142857 | AF159: 2.942857143 | AG159: 0.3142857143 | AH159: 0.02857142857 | AI159: 2.942857143 | AJ159: 0 | AK159: 0 | AL159: 0 | AM159: 0 | AO159: 3573 | AP159: Jarred Cosart | AQ159: San Diego Padres | AR159: cosja | AS159: 35 | AT159: 8 | AU159: 1 | AV159: 103 | AW159: 11 | AX159: 1 | AY159: 103
A160: 1790 | B160: Jered Weaver | C160: SDP | D160: Buy | O160: 0 | P160: 0 | Q160: 0 | R160: 0 | S160: 0 | T160: 0 | Z160: 1790 | AA160: Jered Weaver | AB160: =IF(AQ160<>0,VLOOKUP(AQ160,Info!A:B,2,FALSE),"") -> SDP | AC160: wejer | AD160: 0.4 | AE160: 0.02857142857 | AF160: 3.342857143 | AG160: 0.4 | AH160: 0.05714285714 | AI160: 3.228571429 | AJ160: 0 | AK160: 0 | AL160: 0 | AM160: 0 | AO160: 1790 | AP160: Jered Weaver | AQ160: San Diego Padres | AR160: wejer | AS160: 35 | AT160: 14 | AU160: 1 | AV160: 117 | AW160: 14 | AX160: 2 | AY160: 113
A161: 2850 | B161: Jhoulys Chacin | C161: SDP | D161: Buy | O161: 0 | P161: 0 | Q161: 0 | R161: 0 | S161: 0 | T161: 0 | Z161: 2850 | AA161: Jhoulys Chacin | AB161: =IF(AQ161<>0,VLOOKUP(AQ161,Info!A:B,2,FALSE),"") -> SDP | AC161: chajh | AD161: 0.4285714286 | AE161: 0.02857142857 | AF161: 4.8 | AG161: 0.3142857143 | AH161: 0.02857142857 | AI161: 2.457142857 | AJ161: 0 | AK161: 0 | AL161: 0 | AM161: 0 | AO161: 2850 | AP161: Jhoulys Chacin | AQ161: San Diego Padres | AR161: chajh | AS161: 35 | AT161: 15 | AU161: 1 | AV161: 168 | AW161: 11 | AX161: 1 | AY161: 86
A162: 3290 | B162: Travis Wood | C162: SDP | D162: Buy | O162: 0 | P162: 0 | Q162: 0 | R162: 0 | S162: 0 | T162: 0 | Z162: 3290 | AA162: Travis Wood | AB162: =IF(AQ162<>0,VLOOKUP(AQ162,Info!A:B,2,FALSE),"") -> SDP | AC162: wootr | AD162: 0.2285714286 | AE162: 0.02857142857 | AF162: 2.142857143 | AG162: 0.2 | AH162: 0.02857142857 | AI162: 2 | AJ162: 0 | AK162: 0 | AL162: 0 | AM162: 0 | AO162: 3290 | AP162: Travis Wood | AQ162: San Diego Padres | AR162: wootr | AS162: 35 | AT162: 8 | AU162: 1 | AV162: 75 | AW162: 7 | AX162: 1 | AY162: 70
A163: 3067 | B163: Jeff Samardzija | C163: SFG | D163: Buy | O163: 0 | P163: 0 | Q163: 0 | R163: 0 | S163: 0 | T163: 0 | Z163: 3067 | AA163: Jeff Samardzija | AB163: =IF(AQ163<>0,VLOOKUP(AQ163,Info!A:B,2,FALSE),"") -> SFG | AC163: samje | AD163: 0.2857142857 | AE163: 0.02857142857 | AF163: 6.428571429 | AG163: 0.4857142857 | AH163: 0.05714285714 | AI163: 3.2 | AJ163: 0 | AK163: 0 | AL163: 0 | AM163: 0 | AO163: 3067 | AP163: Jeff Samardzija | AQ163: San Francisco Giants | AR163: samje | AS163: 35 | AT163: 10 | AU163: 1 | AV163: 225 | AW163: 17 | AX163: 2 | AY163: 112
A164: 2153 | B164: Johnny Cueto | C164: SFG | D164: Buy | O164: 0 | P164: 0 | Q164: 0 | R164: 0 | S164: 0 | T164: 0 | Z164: 2153 | AA164: Johnny Cueto | AB164: =IF(AQ164<>0,VLOOKUP(AQ164,Info!A:B,2,FALSE),"") -> SFG | AC164: cuejo | AD164: 0.3428571429 | AE164: 0.02857142857 | AF164: 5.457142857 | AG164: 0.3428571429 | AH164: 0.02857142857 | AI164: 2.971428571 | AJ164: 0 | AK164: 0 | AL164: 0 | AM164: 0 | AO164: 2153 | AP164: Johnny Cueto | AQ164: San Francisco Giants | AR164: cuejo | AS164: 35 | AT164: 12 | AU164: 1 | AV164: 191 | AW164: 12 | AX164: 1 | AY164: 104
A165: 2668 | B165: Madison Bumgarner | C165: SFG | D165: Buy | O165: 0 | P165: 0 | Q165: 0 | R165: 0 | S165: 0 | T165: 0 | Z165: 2668 | AA165: Madison Bumgarner | AB165: =IF(AQ165<>0,VLOOKUP(AQ165,Info!A:B,2,FALSE),"") -> SFG | AC165: bumma | AD165: 0.2571428571 | AE165: 0.02857142857 | AF165: 5.942857143 | AG165: 0.5428571429 | AH165: 0.02857142857 | AI165: 2.428571429 | AJ165: 0 | AK165: 0 | AL165: 0 | AM165: 0 | AO165: 2668 | AP165: Madison Bumgarner | AQ165: San Francisco Giants | AR165: bumma | AS165: 35 | AT165: 9 | AU165: 1 | AV165: 208 | AW165: 19 | AX165: 1 | AY165: 85
A166: 1818 | B166: Matt Cain | C166: SFG | D166: Buy | O166: 0 | P166: 0 | Q166: 0 | R166: 0 | S166: 0 | T166: 0 | Z166: 1818 | AA166: Matt Cain | AB166: =IF(AQ166<>0,VLOOKUP(AQ166,Info!A:B,2,FALSE),"") -> SFG | AC166: caima | AD166: 0.2285714286 | AE166: 0.02857142857 | AF166: 2.8 | AG166: 0.4285714286 | AH166: 0.02857142857 | AI166: 2.742857143 | AJ166: 0 | AK166: 0 | AL166: 0 | AM166: 0 | AO166: 1818 | AP166: Matt Cain | AQ166: San Francisco Giants | AR166: caima | AS166: 35 | AT166: 8 | AU166: 1 | AV166: 98 | AW166: 15 | AX166: 1 | AY166: 96
A167: 3049 | B167: Matt Moore | C167: SFG | D167: Buy | O167: 0 | P167: 0 | Q167: 0 | R167: 0 | S167: 0 | T167: 0 | Z167: 3049 | AA167: Matt Moore | AB167: =IF(AQ167<>0,VLOOKUP(AQ167,Info!A:B,2,FALSE),"") -> SFG | AC167: moorm | AD167: 0.2285714286 | AE167: 0.02857142857 | AF167: 4.628571429 | AG167: 0.4857142857 | AH167: 0.02857142857 | AI167: 3.371428571 | AJ167: 0 | AK167: 0 | AL167: 0 | AM167: 0 | AO167: 3049 | AP167: Matt Moore | AQ167: San Francisco Giants | AR167: moorm | AS167: 35 | AT167: 8 | AU167: 1 | AV167: 162 | AW167: 17 | AX167: 1 | AY167: 118
A168: 4178 | B168: Ariel Miranda | C168: SEA | D168: Buy | O168: 0 | P168: 0 | Q168: 0 | R168: 0 | S168: 0 | T168: 0 | Z168: 4178 | AA168: Ariel Miranda | AB168: =IF(AQ168<>0,VLOOKUP(AQ168,Info!A:B,2,FALSE),"") -> SEA | AC168: mirar | AD168: 0.2857142857 | AE168: 0.02857142857 | AF168: 4.428571429 | AG168: 0.2285714286 | AH168: 0.02857142857 | AI168: 2.942857143 | AJ168: 0 | AK168: 0 | AL168: 0 | AM168: 0 | AO168: 4178 | AP168: Ariel Miranda | AQ168: Seattle Mariners | AR168: mirar | AS168: 35 | AT168: 10 | AU168: 1 | AV168: 155 | AW168: 8 | AX168: 1 | AY168: 103
A169: 3838 | B169: Chris Heston | C169: SEA | D169: Buy | O169: 0 | P169: 0 | Q169: 0 | R169: 0 | S169: 0 | T169: 0 | Z169: 3838 | AA169: Chris Heston | AB169: =IF(AQ169<>0,VLOOKUP(AQ169,Info!A:B,2,FALSE),"") -> SEA | AC169: hesch | AD169: 0.4 | AE169: 0.02857142857 | AF169: 4.571428571 | AG169: 0.3714285714 | AH169: 0.05714285714 | AI169: 2.542857143 | AJ169: 0 | AK169: 0 | AL169: 0 | AM169: 0 | AO169: 3838 | AP169: Chris Heston | AQ169: Seattle Mariners | AR169: hesch | AS169: 35 | AT169: 14 | AU169: 1 | AV169: 160 | AW169: 13 | AX169: 2 | AY169: 89
A170: 3264 | B170: David Phelps | C170: SEA | D170: Buy | O170: 0 | P170: 0 | Q170: 0 | R170: 0 | S170: 0 | T170: 0 | Z170: 3264 | AA170: David Phelps | AB170: =IF(AQ170<>0,VLOOKUP(AQ170,Info!A:B,2,FALSE),"") -> SEA | AC170: pheda | AD170: 0.2285714286 | AE170: 0.02857142857 | AF170: 2.142857143 | AG170: 0.1714285714 | AH170: 0.02857142857 | AI170: 2 | AJ170: 0 | AK170: 0 | AL170: 0 | AM170: 0 | AO170: 3264 | AP170: David Phelps | AQ170: Seattle Mariners | AR170: pheda | AS170: 35 | AT170: 8 | AU170: 1 | AV170: 75 | AW170: 6 | AX170: 1 | AY170: 70
A171: 3530 | B171: Drew Smyly | C171: SEA | D171: Buy | O171: 0 | P171: 0 | Q171: 0 | R171: 0 | S171: 0 | T171: 0 | Z171: 3530 | AA171: Drew Smyly | AB171: =IF(AQ171<>0,VLOOKUP(AQ171,Info!A:B,2,FALSE),"") -> SEA | AC171: smydr | AD171: 0.2571428571 | AE171: 0.02857142857 | AF171: 5.571428571 | AG171: 0.4 | AH171: 0.02857142857 | AI171: 3.171428571 | AJ171: 0 | AK171: 0 | AL171: 0 | AM171: 0 | AO171: 3530 | AP171: Drew Smyly | AQ171: Seattle Mariners | AR171: smydr | AS171: 35 | AT171: 9 | AU171: 1 | AV171: 195 | AW171: 14 | AX171: 1 | AY171: 111
A172: 3866 | B172: Erasmo Ramirez | C172: SEA | D172: Buy | O172: 0 | P172: 0 | Q172: 0 | R172: 0 | S172: 0 | T172: 0 | Z172: 3866 | AA172: Erasmo Ramirez | AB172: =IF(AQ172<>0,VLOOKUP(AQ172,Info!A:B,2,FALSE),"") -> SEA | AC172: ramer | AD172: 0.2285714286 | AE172: 0.02857142857 | AF172: 2.971428571 | AG172: 0.1714285714 | AH172: 0.02857142857 | AI172: 2 | AJ172: 0 | AK172: 0 | AL172: 0 | AM172: 0 | AO172: 3866 | AP172: Erasmo Ramirez | AQ172: Seattle Mariners | AR172: ramer | AS172: 35 | AT172: 8 | AU172: 1 | AV172: 104 | AW172: 6 | AX172: 1 | AY172: 70
A173: 1752 | B173: Felix Hernandez | C173: SEA | D173: Buy | O173: 0 | P173: 0 | Q173: 0 | R173: 0 | S173: 0 | T173: 0 | Z173: 1752 | AA173: Felix Hernandez | AB173: =IF(AQ173<>0,VLOOKUP(AQ173,Info!A:B,2,FALSE),"") -> SEA | AC173: herfe | AD173: 0.4 | AE173: 0.02857142857 | AF173: 4.885714286 | AG173: 0.3142857143 | AH173: 0.02857142857 | AI173: 2.628571429 | AJ173: 0 | AK173: 0 | AL173: 0 | AM173: 0 | AO173: 1752 | AP173: Felix Hernandez | AQ173: Seattle Mariners | AR173: herfe | AS173: 35 | AT173: 14 | AU173: 1 | AV173: 171 | AW173: 11 | AX173: 1 | AY173: 92
A174: 3258 | B174: Hisashi Iwakuma | C174: SEA | D174: Buy | O174: 0 | P174: 0 | Q174: 0 | R174: 0 | S174: 0 | T174: 0 | Z174: 3258 | AA174: Hisashi Iwakuma | AB174: =IF(AQ174<>0,VLOOKUP(AQ174,Info!A:B,2,FALSE),"") -> SEA | AC174: iwahi | AD174: 0.4857142857 | AE174: 0.02857142857 | AF174: 4.457142857 | AG174: 0.3714285714 | AH174: 0.02857142857 | AI174: 2.771428571 | AJ174: 0 | AK174: 0 | AL174: 0 | AM174: 0 | AO174: 3258 | AP174: Hisashi Iwakuma | AQ174: Seattle Mariners | AR174: iwahi | AS174: 35 | AT174: 17 | AU174: 1 | AV174: 156 | AW174: 13 | AX174: 1 | AY174: 97
A175: 3504 | B175: James Paxton | C175: SEA | D175: Buy | O175: 0 | P175: 0 | Q175: 0 | R175: 0 | S175: 0 | T175: 0 | Z175: 3504 | AA175: James Paxton | AB175: =IF(AQ175<>0,VLOOKUP(AQ175,Info!A:B,2,FALSE),"") -> SEA | AC175: paxja | AD175: 0.5142857143 | AE175: 0.02857142857 | AF175: 6.514285714 | AG175: 0.2285714286 | AH175: 0.02857142857 | AI175: 2 | AJ175: 0 | AK175: 0 | AL175: 0 | AM175: 0 | AO175: 3504 | AP175: James Paxton | AQ175: Seattle Mariners | AR175: paxja | AS175: 35 | AT175: 18 | AU175: 1 | AV175: 228 | AW175: 8 | AX175: 1 | AY175: 70
A176: 2653 | B176: Mike Leake | C176: SEA | D176: Buy | O176: 0 | P176: 0 | Q176: 0 | R176: 0 | S176: 0 | T176: 0 | Z176: 2653 | AA176: Mike Leake | AB176: =IF(AQ176<>0,VLOOKUP(AQ176,Info!A:B,2,FALSE),"") -> SEA | AC176: leami | AD176: 0.3428571429 | AE176: 0.02857142857 | AF176: 4.2 | AG176: 0.4285714286 | AH176: 0.02857142857 | AI176: 2.628571429 | AJ176: 0 | AK176: 0 | AL176: 0 | AM176: 0 | AO176: 2653 | AP176: Mike Leake | AQ176: Seattle Mariners | AR176: leami | AS176: 35 | AT176: 12 | AU176: 1 | AV176: 147 | AW176: 15 | AX176: 1 | AY176: 92
A177: 2426 | B177: Yovani Gallardo | C177: SEA | D177: Buy | O177: 0 | P177: 0 | Q177: 0 | R177: 0 | S177: 0 | T177: 0 | Z177: 2426 | AA177: Yovani Gallardo | AB177: =IF(AQ177<>0,VLOOKUP(AQ177,Info!A:B,2,FALSE),"") -> SEA | AC177: galyo | AD177: 0.2285714286 | AE177: 0.05714285714 | AF177: 3.371428571 | AG177: 0.3714285714 | AH177: 0.02857142857 | AI177: 2.971428571 | AJ177: 0 | AK177: 0 | AL177: 0 | AM177: 0 | AO177: 2426 | AP177: Yovani Gallardo | AQ177: Seattle Mariners | AR177: galyo | AS177: 35 | AT177: 8 | AU177: 2 | AV177: 118 | AW177: 13 | AX177: 1 | AY177: 104
A178: 2008 | B178: Adam Wainwright | C178: STL | D178: Buy | O178: 0 | P178: 0 | Q178: 0 | R178: 0 | S178: 0 | T178: 0 | Z178: 2008 | AA178: Adam Wainwright | AB178: =IF(AQ178<>0,VLOOKUP(AQ178,Info!A:B,2,FALSE),"") -> STL | AC178: waiad | AD178: 0.5142857143 | AE178: 0.02857142857 | AF178: 4 | AG178: 0.2285714286 | AH178: 0.02857142857 | AI178: 2.942857143 | AJ178: 0 | AK178: 0 | AL178: 0 | AM178: 0 | AO178: 2008 | AP178: Adam Wainwright | AQ178: St. Louis Cardinals | AR178: waiad | AS178: 35 | AT178: 18 | AU178: 1 | AV178: 140 | AW178: 8 | AX178: 1 | AY178: 103
A179: 3837 | B179: Carlos Martinez | C179: STL | D179: Buy | O179: 0 | P179: 0 | Q179: 0 | R179: 0 | S179: 0 | T179: 0 | Z179: 3837 | AA179: Carlos Martinez | AB179: =IF(AQ179<>0,VLOOKUP(AQ179,Info!A:B,2,FALSE),"") -> STL | AC179: martc | AD179: 0.4 | AE179: 0.02857142857 | AF179: 6.8 | AG179: 0.3714285714 | AH179: 0.08571428571 | AI179: 2.6 | AJ179: 0 | AK179: 0 | AL179: 0 | AM179: 0 | AO179: 3837 | AP179: Carlos Martinez | AQ179: St. Louis Cardinals | AR179: martc | AS179: 35 | AT179: 14 | AU179: 1 | AV179: 238 | AW179: 13 | AX179: 3 | AY179: 91
A180: 3045 | B180: Daniel Bard | C180: STL | D180: Buy | O180: 0 | P180: 0 | Q180: 0 | R180: 0 | S180: 0 | T180: 0 | Z180: 3045 | AA180: Daniel Bard | AB180: =IF(AQ180<>0,VLOOKUP(AQ180,Info!A:B,2,FALSE),"") -> STL | AC180: bardd | AD180: 0.3142857143 | AE180: 0.02857142857 | AF180: 2.257142857 | AG180: 0.3714285714 | AH180: 0.02857142857 | AI180: 2.428571429 | AJ180: 0 | AK180: 0 | AL180: 0 | AM180: 0 | AO180: 3045 | AP180: Daniel Bard | AQ180: St. Louis Cardinals | AR180: bardd | AS180: 35 | AT180: 11 | AU180: 1 | AV180: 79 | AW180: 13 | AX180: 1 | AY180: 85
A181: 3050 | B181: Lance Lynn | C181: STL | D181: Buy | O181: 0 | P181: 0 | Q181: 0 | R181: 0 | S181: 0 | T181: 0 | Z181: 3050 | AA181: Lance Lynn | AB181: =IF(AQ181<>0,VLOOKUP(AQ181,Info!A:B,2,FALSE),"") -> STL | AC181: lynla | AD181: 0.3428571429 | AE181: 0.02857142857 | AF181: 4.657142857 | AG181: 0.2571428571 | AH181: 0.02857142857 | AI181: 2.171428571 | AJ181: 0 | AK181: 0 | AL181: 0 | AM181: 0 | AO181: 3050 | AP181: Lance Lynn | AQ181: St. Louis Cardinals | AR181: lynla | AS181: 35 | AT181: 12 | AU181: 1 | AV181: 163 | AW181: 9 | AX181: 1 | AY181: 76
A182: 3377 | B182: Michael Wacha | C182: STL | D182: Buy | O182: 0 | P182: 0 | Q182: 0 | R182: 0 | S182: 0 | T182: 0 | Z182: 3377 | AA182: Michael Wacha | AB182: =IF(AQ182<>0,VLOOKUP(AQ182,Info!A:B,2,FALSE),"") -> STL | AC182: wacmi | AD182: 0.4 | AE182: 0.02857142857 | AF182: 5.285714286 | AG182: 0.3142857143 | AH182: 0.05714285714 | AI182: 2.542857143 | AJ182: 0 | AK182: 0 | AL182: 0 | AM182: 0 | AO182: 3377 | AP182: Michael Wacha | AQ182: St. Louis Cardinals | AR182: wacmi | AS182: 35 | AT182: 14 | AU182: 1 | AV182: 185 | AW182: 11 | AX182: 2 | AY182: 89
A183: 3266 | B183: Alex Cobb | C183: TAM | D183: Buy | O183: 0 | P183: 0 | Q183: 0 | R183: 0 | S183: 0 | T183: 0 | Z183: 3266 | AA183: Alex Cobb | AB183: =IF(AQ183<>0,VLOOKUP(AQ183,Info!A:B,2,FALSE),"") -> TAM | AC183: cobal | AD183: 0.4285714286 | AE183: 0.02857142857 | AF183: 4.428571429 | AG183: 0.3714285714 | AH183: 0.02857142857 | AI183: 2.542857143 | AJ183: 0 | AK183: 0 | AL183: 0 | AM183: 0 | AO183: 3266 | AP183: Alex Cobb | AQ183: Tampa Bay Rays | AR183: cobal | AS183: 35 | AT183: 15 | AU183: 1 | AV183: 155 | AW183: 13 | AX183: 1 | AY183: 89
A184: 3307 | B184: Chris Archer | C184: TAM | D184: Buy | O184: 0 | P184: 0 | Q184: 0 | R184: 0 | S184: 0 | T184: 0 | Z184: 3307 | AA184: Chris Archer | AB184: =IF(AQ184<>0,VLOOKUP(AQ184,Info!A:B,2,FALSE),"") -> TAM | AC184: arcch | AD184: 0.3142857143 | AE184: 0.02857142857 | AF184: 7.142857143 | AG184: 0.3714285714 | AH184: 0.02857142857 | AI184: 2.714285714 | AJ184: 0 | AK184: 0 | AL184: 0 | AM184: 0 | AO184: 3307 | AP184: Chris Archer | AQ184: Tampa Bay Rays | AR184: arcch | AS184: 35 | AT184: 11 | AU184: 1 | AV184: 250 | AW184: 13 | AX184: 1 | AY184: 95
A185: 3575 | B185: Jake Odorizzi | C185: TAM | D185: Buy | O185: 0 | P185: 0 | Q185: 0 | R185: 0 | S185: 0 | T185: 0 | Z185: 3575 | AA185: Jake Odorizzi | AB185: =IF(AQ185<>0,VLOOKUP(AQ185,Info!A:B,2,FALSE),"") -> TAM | AC185: odoja | AD185: 0.3714285714 | AE185: 0.02857142857 | AF185: 4.542857143 | AG185: 0.2857142857 | AH185: 0.02857142857 | AI185: 2.371428571 | AJ185: 0 | AK185: 0 | AL185: 0 | AM185: 0 | AO185: 3575 | AP185: Jake Odorizzi | AQ185: Tampa Bay Rays | AR185: odoja | AS185: 35 | AT185: 13 | AU185: 1 | AV185: 159 | AW185: 10 | AX185: 1 | AY185: 83
A186: 3550 | B186: Nathan Eovaldi | C186: TAM | D186: Buy | O186: 0 | P186: 0 | Q186: 0 | R186: 0 | S186: 0 | T186: 0 | Z186: 3550 | AA186: Nathan Eovaldi | AB186: =IF(AQ186<>0,VLOOKUP(AQ186,Info!A:B,2,FALSE),"") -> TAM | AC186: eovna | AD186: 0.4 | AE186: 0.02857142857 | AF186: 4.057142857 | AG186: 0.3428571429 | AH186: 0.02857142857 | AI186: 2.771428571 | AJ186: 0 | AK186: 0 | AL186: 0 | AM186: 0 | AO186: 3550 | AP186: Nathan Eovaldi | AQ186: Tampa Bay Rays | AR186: eovna | AS186: 35 | AT186: 14 | AU186: 1 | AV186: 142 | AW186: 12 | AX186: 1 | AY186: 97
A187: 3265 | B187: AJ Griffin | C187: TEX | D187: Buy | O187: 0 | P187: 0 | Q187: 0 | R187: 0 | S187: 0 | T187: 0 | Z187: 3265 | AA187: AJ Griffin | AB187: =IF(AQ187<>0,VLOOKUP(AQ187,Info!A:B,2,FALSE),"") -> TEX | AC187: griaj | AD187: 0.3428571429 | AE187: 0.02857142857 | AF187: 3.4 | AG187: 0.3428571429 | AH187: 0.05714285714 | AI187: 2.857142857 | AJ187: 0 | AK187: 0 | AL187: 0 | AM187: 0 | AO187: 3265 | AP187: AJ Griffin | AQ187: Texas Rangers | AR187: griaj | AS187: 35 | AT187: 12 | AU187: 1 | AV187: 119 | AW187: 12 | AX187: 2 | AY187: 100
A188: 3515 | B188: Andrew Cashner | C188: TEX | D188: Buy | O188: 0 | P188: 0 | Q188: 0 | R188: 0 | S188: 0 | T188: 0 | Z188: 3515 | AA188: Andrew Cashner | AB188: =IF(AQ188<>0,VLOOKUP(AQ188,Info!A:B,2,FALSE),"") -> TEX | AC188: casan | AD188: 0.4 | AE188: 0.02857142857 | AF188: 3.085714286 | AG188: 0.4 | AH188: 0.02857142857 | AI188: 2.257142857 | AJ188: 0 | AK188: 0 | AL188: 0 | AM188: 0 | AO188: 3515 | AP188: Andrew Cashner | AQ188: Texas Rangers | AR188: casan | AS188: 35 | AT188: 14 | AU188: 1 | AV188: 108 | AW188: 14 | AX188: 1 | AY188: 79
A189: 1975 | B189: Cole Hamels | C189: TEX | D189: Buy | O189: 0 | P189: 0 | Q189: 0 | R189: 0 | S189: 0 | T189: 0 | Z189: 1975 | AA189: Cole Hamels | AB189: =IF(AQ189<>0,VLOOKUP(AQ189,Info!A:B,2,FALSE),"") -> TEX | AC189: hamco | AD189: 0.4857142857 | AE189: 0.02857142857 | AF189: 4.4 | AG189: 0.2571428571 | AH189: 0.02857142857 | AI189: 2.885714286 | AJ189: 0 | AK189: 0 | AL189: 0 | AM189: 0 | AO189: 1975 | AP189: Cole Hamels | AQ189: Texas Rangers | AR189: hamco | AS189: 35 | AT189: 17 | AU189: 1 | AV189: 154 | AW189: 9 | AX189: 1 | AY189: 101
A190: 3312 | B190: Miguel Gonzalez | C190: TEX | D190: Buy | O190: 0 | P190: 0 | Q190: 0 | R190: 0 | S190: 0 | T190: 0 | Z190: 3312 | AA190: Miguel Gonzalez | AB190: =IF(AQ190<>0,VLOOKUP(AQ190,Info!A:B,2,FALSE),"") -> TEX | AC190: gonzm | AD190: 0.3142857143 | AE190: 0.02857142857 | AF190: 3.714285714 | AG190: 0.4857142857 | AH190: 0.02857142857 | AI190: 3.114285714 | AJ190: 0 | AK190: 0 | AL190: 0 | AM190: 0 | AO190: 3312 | AP190: Miguel Gonzalez | AQ190: Texas Rangers | AR190: gonzm | AS190: 35 | AT190: 11 | AU190: 1 | AV190: 130 | AW190: 17 | AX190: 1 | AY190: 109
A191: 2476 | B191: Tommy Hanson | C191: TEX | D191: Buy | O191: 0 | P191: 0 | Q191: 0 | R191: 0 | S191: 0 | T191: 0 | Z191: 2476 | AA191: Tommy Hanson | AB191: =IF(AQ191<>0,VLOOKUP(AQ191,Info!A:B,2,FALSE),"") -> TEX | AC191: hanto | AD191: 0.2857142857 | AE191: 0.02857142857 | AF191: 3.742857143 | AG191: 0.2 | AH191: 0.02857142857 | AI191: 2.942857143 | AJ191: 0 | AK191: 0 | AL191: 0 | AM191: 0 | AO191: 2476 | AP191: Tommy Hanson | AQ191: Texas Rangers | AR191: hanto | AS191: 35 | AT191: 10 | AU191: 1 | AV191: 131 | AW191: 7 | AX191: 1 | AY191: 103
A192: 3531 | B192: Tyson Ross | C192: TEX | D192: Buy | O192: 0 | P192: 0 | Q192: 0 | R192: 0 | S192: 0 | T192: 0 | Z192: 3531 | AA192: Tyson Ross | AB192: =IF(AQ192<>0,VLOOKUP(AQ192,Info!A:B,2,FALSE),"") -> TEX | AC192: rosty | AD192: 0.2571428571 | AE192: 0.02857142857 | AF192: 3 | AG192: 0.2571428571 | AH192: 0.02857142857 | AI192: 3.514285714 | AJ192: 0 | AK192: 0 | AL192: 0 | AM192: 0 | AO192: 3531 | AP192: Tyson Ross | AQ192: Texas Rangers | AR192: rosty | AS192: 35 | AT192: 9 | AU192: 1 | AV192: 105 | AW192: 9 | AX192: 1 | AY192: 123
A193: 4038 | B193: Aaron Sanchez | C193: TOR | D193: Buy | O193: 0 | P193: 0 | Q193: 0 | R193: 0 | S193: 0 | T193: 0 | Z193: 4038 | AA193: Aaron Sanchez | AB193: =IF(AQ193<>0,VLOOKUP(AQ193,Info!A:B,2,FALSE),"") -> TOR | AC193: sanaa | AD193: 0.5142857143 | AE193: 0.02857142857 | AF193: 5.142857143 | AG193: 0.2285714286 | AH193: 0.02857142857 | AI193: 2.571428571 | AJ193: 0 | AK193: 0 | AL193: 0 | AM193: 0 | AO193: 4038 | AP193: Aaron Sanchez | AQ193: Toronto Blue Jays | AR193: sanaa | AS193: 35 | AT193: 18 | AU193: 1 | AV193: 180 | AW193: 8 | AX193: 1 | AY193: 90
A194: 2623 | B194: Brett Anderson | C194: TOR | D194: Buy | O194: 0 | P194: 0 | Q194: 0 | R194: 0 | S194: 0 | T194: 0 | Z194: 2623 | AA194: Brett Anderson | AB194: =IF(AQ194<>0,VLOOKUP(AQ194,Info!A:B,2,FALSE),"") -> TOR | AC194: andeb | AD194: 0.3142857143 | AE194: 0.02857142857 | AF194: 2.942857143 | AG194: 0.3142857143 | AH194: 0.02857142857 | AI194: 3 | AJ194: 0 | AK194: 0 | AL194: 0 | AM194: 0 | AO194: 2623 | AP194: Brett Anderson | AQ194: Toronto Blue Jays | AR194: andeb | AS194: 35 | AT194: 11 | AU194: 1 | AV194: 103 | AW194: 11 | AX194: 1 | AY194: 105
A195: =IF(Z195<>0,Z195,"") -> 2208 | B195: =IF(A195<>0,VLOOKUP(A195,Z:AA,2,FALSE),"") -> Gavin Floyd | C195: =IF(A195<>0,VLOOKUP(A195,Z:AB,3,FALSE)) -> TOR | D195: =HYPERLINK("http://www.jockstocks.com/buysell.php?action=buymax&plid="&A195,"Buy") -> Buy | O195: =VLOOKUP($A195,$A:$N,5,FALSE)/VLOOKUP($A195,$Z:$AM,5,FALSE) -> 0 | P195: =VLOOKUP($A195,$A:$N,6,FALSE)/VLOOKUP($A195,$Z:$AM,6,FALSE) -> 0 | Q195: =VLOOKUP($A195,$A:$N,7,FALSE)/VLOOKUP($A195,$Z:$AM,7,FALSE) -> 0 | R195: =VLOOKUP($A195,$A:$N,8,FALSE)/VLOOKUP($A195,$Z:$AM,8,FALSE) -> 0 | S195: =VLOOKUP($A195,$A:$N,9,FALSE)/VLOOKUP($A195,$Z:$AM,9,FALSE) -> 0 | T195: =VLOOKUP($A195,$A:$N,10,FALSE)/VLOOKUP($A195,$Z:$AM,10,FALSE) -> 0 | U195: =VLOOKUP($A195,$A:$N,11,FALSE)/VLOOKUP($A195,$Z:$AM,11,FALSE) ->  | V195: =VLOOKUP($A195,$A:$N,12,FALSE)/VLOOKUP($A195,$Z:$AM,12,FALSE) ->  | W195: =VLOOKUP($A195,$A:$N,13,FALSE)/VLOOKUP($A195,$Z:$AM,13,FALSE) ->  | X195: =VLOOKUP($A195,$A:$N,14,FALSE)/VLOOKUP($A195,$Z:$AM,14,FALSE) ->  | Z195: =IF(AO195<>0,AO195,"") -> 2208 | AA195: =IF(AP195<>0,VLOOKUP(Z195,AO:AP,2,FALSE),"") -> Gavin Floyd | AB195: =IF(AQ195<>0,VLOOKUP(AQ195,Info!A:B,2,FALSE),"") -> TOR | AC195: =IF(AO195<>0,VLOOKUP(Z195,AO:AR,4,FALSE),"") -> floga | AD195: =IF($AO195<>0,AT195/$AS195,"") -> 0.2285714286 | AE195: =IF($AO195<>0,AU195/$AS195,"") -> 0.02857142857 | AF195: =IF($AO195<>0,AV195/$AS195,"") -> 2.142857143 | AG195: =IF($AO195<>0,AW195/$AS195,"") -> 0.1714285714 | AH195: =IF($AO195<>0,AX195/$AS195,"") -> 0.02857142857 | AI195: =IF($AO195<>0,AY195/$AS195,"") -> 2 | AJ195: =IF($AO195<>0,BL195/$AS195,"") -> 0 | AK195: =IF($AO195<>0,BM195/$AS195,"") -> 0 | AL195: =IF($AO195<>0,BN195/$AS195,"") -> 0 | AM195: =IF($AO195<>0,BO195/$AS195,"") -> 0 | AO195: 2208 | AP195: Gavin Floyd | AQ195: Toronto Blue Jays | AR195: floga | AS195: 35 | AT195: 8 | AU195: 1 | AV195: 75 | AW195: 6 | AX195: 1 | AY195: 70
A196: 2470 | B196: J.A. Happ | C196: TOR | D196: Buy | O196: 0 | P196: 0 | Q196: 0 | R196: 0 | S196: 0 | T196: 0 | Z196: 2470 | AA196: J.A. Happ | AB196: =IF(AQ196<>0,VLOOKUP(AQ196,Info!A:B,2,FALSE),"") -> TOR | AC196: hapja | AD196: 0.4 | AE196: 0.02857142857 | AF196: 5.685714286 | AG196: 0.4571428571 | AH196: 0.02857142857 | AI196: 2.285714286 | AJ196: 0 | AK196: 0 | AL196: 0 | AM196: 0 | AO196: 2470 | AP196: J.A. Happ | AQ196: Toronto Blue Jays | AR196: hapja | AS196: 35 | AT196: 14 | AU196: 1 | AV196: 199 | AW196: 16 | AX196: 1 | AY196: 80
A197: 3512 | B197: Marco Estrada | C197: TOR | D197: Buy | O197: 0 | P197: 0 | Q197: 0 | R197: 0 | S197: 0 | T197: 0 | Z197: 3512 | AA197: Marco Estrada | AB197: =IF(AQ197<>0,VLOOKUP(AQ197,Info!A:B,2,FALSE),"") -> TOR | AC197: estma | AD197: 0.3142857143 | AE197: 0.02857142857 | AF197: 5.342857143 | AG197: 0.2857142857 | AH197: 0.02857142857 | AI197: 3.142857143 | AJ197: 0 | AK197: 0 | AL197: 0 | AM197: 0 | AO197: 3512 | AP197: Marco Estrada | AQ197: Toronto Blue Jays | AR197: estma | AS197: 35 | AT197: 11 | AU197: 1 | AV197: 187 | AW197: 10 | AX197: 1 | AY197: 110
A198: 4042 | B198: Marcus Stroman | C198: TOR | D198: Buy | O198: 0 | P198: 0 | Q198: 0 | R198: 0 | S198: 0 | T198: 0 | Z198: 4042 | AA198: Marcus Stroman | AB198: =IF(AQ198<>0,VLOOKUP(AQ198,Info!A:B,2,FALSE),"") -> TOR | AC198: strma | AD198: 0.4 | AE198: 0.02857142857 | AF198: 4.971428571 | AG198: 0.2857142857 | AH198: 0.02857142857 | AI198: 2.114285714 | AJ198: 0 | AK198: 0 | AL198: 0 | AM198: 0 | AO198: 4042 | AP198: Marcus Stroman | AQ198: Toronto Blue Jays | AR198: strma | AS198: 35 | AT198: 14 | AU198: 1 | AV198: 174 | AW198: 10 | AX198: 1 | AY198: 74
A199: 2626 | B199: Mat Latos | C199: TOR | D199: Buy | O199: 0 | P199: 0 | Q199: 0 | R199: 0 | S199: 0 | T199: 0 | Z199: 2626 | AA199: Mat Latos | AB199: =IF(AQ199<>0,VLOOKUP(AQ199,Info!A:B,2,FALSE),"") -> TOR | AC199: latma | AD199: 0.4285714286 | AE199: 0.02857142857 | AF199: 2.485714286 | AG199: 0.2 | AH199: 0.02857142857 | AI199: 2.257142857 | AJ199: 0 | AK199: 0 | AL199: 0 | AM199: 0 | AO199: 2626 | AP199: Mat Latos | AQ199: Toronto Blue Jays | AR199: latma | AS199: 35 | AT199: 15 | AU199: 1 | AV199: 87 | AW199: 7 | AX199: 1 | AY199: 79
A200: 2472 | B200: Ricky Romero | C200: TOR | D200: Buy | O200: 0 | P200: 0 | Q200: 0 | R200: 0 | S200: 0 | T200: 0 | Z200: 2472 | AA200: Ricky Romero | AB200: =IF(AQ200<>0,VLOOKUP(AQ200,Info!A:B,2,FALSE),"") -> TOR | AC200: romri | AD200: 0.2857142857 | AE200: 0.02857142857 | AF200: 3.885714286 | AG200: 0.4571428571 | AH200: 0.02857142857 | AI200: 3.6 | AJ200: 0 | AK200: 0 | AL200: 0 | AM200: 0 | AO200: 2472 | AP200: Ricky Romero | AQ200: Toronto Blue Jays | AR200: romri | AS200: 35 | AT200: 10 | AU200: 1 | AV200: 136 | AW200: 16 | AX200: 1 | AY200: 126
... 50 more rows

Sheet MLBR
A1: plid | B1: Name | C1: Team | E1: W | F1: Save | G1: Ks | H1: L | I1: W/Hs | J1: ERs | O1: W | P1: Save | Q1: Ks | R1: L | S1: W/Hs | T1: ERs | Z1: =IF(AO1<>0,AO1,"") -> ID | AA1: =IF(AP1<>0,AP1,"") -> Name | AB1: =IF(AQ1<>0,AQ1,"") -> Team | AC1: =IF(AR1<>0,AR1,"") -> Symbol | AD1: =IF(AT1<>0,AT1,"") -> Wins | AE1: =IF(AU1<>0,AU1,"") -> Saves | AF1: Strikeouts | AG1: Losses | AH1: Walks/Hits | AI1: Earned Runs | AK1: =IF(BC1<>0,BC1,"") ->  | AL1: =IF(BD1<>0,BD1,"") ->  | AM1: =IF(BE1<>0,BE1,"") ->  | AO1: ID | AP1: Name | AQ1: Team | AR1: Symbol | AS1: Appearances | AT1: Wins | AU1: Saves | AV1: Strikeouts | AW1: Losses | AX1: Walks/Hits | AY1: Earned Runs
A2: =IF(Z2<>0,Z2,"") -> 2465 | B2: =IF(A2<>0,VLOOKUP(A2,Z:AA,2,FALSE),"") -> Fernando Rodney | C2: =IF(A2<>0,VLOOKUP(A2,Z:AB,3,FALSE)) -> ARI | D2: =HYPERLINK("http://www.jockstocks.com/buysell.php?action=buymax&plid="&A2,"Buy") -> Buy | O2: =VLOOKUP($A2,$A:$N,5,FALSE)/VLOOKUP($A2,$Z:$AM,5,FALSE) -> 0 | P2: =VLOOKUP($A2,$A:$N,6,FALSE)/VLOOKUP($A2,$Z:$AM,6,FALSE) -> 0 | Q2: =VLOOKUP($A2,$A:$N,7,FALSE)/VLOOKUP($A2,$Z:$AM,7,FALSE) -> 0 | R2: =VLOOKUP($A2,$A:$N,8,FALSE)/VLOOKUP($A2,$Z:$AM,8,FALSE) -> 0 | S2: =VLOOKUP($A2,$A:$N,9,FALSE)/VLOOKUP($A2,$Z:$AM,9,FALSE) ->  | T2: =VLOOKUP($A2,$A:$N,10,FALSE)/VLOOKUP($A2,$Z:$AM,10,FALSE) ->  | U2: =VLOOKUP($A2,$A:$N,11,FALSE)/VLOOKUP($A2,$Z:$AM,11,FALSE) ->  | V2: =VLOOKUP($A2,$A:$N,12,FALSE)/VLOOKUP($A2,$Z:$AM,12,FALSE) ->  | W2: =VLOOKUP($A2,$A:$N,13,FALSE)/VLOOKUP($A2,$Z:$AM,13,FALSE) ->  | X2: =VLOOKUP($A2,$A:$N,14,FALSE)/VLOOKUP($A2,$Z:$AM,14,FALSE) ->  | Z2: =IF(AO2<>0,AO2,"") -> 2465 | AA2: =IF(AP2<>0,VLOOKUP(Z2,AO:AP,2,FALSE),"") -> Fernando Rodney | AB2: =IF(AQ2<>0,VLOOKUP(AQ2,Info!A:B,2,FALSE),"") -> ARI | AC2: =IF(AO2<>0,VLOOKUP(Z2,AO:AR,4,FALSE),"") -> rodfe | AD2: =IF($AO2<>0,AT2/$AS2,"") -> 0.05882352941 | AE2: =IF($AO2<>0,AU2/$AS2,"") -> 0.5882352941 | AF2: =IF($AO2<>0,AV2/$AS2,"") -> 1.082352941 | AG2: =IF($AO2<>0,AW2/$AS2,"") -> 0.07058823529 | AH2: =IF($AO2<>0,AZ2/$AS2,"") -> 0 | AI2: 0 | AJ2: 0 | AK2: 0 | AL2: 0 | AM2: 0 | AO2: 2465 | AP2: Fernando Rodney | AQ2: Arizona Diamondbacks | AR2: rodfe | AS2: 85 | AT2: 5 | AU2: 50 | AV2: 92 | AW2: 6 | AX2: 92 | AY2: 38
A3: =IF(Z3<>0,Z3,"") -> 3094 | B3: =IF(A3<>0,VLOOKUP(A3,Z:AA,2,FALSE),"") -> Tom Wilhelmsen | C3: =IF(A3<>0,VLOOKUP(A3,Z:AB,3,FALSE)) -> ARI | D3: =HYPERLINK("http://www.jockstocks.com/buysell.php?action=buymax&plid="&A3,"Buy") -> Buy | O3: 0 | P3: 0 | Q3: 0 | R3: 0 | Z3: =IF(AO3<>0,AO3,"") -> 3094 | AA3: =IF(AP3<>0,VLOOKUP(Z3,AO:AP,2,FALSE),"") -> Tom Wilhelmsen | AB3: =IF(AQ3<>0,VLOOKUP(AQ3,Info!A:B,2,FALSE),"") -> ARI | AC3: =IF(AO3<>0,VLOOKUP(Z3,AO:AR,4,FALSE),"") -> wilto | AD3: =IF($AO3<>0,AT3/$AS3,"") -> 0.04705882353 | AE3: =IF($AO3<>0,AU3/$AS3,"") -> 0.2941176471 | AF3: =IF($AO3<>0,AV3/$AS3,"") -> 0.6352941176 | AG3: =IF($AO3<>0,AW3/$AS3,"") -> 0.04705882353 | AH3: =IF($AO3<>0,AZ3/$AS3,"") -> 0 | AI3: =IF($AO3<>0,BA3/$AS3,"") -> 0 | AJ3: =IF($AO3<>0,BB3/$AS3,"") -> 0 | AK3: =IF($AO3<>0,BC3/$AS3,"") -> 0 | AL3: =IF($AO3<>0,BD3/$AS3,"") -> 0 | AM3: =IF($AO3<>0,BE3/$AS3,"") -> 0 | AO3: 3094 | AP3: Tom Wilhelmsen | AQ3: Arizona Diamondbacks | AR3: wilto | AS3: 85 | AT3: 4 | AU3: 25 | AV3: 54 | AW3: 4 | AX3: 117 | AY3: 41
A4: 2960 | B4: Jason Motte | C4: ATL | D4: Buy | O4: 0 | P4: 0 | Q4: 0 | R4: 0 | Z4: 2960 | AA4: Jason Motte | AB4: =IF(AQ4<>0,VLOOKUP(AQ4,Info!A:B,2,FALSE),"") -> ATL | AC4: motja | AD4: 0.02352941176 | AE4: 0.2941176471 | AF4: 0.5882352941 | AG4: 0.02352941176 | AH4: 0 | AI4: 0 | AJ4: 0 | AK4: 0 | AL4: 0 | AM4: 0 | AO4: 2960 | AP4: Jason Motte | AQ4: Atlanta Braves | AR4: motja | AS4: 85 | AT4: 2 | AU4: 25 | AV4: 50 | AW4: 2 | AX4: 89 | AY4: 30
A5: 3057 | B5: Jim Johnson | C5: ATL | D5: Buy | O5: 0 | P5: 0 | Q5: 0 | R5: 0 | Z5: 3057 | AA5: Jim Johnson | AB5: =IF(AQ5<>0,VLOOKUP(AQ5,Info!A:B,2,FALSE),"") -> ATL | AC5: jojim | AD5: 0.05882352941 | AE5: 0.3647058824 | AF5: 1 | AG5: 0.05882352941 | AH5: 0 | AI5: 0 | AJ5: 0 | AK5: 0 | AL5: 0 | AM5: 0 | AO5: 3057 | AP5: Jim Johnson | AQ5: Atlanta Braves | AR5: jojim | AS5: 85 | AT5: 5 | AU5: 31 | AV5: 85 | AW5: 5 | AX5: 120 | AY5: 49
A6: 2872 | B6: Zach Britton | C6: BAL | D6: Buy | O6: 0 | P6: 0 | Q6: 0 | R6: 0 | Z6: 2872 | AA6: Zach Britton | AB6: =IF(AQ6<>0,VLOOKUP(AQ6,Info!A:B,2,FALSE),"") -> BAL | AC6: briza | AD6: 0.05882352941 | AE6: 0.4 | AF6: 0.7647058824 | AG6: 0.03529411765 | AH6: 0 | AI6: 0 | AJ6: 0 | AK6: 0 | AL6: 0 | AM6: 0 | AO6: 2872 | AP6: Zach Britton | AQ6: Baltimore Orioles | AR6: briza | AS6: 85 | AT6: 5 | AU6: 34 | AV6: 65 | AW6: 3 | AX6: 130 | AY6: 27
A7: 3091 | B7: Addison Reed | C7: BOS | D7: Buy | O7: 0 | P7: 0 | Q7: 0 | R7: 0 | Z7: 3091 | AA7: Addison Reed | AB7: =IF(AQ7<>0,VLOOKUP(AQ7,Info!A:B,2,FALSE),"") -> BOS | AC7: reead | AD7: 0.03529411765 | AE7: 0.2941176471 | AF7: 0.9529411765 | AG7: 0.04705882353 | AH7: 0 | AI7: 0 | AJ7: 0 | AK7: 0 | AL7: 0 | AM7: 0 | AO7: 3091 | AP7: Addison Reed | AQ7: Boston Red Sox | AR7: reead | AS7: 85 | AT7: 3 | AU7: 25 | AV7: 81 | AW7: 4 | AX7: 88 | AY7: 28
A8: 2833 | B8: Craig Kimbrel | C8: BOS | D8: Buy | O8: 0 | P8: 0 | Q8: 0 | R8: 0 | Z8: 2833 | AA8: Craig Kimbrel | AB8: =IF(AQ8<>0,VLOOKUP(AQ8,Info!A:B,2,FALSE),"") -> BOS | AC8: kimcr | AD8: 0.05882352941 | AE8: 0.5176470588 | AF8: 1.858823529 | AG8: 0.02352941176 | AH8: 0 | AI8: 0 | AJ8: 0 | AK8: 0 | AL8: 0 | AM8: 0 | AO8: 2833 | AP8: Craig Kimbrel | AQ8: Boston Red Sox | AR8: kimcr | AS8: 85 | AT8: 5 | AU8: 44 | AV8: 158 | AW8: 2 | AX8: 58 | AY8: 20
A9: 3576 | B9: Hector Rondon | C9: CHC | D9: Buy | O9: 0 | P9: 0 | Q9: 0 | R9: 0 | Z9: 3576 | AA9: Hector Rondon | AB9: =IF(AQ9<>0,VLOOKUP(AQ9,Info!A:B,2,FALSE),"") -> CHC | AC9: ronhe | AD9: 0.05882352941 | AE9: 0.2941176471 | AF9: 1.129411765 | AG9: 0.03529411765 | AH9: 0 | AI9: 0 | AJ9: 0 | AK9: 0 | AL9: 0 | AM9: 0 | AO9: 3576 | AP9: Hector Rondon | AQ9: Chicago Cubs | AR9: ronhe | AS9: 85 | AT9: 5 | AU9: 25 | AV9: 96 | AW9: 3 | AX9: 96 | AY9: 39
A10: 3305 | B10: Koji Uehara | C10: CHC | D10: Buy | O10: 0 | P10: 0 | Q10: 0 | R10: 0 | Z10: 3305 | AA10: Koji Uehara | AB10: =IF(AQ10<>0,VLOOKUP(AQ10,Info!A:B,2,FALSE),"") -> CHC | AC10: uehko | AD10: 0.05882352941 | AE10: 0.2941176471 | AF10: 1.023529412 | AG10: 0.08235294118 | AH10: 0 | AI10: 0 | AJ10: 0 | AK10: 0 | AL10: 0 | AM10: 0 | AO10: 3305 | AP10: Koji Uehara | AQ10: Chicago Cubs | AR10: uehko | AS10: 85 | AT10: 5 | AU10: 25 | AV10: 87 | AW10: 7 | AX10: 89 | AY10: 33
A11: 2629 | B11: Wade Davis | C11: CHC | D11: Buy | O11: 0 | P11: 0 | Q11: 0 | R11: 0 | Z11: 2629 | AA11: Wade Davis | AB11: =IF(AQ11<>0,VLOOKUP(AQ11,Info!A:B,2,FALSE),"") -> CHC | AC11: davwa | AD11: 0.05882352941 | AE11: 0.5647058824 | AF11: 1.341176471 | AG11: 0.03529411765 | AH11: 0 | AI11: 0 | AJ11: 0 | AK11: 0 | AL11: 0 | AM11: 0 | AO11: 2629 | AP11: Wade Davis | AQ11: Chicago Cubs | AR11: davwa | AS11: 85 | AT11: 5 | AU11: 48 | AV11: 114 | AW11: 3 | AX11: 92 | AY11: 23
A12: 2832 | B12: Drew Storen | C12: CIN | D12: Buy | O12: 0 | P12: 0 | Q12: 0 | R12: 0 | Z12: 2832 | AA12: Drew Storen | AB12: =IF(AQ12<>0,VLOOKUP(AQ12,Info!A:B,2,FALSE),"") -> CIN | AC12: stodr | AD12: 0.05882352941 | AE12: 0.2941176471 | AF12: 0.8352941176 | AG12: 0.03529411765 | AH12: 0 | AI12: 0 | AJ12: 0 | AK12: 0 | AL12: 0 | AM12: 0 | AO12: 2832 | AP12: Drew Storen | AQ12: Cincinnati Reds | AR12: stodr | AS12: 85 | AT12: 5 | AU12: 25 | AV12: 71 | AW12: 3 | AX12: 121 | AY12: 40
A13: 4149 | B13: Raisel Iglesias | C13: CIN | D13: Buy | O13: 0 | P13: 0 | Q13: 0 | R13: 0 | Z13: 4149 | AA13: Raisel Iglesias | AB13: =IF(AQ13<>0,VLOOKUP(AQ13,Info!A:B,2,FALSE),"") -> CIN | AC13: iglra | AD13: 0.05882352941 | AE13: 0.4470588235 | AF13: 1.470588235 | AG13: 0.05882352941 | AH13: 0 | AI13: 0 | AJ13: 0 | AK13: 0 | AL13: 0 | AM13: 0 | AO13: 4149 | AP13: Raisel Iglesias | AQ13: Cincinnati Reds | AR13: iglra | AS13: 85 | AT13: 5 | AU13: 38 | AV13: 125 | AW13: 5 | AX13: 115 | AY13: 29
A14: 2154 | B14: Andrew Miller | C14: CLE | D14: Buy | O14: 0 | P14: 0 | Q14: 0 | R14: 0 | Z14: 2154 | AA14: Andrew Miller | AB14: =IF(AQ14<>0,VLOOKUP(AQ14,Info!A:B,2,FALSE),"") -> CLE | AC14: miand | AD14: 0.05882352941 | AE14: 0.2941176471 | AF14: 1.694117647 | AG14: 0.07058823529 | AH14: 0 | AI14: 0 | AJ14: 0 | AK14: 0 | AL14: 0 | AM14: 0 | AO14: 2154 | AP14: Andrew Miller | AQ14: Cleveland Indians | AR14: miand | AS14: 85 | AT14: 5 | AU14: 25 | AV14: 144 | AW14: 6 | AX14: 73 | AY14: 20
A15: 3577 | B15: Cody Allen | C15: CLE | D15: Buy | O15: 0 | P15: 0 | Q15: 0 | R15: 0 | Z15: 3577 | AA15: Cody Allen | AB15: =IF(AQ15<>0,VLOOKUP(AQ15,Info!A:B,2,FALSE),"") -> CLE | AC15: allco | AD15: 0.04705882353 | AE15: 0.4352941176 | AF15: 1.376470588 | AG15: 0.09411764706 | AH15: 0 | AI15: 0 | AJ15: 0 | AK15: 0 | AL15: 0 | AM15: 0 | AO15: 3577 | AP15: Cody Allen | AQ15: Cleveland Indians | AR15: allco | AS15: 85 | AT15: 4 | AU15: 37 | AV15: 117 | AW15: 8 | AX15: 91 | AY15: 27
A16: 3880 | B16: Zach McAllister | C16: CLE | D16: Buy | O16: 0 | P16: 0 | Q16: 0 | R16: 0 | Z16: 3880 | AA16: Zach McAllister | AB16: =IF(AQ16<>0,VLOOKUP(AQ16,Info!A:B,2,FALSE),"") -> CLE | AC16: mcaza | AD16: 0.04705882353 | AE16: 0.2941176471 | AF16: 1.329411765 | AG16: 0.04705882353 | AH16: 0 | AI16: 0 | AJ16: 0 | AK16: 0 | AL16: 0 | AM16: 0 | AO16: 3880 | AP16: Zach McAllister | AQ16: Cleveland Indians | AR16: mcaza | AS16: 85 | AT16: 4 | AU16: 25 | AV16: 113 | AW16: 4 | AX16: 126 | AY16: 31
A17: 4034 | B17: Carlos Estevez | C17: COL | D17: Buy | O17: 0 | P17: 0 | Q17: 0 | R17: 0 | Z17: 4034 | AA17: Carlos Estevez | AB17: =IF(AQ17<>0,VLOOKUP(AQ17,Info!A:B,2,FALSE),"") -> COL | AC17: estca | AD17: 0.05882352941 | AE17: 0.2941176471 | AF17: 0.8941176471 | AG17: 0.02352941176 | AH17: 0 | AI17: 0 | AJ17: 0 | AK17: 0 | AL17: 0 | AM17: 0 | AO17: 4034 | AP17: Carlos Estevez | AQ17: Colorado Rockies | AR17: estca | AS17: 85 | AT17: 5 | AU17: 25 | AV17: 76 | AW17: 2 | AX17: 128 | AY17: 50
A18: 2420 | B18: Chad Qualls | C18: COL | D18: Buy | O18: 0 | P18: 0 | Q18: 0 | R18: 0 | Z18: 2420 | AA18: Chad Qualls | AB18: =IF(AQ18<>0,VLOOKUP(AQ18,Info!A:B,2,FALSE),"") -> COL | AC18: quach | AD18: 0.05882352941 | AE18: 0.2941176471 | AF18: 0.5882352941 | AG18: 0.05882352941 | AH18: 0 | AI18: 0 | AJ18: 0 | AK18: 0 | AL18: 0 | AM18: 0 | AO18: 2420 | AP18: Chad Qualls | AQ18: Colorado Rockies | AR18: quach | AS18: 85 | AT18: 5 | AU18: 25 | AV18: 50 | AW18: 5 | AX18: 99 | AY18: 45
A19: 3252 | B19: Greg Holland | C19: COL | D19: Buy | O19: 0 | P19: 0 | Q19: 0 | R19: 0 | Z19: 3252 | AA19: Greg Holland | AB19: =IF(AQ19<>0,VLOOKUP(AQ19,Info!A:B,2,FALSE),"") -> COL | AC19: holgr | AD19: 0.05882352941 | AE19: 0.5882352941 | AF19: 1.129411765 | AG19: 0.09411764706 | AH19: 0 | AI19: 0 | AJ19: 0 | AK19: 0 | AL19: 0 | AM19: 0 | AO19: 3252 | AP19: Greg Holland | AQ19: Colorado Rockies | AR19: holgr | AS19: 85 | AT19: 5 | AU19: 50 | AV19: 96 | AW19: 8 | AX19: 91 | AY19: 35
A20: 3805 | B20: Jake McGee | C20: COL | D20: Buy | O20: 0 | P20: 0 | Q20: 0 | R20: 0 | Z20: 3805 | AA20: Jake McGee | AB20: =IF(AQ20<>0,VLOOKUP(AQ20,Info!A:B,2,FALSE),"") -> COL | AC20: mcgej | AD20: 0.02352941176 | AE20: 0.2941176471 | AF20: 0.9294117647 | AG20: 0.03529411765 | AH20: 0 | AI20: 0 | AJ20: 0 | AK20: 0 | AL20: 0 | AM20: 0 | AO20: 3805 | AP20: Jake McGee | AQ20: Colorado Rockies | AR20: mcgej | AS20: 85 | AT20: 2 | AU20: 25 | AV20: 79 | AW20: 3 | AX20: 85 | AY20: 30
A21: 4185 | B21: Pat Neshek | C21: COL | D21: Buy | O21: 0 | P21: 0 | Q21: 0 | R21: 0 | Z21: 4185 | AA21: Pat Neshek | AB21: =IF(AQ21<>0,VLOOKUP(AQ21,Info!A:B,2,FALSE),"") -> COL | AC21: nespa | AD21: 0.05882352941 | AE21: 0.2941176471 | AF21: 0.9882352941 | AG21: 0.04705882353 | AH21: 0 | AI21: 0 | AJ21: 0 | AK21: 0 | AL21: 0 | AM21: 0 | AO21: 4185 | AP21: Pat Neshek | AQ21: Colorado Rockies | AR21: nespa | AS21: 85 | AT21: 5 | AU21: 25 | AV21: 84 | AW21: 4 | AX21: 64 | AY21: 20
A22: 3291 | B22: Bobby Parnell | C22: DET | D22: Buy | O22: 0 | P22: 0 | Q22: 0 | R22: 0 | Z22: 3291 | AA22: Bobby Parnell | AB22: =IF(AQ22<>0,VLOOKUP(AQ22,Info!A:B,2,FALSE),"") -> DET | AC22: parbo | AD22: 0.05882352941 | AE22: 0.2941176471 | AF22: 0.5882352941 | AG22: 0.09411764706 | AH22: 0 | AI22: 0 | AJ22: 0 | AK22: 0 | AL22: 0 | AM22: 0 | AO22: 3291 | AP22: Bobby Parnell | AQ22: Detroit Tigers | AR22: parbo | AS22: 85 | AT22: 5 | AU22: 25 | AV22: 50 | AW22: 8 | AX22: 134 | AY22: 49
A23: 3268 | B23: Edward Mujica | C23: DET | D23: Buy | O23: 0 | P23: 0 | Q23: 0 | R23: 0 | Z23: 3268 | AA23: Edward Mujica | AB23: =IF(AQ23<>0,VLOOKUP(AQ23,Info!A:B,2,FALSE),"") -> DET | AC23: mujed | AD23: 0.05882352941 | AE23: 0.2941176471 | AF23: 0.6235294118 | AG23: 0.09411764706 | AH23: 0 | AI23: 0 | AJ23: 0 | AK23: 0 | AL23: 0 | AM23: 0 | AO23: 3268 | AP23: Edward Mujica | AQ23: Detroit Tigers | AR23: mujed | AS23: 85 | AT23: 5 | AU23: 25 | AV23: 53 | AW23: 8 | AX23: 103 | AY23: 44
A24: 379 | B24: Francisco Rodriguez | C24: DET | D24: Buy | O24: 0 | P24: 0 | Q24: 0 | R24: 0 | Z24: 379 | AA24: Francisco Rodriguez | AB24: =IF(AQ24<>0,VLOOKUP(AQ24,Info!A:B,2,FALSE),"") -> DET | AC24: rodfr | AD24: 0.05882352941 | AE24: 0.2941176471 | AF24: 0.8235294118 | AG24: 0.09411764706 | AH24: 0 | AI24: 0 | AJ24: 0 | AK24: 0 | AL24: 0 | AM24: 0 | AO24: 379 | AP24: Francisco Rodriguez | AQ24: Detroit Tigers | AR24: rodfr | AS24: 85 | AT24: 5 | AU24: 25 | AV24: 70 | AW24: 8 | AX24: 128 | AY24: 67
A25: 2464 | B25: David Aardsma | C25: XXX | D25: Buy | O25: 0 | P25: 0 | Q25: 0 | R25: 0 | Z25: 2464 | AA25: David Aardsma | AB25: =IF(AQ25<>0,VLOOKUP(AQ25,Info!A:B,2,FALSE),"") -> XXX | AC25: aarda | AD25: 0.03529411765 | AE25: 0.2941176471 | AF25: 1.070588235 | AG25: 0.03529411765 | AH25: 0 | AI25: 0 | AJ25: 0 | AK25: 0 | AL25: 0 | AM25: 0 | AO25: 2464 | AP25: David Aardsma | AQ25: FA/RET/DEC/HON | AR25: aarda | AS25: 85 | AT25: 3 | AU25: 25 | AV25: 91 | AW25: 3 | AX25: 101 | AY25: 42
A26: 2425 | B26: Joba Chamberlain | C26: XXX | D26: Buy | O26: 0 | P26: 0 | Q26: 0 | R26: 0 | Z26: 2425 | AA26: Joba Chamberlain | AB26: =IF(AQ26<>0,VLOOKUP(AQ26,Info!A:B,2,FALSE),"") -> XXX | AC26: chajo | AD26: 0.02352941176 | AE26: 0.2941176471 | AF26: 0.9058823529 | AG26: 0.02352941176 | AH26: 0 | AI26: 0 | AJ26: 0 | AK26: 0 | AL26: 0 | AM26: 0 | AO26: 2425 | AP26: Joba Chamberlain | AQ26: FA/RET/DEC/HON | AR26: chajo | AS26: 85 | AT26: 2 | AU26: 25 | AV26: 77 | AW26: 2 | AX26: 98 | AY26: 22
A27: 1746 | B27: Jonathan Papelbon | C27: XXX | D27: Buy | O27: 0 | P27: 0 | Q27: 0 | R27: 0 | Z27: 1746 | AA27: Jonathan Papelbon | AB27: =IF(AQ27<>0,VLOOKUP(AQ27,Info!A:B,2,FALSE),"") -> XXX | AC27: papjo | AD27: 0.05882352941 | AE27: 0.5176470588 | AF27: 0.8470588235 | AG27: 0.09411764706 | AH27: 0 | AI27: 0 | AJ27: 0 | AK27: 0 | AL27: 0 | AM27: 0 | AO27: 1746 | AP27: Jonathan Papelbon | AQ27: FA/RET/DEC/HON | AR27: papjo | AS27: 85 | AT27: 5 | AU27: 44 | AV27: 72 | AW27: 8 | AX27: 118 | AY27: 40
A28: 2885 | B28: Jordan Walden | C28: XXX | D28: Buy | O28: 0 | P28: 0 | Q28: 0 | R28: 0 | Z28: 2885 | AA28: Jordan Walden | AB28: =IF(AQ28<>0,VLOOKUP(AQ28,Info!A:B,2,FALSE),"") -> XXX | AC28: waldj | AD28: 0.02352941176 | AE28: 0.2941176471 | AF28: 1.070588235 | AG28: 0.03529411765 | AH28: 0 | AI28: 0 | AJ28: 0 | AK28: 0 | AL28: 0 | AM28: 0 | AO28: 2885 | AP28: Jordan Walden | AQ28: FA/RET/DEC/HON | AR28: waldj | AS28: 85 | AT28: 2 | AU28: 25 | AV28: 91 | AW28: 3 | AX28: 88 | AY28: 24
A29: 3879 | B29: Kevin Jepsen | C29: XXX | D29: Buy | O29: 0 | P29: 0 | Q29: 0 | R29: 0 | Z29: 3879 | AA29: Kevin Jepsen | AB29: =IF(AQ29<>0,VLOOKUP(AQ29,Info!A:B,2,FALSE),"") -> XXX | AC29: jepke | AD29: 0.03529411765 | AE29: 0.2941176471 | AF29: 0.6117647059 | AG29: 0.09411764706 | AH29: 0 | AI29: 0 | AJ29: 0 | AK29: 0 | AL29: 0 | AM29: 0 | AO29: 3879 | AP29: Kevin Jepsen | AQ29: FA/RET/DEC/HON | AR29: jepke | AS29: 85 | AT29: 3 | AU29: 25 | AV29: 52 | AW29: 8 | AX29: 122 | AY29: 49
A30: 2834 | B30: Matt Thornton | C30: XXX | D30: Buy | O30: 0 | P30: 0 | Q30: 0 | R30: 0 | Z30: 2834 | AA30: Matt Thornton | AB30: =IF(AQ30<>0,VLOOKUP(AQ30,Info!A:B,2,FALSE),"") -> XXX | AC30: thoma | AD30: 0.05882352941 | AE30: 0.2941176471 | AF30: 0.5882352941 | AG30: 0.02352941176 | AH30: 0 | AI30: 0 | AJ30: 0 | AK30: 0 | AL30: 0 | AM30: 0 | AO30: 2834 | AP30: Matt Thornton | AQ30: FA/RET/DEC/HON | AR30: thoma | AS30: 85 | AT30: 5 | AU30: 25 | AV30: 50 | AW30: 2 | AX30: 126 | AY30: 50
A31: 4150 | B31: Ken Giles | C31: HOU | D31: Buy | O31: 0 | P31: 0 | Q31: 0 | R31: 0 | Z31: 4150 | AA31: Ken Giles | AB31: =IF(AQ31<>0,VLOOKUP(AQ31,Info!A:B,2,FALSE),"") -> HOU | AC31: gilke | AD31: 0.02352941176 | AE31: 0.5529411765 | AF31: 1.352941176 | AG31: 0.04705882353 | AH31: 0 | AI31: 0 | AJ31: 0 | AK31: 0 | AL31: 0 | AM31: 0 | AO31: 4150 | AP31: Ken Giles | AQ31: Houston Astros | AR31: gilke | AS31: 85 | AT31: 2 | AU31: 47 | AV31: 115 | AW31: 4 | AX31: 84 | AY31: 25
A32: 3875 | B32: Luke Gregerson | C32: HOU | D32: Buy | O32: 0 | P32: 0 | Q32: 0 | R32: 0 | Z32: 3875 | AA32: Luke Gregerson | AB32: =IF(AQ32<>0,VLOOKUP(AQ32,Info!A:B,2,FALSE),"") -> HOU | AC32: grelu | AD32: 0.03529411765 | AE32: 0.2941176471 | AF32: 1.094117647 | AG32: 0.04705882353 | AH32: 0 | AI32: 0 | AJ32: 0 | AK32: 0 | AL32: 0 | AM32: 0 | AO32: 3875 | AP32: Luke Gregerson | AQ32: Houston Astros | AR32: grelu | AS32: 85 | AT32: 3 | AU32: 25 | AV32: 93 | AW32: 4 | AX32: 108 | AY32: 40
A33: 3095 | B33: Tyler Clippard | C33: HOU | D33: Buy | O33: 0 | P33: 0 | Q33: 0 | R33: 0 | Z33: 3095 | AA33: Tyler Clippard | AB33: =IF(AQ33<>0,VLOOKUP(AQ33,Info!A:B,2,FALSE),"") -> HOU | AC33: clity | AD33: 0.03529411765 | AE33: 0.2941176471 | AF33: 1.082352941 | AG33: 0.09411764706 | AH33: 0 | AI33: 0 | AJ33: 0 | AK33: 0 | AL33: 0 | AM33: 0 | AO33: 3095 | AP33: Tyler Clippard | AQ33: Houston Astros | AR33: clity | AS33: 85 | AT33: 3 | AU33: 25 | AV33: 92 | AW33: 8 | AX33: 99 | AY33: 41
A34: 4026 | B34: Will Harris | C34: HOU | D34: Buy | O34: 0 | P34: 0 | Q34: 0 | R34: 0 | Z34: 4026 | AA34: Will Harris | AB34: =IF(AQ34<>0,VLOOKUP(AQ34,Info!A:B,2,FALSE),"") -> HOU | AC34: harwi | AD34: 0.05882352941 | AE34: 0.2941176471 | AF34: 1.094117647 | AG34: 0.04705882353 | AH34: 0 | AI34: 0 | AJ34: 0 | AK34: 0 | AL34: 0 | AM34: 0 | AO34: 4026 | AP34: Will Harris | AQ34: Houston Astros | AR34: harwi | AS34: 85 | AT34: 5 | AU34: 25 | AV34: 93 | AW34: 4 | AX34: 78 | AY34: 29
A35: 4032 | B35: Brandon Maurer | C35: KAN | D35: Buy | O35: 0 | P35: 0 | Q35: 0 | R35: 0 | Z35: 4032 | AA35: Brandon Maurer | AB35: =IF(AQ35<>0,VLOOKUP(AQ35,Info!A:B,2,FALSE),"") -> KAN | AC35: maubr | AD35: 0.04705882353 | AE35: 0.3294117647 | AF35: 0.8705882353 | AG35: 0.09411764706 | AH35: 0 | AI35: 0 | AJ35: 0 | AK35: 0 | AL35: 0 | AM35: 0 | AO35: 4032 | AP35: Brandon Maurer | AQ35: Kansas City Royals | AR35: maubr | AS35: 85 | AT35: 4 | AU35: 28 | AV35: 74 | AW35: 8 | AX35: 115 | AY35: 54
A36: 1986 | B36: Joakim Soria | C36: KAN | D36: Buy | O36: 0 | P36: 0 | Q36: 0 | R36: 0 | Z36: 1986 | AA36: Joakim Soria | AB36: =IF(AQ36<>0,VLOOKUP(AQ36,Info!A:B,2,FALSE),"") -> KAN | AC36: sorjo | AD36: 0.05882352941 | AE36: 0.2941176471 | AF36: 1.094117647 | AG36: 0.05882352941 | AH36: 0 | AI36: 0 | AJ36: 0 | AK36: 0 | AL36: 0 | AM36: 0 | AO36: 1986 | AP36: Joakim Soria | AQ36: Kansas City Royals | AR36: sorjo | AS36: 85 | AT36: 5 | AU36: 25 | AV36: 93 | AW36: 5 | AX36: 101 | AY36: 34
A37: 4151 | B37: Kelvin Herrera | C37: KAN | D37: Buy | O37: 0 | P37: 0 | Q37: 0 | R37: 0 | Z37: 4151 | AA37: Kelvin Herrera | AB37: =IF(AQ37<>0,VLOOKUP(AQ37,Info!A:B,2,FALSE),"") -> KAN | AC37: herke | AD37: 0.04705882353 | AE37: 0.4117647059 | AF37: 0.8823529412 | AG37: 0.04705882353 | AH37: 0 | AI37: 0 | AJ37: 0 | AK37: 0 | AL37: 0 | AM37: 0 | AO37: 4151 | AP37: Kelvin Herrera | AQ37: Kansas City Royals | AR37: herke | AS37: 85 | AT37: 4 | AU37: 35 | AV37: 75 | AW37: 4 | AX37: 109 | AY37: 38
A38: 2659 | B38: Neftali Feliz | C38: KAN | D38: Buy | O38: 0 | P38: 0 | Q38: 0 | R38: 0 | Z38: 2659 | AA38: Neftali Feliz | AB38: =IF(AQ38<>0,VLOOKUP(AQ38,Info!A:B,2,FALSE),"") -> KAN | AC38: felne | AD38: 0.04705882353 | AE38: 0.2941176471 | AF38: 0.7647058824 | AG38: 0.09411764706 | AH38: 0 | AI38: 0 | AJ38: 0 | AK38: 0 | AL38: 0 | AM38: 0 | AO38: 2659 | AP38: Neftali Feliz | AQ38: Kansas City Royals | AR38: felne | AS38: 85 | AT38: 4 | AU38: 25 | AV38: 65 | AW38: 8 | AX38: 110 | AY38: 49
A39: 2467 | B39: Andrew Bailey | C39: LAA | D39: Buy | O39: 0 | P39: 0 | Q39: 0 | R39: 0 | Z39: 2467 | AA39: Andrew Bailey | AB39: =IF(AQ39<>0,VLOOKUP(AQ39,Info!A:B,2,FALSE),"") -> LAA | AC39: baian | AD39: 0.05882352941 | AE39: 0.2941176471 | AF39: 0.8941176471 | AG39: 0.04705882353 | AH39: 0 | AI39: 0 | AJ39: 0 | AK39: 0 | AL39: 0 | AM39: 0 | AO39: 2467 | AP39: Andrew Bailey | AQ39: Los Angeles Angels | AR39: baian | AS39: 85 | AT39: 5 | AU39: 25 | AV39: 76 | AW39: 4 | AX39: 117 | AY39: 52
A40: 4152 | B40: Cam Bedrosian | C40: LAA | D40: Buy | O40: 0 | P40: 0 | Q40: 0 | R40: 0 | Z40: 4152 | AA40: Cam Bedrosian | AB40: =IF(AQ40<>0,VLOOKUP(AQ40,Info!A:B,2,FALSE),"") -> LAA | AC40: bedca | AD40: 0.05882352941 | AE40: 0.2941176471 | AF40: 1.105882353 | AG40: 0.09411764706 | AH40: 0 | AI40: 0 | AJ40: 0 | AK40: 0 | AL40: 0 | AM40: 0 | AO40: 4152 | AP40: Cam Bedrosian | AQ40: Los Angeles Angels | AR40: bedca | AS40: 85 | AT40: 5 | AU40: 25 | AV40: 94 | AW40: 8 | AX40: 105 | AY40: 39
A41: 2886 | B41: Fernando Salas | C41: LAA | D41: Buy | O41: 0 | P41: 0 | Q41: 0 | R41: 0 | Z41: 2886 | AA41: Fernando Salas | AB41: =IF(AQ41<>0,VLOOKUP(AQ41,Info!A:B,2,FALSE),"") -> LAA | AC41: salfe | AD41: 0.03529411765 | AE41: 0.2941176471 | AF41: 0.9294117647 | AG41: 0.03529411765 | AH41: 0 | AI41: 0 | AJ41: 0 | AK41: 0 | AL41: 0 | AM41: 0 | AO41: 2886 | AP41: Fernando Salas | AQ41: Los Angeles Angels | AR41: salfe | AS41: 85 | AT41: 3 | AU41: 25 | AV41: 79 | AW41: 3 | AX41: 125 | AY41: 48
A42: 1549 | B42: Huston Street | C42: LAA | D42: Buy | O42: 0 | P42: 0 | Q42: 0 | R42: 0 | Z42: 1549 | AA42: Huston Street | AB42: =IF(AQ42<>0,VLOOKUP(AQ42,Info!A:B,2,FALSE),"") -> LAA | AC42: strhu | AD42: 0.05882352941 | AE42: 0.3411764706 | AF42: 0.6 | AG42: 0.09411764706 | AH42: 0 | AI42: 0 | AJ42: 0 | AK42: 0 | AL42: 0 | AM42: 0 | AO42: 1549 | AP42: Huston Street | AQ42: Los Angeles Angels | AR42: strhu | AS42: 85 | AT42: 5 | AU42: 29 | AV42: 51 | AW42: 8 | AX42: 152 | AY42: 67
A43: 3097 | B43: Kenley Jansen | C43: LAD | D43: Buy | O43: 0 | P43: 0 | Q43: 0 | R43: 0 | Z43: 3097 | AA43: Kenley Jansen | AB43: =IF(AQ43<>0,VLOOKUP(AQ43,Info!A:B,2,FALSE),"") -> LAD | AC43: janke | AD43: 0.05882352941 | AE43: 0.5882352941 | AF43: 1.705882353 | AG43: 0.02352941176 | AH43: 0 | AI43: 0 | AJ43: 0 | AK43: 0 | AL43: 0 | AM43: 0 | AO43: 3097 | AP43: Kenley Jansen | AQ43: Los Angeles Dodgers | AR43: janke | AS43: 85 | AT43: 5 | AU43: 50 | AV43: 145 | AW43: 2 | AX43: 62 | AY43: 20
A44: 3502 | B44: Tony Cingrani | C44: LAD | D44: Buy | O44: 0 | P44: 0 | Q44: 0 | R44: 0 | Z44: 3502 | AA44: Tony Cingrani | AB44: =IF(AQ44<>0,VLOOKUP(AQ44,Info!A:B,2,FALSE),"") -> LAD | AC44: cingt | AD44: 0.02352941176 | AE44: 0.2941176471 | AF44: 1.047058824 | AG44: 0.02352941176 | AH44: 0 | AI44: 0 | AJ44: 0 | AK44: 0 | AL44: 0 | AM44: 0 | AO44: 3502 | AP44: Tony Cingrani | AQ44: Los Angeles Dodgers | AR44: cingt | AS44: 85 | AT44: 2 | AU44: 25 | AV44: 89 | AW44: 2 | AX44: 89 | AY44: 34
A45: 4154 | B45: Tony Watson | C45: LAD | D45: Buy | O45: 0 | P45: 0 | Q45: 0 | R45: 0 | Z45: 4154 | AA45: Tony Watson | AB45: =IF(AQ45<>0,VLOOKUP(AQ45,Info!A:B,2,FALSE),"") -> LAD | AC45: watto | AD45: 0.05882352941 | AE45: 0.2941176471 | AF45: 0.7176470588 | AG45: 0.05882352941 | AH45: 0 | AI45: 0 | AJ45: 0 | AK45: 0 | AL45: 0 | AM45: 0 | AO45: 4154 | AP45: Tony Watson | AQ45: Los Angeles Dodgers | AR45: watto | AS45: 85 | AT45: 5 | AU45: 25 | AV45: 61 | AW45: 5 | AX45: 109 | AY45: 31
A46: 2423 | B46: Brad Ziegler | C46: MIA | D46: Buy | O46: 0 | P46: 0 | Q46: 0 | R46: 0 | Z46: 2423 | AA46: Brad Ziegler | AB46: =IF(AQ46<>0,VLOOKUP(AQ46,Info!A:B,2,FALSE),"") -> MIA | AC46: ziebr | AD46: 0.02352941176 | AE46: 0.2941176471 | AF46: 0.5882352941 | AG46: 0.08235294118 | AH46: 0 | AI46: 0 | AJ46: 0 | AK46: 0 | AL46: 0 | AM46: 0 | AO46: 2423 | AP46: Brad Ziegler | AQ46: Miami Marlins | AR46: ziebr | AS46: 85 | AT46: 2 | AU46: 25 | AV46: 50 | AW46: 7 | AX46: 119 | AY46: 41
A47: 3053 | B47: Javy Guerra | C47: MIA | D47: Buy | O47: 0 | P47: 0 | Q47: 0 | R47: 0 | Z47: 3053 | AA47: Javy Guerra | AB47: =IF(AQ47<>0,VLOOKUP(AQ47,Info!A:B,2,FALSE),"") -> MIA | AC47: gueja | AD47: 0.05882352941 | AE47: 0.2941176471 | AF47: 0.7529411765 | AG47: 0.07058823529 | AH47: 0 | AI47: 0 | AJ47: 0 | AK47: 0 | AL47: 0 | AM47: 0 | AO47: 3053 | AP47: Javy Guerra | AQ47: Miami Marlins | AR47: gueja | AS47: 85 | AT47: 5 | AU47: 25 | AV47: 64 | AW47: 6 | AX47: 165 | AY47: 38
A48: 3269 | B48: Junichi Tazawa | C48: MIA | D48: Buy | O48: 0 | P48: 0 | Q48: 0 | R48: 0 | Z48: 3269 | AA48: Junichi Tazawa | AB48: =IF(AQ48<>0,VLOOKUP(AQ48,Info!A:B,2,FALSE),"") -> MIA | AC48: tazju | AD48: 0.05882352941 | AE48: 0.2941176471 | AF48: 0.6941176471 | AG48: 0.09411764706 | AH48: 0 | AI48: 0 | AJ48: 0 | AK48: 0 | AL48: 0 | AM48: 0 | AO48: 3269 | AP48: Junichi Tazawa | AQ48: Miami Marlins | AR48: tazju | AS48: 85 | AT48: 5 | AU48: 25 | AV48: 59 | AW48: 8 | AX48: 126 | AY48: 56
A49: 4184 | B49: Corey Knebel | C49: MIL | D49: Buy | O49: 0 | P49: 0 | Q49: 0 | R49: 0 | Z49: 4184 | AA49: Corey Knebel | AB49: =IF(AQ49<>0,VLOOKUP(AQ49,Info!A:B,2,FALSE),"") -> MIL | AC49: kneco | AD49: 0.02352941176 | AE49: 0.5176470588 | AF49: 1.658823529 | AG49: 0.05882352941 | AH49: 0 | AI49: 0 | AJ49: 0 | AK49: 0 | AL49: 0 | AM49: 0 | AO49: 4184 | AP49: Corey Knebel | AQ49: Milwaukee Brewers | AR49: kneco | AS49: 85 | AT49: 2 | AU49: 44 | AV49: 141 | AW49: 5 | AX49: 100 | AY49: 20
A50: 4027 | B50: Jeremy Jeffress | C50: MIL | D50: Buy | O50: 0 | P50: 0 | Q50: 0 | R50: 0 | Z50: 4027 | AA50: Jeremy Jeffress | AB50: =IF(AQ50<>0,VLOOKUP(AQ50,Info!A:B,2,FALSE),"") -> MIL | AC50: jefje | AD50: 0.05882352941 | AE50: 0.2941176471 | AF50: 0.8470588235 | AG50: 0.03529411765 | AH50: 0 | AI50: 0 | AJ50: 0 | AK50: 0 | AL50: 0 | AM50: 0 | AO50: 4027 | AP50: Jeremy Jeffress | AQ50: Milwaukee Brewers | AR50: jefje | AS50: 85 | AT50: 5 | AU50: 25 | AV50: 72 | AW50: 3 | AX50: 152 | AY50: 48
A51: 2424 | B51: Glen Perkins | C51: MIN | D51: Buy | O51: 0 | P51: 0 | Q51: 0 | R51: 0 | Z51: 2424 | AA51: Glen Perkins | AB51: =IF(AQ51<>0,VLOOKUP(AQ51,Info!A:B,2,FALSE),"") -> MIN | AC51: pergl | AD51: 0.05882352941 | AE51: 0.5411764706 | AF51: 0.9058823529 | AG51: 0.09411764706 | AH51: 0 | AI51: 0 | AJ51: 0 | AK51: 0 | AL51: 0 | AM51: 0 | AO51: 2424 | AP51: Glen Perkins | AQ51: Minnesota Twins | AR51: pergl | AS51: 85 | AT51: 5 | AU51: 46 | AV51: 77 | AW51: 8 | AX51: 97 | AY51: 30
A52: 3840 | B52: Jeurys Familia | C52: NYM | D52: Buy | O52: 0 | P52: 0 | Q52: 0 | R52: 0 | Z52: 3840 | AA52: Jeurys Familia | AB52: =IF(AQ52<>0,VLOOKUP(AQ52,Info!A:B,2,FALSE),"") -> NYM | AC52: famje | AD52: 0.05882352941 | AE52: 0.2941176471 | AF52: 0.9647058824 | AG52: 0.08235294118 | AH52: 0 | AI52: 0 | AJ52: 0 | AK52: 0 | AL52: 0 | AM52: 0 | AO52: 3840 | AP52: Jeurys Familia | AQ52: New York Mets | AR52: famje | AS52: 85 | AT52: 5 | AU52: 25 | AV52: 82 | AW52: 7 | AX52: 125 | AY52: 40
A53: 3058 | B53: Aroldis Chapman | C53: NYY | D53: Buy | O53: 0 | P53: 0 | Q53: 0 | R53: 0 | Z53: 3058 | AA53: Aroldis Chapman | AB53: =IF(AQ53<>0,VLOOKUP(AQ53,Info!A:B,2,FALSE),"") -> NYY | AC53: chaar | AD53: 0.05882352941 | AE53: 0.4235294118 | AF53: 1.458823529 | AG53: 0.07058823529 | AH53: 0 | AI53: 0 | AJ53: 0 | AK53: 0 | AL53: 0 | AM53: 0 | AO53: 3058 | AP53: Aroldis Chapman | AQ53: New York Yankees | AR53: chaar | AS53: 85 | AT53: 5 | AU53: 36 | AV53: 124 | AW53: 6 | AX53: 87 | AY53: 29
A54: 3054 | B54: David Robertson | C54: NYY | D54: Buy | O54: 0 | P54: 0 | Q54: 0 | R54: 0 | Z54: 3054 | AA54: David Robertson | AB54: =IF(AQ54<>0,VLOOKUP(AQ54,Info!A:B,2,FALSE),"") -> NYY | AC54: robda | AD54: 0.05882352941 | AE54: 0.2941176471 | AF54: 1.670588235 | AG54: 0.03529411765 | AH54: 0 | AI54: 0 | AJ54: 0 | AK54: 0 | AL54: 0 | AM54: 0 | AO54: 3054 | AP54: David Robertson | AQ54: New York Yankees | AR54: robda | AS54: 85 | AT54: 5 | AU54: 25 | AV54: 142 | AW54: 3 | AX54: 83 | AY54: 20
A55: 3804 | B55: Dellin Betances | C55: NYY | D55: Buy | O55: 0 | P55: 0 | Q55: 0 | R55: 0 | Z55: 3804 | AA55: Dellin Betances | AB55: =IF(AQ55<>0,VLOOKUP(AQ55,Info!A:B,2,FALSE),"") -> NYY | AC55: betde | AD55: 0.04705882353 | AE55: 0.2941176471 | AF55: 1.505882353 | AG55: 0.09411764706 | AH55: 0 | AI55: 0 | AJ55: 0 | AK55: 0 | AL55: 0 | AM55: 0 | AO55: 3804 | AP55: Dellin Betances | AQ55: New York Yankees | AR55: betde | AS55: 85 | AT55: 4 | AU55: 25 | AV55: 128 | AW55: 8 | AX55: 89 | AY55: 26
A56: 4148 | B56: Blake Treinen | C56: OAK | D56: Buy | O56: 0 | P56: 0 | Q56: 0 | R56: 0 | Z56: 4148 | AA56: Blake Treinen | AB56: =IF(AQ56<>0,VLOOKUP(AQ56,Info!A:B,2,FALSE),"") -> OAK | AC56: trebl | AD56: 0.04705882353 | AE56: 0.2941176471 | AF56: 1.035294118 | AG56: 0.09411764706 | AH56: 0 | AI56: 0 | AJ56: 0 | AK56: 0 | AL56: 0 | AM56: 0 | AO56: 4148 | AP56: Blake Treinen | AQ56: Oakland Athletics | AR56: trebl | AS56: 85 | AT56: 4 | AU56: 25 | AV56: 88 | AW56: 8 | AX56: 127 | AY56: 39
A57: 2661 | B57: John Axford | C57: OAK | D57: Buy | O57: 0 | P57: 0 | Q57: 0 | R57: 0 | Z57: 2661 | AA57: John Axford | AB57: =IF(AQ57<>0,VLOOKUP(AQ57,Info!A:B,2,FALSE),"") -> OAK | AC57: axfjo | AD57: 0.02352941176 | AE57: 0.2941176471 | AF57: 0.9647058824 | AG57: 0.04705882353 | AH57: 0 | AI57: 0 | AJ57: 0 | AK57: 0 | AL57: 0 | AM57: 0 | AO57: 2661 | AP57: John Axford | AQ57: Oakland Athletics | AR57: axfjo | AS57: 85 | AT57: 2 | AU57: 25 | AV57: 82 | AW57: 4 | AX57: 170 | AY57: 58
A58: 3056 | B58: Santiago Casilla | C58: OAK | D58: Buy | O58: 0 | P58: 0 | Q58: 0 | R58: 0 | Z58: 3056 | AA58: Santiago Casilla | AB58: =IF(AQ58<>0,VLOOKUP(AQ58,Info!A:B,2,FALSE),"") -> OAK | AC58: casis | AD58: 0.05882352941 | AE58: 0.2941176471 | AF58: 0.9058823529 | AG58: 0.08235294118 | AH58: 0 | AI58: 0 | AJ58: 0 | AK58: 0 | AL58: 0 | AM58: 0 | AO58: 3056 | AP58: Santiago Casilla | AQ58: Oakland Athletics | AR58: casis | AS58: 85 | AT58: 5 | AU58: 25 | AV58: 77 | AW58: 7 | AX58: 108 | AY58: 38
A59: 4025 | B59: Jeanmar Gomez | C59: PHI | D59: Buy | O59: 0 | P59: 0 | Q59: 0 | R59: 0 | Z59: 4025 | AA59: Jeanmar Gomez | AB59: =IF(AQ59<>0,VLOOKUP(AQ59,Info!A:B,2,FALSE),"") -> PHI | AC59: gomje | AD59: 0.05882352941 | AE59: 0.2941176471 | AF59: 1.176470588 | AG59: 0.09411764706 | AH59: 0 | AI59: 0 | AJ59: 0 | AK59: 0 | AL59: 0 | AM59: 0 | AO59: 4025 | AP59: Jeanmar Gomez | AQ59: Philadelphia Phillies | AR59: gomje | AS59: 85 | AT59: 5 | AU59: 25 | AV59: 100 | AW59: 8 | AX59: 180 | AY59: 85
A60: 2951 | B60: Antonio Bastardo | C60: PIT | D60: Buy | O60: 0 | P60: 0 | Q60: 0 | R60: 0 | Z60: 2951 | AA60: Antonio Bastardo | AB60: =IF(AQ60<>0,VLOOKUP(AQ60,Info!A:B,2,FALSE),"") -> PIT | AC60: basan | AD60: 0.04705882353 | AE60: 0.2941176471 | AF60: 1.082352941 | AG60: 0.02352941176 | AH60: 0 | AI60: 0 | AJ60: 0 | AK60: 0 | AL60: 0 | AM60: 0 | AO60: 2951 | AP60: Antonio Bastardo | AQ60: Pittsburgh Pirates | AR60: basan | AS60: 85 | AT60: 4 | AU60: 25 | AV60: 92 | AW60: 2 | AX60: 115 | AY60: 44
A61: 3306 | B61: Joaquin Benoit | C61: PIT | D61: Buy | O61: 0 | P61: 0 | Q61: 0 | R61: 0 | Z61: 3306 | AA61: Joaquin Benoit | AB61: =IF(AQ61<>0,VLOOKUP(AQ61,Info!A:B,2,FALSE),"") -> PIT | AC61: benjo | AD61: 0.02352941176 | AE61: 0.2941176471 | AF61: 0.8941176471 | AG61: 0.09411764706 | AH61: 0 | AI61: 0 | AJ61: 0 | AK61: 0 | AL61: 0 | AM61: 0 | AO61: 3306 | AP61: Joaquin Benoit | AQ61: Pittsburgh Pirates | AR61: benjo | AS61: 85 | AT61: 2 | AU61: 25 | AV61: 76 | AW61: 8 | AX61: 107 | AY61: 43
A62: 4186 | B62: Brad Hand | C62: SDP | D62: Buy | O62: 0 | P62: 0 | Q62: 0 | R62: 0 | Z62: 4186 | AA62: Brad Hand | AB62: =IF(AQ62<>0,VLOOKUP(AQ62,Info!A:B,2,FALSE),"") -> SDP | AC62: hanbr | AD62: 0.04705882353 | AE62: 0.2941176471 | AF62: 1.447058824 | AG62: 0.05882352941 | AH62: 0 | AI62: 0 | AJ62: 0 | AK62: 0 | AL62: 0 | AM62: 0 | AO62: 4186 | AP62: Brad Hand | AQ62: San Diego Padres | AR62: hanbr | AS62: 85 | AT62: 4 | AU62: 25 | AV62: 123 | AW62: 5 | AX62: 89 | AY62: 23
A63: 3580 | B63: Mark Melancon | C63: SFG | D63: Buy | O63: 0 | P63: 0 | Q63: 0 | R63: 0 | Z63: 3580 | AA63: Mark Melancon | AB63: =IF(AQ63<>0,VLOOKUP(AQ63,Info!A:B,2,FALSE),"") -> SFG | AC63: melma | AD63: 0.03529411765 | AE63: 0.3529411765 | AF63: 0.9176470588 | AG63: 0.07058823529 | AH63: 0 | AI63: 0 | AJ63: 0 | AK63: 0 | AL63: 0 | AM63: 0 | AO63: 3580 | AP63: Mark Melancon | AQ63: San Francisco Giants | AR63: melma | AS63: 85 | AT63: 3 | AU63: 30 | AV63: 78 | AW63: 6 | AX63: 115 | AY63: 40
A64: 4155 | B64: Edwin Diaz | C64: SEA | D64: Buy | O64: 0 | P64: 0 | Q64: 0 | R64: 0 | Z64: 4155 | AA64: Edwin Diaz | AB64: =IF(AQ64<>0,VLOOKUP(AQ64,Info!A:B,2,FALSE),"") -> SEA | AC64: diaed | AD64: 0.05882352941 | AE64: 0.5176470588 | AF64: 1.352941176 | AG64: 0.09411764706 | AH64: 0 | AI64: 0 | AJ64: 0 | AK64: 0 | AL64: 0 | AM64: 0 | AO64: 4155 | AP64: Edwin Diaz | AQ64: Seattle Mariners | AR64: diaed | AS64: 85 | AT64: 5 | AU64: 44 | AV64: 115 | AW64: 8 | AX64: 98 | AY64: 31
A65: 3093 | B65: Ryan Cook | C65: SEA | D65: Buy | O65: 0 | P65: 0 | Q65: 0 | R65: 0 | Z65: 3093 | AA65: Ryan Cook | AB65: =IF(AQ65<>0,VLOOKUP(AQ65,Info!A:B,2,FALSE),"") -> SEA | AC65: coory | AD65: 0.02352941176 | AE65: 0.2941176471 | AF65: 0.9529411765 | AG65: 0.05882352941 | AH65: 0 | AI65: 0 | AJ65: 0 | AK65: 0 | AL65: 0 | AM65: 0 | AO65: 3093 | AP65: Ryan Cook | AQ65: Seattle Mariners | AR65: coory | AS65: 85 | AT65: 2 | AU65: 25 | AV65: 81 | AW65: 5 | AX65: 84 | AY65: 31
A66: 2650 | B66: Brett Cecil | C66: STL | D66: Buy | O66: =VLOOKUP($A66,$A:$N,5,FALSE)/VLOOKUP($A66,$Z:$AM,5,FALSE) -> 0 | P66: =VLOOKUP($A66,$A:$N,6,FALSE)/VLOOKUP($A66,$Z:$AM,6,FALSE) -> 0 | Q66: =VLOOKUP($A66,$A:$N,7,FALSE)/VLOOKUP($A66,$Z:$AM,7,FALSE) -> 0 | R66: =VLOOKUP($A66,$A:$N,8,FALSE)/VLOOKUP($A66,$Z:$AM,8,FALSE) -> 0 | S66: =VLOOKUP($A66,$A:$N,9,FALSE)/VLOOKUP($A66,$Z:$AM,9,FALSE) ->  | T66: =VLOOKUP($A66,$A:$N,10,FALSE)/VLOOKUP($A66,$Z:$AM,10,FALSE) ->  | U66: =VLOOKUP($A66,$A:$N,11,FALSE)/VLOOKUP($A66,$Z:$AM,11,FALSE) ->  | V66: =VLOOKUP($A66,$A:$N,12,FALSE)/VLOOKUP($A66,$Z:$AM,12,FALSE) ->  | W66: =VLOOKUP($A66,$A:$N,13,FALSE)/VLOOKUP($A66,$Z:$AM,13,FALSE) ->  | X66: =VLOOKUP($A66,$A:$N,14,FALSE)/VLOOKUP($A66,$Z:$AM,14,FALSE) ->  | Z66: 2650 | AA66: Brett Cecil | AB66: =IF(AQ66<>0,VLOOKUP(AQ66,Info!A:B,2,FALSE),"") -> STL | AC66: cecbr | AD66: 0.03529411765 | AE66: 0.2941176471 | AF66: 0.9058823529 | AG66: 0.05882352941 | AH66: 0 | AI66: 0 | AJ66: 0 | AK66: 0 | AL66: 0 | AM66: 0 | AO66: 2650 | AP66: Brett Cecil | AQ66: St. Louis Cardinals | AR66: cecbr | AS66: 85 | AT66: 3 | AU66: 25 | AV66: 77 | AW66: 5 | AX66: 99 | AY66: 34
A67: =IF(Z67<>0,Z67,"") -> 2419 | B67: =IF(A67<>0,VLOOKUP(A67,Z:AA,2,FALSE),"") -> Jonathan Broxton | C67: =IF(A67<>0,VLOOKUP(A67,Z:AB,3,FALSE)) -> STL | D67: =HYPERLINK("http://www.jockstocks.com/buysell.php?action=buymax&plid="&A67,"Buy") -> Buy | O67: 0 | P67: 0 | Q67: 0 | R67: 0 | Z67: =IF(AO67<>0,AO67,"") -> 2419 | AA67: =IF(AP67<>0,VLOOKUP(Z67,AO:AP,2,FALSE),"") -> Jonathan Broxton | AB67: =IF(AQ67<>0,VLOOKUP(AQ67,Info!A:B,2,FALSE),"") -> STL | AC67: =IF(AO67<>0,VLOOKUP(Z67,AO:AR,4,FALSE),"") -> broxj | AD67: =IF($AO67<>0,AT67/$AS67,"") -> 0.02352941176 | AE67: =IF($AO67<>0,AU67/$AS67,"") -> 0.2941176471 | AF67: =IF($AO67<>0,AV67/$AS67,"") -> 0.8 | AG67: =IF($AO67<>0,AW67/$AS67,"") -> 0.05882352941 | AH67: =IF($AO67<>0,AZ67/$AS67,"") -> 0 | AI67: =IF($AO67<>0,BA67/$AS67,"") -> 0 | AJ67: =IF($AO67<>0,BB67/$AS67,"") -> 0 | AK67: =IF($AO67<>0,BC67/$AS67,"") -> 0 | AL67: =IF($AO67<>0,BD67/$AS67,"") -> 0 | AM67: =IF($AO67<>0,BE67/$AS67,"") -> 0 | AO67: 2419 | AP67: Jonathan Broxton | AQ67: St. Louis Cardinals | AR67: broxj | AS67: 85 | AT67: 2 | AU67: 25 | AV67: 68 | AW67: 5 | AX67: 145 | AY67: 51
A68: 3876 | B68: Kevin Siegrist | C68: STL | D68: Buy | O68: 0 | P68: 0 | Q68: 0 | R68: 0 | Z68: 3876 | AA68: Kevin Siegrist | AB68: =IF(AQ68<>0,VLOOKUP(AQ68,Info!A:B,2,FALSE),"") -> STL | AC68: sieke | AD68: 0.02352941176 | AE68: 0.2941176471 | AF68: 0.9411764706 | AG68: 0.02352941176 | AH68: 0 | AI68: 0 | AJ68: 0 | AK68: 0 | AL68: 0 | AM68: 0 | AO68: 3876 | AP68: Kevin Siegrist | AQ68: St. Louis Cardinals | AR68: sieke | AS68: 85 | AT68: 2 | AU68: 25 | AV68: 80 | AW68: 2 | AX68: 111 | AY68: 36
A69: 4033 | B69: Seung Hwan Oh | C69: STL | D69: Buy | O69: 0 | P69: 0 | Q69: 0 | R69: 0 | Z69: 4033 | AA69: Seung Hwan Oh | AB69: =IF(AQ69<>0,VLOOKUP(AQ69,Info!A:B,2,FALSE),"") -> STL | AC69: ohseu | AD69: 0.02352941176 | AE69: 0.3411764706 | AF69: 0.9058823529 | AG69: 0.07058823529 | AH69: 0 | AI69: 0 | AJ69: 0 | AK69: 0 | AL69: 0 | AM69: 0 | AO69: 4033 | AP69: Seung Hwan Oh | AQ69: St. Louis Cardinals | AR69: ohseu | AS69: 85 | AT69: 2 | AU69: 29 | AV69: 77 | AW69: 6 | AX69: 114 | AY69: 33
A70: 3376 | B70: Trevor Rosenthal | C70: STL | D70: Buy | O70: 0 | P70: 0 | Q70: 0 | R70: 0 | Z70: 3376 | AA70: Trevor Rosenthal | AB70: =IF(AQ70<>0,VLOOKUP(AQ70,Info!A:B,2,FALSE),"") -> STL | AC70: rostr | AD70: 0.05882352941 | AE70: 0.2941176471 | AF70: 1.529411765 | AG70: 0.08235294118 | AH70: 0 | AI70: 0 | AJ70: 0 | AK70: 0 | AL70: 0 | AM70: 0 | AO70: 3376 | AP70: Trevor Rosenthal | AQ70: St. Louis Cardinals | AR70: rostr | AS70: 85 | AT70: 5 | AU70: 25 | AV70: 130 | AW70: 7 | AX70: 97 | AY70: 31
A71: 4023 | B71: Alex Colome | C71: TAM | D71: Buy | O71: 0 | P71: 0 | Q71: 0 | R71: 0 | Z71: 4023 | AA71: Alex Colome | AB71: =IF(AQ71<>0,VLOOKUP(AQ71,Info!A:B,2,FALSE),"") -> TAM | AC71: colal | AD71: 0.03529411765 | AE71: 0.5882352941 | AF71: 0.8941176471 | AG71: 0.04705882353 | AH71: 0 | AI71: 0 | AJ71: 0 | AK71: 0 | AL71: 0 | AM71: 0 | AO71: 4023 | AP71: Alex Colome | AQ71: Tampa Bay Rays | AR71: colal | AS71: 85 | AT71: 3 | AU71: 50 | AV71: 76 | AW71: 4 | AX71: 105 | AY71: 32
